{"text_format":"1","workbook":"xlsx","n_sheets":8,"sheets":["Instructions","Template","Definitions","From File","database","codes","dbf","1304"],"not_rendered":{"charts":0,"images":3,"macros":1,"external_links":0,"defined_names":27,"comments":0,"pivot_tables":0},"unopened":[],"bounds":{"document_bytes":16777216,"sheet_cells":100000,"rows_first":2000,"rows_last":500,"rows_between":2000,"halvings":0,"cell_chars":16384,"cell_head_chars":4096},"cells_cut":0,"cells_raw":0,"read":"whole","date_system":"1900"}

{"sheet":"Instructions","index":0,"n_rows":0,"n_cols":0,"rows_kept":0,"cut":false,"hidden":false,"merged":[]}

{"sheet":"Template","index":1,"n_rows":193,"n_cols":63,"rows_kept":193,"cut":false,"hidden":false,"merged":[[13,0,13,2],[23,0,23,2],[0,0,0,2],[45,0,45,1]]}
["Monthly Statement of Earnings and Expenses of Foreign Shipping Companies",null,null,"Appendix V-35",null,null,null,null,null,null,null,null,null,null,null,null,null,null,null,null,null,null,null,null,null,null,null,null,null,null,null,null,null,null,null,null,null,null,null,null,null,null,null,null,null,null,null,null,null,null,null,null,null,null,null,null,null,null,null,null,null,null,"Reporting Period"]
["Foreign Shipping Company/ Agent Code",null,null,{"$f":"IF(C2=\"\",VLOOKUP(B3,codes!$D$1:$E$5029,2,FALSE),C2)","v":{"$error":"#N/A"}},null,null,null,null,null,null,null,null,null,null,null,null,null,null,null,null,null,null,null,null,null,null,null,null,null,null,null,null,null,null,null,null,null,null,null,null,null,null,null,null,null,null,null,null,null,null,null,null,null,null,null,null,null,null,null,null,null,null,"2015-01-31"]
["Name of Foreign Shipping Company/ Agent","","   ",{"$f":"INDEX(codes!D:D,MATCH(D2,codes!E:E,0))","v":{"$error":"#N/A"}},null,null,null,null,null,null,null,null,null,null,null,null,null,null,null,null,null,null,null,null,null,null,null,null,null,null,null,null,null,null,null,null,null,null,null,null,null,null,null,null,null,null,null,null,null,null,null,null,null,null,null,null,null,null,null,null,null,null,"2015-02-28"]
["Principal (Foreign Shipping Line) Code",null,null,{"$f":"IF(C4=\"\",look(codes!$D$1:$G$5029,Template!D2,2,Template!B5,3,4),C4)","v":{"$error":"#NAME?"}},null,null,null,null,null,null,null,null,null,null,null,null,null,null,null,null,null,null,null,null,null,null,null,null,null,null,null,null,null,null,null,null,null,null,null,null,null,null,null,null,null,null,null,null,null,null,null,null,null,null,null,null,null,null,null,null,null,null,"2015-03-31"]
["Name of Principal (Foreign Shipping Line)","","   ",{"$f":"look(codes!$D$2:$G$5029,Template!D2,2,Template!D4,4,3)","v":{"$error":"#NAME?"}},null,null,null,null,null,null,null,null,null,null,null,null,null,null,null,null,null,null,null,null,null,null,null,null,null,null,null,null,null,null,null,null,null,null,null,null,null,null,null,null,null,null,null,null,null,null,null,null,null,null,null,null,null,null,null,null,null,null,"2015-04-30"]
["Country Code",null,null,{"$f":"IF(C6=\"\",VLOOKUP(B7,codes!$A$1:$B$305,2,FALSE),C6)","v":{"$error":"#N/A"}},null,null,null,null,null,null,null,null,null,null,null,null,null,null,null,null,null,null,null,null,null,null,null,null,null,null,null,null,null,null,null,null,null,null,null,null,null,null,null,null,null,null,null,null,null,null,null,null,null,null,null,null,null,null,null,null,null,null,"2015-05-31"]
["Country","","   ",{"$f":"INDEX(codes!A:A,MATCH(Template!D6,codes!B:B,0))","v":{"$error":"#N/A"}},null,null,null,null,null,null,null,null,null,null,null,null,null,null,null,null,null,null,null,null,null,null,null,null,null,null,null,null,null,null,null,null,null,null,null,null,null,null,null,null,null,null,null,null,null,null,null,null,null,null,null,null,null,null,null,null,null,null,"2015-06-30"]
["Period (dd-Mon-yyyy)",null,"2015-01-31",{"$f":"C8","v":"2015-01-31"},null,null,null,null,null,null,null,null,null,null,null,null,null,null,null,null,null,null,null,null,null,null,null,null,null,null,null,null,null,null,null,null,null,null,null,null,null,null,null,null,null,null,null,null,null,null,null,null,null,null,null,null,null,null,null,null,null,null,"2015-07-31"]
[null,null,null,null,null,null,null,null,null,null,null,null,null,null,null,null,null,null,null,null,null,null,null,null,null,null,null,null,null,null,null,null,null,null,null,null,null,null,null,null,null,null,null,null,null,null,null,null,null,null,null,null,null,null,null,null,null,null,null,null,null,null,"2015-08-31"]
["Description","Code","Amount in PKR",null,null,null,null,null,null,null,null,null,null,null,null,null,null,null,null,null,null,null,null,null,null,null,null,null,null,null,null,null,null,null,null,null,null,null,null,null,null,null,null,null,null,null,null,null,null,null,null,null,null,null,null,null,null,null,null,null,null,null,"2015-09-30"]
["No. of vessels handled during the month",20101,null,null,null,null,null,null,null,null,null,null,null,null,null,null,null,null,null,null,null,null,null,null,null,null,null,null,null,null,null,null,null,null,null,null,null,null,null,null,null,null,null,null,null,null,null,null,null,null,null,null,null,null,null,null,null,null,null,null,null,null,"2015-10-31"]
["1. Opening Balance - Credit",20102,0,null,null,null,null,null,null,null,null,null,null,null,null,null,null,null,null,null,null,null,null,null,null,null,null,null,null,null,null,null,null,null,null,null,null,null,null,null,null,null,null,null,null,null,null,null,null,null,null,null,null,null,null,null,null,null,null,null,null,null,"2015-11-30"]
["1. Opening Balance - Debit",20103,0,null,null,null,null,null,null,null,null,null,null,null,null,null,null,null,null,null,null,null,null,null,null,null,null,null,null,null,null,null,null,null,null,null,null,null,null,null,null,null,null,null,null,null,null,null,null,null,null,null,null,null,null,null,null,null,null,null,null,null,"2015-12-31"]
["Earnings/Receipts",null,null,null,null,null,null,null,null,null,null,null,null,null,null,null,null,null,null,null,null,null,null,null,null,null,null,null,null,null,null,null,null,null,null,null,null,null,null,null,null,null,null,null,null,null,null,null,null,null,null,null,null,null,null,null,null,null,null,null,null,null,"2016-01-31"]
["2. Freight Collection",20125,{"$f":"C16+C17+C18","v":0},null,null,null,null,null,null,null,null,null,null,null,null,null,null,null,null,null,null,null,null,null,null,null,null,null,null,null,null,null,null,null,null,null,null,null,null,null,null,null,null,null,null,null,null,null,null,null,null,null,null,null,null,null,null,null,null,null,null,null,"2016-02-29"]
["2.1. Freight on exports",20104,null,null,null,null,null,null,null,null,null,null,null,null,null,null,null,null,null,null,null,null,null,null,null,null,null,null,null,null,null,null,null,null,null,null,null,null,null,null,null,null,null,null,null,null,null,null,null,null,null,null,null,null,null,null,null,null,null,null,null,null,"2016-03-31"]
["2.2. Freight on imports",20105,null,null,null,null,null,null,null,null,null,null,null,null,null,null,null,null,null,null,null,null,null,null,null,null,null,null,null,null,null,null,null,null,null,null,null,null,null,null,null,null,null,null,null,null,null,null,null,null,null,null,null,null,null,null,null,null,null,null,null,null,"2016-04-30"]
["2.3. Mail or Courier Services to non-residents ",20124,null,null,null,null,null,null,null,null,null,null,null,null,null,null,null,null,null,null,null,null,null,null,null,null,null,null,null,null,null,null,null,null,null,null,null,null,null,null,null,null,null,null,null,null,null,null,null,null,null,null,null,null,null,null,null,null,null,null,null,null,"2016-05-31"]
["3. Charter of ships/vessels with crew to Pakistan ",20126,null,null,null,null,null,null,null,null,null,null,null,null,null,null,null,null,null,null,null,null,null,null,null,null,null,null,null,null,null,null,null,null,null,null,null,null,null,null,null,null,null,null,null,null,null,null,null,null,null,null,null,null,null,null,null,null,null,null,null,null,"2016-06-30"]
["4. Charter of ships/vessels without crew to Pakistan ",20127,null,null,null,null,null,null,null,null,null,null,null,null,null,null,null,null,null,null,null,null,null,null,null,null,null,null,null,null,null,null,null,null,null,null,null,null,null,null,null,null,null,null,null,null,null,null,null,null,null,null,null,null,null,null,null,null,null,null,null,null,"2016-07-31"]
["5. Inward remittances",20106,null,null,null,null,null,null,null,null,null,null,null,null,null,null,null,null,null,null,null,null,null,null,null,null,null,null,null,null,null,null,null,null,null,null,null,null,null,null,null,null,null,null,null,null,null,null,null,null,null,null,null,null,null,null,null,null,null,null,null,null,"2016-08-31"]
["6. Other receipts/receivables",20107,null,null,null,null,null,null,null,null,null,null,null,null,null,null,null,null,null,null,null,null,null,null,null,null,null,null,null,null,null,null,null,null,null,null,null,null,null,null,null,null,null,null,null,null,null,null,null,null,null,null,null,null,null,null,null,null,null,null,null,null,"2016-09-30"]
["7. Total Earnings/Receipts ",20108,{"$f":"C15+SUM(C19:C22)","v":0},null,null,null,null,null,null,null,null,null,null,null,null,null,null,null,null,null,null,null,null,null,null,null,null,null,null,null,null,null,null,null,null,null,null,null,null,null,null,null,null,null,null,null,null,null,null,null,null,null,null,null,null,null,null,null,null,null,null,null,"2016-10-31"]
["Expenses",null,null,null,null,null,null,null,null,null,null,null,null,null,null,null,null,null,null,null,null,null,null,null,null,null,null,null,null,null,null,null,null,null,null,null,null,null,null,null,null,null,null,null,null,null,null,null,null,null,null,null,null,null,null,null,null,null,null,null,null,null,"2016-11-30"]
["8. Fuel purchased ",20110,null,null,null,null,null,null,null,null,null,null,null,null,null,null,null,null,null,null,null,null,null,null,null,null,null,null,null,null,null,null,null,null,null,null,null,null,null,null,null,null,null,null,null,null,null,null,null,null,null,null,null,null,null,null,null,null,null,null,null,null,"2016-12-31"]
["9. Catering and other supplies on board",20128,null,null,null,null,null,null,null,null,null,null,null,null,null,null,null,null,null,null,null,null,null,null,null,null,null,null,null,null,null,null,null,null,null,null,null,null,null,null,null,null,null,null,null,null,null,null,null,null,null,null,null,null,null,null,null,null,null,null,null,null,"2017-01-31"]
["10. Repair of ships",20111,null,null,null,null,null,null,null,null,null,null,null,null,null,null,null,null,null,null,null,null,null,null,null,null,null,null,null,null,null,null,null,null,null,null,null,null,null,null,null,null,null,null,null,null,null,null,null,null,null,null,null,null,null,null,null,null,null,null,null,null,"2017-02-28"]
["11. Crew expenses during transit stay in Pakistan (hotel bill, transport, etc.)",20113,null,null,null,null,null,null,null,null,null,null,null,null,null,null,null,null,null,null,null,null,null,null,null,null,null,null,null,null,null,null,null,null,null,null,null,null,null,null,null,null,null,null,null,null,null,null,null,null,null,null,null,null,null,null,null,null,null,null,null,null,"2017-03-31"]
["12. Agency commission / Fee",20112,null,null,null,null,null,null,null,null,null,null,null,null,null,null,null,null,null,null,null,null,null,null,null,null,null,null,null,null,null,null,null,null,null,null,null,null,null,null,null,null,null,null,null,null,null,null,null,null,null,null,null,null,null,null,null,null,null,null,null,null,"2017-04-30"]
["13. Office expenses",20129,null,null,null,null,null,null,null,null,null,null,null,null,null,null,null,null,null,null,null,null,null,null,null,null,null,null,null,null,null,null,null,null,null,null,null,null,null,null,null,null,null,null,null,null,null,null,null,null,null,null,null,null,null,null,null,null,null,null,null,null,"2017-05-31"]
["14. Landing/ handling charges/port charges ",20130,null,null,null,null,null,null,null,null,null,null,null,null,null,null,null,null,null,null,null,null,null,null,null,null,null,null,null,null,null,null,null,null,null,null,null,null,null,null,null,null,null,null,null,null,null,null,null,null,null,null,null,null,null,null,null,null,null,null,null,null,"2017-06-30"]
["15. Entertainment & advertisement ",20131,null,null,null,null,null,null,null,null,null,null,null,null,null,null,null,null,null,null,null,null,null,null,null,null,null,null,null,null,null,null,null,null,null,null,null,null,null,null,null,null,null,null,null,null,null,null,null,null,null,null,null,null,null,null,null,null,null,null,null,null,"2017-07-31"]
["16. Charter of ship with crew for freight",20132,null,null,null,null,null,null,null,null,null,null,null,null,null,null,null,null,null,null,null,null,null,null,null,null,null,null,null,null,null,null,null,null,null,null,null,null,null,null,null,null,null,null,null,null,null,null,null,null,null,null,null,null,null,null,null,null,null,null,null,null,"2017-08-31"]
["17. Charter of ship without crew",20133,null,null,null,null,null,null,null,null,null,null,null,null,null,null,null,null,null,null,null,null,null,null,null,null,null,null,null,null,null,null,null,null,null,null,null,null,null,null,null,null,null,null,null,null,null,null,null,null,null,null,null,null,null,null,null,null,null,null,null,null,"2017-09-30"]
["18. Call centre services in Pakistan",20134,null,null,null,null,null,null,null,null,null,null,null,null,null,null,null,null,null,null,null,null,null,null,null,null,null,null,null,null,null,null,null,null,null,null,null,null,null,null,null,null,null,null,null,null,null,null,null,null,null,null,null,null,null,null,null,null,null,null,null,null,"2017-10-31"]
["19. Outsource services in Pakistan ",20135,null,null,null,null,null,null,null,null,null,null,null,null,null,null,null,null,null,null,null,null,null,null,null,null,null,null,null,null,null,null,null,null,null,null,null,null,null,null,null,null,null,null,null,null,null,null,null,null,null,null,null,null,null,null,null,null,null,null,null,null,"2017-11-30"]
["20. Tax expenses in Pakistan ",20136,null,null,null,null,null,null,null,null,null,null,null,null,null,null,null,null,null,null,null,null,null,null,null,null,null,null,null,null,null,null,null,null,null,null,null,null,null,null,null,null,null,null,null,null,null,null,null,null,null,null,null,null,null,null,null,null,null,null,null,null,"2017-12-31"]
["21. Other expenses",20137,null,null,null,null,null,null,null,null,null,null,null,null,null,null,null,null,null,null,null,null,null,null,null,null,null,null,null,null,null,null,null,null,null,null,null,null,null,null,null,null,null,null,null,null,null,null,null,null,null,null,null,null,null,null,null,null,null,null,null,null,"2018-01-31"]
["22. Less Refund",20138,null,null,null,null,null,null,null,null,null,null,null,null,null,null,null,null,null,null,null,null,null,null,null,null,null,null,null,null,null,null,null,null,null,null,null,null,null,null,null,null,null,null,null,null,null,null,null,null,null,null,null,null,null,null,null,null,null,null,null,null,"2018-02-28"]
["23. Total Expenses ",20114,{"$f":"SUM(C25:C38)-C39","v":0},null,null,null,null,null,null,null,null,null,null,null,null,null,null,null,null,null,null,null,null,null,null,null,null,null,null,null,null,null,null,null,null,null,null,null,null,null,null,null,null,null,null,null,null,null,null,null,null,null,null,null,null,null,null,null,null,null,null,null,"2018-03-31"]
["24. Net (earnings less expenses) (7-23)",20139,{"$f":"C23-C40","v":0},null,null,null,null,null,null,null,null,null,null,null,null,null,null,null,null,null,null,null,null,null,null,null,null,null,null,null,null,null,null,null,null,null,null,null,null,null,null,null,null,null,null,null,null,null,null,null,null,null,null,null,null,null,null,null,null,null,null,null,"2018-04-30"]
["Amount available for repatriation",20115,{"$f":"C12-C13+C23-C40","v":0},null,null,null,null,null,null,null,null,null,null,null,null,null,null,null,null,null,null,null,null,null,null,null,null,null,null,null,null,null,null,null,null,null,null,null,null,null,null,null,null,null,null,null,null,null,null,null,null,null,null,null,null,null,null,null,null,null,null,null,"2018-05-31"]
["25. Repatriation",20117,null,null,null,null,null,null,null,null,null,null,null,null,null,null,null,null,null,null,null,null,null,null,null,null,null,null,null,null,null,null,null,null,null,null,null,null,null,null,null,null,null,null,null,null,null,null,null,null,null,null,null,null,null,null,null,null,null,null,null,null,"2018-06-30"]
["26. Closing Balance - Credit",20118,{"$f":"IF(C42-C43>0, +(C42-C43),0)","v":0},null,null,null,null,null,null,null,null,null,null,null,null,null,null,null,null,null,null,null,null,null,null,null,null,null,null,null,null,null,null,null,null,null,null,null,null,null,null,null,null,null,null,null,null,null,null,null,null,null,null,null,null,null,null,null,null,null,null,null,"2018-07-31"]
["27. Closing Balance - Debit",20119,{"$f":"IF(C42-C43<0, -(C42-C43),0)","v":0},null,null,null,null,null,null,null,null,null,null,null,null,null,null,null,null,null,null,null,null,null,null,null,null,null,null,null,null,null,null,null,null,null,null,null,null,null,null,null,null,null,null,null,null,null,null,null,null,null,null,null,null,null,null,null,null,null,null,null,"2018-08-31"]
["Memorandum Item: ",null,null,null,null,null,null,null,null,null,null,null,null,null,null,null,null,null,null,null,null,null,null,null,null,null,null,null,null,null,null,null,null,null,null,null,null,null,null,null,null,null,null,null,null,null,null,null,null,null,null,null,null,null,null,null,null,null,null,null,null,null,"2018-09-30"]
["28. Account receivable of foreign shipping line (Outstanding Position)",20140,{"$f":"SUM(C48:C52)","v":0},null,null,null,null,null,null,null,null,null,null,null,null,null,null,null,null,null,null,null,null,null,null,null,null,null,null,null,null,null,null,null,null,null,null,null,null,null,null,null,null,null,null,null,null,null,null,null,null,null,null,null,null,null,null,null,null,null,null,null,"2018-10-31"]
["28.1. Freight receivable on exports",20141,null,null,null,null,null,null,null,null,null,null,null,null,null,null,null,null,null,null,null,null,null,null,null,null,null,null,null,null,null,null,null,null,null,null,null,null,null,null,null,null,null,null,null,null,null,null,null,null,null,null,null,null,null,null,null,null,null,null,null,null,"2018-11-30"]
["28.2. Freight receivable on imports",20142,null,null,null,null,null,null,null,null,null,null,null,null,null,null,null,null,null,null,null,null,null,null,null,null,null,null,null,null,null,null,null,null,null,null,null,null,null,null,null,null,null,null,null,null,null,null,null,null,null,null,null,null,null,null,null,null,null,null,null,null,"2018-12-31"]
["28.3. Receivable on account of charter of ships/vessels with crew ",20143,null,null,null,null,null,null,null,null,null,null,null,null,null,null,null,null,null,null,null,null,null,null,null,null,null,null,null,null,null,null,null,null,null,null,null,null,null,null,null,null,null,null,null,null,null,null,null,null,null,null,null,null,null,null,null,null,null,null,null,null,"2019-01-31"]
["28.4. Receivable on account of charter of ships/vessels  without  crew to Residents of Pakistan",20144,null,null,null,null,null,null,null,null,null,null,null,null,null,null,null,null,null,null,null,null,null,null,null,null,null,null,null,null,null,null,null,null,null,null,null,null,null,null,null,null,null,null,null,null,null,null,null,null,null,null,null,null,null,null,null,null,null,null,null,null,"2019-02-28"]
["28.5. Other receivable",20145,null,null,null,null,null,null,null,null,null,null,null,null,null,null,null,null,null,null,null,null,null,null,null,null,null,null,null,null,null,null,null,null,null,null,null,null,null,null,null,null,null,null,null,null,null,null,null,null,null,null,null,null,null,null,null,null,null,null,null,null,"2019-03-31"]
["29. Account payable of foreign shipping line (Outstanding Position)",20146,{"$f":"SUM(C54:C59)","v":0},null,null,null,null,null,null,null,null,null,null,null,null,null,null,null,null,null,null,null,null,null,null,null,null,null,null,null,null,null,null,null,null,null,null,null,null,null,null,null,null,null,null,null,null,null,null,null,null,null,null,null,null,null,null,null,null,null,null,null,"2019-04-30"]
["29.1. Payable for fuel, catering and other supplies",20147,null,null,null,null,null,null,null,null,null,null,null,null,null,null,null,null,null,null,null,null,null,null,null,null,null,null,null,null,null,null,null,null,null,null,null,null,null,null,null,null,null,null,null,null,null,null,null,null,null,null,null,null,null,null,null,null,null,null,null,null,"2019-05-31"]
["29.2. Payable for repair of Ship ",20148,null,null,null,null,null,null,null,null,null,null,null,null,null,null,null,null,null,null,null,null,null,null,null,null,null,null,null,null,null,null,null,null,null,null,null,null,null,null,null,null,null,null,null,null,null,null,null,null,null,null,null,null,null,null,null,null,null,null,null,null,"2019-06-30"]
["29.3. Payable for charter of ship with crew",20149,null,null,null,null,null,null,null,null,null,null,null,null,null,null,null,null,null,null,null,null,null,null,null,null,null,null,null,null,null,null,null,null,null,null,null,null,null,null,null,null,null,null,null,null,null,null,null,null,null,null,null,null,null,null,null,null,null,null,null,null,"2019-07-31"]
["29.4. Payable for charter of ship without crew",20150,null,null,null,null,null,null,null,null,null,null,null,null,null,null,null,null,null,null,null,null,null,null,null,null,null,null,null,null,null,null,null,null,null,null,null,null,null,null,null,null,null,null,null,null,null,null,null,null,null,null,null,null,null,null,null,null,null,null,null,null,"2019-08-31"]
["29.5. Tax payable",20151,null,null,null,null,null,null,null,null,null,null,null,null,null,null,null,null,null,null,null,null,null,null,null,null,null,null,null,null,null,null,null,null,null,null,null,null,null,null,null,null,null,null,null,null,null,null,null,null,null,null,null,null,null,null,null,null,null,null,null,null,"2019-09-30"]
["29.6. Other payable",20152,null,null,null,null,null,null,null,null,null,null,null,null,null,null,null,null,null,null,null,null,null,null,null,null,null,null,null,null,null,null,null,null,null,null,null,null,null,null,null,null,null,null,null,null,null,null,null,null,null,null,null,null,null,null,null,null,null,null,null,null,"2019-10-31"]
[null,null,null,null,null,null,null,null,null,null,null,null,null,null,null,null,null,null,null,null,null,null,null,null,null,null,null,null,null,null,null,null,null,null,null,null,null,null,null,null,null,null,null,null,null,null,null,null,null,null,null,null,null,null,null,null,null,null,null,null,null,null,"2019-11-30"]
[null,null,null,null,null,null,null,null,null,null,null,null,null,null,null,null,null,null,null,null,null,null,null,null,null,null,null,null,null,null,null,null,null,null,null,null,null,null,null,null,null,null,null,null,null,null,null,null,null,null,null,null,null,null,null,null,null,null,null,null,null,null,"2019-12-31"]
[null,null,null,null,null,null,null,null,null,null,null,null,null,null,null,null,null,null,null,null,null,null,null,null,null,null,null,null,null,null,null,null,null,null,null,null,null,null,null,null,null,null,null,null,null,null,null,null,null,null,null,null,null,null,null,null,null,null,null,null,null,null,"2020-01-31"]
[null,null,null,null,null,null,null,null,null,null,null,null,null,null,null,null,null,null,null,null,null,null,null,null,null,null,null,null,null,null,null,null,null,null,null,null,null,null,null,null,null,null,null,null,null,null,null,null,null,null,null,null,null,null,null,null,null,null,null,null,null,null,"2020-02-29"]
[null,null,null,null,null,null,null,null,null,null,null,null,null,null,null,null,null,null,null,null,null,null,null,null,null,null,null,null,null,null,null,null,null,null,null,null,null,null,null,null,null,null,null,null,null,null,null,null,null,null,null,null,null,null,null,null,null,null,null,null,null,null,"2020-03-31"]
[null,null,null,null,null,null,null,null,null,null,null,null,null,null,null,null,null,null,null,null,null,null,null,null,null,null,null,null,null,null,null,null,null,null,null,null,null,null,null,null,null,null,null,null,null,null,null,null,null,null,null,null,null,null,null,null,null,null,null,null,null,null,"2020-04-30"]
[null,null,null,null,null,null,null,null,null,null,null,null,null,null,null,null,null,null,null,null,null,null,null,null,null,null,null,null,null,null,null,null,null,null,null,null,null,null,null,null,null,null,null,null,null,null,null,null,null,null,null,null,null,null,null,null,null,null,null,null,null,null,"2020-05-31"]
[null,null,null,null,null,null,null,null,null,null,null,null,null,null,null,null,null,null,null,null,null,null,null,null,null,null,null,null,null,null,null,null,null,null,null,null,null,null,null,null,null,null,null,null,null,null,null,null,null,null,null,null,null,null,null,null,null,null,null,null,null,null,"2020-06-30"]
[null,null,null,null,null,null,null,null,null,null,null,null,null,null,null,null,null,null,null,null,null,null,null,null,null,null,null,null,null,null,null,null,null,null,null,null,null,null,null,null,null,null,null,null,null,null,null,null,null,null,null,null,null,null,null,null,null,null,null,null,null,null,"2020-07-31"]
[null,null,null,null,null,null,null,null,null,null,null,null,null,null,null,null,null,null,null,null,null,null,null,null,null,null,null,null,null,null,null,null,null,null,null,null,null,null,null,null,null,null,null,null,null,null,null,null,null,null,null,null,null,null,null,null,null,null,null,null,null,null,"2020-08-31"]
[null,null,null,null,null,null,null,null,null,null,null,null,null,null,null,null,null,null,null,null,null,null,null,null,null,null,null,null,null,null,null,null,null,null,null,null,null,null,null,null,null,null,null,null,null,null,null,null,null,null,null,null,null,null,null,null,null,null,null,null,null,null,"2020-09-30"]
[null,null,null,null,null,null,null,null,null,null,null,null,null,null,null,null,null,null,null,null,null,null,null,null,null,null,null,null,null,null,null,null,null,null,null,null,null,null,null,null,null,null,null,null,null,null,null,null,null,null,null,null,null,null,null,null,null,null,null,null,null,null,"2020-10-31"]
[null,null,null,null,null,null,null,null,null,null,null,null,null,null,null,null,null,null,null,null,null,null,null,null,null,null,null,null,null,null,null,null,null,null,null,null,null,null,null,null,null,null,null,null,null,null,null,null,null,null,null,null,null,null,null,null,null,null,null,null,null,null,"2020-11-30"]
[null,null,null,null,null,null,null,null,null,null,null,null,null,null,null,null,null,null,null,null,null,null,null,null,null,null,null,null,null,null,null,null,null,null,null,null,null,null,null,null,null,null,null,null,null,null,null,null,null,null,null,null,null,null,null,null,null,null,null,null,null,null,"2020-12-31"]
[null,null,null,null,null,null,null,null,null,null,null,null,null,null,null,null,null,null,null,null,null,null,null,null,null,null,null,null,null,null,null,null,null,null,null,null,null,null,null,null,null,null,null,null,null,null,null,null,null,null,null,null,null,null,null,null,null,null,null,null,null,null,"2021-01-31"]
[null,null,null,null,null,null,null,null,null,null,null,null,null,null,null,null,null,null,null,null,null,null,null,null,null,null,null,null,null,null,null,null,null,null,null,null,null,null,null,null,null,null,null,null,null,null,null,null,null,null,null,null,null,null,null,null,null,null,null,null,null,null,"2021-02-28"]
[null,null,null,null,null,null,null,null,null,null,null,null,null,null,null,null,null,null,null,null,null,null,null,null,null,null,null,null,null,null,null,null,null,null,null,null,null,null,null,null,null,null,null,null,null,null,null,null,null,null,null,null,null,null,null,null,null,null,null,null,null,null,"2021-03-31"]
[null,null,null,null,null,null,null,null,null,null,null,null,null,null,null,null,null,null,null,null,null,null,null,null,null,null,null,null,null,null,null,null,null,null,null,null,null,null,null,null,null,null,null,null,null,null,null,null,null,null,null,null,null,null,null,null,null,null,null,null,null,null,"2021-04-30"]
[null,null,null,null,null,null,null,null,null,null,null,null,null,null,null,null,null,null,null,null,null,null,null,null,null,null,null,null,null,null,null,null,null,null,null,null,null,null,null,null,null,null,null,null,null,null,null,null,null,null,null,null,null,null,null,null,null,null,null,null,null,null,"2021-05-31"]
[null,null,null,null,null,null,null,null,null,null,null,null,null,null,null,null,null,null,null,null,null,null,null,null,null,null,null,null,null,null,null,null,null,null,null,null,null,null,null,null,null,null,null,null,null,null,null,null,null,null,null,null,null,null,null,null,null,null,null,null,null,null,"2021-06-30"]
[null,null,null,null,null,null,null,null,null,null,null,null,null,null,null,null,null,null,null,null,null,null,null,null,null,null,null,null,null,null,null,null,null,null,null,null,null,null,null,null,null,null,null,null,null,null,null,null,null,null,null,null,null,null,null,null,null,null,null,null,null,null,"2021-07-31"]
[null,null,null,null,null,null,null,null,null,null,null,null,null,null,null,null,null,null,null,null,null,null,null,null,null,null,null,null,null,null,null,null,null,null,null,null,null,null,null,null,null,null,null,null,null,null,null,null,null,null,null,null,null,null,null,null,null,null,null,null,null,null,"2021-08-31"]
[null,null,null,null,null,null,null,null,null,null,null,null,null,null,null,null,null,null,null,null,null,null,null,null,null,null,null,null,null,null,null,null,null,null,null,null,null,null,null,null,null,null,null,null,null,null,null,null,null,null,null,null,null,null,null,null,null,null,null,null,null,null,"2021-09-30"]
[null,null,null,null,null,null,null,null,null,null,null,null,null,null,null,null,null,null,null,null,null,null,null,null,null,null,null,null,null,null,null,null,null,null,null,null,null,null,null,null,null,null,null,null,null,null,null,null,null,null,null,null,null,null,null,null,null,null,null,null,null,null,"2021-10-31"]
[null,null,null,null,null,null,null,null,null,null,null,null,null,null,null,null,null,null,null,null,null,null,null,null,null,null,null,null,null,null,null,null,null,null,null,null,null,null,null,null,null,null,null,null,null,null,null,null,null,null,null,null,null,null,null,null,null,null,null,null,null,null,"2021-11-30"]
[null,null,null,null,null,null,null,null,null,null,null,null,null,null,null,null,null,null,null,null,null,null,null,null,null,null,null,null,null,null,null,null,null,null,null,null,null,null,null,null,null,null,null,null,null,null,null,null,null,null,null,null,null,null,null,null,null,null,null,null,null,null,"2021-12-31"]
[null,null,null,null,null,null,null,null,null,null,null,null,null,null,null,null,null,null,null,null,null,null,null,null,null,null,null,null,null,null,null,null,null,null,null,null,null,null,null,null,null,null,null,null,null,null,null,null,null,null,null,null,null,null,null,null,null,null,null,null,null,null,"2022-01-31"]
[null,null,null,null,null,null,null,null,null,null,null,null,null,null,null,null,null,null,null,null,null,null,null,null,null,null,null,null,null,null,null,null,null,null,null,null,null,null,null,null,null,null,null,null,null,null,null,null,null,null,null,null,null,null,null,null,null,null,null,null,null,null,"2022-02-28"]
[null,null,null,null,null,null,null,null,null,null,null,null,null,null,null,null,null,null,null,null,null,null,null,null,null,null,null,null,null,null,null,null,null,null,null,null,null,null,null,null,null,null,null,null,null,null,null,null,null,null,null,null,null,null,null,null,null,null,null,null,null,null,"2022-03-31"]
[null,null,null,null,null,null,null,null,null,null,null,null,null,null,null,null,null,null,null,null,null,null,null,null,null,null,null,null,null,null,null,null,null,null,null,null,null,null,null,null,null,null,null,null,null,null,null,null,null,null,null,null,null,null,null,null,null,null,null,null,null,null,"2022-04-30"]
[null,null,null,null,null,null,null,null,null,null,null,null,null,null,null,null,null,null,null,null,null,null,null,null,null,null,null,null,null,null,null,null,null,null,null,null,null,null,null,null,null,null,null,null,null,null,null,null,null,null,null,null,null,null,null,null,null,null,null,null,null,null,"2022-05-31"]
[null,null,null,null,null,null,null,null,null,null,null,null,null,null,null,null,null,null,null,null,null,null,null,null,null,null,null,null,null,null,null,null,null,null,null,null,null,null,null,null,null,null,null,null,null,null,null,null,null,null,null,null,null,null,null,null,null,null,null,null,null,null,"2022-06-30"]
[null,null,null,null,null,null,null,null,null,null,null,null,null,null,null,null,null,null,null,null,null,null,null,null,null,null,null,null,null,null,null,null,null,null,null,null,null,null,null,null,null,null,null,null,null,null,null,null,null,null,null,null,null,null,null,null,null,null,null,null,null,null,"2022-07-31"]
[null,null,null,null,null,null,null,null,null,null,null,null,null,null,null,null,null,null,null,null,null,null,null,null,null,null,null,null,null,null,null,null,null,null,null,null,null,null,null,null,null,null,null,null,null,null,null,null,null,null,null,null,null,null,null,null,null,null,null,null,null,null,"2022-08-31"]
[null,null,null,null,null,null,null,null,null,null,null,null,null,null,null,null,null,null,null,null,null,null,null,null,null,null,null,null,null,null,null,null,null,null,null,null,null,null,null,null,null,null,null,null,null,null,null,null,null,null,null,null,null,null,null,null,null,null,null,null,null,null,"2022-09-30"]
[null,null,null,null,null,null,null,null,null,null,null,null,null,null,null,null,null,null,null,null,null,null,null,null,null,null,null,null,null,null,null,null,null,null,null,null,null,null,null,null,null,null,null,null,null,null,null,null,null,null,null,null,null,null,null,null,null,null,null,null,null,null,"2022-10-31"]
[null,null,null,null,null,null,null,null,null,null,null,null,null,null,null,null,null,null,null,null,null,null,null,null,null,null,null,null,null,null,null,null,null,null,null,null,null,null,null,null,null,null,null,null,null,null,null,null,null,null,null,null,null,null,null,null,null,null,null,null,null,null,"2022-11-30"]
[null,null,null,null,null,null,null,null,null,null,null,null,null,null,null,null,null,null,null,null,null,null,null,null,null,null,null,null,null,null,null,null,null,null,null,null,null,null,null,null,null,null,null,null,null,null,null,null,null,null,null,null,null,null,null,null,null,null,null,null,null,null,"2022-12-31"]
[null,null,null,null,null,null,null,null,null,null,null,null,null,null,null,null,null,null,null,null,null,null,null,null,null,null,null,null,null,null,null,null,null,null,null,null,null,null,null,null,null,null,null,null,null,null,null,null,null,null,null,null,null,null,null,null,null,null,null,null,null,null,"2023-01-31"]
[null,null,null,null,null,null,null,null,null,null,null,null,null,null,null,null,null,null,null,null,null,null,null,null,null,null,null,null,null,null,null,null,null,null,null,null,null,null,null,null,null,null,null,null,null,null,null,null,null,null,null,null,null,null,null,null,null,null,null,null,null,null,"2023-02-28"]
[null,null,null,null,null,null,null,null,null,null,null,null,null,null,null,null,null,null,null,null,null,null,null,null,null,null,null,null,null,null,null,null,null,null,null,null,null,null,null,null,null,null,null,null,null,null,null,null,null,null,null,null,null,null,null,null,null,null,null,null,null,null,"2023-03-31"]
[null,null,null,null,null,null,null,null,null,null,null,null,null,null,null,null,null,null,null,null,null,null,null,null,null,null,null,null,null,null,null,null,null,null,null,null,null,null,null,null,null,null,null,null,null,null,null,null,null,null,null,null,null,null,null,null,null,null,null,null,null,null,"2023-04-30"]
[null,null,null,null,null,null,null,null,null,null,null,null,null,null,null,null,null,null,null,null,null,null,null,null,null,null,null,null,null,null,null,null,null,null,null,null,null,null,null,null,null,null,null,null,null,null,null,null,null,null,null,null,null,null,null,null,null,null,null,null,null,null,"2023-05-31"]
[null,null,null,null,null,null,null,null,null,null,null,null,null,null,null,null,null,null,null,null,null,null,null,null,null,null,null,null,null,null,null,null,null,null,null,null,null,null,null,null,null,null,null,null,null,null,null,null,null,null,null,null,null,null,null,null,null,null,null,null,null,null,"2023-06-30"]
[null,null,null,null,null,null,null,null,null,null,null,null,null,null,null,null,null,null,null,null,null,null,null,null,null,null,null,null,null,null,null,null,null,null,null,null,null,null,null,null,null,null,null,null,null,null,null,null,null,null,null,null,null,null,null,null,null,null,null,null,null,null,"2023-07-31"]
[null,null,null,null,null,null,null,null,null,null,null,null,null,null,null,null,null,null,null,null,null,null,null,null,null,null,null,null,null,null,null,null,null,null,null,null,null,null,null,null,null,null,null,null,null,null,null,null,null,null,null,null,null,null,null,null,null,null,null,null,null,null,"2023-08-31"]
[null,null,null,null,null,null,null,null,null,null,null,null,null,null,null,null,null,null,null,null,null,null,null,null,null,null,null,null,null,null,null,null,null,null,null,null,null,null,null,null,null,null,null,null,null,null,null,null,null,null,null,null,null,null,null,null,null,null,null,null,null,null,"2023-09-30"]
[null,null,null,null,null,null,null,null,null,null,null,null,null,null,null,null,null,null,null,null,null,null,null,null,null,null,null,null,null,null,null,null,null,null,null,null,null,null,null,null,null,null,null,null,null,null,null,null,null,null,null,null,null,null,null,null,null,null,null,null,null,null,"2023-10-31"]
[null,null,null,null,null,null,null,null,null,null,null,null,null,null,null,null,null,null,null,null,null,null,null,null,null,null,null,null,null,null,null,null,null,null,null,null,null,null,null,null,null,null,null,null,null,null,null,null,null,null,null,null,null,null,null,null,null,null,null,null,null,null,"2023-11-30"]
[null,null,null,null,null,null,null,null,null,null,null,null,null,null,null,null,null,null,null,null,null,null,null,null,null,null,null,null,null,null,null,null,null,null,null,null,null,null,null,null,null,null,null,null,null,null,null,null,null,null,null,null,null,null,null,null,null,null,null,null,null,null,"2023-12-31"]
[null,null,null,null,null,null,null,null,null,null,null,null,null,null,null,null,null,null,null,null,null,null,null,null,null,null,null,null,null,null,null,null,null,null,null,null,null,null,null,null,null,null,null,null,null,null,null,null,null,null,null,null,null,null,null,null,null,null,null,null,null,null,"2024-01-31"]
[null,null,null,null,null,null,null,null,null,null,null,null,null,null,null,null,null,null,null,null,null,null,null,null,null,null,null,null,null,null,null,null,null,null,null,null,null,null,null,null,null,null,null,null,null,null,null,null,null,null,null,null,null,null,null,null,null,null,null,null,null,null,"2024-02-29"]
[null,null,null,null,null,null,null,null,null,null,null,null,null,null,null,null,null,null,null,null,null,null,null,null,null,null,null,null,null,null,null,null,null,null,null,null,null,null,null,null,null,null,null,null,null,null,null,null,null,null,null,null,null,null,null,null,null,null,null,null,null,null,"2024-03-31"]
[null,null,null,null,null,null,null,null,null,null,null,null,null,null,null,null,null,null,null,null,null,null,null,null,null,null,null,null,null,null,null,null,null,null,null,null,null,null,null,null,null,null,null,null,null,null,null,null,null,null,null,null,null,null,null,null,null,null,null,null,null,null,"2024-04-30"]
[null,null,null,null,null,null,null,null,null,null,null,null,null,null,null,null,null,null,null,null,null,null,null,null,null,null,null,null,null,null,null,null,null,null,null,null,null,null,null,null,null,null,null,null,null,null,null,null,null,null,null,null,null,null,null,null,null,null,null,null,null,null,"2024-05-31"]
[null,null,null,null,null,null,null,null,null,null,null,null,null,null,null,null,null,null,null,null,null,null,null,null,null,null,null,null,null,null,null,null,null,null,null,null,null,null,null,null,null,null,null,null,null,null,null,null,null,null,null,null,null,null,null,null,null,null,null,null,null,null,"2024-06-30"]
[null,null,null,null,null,null,null,null,null,null,null,null,null,null,null,null,null,null,null,null,null,null,null,null,null,null,null,null,null,null,null,null,null,null,null,null,null,null,null,null,null,null,null,null,null,null,null,null,null,null,null,null,null,null,null,null,null,null,null,null,null,null,"2024-07-31"]
[null,null,null,null,null,null,null,null,null,null,null,null,null,null,null,null,null,null,null,null,null,null,null,null,null,null,null,null,null,null,null,null,null,null,null,null,null,null,null,null,null,null,null,null,null,null,null,null,null,null,null,null,null,null,null,null,null,null,null,null,null,null,"2024-08-31"]
[null,null,null,null,null,null,null,null,null,null,null,null,null,null,null,null,null,null,null,null,null,null,null,null,null,null,null,null,null,null,null,null,null,null,null,null,null,null,null,null,null,null,null,null,null,null,null,null,null,null,null,null,null,null,null,null,null,null,null,null,null,null,"2024-09-30"]
[null,null,null,null,null,null,null,null,null,null,null,null,null,null,null,null,null,null,null,null,null,null,null,null,null,null,null,null,null,null,null,null,null,null,null,null,null,null,null,null,null,null,null,null,null,null,null,null,null,null,null,null,null,null,null,null,null,null,null,null,null,null,"2024-10-31"]
[null,null,null,null,null,null,null,null,null,null,null,null,null,null,null,null,null,null,null,null,null,null,null,null,null,null,null,null,null,null,null,null,null,null,null,null,null,null,null,null,null,null,null,null,null,null,null,null,null,null,null,null,null,null,null,null,null,null,null,null,null,null,"2024-11-30"]
[null,null,null,null,null,null,null,null,null,null,null,null,null,null,null,null,null,null,null,null,null,null,null,null,null,null,null,null,null,null,null,null,null,null,null,null,null,null,null,null,null,null,null,null,null,null,null,null,null,null,null,null,null,null,null,null,null,null,null,null,null,null,"2024-12-31"]
[null,null,null,null,null,null,null,null,null,null,null,null,null,null,null,null,null,null,null,null,null,null,null,null,null,null,null,null,null,null,null,null,null,null,null,null,null,null,null,null,null,null,null,null,null,null,null,null,null,null,null,null,null,null,null,null,null,null,null,null,null,null,"2025-01-31"]
[null,null,null,null,null,null,null,null,null,null,null,null,null,null,null,null,null,null,null,null,null,null,null,null,null,null,null,null,null,null,null,null,null,null,null,null,null,null,null,null,null,null,null,null,null,null,null,null,null,null,null,null,null,null,null,null,null,null,null,null,null,null,"2025-02-28"]
[null,null,null,null,null,null,null,null,null,null,null,null,null,null,null,null,null,null,null,null,null,null,null,null,null,null,null,null,null,null,null,null,null,null,null,null,null,null,null,null,null,null,null,null,null,null,null,null,null,null,null,null,null,null,null,null,null,null,null,null,null,null,"2025-03-31"]
[null,null,null,null,null,null,null,null,null,null,null,null,null,null,null,null,null,null,null,null,null,null,null,null,null,null,null,null,null,null,null,null,null,null,null,null,null,null,null,null,null,null,null,null,null,null,null,null,null,null,null,null,null,null,null,null,null,null,null,null,null,null,"2025-04-30"]
[null,null,null,null,null,null,null,null,null,null,null,null,null,null,null,null,null,null,null,null,null,null,null,null,null,null,null,null,null,null,null,null,null,null,null,null,null,null,null,null,null,null,null,null,null,null,null,null,null,null,null,null,null,null,null,null,null,null,null,null,null,null,"2025-05-31"]
[null,null,null,null,null,null,null,null,null,null,null,null,null,null,null,null,null,null,null,null,null,null,null,null,null,null,null,null,null,null,null,null,null,null,null,null,null,null,null,null,null,null,null,null,null,null,null,null,null,null,null,null,null,null,null,null,null,null,null,null,null,null,"2025-06-30"]
[null,null,null,null,null,null,null,null,null,null,null,null,null,null,null,null,null,null,null,null,null,null,null,null,null,null,null,null,null,null,null,null,null,null,null,null,null,null,null,null,null,null,null,null,null,null,null,null,null,null,null,null,null,null,null,null,null,null,null,null,null,null,"2025-07-31"]
[null,null,null,null,null,null,null,null,null,null,null,null,null,null,null,null,null,null,null,null,null,null,null,null,null,null,null,null,null,null,null,null,null,null,null,null,null,null,null,null,null,null,null,null,null,null,null,null,null,null,null,null,null,null,null,null,null,null,null,null,null,null,"2025-08-31"]
[null,null,null,null,null,null,null,null,null,null,null,null,null,null,null,null,null,null,null,null,null,null,null,null,null,null,null,null,null,null,null,null,null,null,null,null,null,null,null,null,null,null,null,null,null,null,null,null,null,null,null,null,null,null,null,null,null,null,null,null,null,null,"2025-09-30"]
[null,null,null,null,null,null,null,null,null,null,null,null,null,null,null,null,null,null,null,null,null,null,null,null,null,null,null,null,null,null,null,null,null,null,null,null,null,null,null,null,null,null,null,null,null,null,null,null,null,null,null,null,null,null,null,null,null,null,null,null,null,null,"2025-10-31"]
[null,null,null,null,null,null,null,null,null,null,null,null,null,null,null,null,null,null,null,null,null,null,null,null,null,null,null,null,null,null,null,null,null,null,null,null,null,null,null,null,null,null,null,null,null,null,null,null,null,null,null,null,null,null,null,null,null,null,null,null,null,null,"2025-11-30"]
[null,null,null,null,null,null,null,null,null,null,null,null,null,null,null,null,null,null,null,null,null,null,null,null,null,null,null,null,null,null,null,null,null,null,null,null,null,null,null,null,null,null,null,null,null,null,null,null,null,null,null,null,null,null,null,null,null,null,null,null,null,null,"2025-12-31"]
[null,null,null,null,null,null,null,null,null,null,null,null,null,null,null,null,null,null,null,null,null,null,null,null,null,null,null,null,null,null,null,null,null,null,null,null,null,null,null,null,null,null,null,null,null,null,null,null,null,null,null,null,null,null,null,null,null,null,null,null,null,null,"2026-01-31"]
[null,null,null,null,null,null,null,null,null,null,null,null,null,null,null,null,null,null,null,null,null,null,null,null,null,null,null,null,null,null,null,null,null,null,null,null,null,null,null,null,null,null,null,null,null,null,null,null,null,null,null,null,null,null,null,null,null,null,null,null,null,null,"2026-02-28"]
[null,null,null,null,null,null,null,null,null,null,null,null,null,null,null,null,null,null,null,null,null,null,null,null,null,null,null,null,null,null,null,null,null,null,null,null,null,null,null,null,null,null,null,null,null,null,null,null,null,null,null,null,null,null,null,null,null,null,null,null,null,null,"2026-03-31"]
[null,null,null,null,null,null,null,null,null,null,null,null,null,null,null,null,null,null,null,null,null,null,null,null,null,null,null,null,null,null,null,null,null,null,null,null,null,null,null,null,null,null,null,null,null,null,null,null,null,null,null,null,null,null,null,null,null,null,null,null,null,null,"2026-04-30"]
[null,null,null,null,null,null,null,null,null,null,null,null,null,null,null,null,null,null,null,null,null,null,null,null,null,null,null,null,null,null,null,null,null,null,null,null,null,null,null,null,null,null,null,null,null,null,null,null,null,null,null,null,null,null,null,null,null,null,null,null,null,null,"2026-05-31"]
[null,null,null,null,null,null,null,null,null,null,null,null,null,null,null,null,null,null,null,null,null,null,null,null,null,null,null,null,null,null,null,null,null,null,null,null,null,null,null,null,null,null,null,null,null,null,null,null,null,null,null,null,null,null,null,null,null,null,null,null,null,null,"2026-06-30"]
[null,null,null,null,null,null,null,null,null,null,null,null,null,null,null,null,null,null,null,null,null,null,null,null,null,null,null,null,null,null,null,null,null,null,null,null,null,null,null,null,null,null,null,null,null,null,null,null,null,null,null,null,null,null,null,null,null,null,null,null,null,null,"2026-07-31"]
[null,null,null,null,null,null,null,null,null,null,null,null,null,null,null,null,null,null,null,null,null,null,null,null,null,null,null,null,null,null,null,null,null,null,null,null,null,null,null,null,null,null,null,null,null,null,null,null,null,null,null,null,null,null,null,null,null,null,null,null,null,null,"2026-08-31"]
[null,null,null,null,null,null,null,null,null,null,null,null,null,null,null,null,null,null,null,null,null,null,null,null,null,null,null,null,null,null,null,null,null,null,null,null,null,null,null,null,null,null,null,null,null,null,null,null,null,null,null,null,null,null,null,null,null,null,null,null,null,null,"2026-09-30"]
[null,null,null,null,null,null,null,null,null,null,null,null,null,null,null,null,null,null,null,null,null,null,null,null,null,null,null,null,null,null,null,null,null,null,null,null,null,null,null,null,null,null,null,null,null,null,null,null,null,null,null,null,null,null,null,null,null,null,null,null,null,null,"2026-10-31"]
[null,null,null,null,null,null,null,null,null,null,null,null,null,null,null,null,null,null,null,null,null,null,null,null,null,null,null,null,null,null,null,null,null,null,null,null,null,null,null,null,null,null,null,null,null,null,null,null,null,null,null,null,null,null,null,null,null,null,null,null,null,null,"2026-11-30"]
[null,null,null,null,null,null,null,null,null,null,null,null,null,null,null,null,null,null,null,null,null,null,null,null,null,null,null,null,null,null,null,null,null,null,null,null,null,null,null,null,null,null,null,null,null,null,null,null,null,null,null,null,null,null,null,null,null,null,null,null,null,null,"2026-12-31"]
[null,null,null,null,null,null,null,null,null,null,null,null,null,null,null,null,null,null,null,null,null,null,null,null,null,null,null,null,null,null,null,null,null,null,null,null,null,null,null,null,null,null,null,null,null,null,null,null,null,null,null,null,null,null,null,null,null,null,null,null,null,null,"2027-01-31"]
[null,null,null,null,null,null,null,null,null,null,null,null,null,null,null,null,null,null,null,null,null,null,null,null,null,null,null,null,null,null,null,null,null,null,null,null,null,null,null,null,null,null,null,null,null,null,null,null,null,null,null,null,null,null,null,null,null,null,null,null,null,null,"2027-02-28"]
[null,null,null,null,null,null,null,null,null,null,null,null,null,null,null,null,null,null,null,null,null,null,null,null,null,null,null,null,null,null,null,null,null,null,null,null,null,null,null,null,null,null,null,null,null,null,null,null,null,null,null,null,null,null,null,null,null,null,null,null,null,null,"2027-03-31"]
[null,null,null,null,null,null,null,null,null,null,null,null,null,null,null,null,null,null,null,null,null,null,null,null,null,null,null,null,null,null,null,null,null,null,null,null,null,null,null,null,null,null,null,null,null,null,null,null,null,null,null,null,null,null,null,null,null,null,null,null,null,null,"2027-04-30"]
[null,null,null,null,null,null,null,null,null,null,null,null,null,null,null,null,null,null,null,null,null,null,null,null,null,null,null,null,null,null,null,null,null,null,null,null,null,null,null,null,null,null,null,null,null,null,null,null,null,null,null,null,null,null,null,null,null,null,null,null,null,null,"2027-05-31"]
[null,null,null,null,null,null,null,null,null,null,null,null,null,null,null,null,null,null,null,null,null,null,null,null,null,null,null,null,null,null,null,null,null,null,null,null,null,null,null,null,null,null,null,null,null,null,null,null,null,null,null,null,null,null,null,null,null,null,null,null,null,null,"2027-06-30"]
[null,null,null,null,null,null,null,null,null,null,null,null,null,null,null,null,null,null,null,null,null,null,null,null,null,null,null,null,null,null,null,null,null,null,null,null,null,null,null,null,null,null,null,null,null,null,null,null,null,null,null,null,null,null,null,null,null,null,null,null,null,null,"2027-07-31"]
[null,null,null,null,null,null,null,null,null,null,null,null,null,null,null,null,null,null,null,null,null,null,null,null,null,null,null,null,null,null,null,null,null,null,null,null,null,null,null,null,null,null,null,null,null,null,null,null,null,null,null,null,null,null,null,null,null,null,null,null,null,null,"2027-08-31"]
[null,null,null,null,null,null,null,null,null,null,null,null,null,null,null,null,null,null,null,null,null,null,null,null,null,null,null,null,null,null,null,null,null,null,null,null,null,null,null,null,null,null,null,null,null,null,null,null,null,null,null,null,null,null,null,null,null,null,null,null,null,null,"2027-09-30"]
[null,null,null,null,null,null,null,null,null,null,null,null,null,null,null,null,null,null,null,null,null,null,null,null,null,null,null,null,null,null,null,null,null,null,null,null,null,null,null,null,null,null,null,null,null,null,null,null,null,null,null,null,null,null,null,null,null,null,null,null,null,null,"2027-10-31"]
[null,null,null,null,null,null,null,null,null,null,null,null,null,null,null,null,null,null,null,null,null,null,null,null,null,null,null,null,null,null,null,null,null,null,null,null,null,null,null,null,null,null,null,null,null,null,null,null,null,null,null,null,null,null,null,null,null,null,null,null,null,null,"2027-11-30"]
[null,null,null,null,null,null,null,null,null,null,null,null,null,null,null,null,null,null,null,null,null,null,null,null,null,null,null,null,null,null,null,null,null,null,null,null,null,null,null,null,null,null,null,null,null,null,null,null,null,null,null,null,null,null,null,null,null,null,null,null,null,null,"2027-12-31"]
[null,null,null,null,null,null,null,null,null,null,null,null,null,null,null,null,null,null,null,null,null,null,null,null,null,null,null,null,null,null,null,null,null,null,null,null,null,null,null,null,null,null,null,null,null,null,null,null,null,null,null,null,null,null,null,null,null,null,null,null,null,null,"2028-01-31"]
[null,null,null,null,null,null,null,null,null,null,null,null,null,null,null,null,null,null,null,null,null,null,null,null,null,null,null,null,null,null,null,null,null,null,null,null,null,null,null,null,null,null,null,null,null,null,null,null,null,null,null,null,null,null,null,null,null,null,null,null,null,null,"2028-02-29"]
[null,null,null,null,null,null,null,null,null,null,null,null,null,null,null,null,null,null,null,null,null,null,null,null,null,null,null,null,null,null,null,null,null,null,null,null,null,null,null,null,null,null,null,null,null,null,null,null,null,null,null,null,null,null,null,null,null,null,null,null,null,null,"2028-03-31"]
[null,null,null,null,null,null,null,null,null,null,null,null,null,null,null,null,null,null,null,null,null,null,null,null,null,null,null,null,null,null,null,null,null,null,null,null,null,null,null,null,null,null,null,null,null,null,null,null,null,null,null,null,null,null,null,null,null,null,null,null,null,null,"2028-04-30"]
[null,null,null,null,null,null,null,null,null,null,null,null,null,null,null,null,null,null,null,null,null,null,null,null,null,null,null,null,null,null,null,null,null,null,null,null,null,null,null,null,null,null,null,null,null,null,null,null,null,null,null,null,null,null,null,null,null,null,null,null,null,null,"2028-05-31"]
[null,null,null,null,null,null,null,null,null,null,null,null,null,null,null,null,null,null,null,null,null,null,null,null,null,null,null,null,null,null,null,null,null,null,null,null,null,null,null,null,null,null,null,null,null,null,null,null,null,null,null,null,null,null,null,null,null,null,null,null,null,null,"2028-06-30"]
[null,null,null,null,null,null,null,null,null,null,null,null,null,null,null,null,null,null,null,null,null,null,null,null,null,null,null,null,null,null,null,null,null,null,null,null,null,null,null,null,null,null,null,null,null,null,null,null,null,null,null,null,null,null,null,null,null,null,null,null,null,null,"2028-07-31"]
[null,null,null,null,null,null,null,null,null,null,null,null,null,null,null,null,null,null,null,null,null,null,null,null,null,null,null,null,null,null,null,null,null,null,null,null,null,null,null,null,null,null,null,null,null,null,null,null,null,null,null,null,null,null,null,null,null,null,null,null,null,null,"2028-08-31"]
[null,null,null,null,null,null,null,null,null,null,null,null,null,null,null,null,null,null,null,null,null,null,null,null,null,null,null,null,null,null,null,null,null,null,null,null,null,null,null,null,null,null,null,null,null,null,null,null,null,null,null,null,null,null,null,null,null,null,null,null,null,null,"2028-09-30"]
[null,null,null,null,null,null,null,null,null,null,null,null,null,null,null,null,null,null,null,null,null,null,null,null,null,null,null,null,null,null,null,null,null,null,null,null,null,null,null,null,null,null,null,null,null,null,null,null,null,null,null,null,null,null,null,null,null,null,null,null,null,null,"2028-10-31"]
[null,null,null,null,null,null,null,null,null,null,null,null,null,null,null,null,null,null,null,null,null,null,null,null,null,null,null,null,null,null,null,null,null,null,null,null,null,null,null,null,null,null,null,null,null,null,null,null,null,null,null,null,null,null,null,null,null,null,null,null,null,null,"2028-11-30"]
[null,null,null,null,null,null,null,null,null,null,null,null,null,null,null,null,null,null,null,null,null,null,null,null,null,null,null,null,null,null,null,null,null,null,null,null,null,null,null,null,null,null,null,null,null,null,null,null,null,null,null,null,null,null,null,null,null,null,null,null,null,null,"2028-12-31"]
[null,null,null,null,null,null,null,null,null,null,null,null,null,null,null,null,null,null,null,null,null,null,null,null,null,null,null,null,null,null,null,null,null,null,null,null,null,null,null,null,null,null,null,null,null,null,null,null,null,null,null,null,null,null,null,null,null,null,null,null,null,null,"2029-01-31"]
[null,null,null,null,null,null,null,null,null,null,null,null,null,null,null,null,null,null,null,null,null,null,null,null,null,null,null,null,null,null,null,null,null,null,null,null,null,null,null,null,null,null,null,null,null,null,null,null,null,null,null,null,null,null,null,null,null,null,null,null,null,null,"2029-02-28"]
[null,null,null,null,null,null,null,null,null,null,null,null,null,null,null,null,null,null,null,null,null,null,null,null,null,null,null,null,null,null,null,null,null,null,null,null,null,null,null,null,null,null,null,null,null,null,null,null,null,null,null,null,null,null,null,null,null,null,null,null,null,null,"2029-03-31"]
[null,null,null,null,null,null,null,null,null,null,null,null,null,null,null,null,null,null,null,null,null,null,null,null,null,null,null,null,null,null,null,null,null,null,null,null,null,null,null,null,null,null,null,null,null,null,null,null,null,null,null,null,null,null,null,null,null,null,null,null,null,null,"2029-04-30"]
[null,null,null,null,null,null,null,null,null,null,null,null,null,null,null,null,null,null,null,null,null,null,null,null,null,null,null,null,null,null,null,null,null,null,null,null,null,null,null,null,null,null,null,null,null,null,null,null,null,null,null,null,null,null,null,null,null,null,null,null,null,null,"2029-05-31"]
[null,null,null,null,null,null,null,null,null,null,null,null,null,null,null,null,null,null,null,null,null,null,null,null,null,null,null,null,null,null,null,null,null,null,null,null,null,null,null,null,null,null,null,null,null,null,null,null,null,null,null,null,null,null,null,null,null,null,null,null,null,null,"2029-06-30"]
[null,null,null,null,null,null,null,null,null,null,null,null,null,null,null,null,null,null,null,null,null,null,null,null,null,null,null,null,null,null,null,null,null,null,null,null,null,null,null,null,null,null,null,null,null,null,null,null,null,null,null,null,null,null,null,null,null,null,null,null,null,null,"2029-07-31"]
[null,null,null,null,null,null,null,null,null,null,null,null,null,null,null,null,null,null,null,null,null,null,null,null,null,null,null,null,null,null,null,null,null,null,null,null,null,null,null,null,null,null,null,null,null,null,null,null,null,null,null,null,null,null,null,null,null,null,null,null,null,null,"2029-08-31"]
[null,null,null,null,null,null,null,null,null,null,null,null,null,null,null,null,null,null,null,null,null,null,null,null,null,null,null,null,null,null,null,null,null,null,null,null,null,null,null,null,null,null,null,null,null,null,null,null,null,null,null,null,null,null,null,null,null,null,null,null,null,null,"2029-09-30"]
[null,null,null,null,null,null,null,null,null,null,null,null,null,null,null,null,null,null,null,null,null,null,null,null,null,null,null,null,null,null,null,null,null,null,null,null,null,null,null,null,null,null,null,null,null,null,null,null,null,null,null,null,null,null,null,null,null,null,null,null,null,null,"2029-10-31"]
[null,null,null,null,null,null,null,null,null,null,null,null,null,null,null,null,null,null,null,null,null,null,null,null,null,null,null,null,null,null,null,null,null,null,null,null,null,null,null,null,null,null,null,null,null,null,null,null,null,null,null,null,null,null,null,null,null,null,null,null,null,null,"2029-11-30"]
[null,null,null,null,null,null,null,null,null,null,null,null,null,null,null,null,null,null,null,null,null,null,null,null,null,null,null,null,null,null,null,null,null,null,null,null,null,null,null,null,null,null,null,null,null,null,null,null,null,null,null,null,null,null,null,null,null,null,null,null,null,null,"2029-12-31"]
[null,null,null,null,null,null,null,null,null,null,null,null,null,null,null,null,null,null,null,null,null,null,null,null,null,null,null,null,null,null,null,null,null,null,null,null,null,null,null,null,null,null,null,null,null,null,null,null,null,null,null,null,null,null,null,null,null,null,null,null,null,null,"2030-01-31"]
[null,null,null,null,null,null,null,null,null,null,null,null,null,null,null,null,null,null,null,null,null,null,null,null,null,null,null,null,null,null,null,null,null,null,null,null,null,null,null,null,null,null,null,null,null,null,null,null,null,null,null,null,null,null,null,null,null,null,null,null,null,null,"2030-02-28"]
[null,null,null,null,null,null,null,null,null,null,null,null,null,null,null,null,null,null,null,null,null,null,null,null,null,null,null,null,null,null,null,null,null,null,null,null,null,null,null,null,null,null,null,null,null,null,null,null,null,null,null,null,null,null,null,null,null,null,null,null,null,null,"2030-03-31"]
[null,null,null,null,null,null,null,null,null,null,null,null,null,null,null,null,null,null,null,null,null,null,null,null,null,null,null,null,null,null,null,null,null,null,null,null,null,null,null,null,null,null,null,null,null,null,null,null,null,null,null,null,null,null,null,null,null,null,null,null,null,null,"2030-04-30"]
[null,null,null,null,null,null,null,null,null,null,null,null,null,null,null,null,null,null,null,null,null,null,null,null,null,null,null,null,null,null,null,null,null,null,null,null,null,null,null,null,null,null,null,null,null,null,null,null,null,null,null,null,null,null,null,null,null,null,null,null,null,null,"2030-05-31"]
[null,null,null,null,null,null,null,null,null,null,null,null,null,null,null,null,null,null,null,null,null,null,null,null,null,null,null,null,null,null,null,null,null,null,null,null,null,null,null,null,null,null,null,null,null,null,null,null,null,null,null,null,null,null,null,null,null,null,null,null,null,null,"2030-06-30"]
[null,null,null,null,null,null,null,null,null,null,null,null,null,null,null,null,null,null,null,null,null,null,null,null,null,null,null,null,null,null,null,null,null,null,null,null,null,null,null,null,null,null,null,null,null,null,null,null,null,null,null,null,null,null,null,null,null,null,null,null,null,null,"2030-07-31"]
[null,null,null,null,null,null,null,null,null,null,null,null,null,null,null,null,null,null,null,null,null,null,null,null,null,null,null,null,null,null,null,null,null,null,null,null,null,null,null,null,null,null,null,null,null,null,null,null,null,null,null,null,null,null,null,null,null,null,null,null,null,null,"2030-08-31"]
[null,null,null,null,null,null,null,null,null,null,null,null,null,null,null,null,null,null,null,null,null,null,null,null,null,null,null,null,null,null,null,null,null,null,null,null,null,null,null,null,null,null,null,null,null,null,null,null,null,null,null,null,null,null,null,null,null,null,null,null,null,null,"2030-09-30"]
[null,null,null,null,null,null,null,null,null,null,null,null,null,null,null,null,null,null,null,null,null,null,null,null,null,null,null,null,null,null,null,null,null,null,null,null,null,null,null,null,null,null,null,null,null,null,null,null,null,null,null,null,null,null,null,null,null,null,null,null,null,null,"2030-10-31"]
[null,null,null,null,null,null,null,null,null,null,null,null,null,null,null,null,null,null,null,null,null,null,null,null,null,null,null,null,null,null,null,null,null,null,null,null,null,null,null,null,null,null,null,null,null,null,null,null,null,null,null,null,null,null,null,null,null,null,null,null,null,null,"2030-11-30"]
[null,null,null,null,null,null,null,null,null,null,null,null,null,null,null,null,null,null,null,null,null,null,null,null,null,null,null,null,null,null,null,null,null,null,null,null,null,null,null,null,null,null,null,null,null,null,null,null,null,null,null,null,null,null,null,null,null,null,null,null,null,null,"2030-12-31"]

{"sheet":"Definitions","index":2,"n_rows":38,"n_cols":3,"rows_kept":38,"cut":false,"hidden":false,"merged":[[0,1,0,2]]}
["No.","Description of Items-Foreign Shipping Company"]
[null,"Name of Principal (Shipping Agents )","Name of the foreign shipping line on whose behalf all the earnings and expenses are made"]
[null,"Country","Country of origin of the foreign shipping line."]
[null,"No. of Vessels handled during the Month ","Number of vessels handled of the particular shipping line during the month "]
[2.1,"Freight on exports","Freight on exports earned from exporters by the foreign shipping line during the month "]
[2.2000000000000002,"Freight on imports","Freight earnings from importers by foreign shipping line during the month"]
[2.2999999999999998,"Mail or Courier Services to non-residents ","Earnings from residents of Pakistan on account of mail or courier services charges for pick-up, transport and delivery of letters, newspapers, periodicals, brochures and other printed matter and of parcels, packages"]
["3  ","Charter of ships/vessels with crew to Pakistan ","Earnings on charter of ships (vessels) with crew to Pakistan"]
["4 ","Charter of ships/vessels without crew  to Pakistan ","Earnings on charter of ships (vessels) without crew to Pakistan for a limited period i.e. time charter. Charter of ships without crew fall under operational leasing (rental) services."]
["5  ","Inward  remittances","Foreign exchange received from foreign shipping line through Authorized Dealers to cover the additional expenses paid by the shipping agent"]
["6   ","Other earnings (please specify)","Any other earnings not specified elsewhere and services provided during the month"]
[8,"Fuel purchased ","Expenses made for purchase of bunker oil to the ships during the month by the agent on behalf of shipping line excluding all other expensess for provisions (caterings and other supplies on board, etc) to the ship in Pakistan"]
[9,"Catering and other supplies on board","Expenses for caterings and other supplies on board in Pakistan during the month to the ships by the agent on behalf of foreign shipping line "]
["10 ","Repair of ships","Expenses for repairs of the ships carried out during stay on Pakistani ports during the month"]
["11 ","Crew expenses during transit stay in Pakistan (hotel bill, transport, etc.)","Expenses made for the crew during transit stay"]
["12 ","Agency commission","Expenses made by the foreign shipping line for agency commission"]
[13,"Office expenses","Expenses made by the foreign shipping line for office expenses"]
["14 ","Landing/ handling charges/port charges ","Expenses made by the foreign shipping line for landing/ handling charges/port charges"]
[15,"Entertainment & advertisement ","Expenses made by the foreign shipping line for entertainment & advertisement"]
["16 ","Charter of ship with crew for freight","Expenses on account of charter of ships (vessels) with crew."]
["17 ","Charter of ship without crew (operating lease)","Expenses on account of charter of ships (vessels) without crew for a limited period i.e., time charter. Charter of ships without crew fall under operational leasing (rental) services."]
[18,"Call centre services in Pakistan","Expenses pertaining to “call centers” in  Pakistan that provided services to foreign shipping line to corroborate its operations"]
["19 ","Outsource services in Pakistan ","Expenses on account of transportation of related support services outsourced to resident entities in Pakistan"]
["20 ","Tax expensess in Pakistan ","Expenses made on account of tax in Pakistan"]
["21 ","Other expensess","Any other expenses not specified elsewhere and services received during the month"]
[22,"Less refund","Refund of excess expenses paid"]
[25,"Repatriation","Amount allowed by the Authorized Dealer/ SBP BSC for outward remittances. "]
[28.1,"Freight receivable on exports","Freight services receivable on exports from exporters by foreign shipping line"]
[28.2,"Freight receivable on imports","Freight services receivable on imports from importers by foreign shipping line"]
[28.3,"Receivable on account of charter of ships/vessels with crew","Receivable on account of charter of ships/vessels with crew "]
[28.4,"Receivable on account of charter of ships/vessels  without  crew to Residents of Pakistan","Receivable on account of charter of ships/vessels  without crew"]
[28.5,"Other receivable","Any other services provided but payment not made to foreign shipping line"]
[29.1,"Payable for fuel, catering and other supplies","Payable for sale of bunker oil to ships of foreign shipping line including all other payments for provisions (caterings and other supplies on board, etc) in Pakistan "]
[29.2,"Payable for repair of ships","Payable for repairs of foreign ships during stay on Pakistani ports. "]
[29.3,"Payable for charter of ship with crew","Payable on account of charter of ships (vessels) with crew. "]
[29.4,"Payable for charter of ship without crew","Payable on account of charter of ships (vessels) without crew for a limited period i.e. time charter. Charter of ships without crew fall under operational leasing (rental) services."]
[29.5,"Tax payable ","Tax payable of foreign shipping line"]
[29.6,"Other payable","Any other amount payable not specified elsewhere "]

{"sheet":"From File","index":3,"n_rows":143,"n_cols":4,"rows_kept":143,"cut":false,"hidden":true,"merged":[]}
[null," "]
[]
[]
["Message Type","Message"]
["Information","Seatrade 2.csv: 418 Records Found"]
["Information","Seatrade 2.csv: Following Source Group - Sources found 163-17 163-18 163-23 163-20 163-22 163-26 163-27 163-35 163-36 163-61 163-4 163-65 163-71 163-30 163-87 163-82 163-89 163-90 163-91"]
["Information","163-17: Copying Records Source Group=163 and Source=17"]
["Information","163-17: Pasting"]
["Information","163-17: Checking Errors"]
["Information","163-17: Opening = Closing of Last month"]
["Information","163-17: Closing = Opening + Receipts - Payments"]
["Information","163-17: Adding records to database"]
["Information","163-17: Records are successfully added to database sheet"]
["Information","163-18: Copying Records Source Group=163 and Source=18"]
["Information","163-18: Pasting"]
["Information","163-18: Checking Errors"]
["Information","163-18: Opening = Closing of Last month",null," "]
["Information","163-18: Closing = Opening + Receipts - Payments"]
["Information","163-18: Adding records to database"]
["Information","163-18: Records are successfully added to database sheet"]
["Information","163-23: Copying Records Source Group=163 and Source=23"]
["Information","163-23: Pasting"]
["Information","163-23: Checking Errors"]
["Information","163-23: Opening = Closing of Last month"]
["Information","163-23: Closing = Opening + Receipts - Payments"]
["Information","163-23: Adding records to database"]
["Information","163-23: Records are successfully added to database sheet"]
["Information","163-20: Copying Records Source Group=163 and Source=20"]
["Information","163-20: Pasting"]
["Information","163-20: Checking Errors"]
["Information","163-20: Opening = Closing of Last month"]
["Information","163-20: Closing = Opening + Receipts - Payments"]
["Information","163-20: Adding records to database"]
["Information","163-20: Records are successfully added to database sheet"]
["Information","163-22: Copying Records Source Group=163 and Source=22"]
["Information","163-22: Pasting"]
["Information","163-22: Checking Errors"]
["Information","163-22: Opening = Closing of Last month"]
["Information","163-22: Closing = Opening + Receipts - Payments"]
["Information","163-22: Adding records to database"]
["Information","163-22: Records are successfully added to database sheet"]
["Information","163-26: Copying Records Source Group=163 and Source=26"]
["Information","163-26: Pasting"]
["Information","163-26: Checking Errors"]
["Information","163-26: Opening = Closing of Last month"]
["Information","163-26: Closing = Opening + Receipts - Payments"]
["Information","163-26: Adding records to database"]
["Information","163-26: Records are successfully added to database sheet"]
["Information","163-27: Copying Records Source Group=163 and Source=27"]
["Information","163-27: Pasting"]
["Information","163-27: Checking Errors"]
["Information","163-27: Opening = Closing of Last month"]
["Information","163-27: Closing = Opening + Receipts - Payments"]
["Information","163-27: Adding records to database"]
["Information","163-27: Records are successfully added to database sheet"]
["Information","163-35: Copying Records Source Group=163 and Source=35"]
["Information","163-35: Pasting"]
["Information","163-35: Opening Balance is adjusted"]
["Information","163-35: Checking Errors"]
["Information","163-35: Opening = Closing of Last month"]
["Information","163-35: Closing = Opening + Receipts - Payments"]
["Information","163-35: Adding records to database"]
["Information","163-35: Records are successfully added to database sheet"]
["Information","163-36: Copying Records Source Group=163 and Source=36"]
["Information","163-36: Pasting"]
["Information","163-36: Checking Errors"]
["Information","163-36: Opening = Closing of Last month"]
["Information","163-36: Closing = Opening + Receipts - Payments"]
["Information","163-36: Adding records to database"]
["Information","163-36: Records are successfully added to database sheet"]
["Information","163-61: Copying Records Source Group=163 and Source=61"]
["Information","163-61: Pasting"]
["Information","163-61: Checking Errors"]
["Information","163-61: Opening = Closing of Last month"]
["Information","163-61: Closing = Opening + Receipts - Payments"]
["Information","163-61: Adding records to database"]
["Information","163-61: Records are successfully added to database sheet"]
["Information","163-4: Copying Records Source Group=163 and Source=4"]
["Information","163-4: Pasting"]
["Information","163-4: Checking Errors"]
["Information","163-4: Opening = Closing of Last month"]
["Information","163-4: Closing = Opening + Receipts - Payments"]
["Information","163-4: Adding records to database"]
["Information","163-4: Records are successfully added to database sheet"]
["Information","163-65: Copying Records Source Group=163 and Source=65"]
["Information","163-65: Pasting"]
["Information","163-65: Opening Balance is adjusted"]
["Information","163-65: Checking Errors"]
["Information","163-65: Opening = Closing of Last month"]
["Information","163-65: Closing = Opening + Receipts - Payments"]
["Information","163-65: Adding records to database"]
["Information","163-65: Records are successfully added to database sheet"]
["Information","163-71: Copying Records Source Group=163 and Source=71"]
["Information","163-71: Pasting"]
["Information","163-71: Opening Balance is adjusted"]
["Information","163-71: Checking Errors"]
["Information","163-71: Opening = Closing of Last month"]
["Information","163-71: Closing = Opening + Receipts - Payments"]
["Information","163-71: Adding records to database"]
["Information","163-71: Records are successfully added to database sheet"]
["Information","163-30: Copying Records Source Group=163 and Source=30"]
["Information","163-30: Pasting"]
["Information","163-30: Checking Errors"]
["Information","163-30: Opening = Closing of Last month"]
["Information","163-30: Closing = Opening + Receipts - Payments"]
["Information","163-30: Adding records to database"]
["Information","163-30: Records are successfully added to database sheet"]
["Information","163-87: Copying Records Source Group=163 and Source=87"]
["Information","163-87: Pasting"]
["Information","163-87: Checking Errors"]
["Information","163-87: Opening = Closing of Last month"]
["Information","163-87: Closing = Opening + Receipts - Payments"]
["Information","163-87: Adding records to database"]
["Information","163-87: Records are successfully added to database sheet"]
["Information","163-82: Copying Records Source Group=163 and Source=82"]
["Information","163-82: Pasting"]
["Information","163-82: Checking Errors"]
["Information","163-82: Opening = Closing of Last month"]
["Information","163-82: Closing = Opening + Receipts - Payments"]
["Information","163-82: Adding records to database"]
["Information","163-82: Records are successfully added to database sheet"]
["Information","163-89: Copying Records Source Group=163 and Source=89"]
["Information","163-89: Pasting"]
["Information","163-89: Checking Errors"]
["Information","163-89: Opening = Closing of Last month"]
["Information","163-89: Closing = Opening + Receipts - Payments"]
["Information","163-89: Adding records to database"]
["Information","163-89: Records are successfully added to database sheet"]
["Information","163-90: Copying Records Source Group=163 and Source=90"]
["Information","163-90: Pasting"]
["Information","163-90: Opening Balance is adjusted"]
["Information","163-90: Checking Errors"]
["Information","163-90: Opening = Closing of Last month"]
["Information","163-90: Closing = Opening + Receipts - Payments"]
["Information","163-90: Adding records to database"]
["Information","163-90: Records are successfully added to database sheet"]
["Information","163-91: Copying Records Source Group=163 and Source=91"]
["Information","163-91: Pasting"]
["Information","163-91: Checking Errors"]
["Information","163-91: Opening = Closing of Last month"]
["Information","163-91: Closing = Opening + Receipts - Payments"]
["Information","163-91: Adding records to database"]
["Information","163-91: Records are successfully added to database sheet"]

{"sheet":"database","index":4,"n_rows":1,"n_cols":12,"rows_kept":1,"cut":false,"hidden":false,"merged":[]}
["Sector ","Batch No.","S. No.","Source Group","Source","CountryCodes","Currency","Group","Description","Period (dd-Mon-yyyy)","Amount","Department"]

{"sheet":"codes","index":5,"n_rows":3370,"n_cols":7,"rows_kept":3370,"cut":false,"hidden":true,"merged":[]}
["Country","Code",null,"Name of Foreign Shipping Company/ Agent","Foreign Shipping Company/ Agent Code","Name of Principal (Foreign Shipping Line)","Principal (Foreign Shipping Line) Code"]
["Afghanistan ",10,395,"A.A Enterprises (Reg. No. SA-545)",395,"No Principal available",0]
["Albania ",20,368,"A.K Shipping & Logistics (Reg. No. SA-500)",368,"No Principal available",0]
["Algeria ",30,175,"Aaras Shipping Agencies (Pvt.) Ltd. ",175,"Da-Desk",8]
["American Samoa ",40,175,"Aaras Shipping Agencies (Pvt.) Ltd. ",175,"Elmira Shipping & Trading SA",14]
["Andorra ",50,175,"Aaras Shipping Agencies (Pvt.) Ltd. ",175,"Erika Shipping Pte Ltd",15]
["Angola ",60,175,"Aaras Shipping Agencies (Pvt.) Ltd. ",175,"Go Prosper International Ltd.",5]
["Antigua & Barbuda ",70,175,"Aaras Shipping Agencies (Pvt.) Ltd. ",175,"Hanssy Shipping Pte Ltd.",3]
["Argentina ",80,175,"Aaras Shipping Agencies (Pvt.) Ltd. ",175,"Hong Glory Shipping Co., Ltd",6]
["Armenia ",85,175,"Aaras Shipping Agencies (Pvt.) Ltd. ",175,"Hong Ocean Shipping Co Ltd",7]
["Aruba (Kingdom Of Netherlands) ",87,175,"Aaras Shipping Agencies (Pvt.) Ltd. ",175,"Hong Union Shipping Ltd.",2]
["Australia ",90,175,"Aaras Shipping Agencies (Pvt.) Ltd. ",175,"King Ship (HK) Ltd",9]
["Austria ",100,175,"Aaras Shipping Agencies (Pvt.) Ltd. ",175,"Nanjing Ocean Shipping Co. Ltd.",4]
["Azerbaijan ",105,175,"Aaras Shipping Agencies (Pvt.) Ltd. ",175,"Naspacific Shipping Co. Ltd",13]
["Bahamas ",110,175,"Aaras Shipping Agencies (Pvt.) Ltd. ",175,"Navalmar UK Ltd",12]
["Bahrain ",120,175,"Aaras Shipping Agencies (Pvt.) Ltd. ",175,"Pacific Bulk Lines Co Ltd",10]
["Bangladesh ",130,175,"Aaras Shipping Agencies (Pvt.) Ltd. ",175,"Source King Holdings Ltd",11]
["Barbados ",140,175,"Aaras Shipping Agencies (Pvt.) Ltd. ",175,"Varamar Ltd.",1]
["Belgium ",150,234,"Aat Multimodal Logistics Company (Reg. No. SA-666)",234,"No Principal available",0]
["Belarus ",155,269,"Abdul Aziz Saval & Co (Reg. No. SA-714)",269,"No Principal available",0]
["Belize ",160,158,"ACE CARGO PVT. LTD",158,"No Principal available",0]
["Benin (Dahomey) ",170,200,"Active Freight Services (Pvt) Ltd (Reg. No. SA-623)",200,"No Principal available",0]
["Bermuda ",180,410,"Adam Shipping (Pvt) Ltd (Reg. No. SA-566)",410,"No Principal available",0]
["Bhutan ",190,353,"Advance Shipping (Pvt) Ltd (Reg. No. SA-479)",353,"No Principal available",0]
["Bolivia ",200,228,"Agelinc Ocean System (Pvt) Ltd (Reg. No. SA-657)",228,"No Principal available",0]
["Bosnia And Herzegovina ",205,350,"Agility Fairs & Eventis Logistics (Pvt) Ltd (Reg. No. SA-476",350,"No Principal available",0]
["Botswana ",210,366,"Agility Logistics (Pvt) Ltd (Reg. No. SA-498)",366,"No Principal available",0]
["Brazil ",220,343,"Aig Shipping (Reg. No. SA-462)",343,"No Principal available",0]
["Brunei Darussalam ",230,384,"Al Front Log Pack Services (Reg. No. SA-530)",384,"No Principal available",0]
["Bulgaria ",240,320,"Al Hamza Maritime International (Pvt) Ltd(Reg. No. SA-406)",320,"No Principal available",0]
["Burkina Faso ",245,321,"Al Khizar Enterprises Shipping Agency(Reg.No. SA-407)",321,"No Principal available",0]
["Burundi ",260,325,"Al Maqbool-Traders(Reg. No SA- 418)",325,"No Principal available",0]
["Cambodia (Previously Kampuchea) ",1190,215,"Al Watan International (Reg. No. SA-642)",215,"No Principal available",0]
["Cameroon ",270,422,"Al-Faizan International (Reg. No. SA-587)",422,"No Principal available",0]
["Canada ",280,227,"Al-Hamd Interanational Container Terminal (Pvt) Ltd (SA-655)",227,"No Principal available",0]
["Cape Verde ",290,421,"Ali Trading International (Reg. No. SA-583)",421,"No Principal available",0]
["Cayman Islands ",300,420,"Alliance Shipping Co (Reg. No. SA-581)",420,"No Principal available",0]
["Central African Republic ",310,391,"Allied International Trade Agencies (Reg. No. SA-539)",391,"No Principal available",0]
["Chad ",320,244,"Allied Logistics (SMC-Pvt) Ltd (Reg. No.SA-679",244,"No Principal available",0]
["Chile ",330,235,"Allied Logistics Services (Pvt) Ltd (Reg. No. SA-667)",235,"No Principal available",0]
["China-Peoples Republic Of ",340,423,"Al-Muqarab Shipping & Logistics Agency (Reg. No. SA-588)",423,"No Principal available",0]
["Colombia ",350,399,"Alpha Marine Services (Reg. No. SA-550)",399,"No Principal available",0]
["Comoros ",360,330,"Alpine Marine Services (Pvt) Ltd (Reg. No. SA-430)",330,"No Principal available",0]
["Congo (Demo.Repub) ",370,1,"ALPINE SHIPPING",1,"A.K. SHIPPING & TRADING INC (GREECE)",101]
["Congo (Republic Of) ",375,1,"ALPINE SHIPPING",1,"ABU DHABI NATIONAL TANKER CO.,UAE ",286]
["Costa Rica ",380,1,"ALPINE SHIPPING",1,"AC TANKERS SERVICES PTE LTD., SIGAPORE",234]
["Cote D' Ivoire ",385,1,"ALPINE SHIPPING",1,"ACE QUANTUM CHEMICAL TANKERS, NETHERLANDS ",413]
["Croatia ",385,1,"ALPINE SHIPPING",1,"ACE TANKERS, AMSTERDAM",264]
["Cuba ",390,1,"ALPINE SHIPPING",1,"ADS SHIPPING CO.LTD., SEOUL KOREA",202]
["Cyprus ",400,1,"ALPINE SHIPPING",1,"AET INC., LIMITED, HOUSTEN TX, UNITED STATES",254]
["Czech Republic ",412,1,"ALPINE SHIPPING",1,"AET TANKERS PTE LTD., SINGAPORE",255]
["Denmark ",420,1,"ALPINE SHIPPING",1,"AKRON TRADE & TRANSPORT FUJAIRAH ( UAE )",261]
["Djibouti ",430,1,"ALPINE SHIPPING",1,"ALANTIK SHIPPING",182]
["Dominica ",440,1,"ALPINE SHIPPING",1,"ALBIS SHIPPING & TRANSPORT ",292]
["Dominican Republic ",450,1,"ALPINE SHIPPING",1,"ALENDAL TANKERS",82]
["Ecuador ",460,1,"ALPINE SHIPPING",1,"ALLIED CHEMICAL CARRIERS LLC",269]
["Egypt ",470,1,"ALPINE SHIPPING",1,"ALLIED CHEMICAL CARRIERS LLC, MONROVIA, LIBERIA",362]
["El Salvador ",480,1,"ALPINE SHIPPING",1,"ANDORRA TOKYO (JAPAN)",68]
["Equatorial Guinea ",490,1,"ALPINE SHIPPING",1,"ANGEL SHIPPING (HONG KONG) CO. LTD., HONG KONG",241]
["Eritrea ",492,1,"ALPINE SHIPPING",1,"APL CO PTE LTD VESSEL VOYAGE APL CAIRO/21",6]
["Estonia ",495,1,"ALPINE SHIPPING",1,"AS BRYGGEN SHIPPING TRADING NORWAY",7]
["Ethiopia ",500,1,"ALPINE SHIPPING",1,"ASAHI TANKER CO. LTD JAPAN",36]
["European Economic Community ",510,1,"ALPINE SHIPPING",1,"ASD INC., JAPAN",256]
["Faeroe Islands ",520,1,"ALPINE SHIPPING",1,"AST INC., JAPAN",287]
["Falkland Islands ",530,1,"ALPINE SHIPPING",1,"ATLANTIC SHIPPING INC.",265]
["Fiji ",540,1,"ALPINE SHIPPING",1,"ATLANTIK DENIZCILIK, ISTANBUL TURKEY",359]
["Finland ",550,1,"ALPINE SHIPPING",1,"AURORA TANKER MANAGEMENT",183]
["France ",560,1,"ALPINE SHIPPING",1,"AVI ITERATIOAL GREECE",17]
["French Guinea ",570,1,"ALPINE SHIPPING",1,"BAY CREST MANAGEMENT PTE LTD., SINGAPORE",363]
["Gabon ",580,1,"ALPINE SHIPPING",1,"BERGSHAV MANAGEMENT A/S NORWAY",242]
["Gambia ",590,1,"ALPINE SHIPPING",1,"BERLIAN LAJU TANKERS PT INDONESIA",12]
["Georgia ",600,1,"ALPINE SHIPPING",1,"BLT CHEMBULK GROUP",293]
["Germany ",610,1,"ALPINE SHIPPING",1,"BLUE SEA SHIPPING, MONACO",364]
["Ghana ",620,1,"ALPINE SHIPPING",1,"BLUE TANKERS LIMITED, TURKEY",196]
["Gibraltar ",630,1,"ALPINE SHIPPING",1,"BOSSOIL ENERGY PTE LTD., SINGAPORE ",407]
["Greece ",640,1,"ALPINE SHIPPING",1,"BP SHIPPING",167]
["Greenland ",650,1,"ALPINE SHIPPING",1,"BRIDGE MARINE CO LTD, SEOUL KOREA",94]
["Grenada ",660,1,"ALPINE SHIPPING",1,"BRYGGEN COMMERCIAL MANAGEMENT",194]
["Guadeloupe ",670,1,"ALPINE SHIPPING",1,"BRYGGEN SHIPPING",26]
["Guam ",680,1,"ALPINE SHIPPING",1,"BRYGGEN SHIPPING INTERNATIONAL AS, NORWAY ",415]
["Guatemala ",690,1,"ALPINE SHIPPING",1,"BUNGE AGRIBUSINESS SINGAPORE PTE LTD., SINGAPORE",315]
["Guinea-Bissau ",700,1,"ALPINE SHIPPING",1,"BUNGE LALTIN AMERICA LLC, USA ",336]
["Guinea ",710,1,"ALPINE SHIPPING",1,"BW GAS ASA NORWAY",128]
["Guyana ",720,1,"ALPINE SHIPPING",1,"C&C MARITIME PTE LTD., SINGAPORE",229]
["Haiti ",730,1,"ALPINE SHIPPING",1,"CAPITAL SHIPMANAGEMENT INC., GREECE",151]
["Honduras ",740,1,"ALPINE SHIPPING",1,"CARGIL INTERNATIONAL S.A. GENEVA,SWISS",8]
["Hongkong ",750,1,"ALPINE SHIPPING",1,"CARGIL OCEAN TRANSPORATIONS PTE LTD SINGAPORE",200]
["Hungary ",760,1,"ALPINE SHIPPING",1,"CAVALIER GROUP, DUBAI, UAE",383]
["Iceland ",770,1,"ALPINE SHIPPING",1,"CELTIC TANKERS PLC U.K",55]
["India ",780,1,"ALPINE SHIPPING",1,"Champion Tankrs As (Norway)",32]
["Indonesia ",790,1,"ALPINE SHIPPING",1,"CHEMBULK MANAGEMENT LLC, USA",354]
["A.D.B.(Asian Development Bank) ",800,1,"ALPINE SHIPPING",1,"CHEMBULK MANAGEMENT PTE. LTD SINGAPORE",134]
["B.I.S.(Bank For International Seetlement) ",810,1,"ALPINE SHIPPING",1,"CHIA SHIPPIG DEVEP.",18]
["F.A.O.(Food And Agricultural Organization) ",820,1,"ALPINE SHIPPING",1,"CITY MARINE SA, GENEVA, SWITZERLAND",373]
["I.F.A.D.(International Fund For Agricultural Development) ",830,1,"ALPINE SHIPPING",1,"CLIPPER TANKERS A/S COPENHAGEN., DENMARK",148]
["I.A.E.A.(International Atomic Energy Commission) ",840,1,"ALPINE SHIPPING",1,"CLIPPER TANKERS A/S Singapore",162]
["I.D.B.(Islamic Development Bank) ",850,1,"ALPINE SHIPPING",1,"CM Maritime Corporation",153]
["I.D.A.(International Development Association) ",860,1,"ALPINE SHIPPING",1,"Colonial navigation Co.Inc(U>S.A)",31]
["I.F.C.(International Finance Corporation) ",870,1,"ALPINE SHIPPING",1,"COLUMBIA SHIPMANAGEMENT (SINGAPORE) PTE LTD., SINGAPORE",384]
["I.L.O.(International Labour Organization) ",880,1,"ALPINE SHIPPING",1,"COLUMBIA SHIPMANAGEMENT LIMITED, CYPRUS",237]
["I.M.F.(International Monetary Fund) ",890,1,"ALPINE SHIPPING",1,"CONCORDIA AGRITRADING PTE LTD., SINGAPORE",355]
["I.B.R.D.(Int.Bank For Reeconstruction And Development) ",900,1,"ALPINE SHIPPING",1,"CONSTELLATION NAVIGATION c/o ORACLE TANKERS ( UK )",231]
["I.C.A.O.(International Civil Aviation Organization) ",910,1,"ALPINE SHIPPING",1,"CORAL SENERGIES SDN BHD MALASIA",129]
["I.C.R.C.(International Committee Of Red Cross) ",920,1,"ALPINE SHIPPING",1,"CORAL SHIPPING CORP. GREECE",84]
["I.O.M (International Organization For Migration) ",925,1,"ALPINE SHIPPING",1,"CS MARITIME CORPORATION TOKYO (JAPAN)",165]
["Petroleum Exporting Countries) ",930,1,"ALPINE SHIPPING",1,"CSSA CHARTERING & SHIPPING SERVICES SWITZERLAND",102]
["Programme) ",935,1,"ALPINE SHIPPING",1,"D & K PERTROLUM LLC.DUBAI(UAE)",74]
["U.N.D.P.(United Nations Development Programmme) ",940,1,"ALPINE SHIPPING",1,"D & K SHIPPING LTD U.A.E.",95]
["U.N.F.P.A.(United Nations Population Fund) ",950,1,"ALPINE SHIPPING",1,"DAMICO TANKERS LTD., UNITED KINGDOM",408]
["U.N.I.C.E.F.(United Nations Children'S Fund) ",960,1,"ALPINE SHIPPING",1,"DEALIM CORPORATION ( SEOUL KOREA )",223]
["U.N.I.C (United Nations Information Centre) ",965,1,"ALPINE SHIPPING",1,"DEVORE MARITIME INC, GREECE",401]
["U.N.H.C.R.(United Nations High Commissioner For Refugees) ",970,1,"ALPINE SHIPPING",1,"DEZANDIS TGEHRAN IRAN",52]
["U.N.D.R.O.(United Nations ",980,1,"ALPINE SHIPPING",1,"DINKA LATCHIN (UAE)",62]
["U.N.E.S.C.O.(United Nations Educational Scientific And Cultural Org.) ",990,1,"ALPINE SHIPPING",1,"DONG-A TANKERS CORPORAION",266]
["W.H.O.(World Health Organization) ",1000,1,"ALPINE SHIPPING",1,"DORADO TANKERS POOL INC., ( USA )",246]
["W.F.P.(World Food Programme) ",1010,1,"ALPINE SHIPPING",1,"DOVER I ENE., GREECE",152]
["U.N. (United Nations) ",1020,1,"ALPINE SHIPPING",1,"DYNACOM TANKERS MANAGEMENT (GREECE)",42]
["Other International Agencies ",1030,1,"ALPINE SHIPPING",1,"EAST PORT MARTITIME (PTE) SINGAPORE",65]
["Asian Clearing Union ",1040,1,"ALPINE SHIPPING",1,"EASTERN MEDITERRANEAN MARITIME LTD, GREECE ",393]
["Iran ",1100,1,"ALPINE SHIPPING",1,"ELMIRA SHIPPING & TRADING SA., GREECE",137]
["Iraq ",1110,1,"ALPINE SHIPPING",1,"ELMIRA TANKERS MANAGEMENT S.A., GREECE",352]
["Ireland ",1120,1,"ALPINE SHIPPING",1,"EMIRATES SHIP INVESTMENT CO.",273]
["Italy ",1140,1,"ALPINE SHIPPING",1,"EMIRATES TRADING AGENCY LLC (UAE)",70]
["Jamaica ",1160,1,"ALPINE SHIPPING",1,"EMPRESSA MARITIMA C/O MAPA LOGISTICS., USA",139]
["Japan ",1170,1,"ALPINE SHIPPING",1,"ENOC SUPPLY & TRADING LLC., UAE-DUBAI",149]
["Jordan ",1180,1,"ALPINE SHIPPING",1,"ENRICH SINO INTERNATIONAL LTD., CHINA",388]
["Kazakhstan ",1195,1,"ALPINE SHIPPING",1,"ETIZEN CHEMICAL A/S. DENMARK",66]
["Kenya ",1200,1,"ALPINE SHIPPING",1,"ETIZEN CHEMICAL SINGAPORE PTE LTD., SINGAPORE",138]
["Kiribati ",1210,1,"ALPINE SHIPPING",1,"EURO TANKER",27]
["Korea South-(Republic Of ",1220,1,"ALPINE SHIPPING",1,"EUROTANK MARITIME MANAGEMENT SA, GREECE ",374]
["Kuwait ",1240,1,"ALPINE SHIPPING",1,"EVERGREEN MILESTONE SDN BHD., MALAYSIA",171]
["Kyrghyz Republic ",1245,1,"ALPINE SHIPPING",1,"EXPDO SHIP MANAGEMNT",35]
["Laos ",1250,1,"ALPINE SHIPPING",1,"FAIRFIELD CHEMICAL CARRIERS INC U.S.A.",96]
["Latvia ",1255,1,"ALPINE SHIPPING",1,"FAIRFIELD CHEMICAL CARRIERS PTE LTD., SINGAPORE",230]
["Lebanon ",1260,1,"ALPINE SHIPPING",1,"FAIRFIELD CHEMICAL CARRIERS(USA)",41]
["Leeward Islands ",1270,1,"ALPINE SHIPPING",1,"FAL OIL CO.LTD.",19]
["Lesotho ",1280,1,"ALPINE SHIPPING",1,"FAL SHIPPING CO LTD U.A.E.",97]
["Liberia ",1290,1,"ALPINE SHIPPING",1,"FINAVAL S.P.A. ITALY",238]
["Libya ",1300,1,"ALPINE SHIPPING",1,"FOLK GROUP, DEIRA, DUBAI, UAE ",403]
["Lithuania ",1305,1,"ALPINE SHIPPING",1,"Forever Maritime Ltd. Monaco",169]
["Luxembourg ",1310,1,"ALPINE SHIPPING",1,"FORMOSA PLASTICA MARINE CORP TAINWAN",120]
["Macao ",1320,1,"ALPINE SHIPPING",1,"FR8 SINGAPORE PTE LTD., SINGAPORE",232]
["Macedonia (Formerly Yugoslav Republic) ",2230,1,"ALPINE SHIPPING",1,"GAGASAN CARRIERS SND BHD MALAYSIA",85]
["Madagascar ",1330,1,"ALPINE SHIPPING",1,"GALANA PETROLEUM LIMITED UAE",172]
["Malawi ",1340,1,"ALPINE SHIPPING",1,"GENERAL MARITIME MANAGEMENT LLC. (U.S.A)",30]
["Malaysia ",1350,1,"ALPINE SHIPPING",1,"GENERAL NATIONAL MARITIME TRANSPORT CO. ( LIBYA )",218]
["Maldives ",1360,1,"ALPINE SHIPPING",1,"GIUSEPPE BOTTIGILIERI SHIPPING COMPANY SPA, ITALY",385]
["Mali ",1370,1,"ALPINE SHIPPING",1,"GLENDA INTERNATIONAL MANAGEMENT",184]
["Malta ",1380,1,"ALPINE SHIPPING",1,"GLOBAL TANKER POOL PTE LTD., SINGAPORE",235]
["Marshall Islands ",1385,1,"ALPINE SHIPPING",1,"GLORY SHIP MANAGEMENT (SINGAPORE)",103]
["Martinique ",1390,1,"ALPINE SHIPPING",1,"GLORY SHIP MANAGEMENT PTE.LTD.SINGAPORE",9]
["Mauritania ",1400,1,"ALPINE SHIPPING",1,"GMS LINE CO. LTD JAPAN",16]
["Mauritius ",1410,1,"ALPINE SHIPPING",1,"GOLD BRIDGE SHIPPING LTD.HONGKONG",48]
["Myanmar ",1415,1,"ALPINE SHIPPING",1,"GOLDEN AGRI INTERNATIONAL PTE LTD., SINGAPORE",394]
["Mexico ",1420,1,"ALPINE SHIPPING",1,"GOLDEN STENA WECO PTE LTD., SINGAPORE",304]
["Micronesia ",1422,1,"ALPINE SHIPPING",1,"GRANITE ENTERPRISES LTD c/o DELFI S.A., GREECE",141]
["Moldova ",1425,1,"ALPINE SHIPPING",1,"GREAT ELEPHANT CORPORATION., TAIWAN",142]
["Mongolia-People'S Republic Of ",1430,1,"ALPINE SHIPPING",1,"GULF AGENCY COMPANY LIMITED.",337]
["Montserrat ",1440,1,"ALPINE SHIPPING",1,"HAFNIA MANAGEMENT A/S DENMARK",257]
["Morocco ",1450,1,"ALPINE SHIPPING",1,"HAMPUSS SEA TRANSPORT PTE LTD., SINGAPORE",195]
["Mozambique ",1460,1,"ALPINE SHIPPING",1,"HAN GANG TANKERS INC., c/o WOMAR LOGISTICS PTE LTD., SINGAPO",247]
["Namibia ",1470,1,"ALPINE SHIPPING",1,"HANDY TANKERS K/S, COPENHAGEN, DENMARK ",409]
["Nauru ",1480,1,"ALPINE SHIPPING",1,"HANDYTANKERS K/S (SINGAPORE)",104]
["Nepal ",1490,1,"ALPINE SHIPPING",1,"HANJIN SHIPING CO. LTD.",58]
["Netherlands (Holland) ",1500,1,"ALPINE SHIPPING",1,"HANSA TANKERS AS.",296]
["Netherlands Antilles ",1510,1,"ALPINE SHIPPING",1,"HARMONY NAVIGATION S.A. GREECE",81]
["New Caledonia ",1520,1,"ALPINE SHIPPING",1,"HAVI OCEAN CO LLC., DUBAI",170]
["New Zealand ",1530,1,"ALPINE SHIPPING",1,"HEDIMAR FAR EAST ",178]
["Nicaragua ",1540,1,"ALPINE SHIPPING",1,"HEIDENREICH MARINE PTE LTD(SINGAPORE)",83]
["Niger ",1550,1,"ALPINE SHIPPING",1,"HEIDMAR UK LIMITED ( UK )",224]
["Nigeria ",1560,1,"ALPINE SHIPPING",1,"HEMING SHIPPING CO LTD SEOUL, KOREA",78]
["Norway ",1570,1,"ALPINE SHIPPING",1,"HERUN OCEAN CHEMICALS LTD., CHINA ",389]
["Oman ",1580,1,"ALPINE SHIPPING",1,"HEUNG-A SHIPPING CO.LTD., SEOUL KOREA",156]
["Pakistan-Export Processing Zone ",1590,1,"ALPINE SHIPPING",1,"HEUNG-A SINGAPORE PTE LTD., SINGAPORE ",197]
["Palau ",1595,1,"ALPINE SHIPPING",1,"HIGH POOL TANKERS LTD., DUBLIN IRELAND ",404]
["Panama ",1600,1,"ALPINE SHIPPING",1,"HOLGER KRISTIAN SUCCESS",28]
["Papua New Guinea ",1610,1,"ALPINE SHIPPING",1,"HONG LAM MARINE PTE LTD., SINGAPORE",145]
["Paraguay ",1620,1,"ALPINE SHIPPING",1,"HONGKONG BEIHAI SHIPPING LTD., HONG KONG",239]
["Peru ",1630,1,"ALPINE SHIPPING",1,"HORIZON ENERGY, SHARJAH, U.A.E. ",378]
["Philippines ",1640,1,"ALPINE SHIPPING",1,"HUDSON SHIPPING LINE INC.",217]
["Poland ",1650,1,"ALPINE SHIPPING",1,"HYUNDAI MERCHANT MARINE CO. LTD C/O GULF AGENCY COMPANY LTD.",365]
["Polynesia ",1660,1,"ALPINE SHIPPING",1,"HYUNDAI MERCHANT MARINE CO.LTD., C/O ROYAL TANKER S.A.",338]
["Portugal ",1670,1,"ALPINE SHIPPING",1,"HYUNDAI MERCHANT MARINE CO.LTD.SEOUL KOREA",289]
["Qatar ",1680,1,"ALPINE SHIPPING",1,"HYUNDAI MERCHANT MARINE PTE LTD.SINGAPORE",109]
["Reunion Island ",1690,1,"ALPINE SHIPPING",1,"ICOF SHIP CHARTERING PTE LTD., SINGAPORE ",375]
["Romania ",1700,1,"ALPINE SHIPPING",1,"IDEPEDT PTROLUMKUWAIT",20]
["Russian Federation ",1705,1,"ALPINE SHIPPING",1,"IINO SINGAPORE PTE LTD.",274]
["Rwanda ",1710,1,"ALPINE SHIPPING",1,"INCHAPE SHIPPING SERVICES DUBAI",110]
["Samoa (Formerly Western Samoa) ",2190,1,"ALPINE SHIPPING",1,"INSHIP MANAGEMENT",4]
["Sao Tome & Principe ",1720,1,"ALPINE SHIPPING",1,"INTERGLOBE TRADING FZE, SHARJAH, UAE",288]
["Saudi Arabia ",1730,1,"ALPINE SHIPPING",1,"INTERNATIONAL TANKERS MANAGEMENT (UAE)",59]
["Senegal ",1740,1,"ALPINE SHIPPING",1,"I-SHIPCOM COMPANY LIMITED",267]
["Serbia ",1745,1,"ALPINE SHIPPING",1,"ISS TEEKAY SHIPPING",271]
["Seychelles ",1750,1,"ALPINE SHIPPING",1,"JAVA MARINE LINES S.A. iNDONESIA",135]
["Sierra Leone ",1760,1,"ALPINE SHIPPING",1,"JET MARIE TAKER PTE LTD.",21]
["Singapore ",1770,1,"ALPINE SHIPPING",1,"JO TANKERS BV, NETHERLAND",11]
["Slovak Republic ",1775,1,"ALPINE SHIPPING",1,"KEOYOUNG SHIPPING CO.LTD., SEOUL KOREA",150]
["Slovenia ",1778,1,"ALPINE SHIPPING",1,"KERRY NEWZEALAND LTD",2]
["Solomon Islands ",1780,1,"ALPINE SHIPPING",1,"KL MARITIME (M) SDN. BHD. MALAYSIA",358]
["Somalia ",1790,1,"ALPINE SHIPPING",1,"KLAVENESS AS C/O WILHELMSEN SHIPS SERVICES, NORWAY",386]
["South Africa ",1795,1,"ALPINE SHIPPING",1,"KLK PREMIER OILS SDN. BHD. MALAYSIA",353]
["Spain ",1810,1,"ALPINE SHIPPING",1,"KNUTSEN OAS SHIPPING c/o ATLAS CHEMICAL TANKERS AS, NORWAY",240]
["Sri Lanka ",1820,1,"ALPINE SHIPPING",1,"KOCH SHIPPING INC, USA ",405]
["St.Kitts And Nevis ",1840,1,"ALPINE SHIPPING",1,"KOYO KAIUN KAISHA PTE LTD (SINGAPORE)",163]
["St.Lucia ",1850,1,"ALPINE SHIPPING",1,"LABORY MARINE PTE LTD SINGAPORE",75]
["St.Pierre & Miquelon ",1860,1,"ALPINE SHIPPING",1,"Latvin Shipping Co..Ltd. Latvia",33]
["St.Vincent And The Grenadines ",1870,1,"ALPINE SHIPPING",1,"LAURITZEN KOASN A/S COPENHAGEN DENMARK",227]
["Sudan ",1880,1,"ALPINE SHIPPING",1,"LAURITZEN KOSAN SINGAPORE PTE LTD., SINGAPORE ",410]
["Suriname ",1890,1,"ALPINE SHIPPING",1,"LENKOR ENERGY TRADING LTD., DUBAI, UAE ",390]
["Swaziland ",1900,1,"ALPINE SHIPPING",1,"LILITH TRADING INC GREECE",130]
["Sweden ",1910,1,"ALPINE SHIPPING",1,"LINK MARINE PTE LTD. SINGAPORE",297]
["Switzerland ",1920,1,"ALPINE SHIPPING",1,"LINO KAIUN KAISHA LTD.JAPAN",10]
["Syrian Arab Republic ",1930,1,"ALPINE SHIPPING",1,"LINO SINGAPORE PTE LTD SINGAPORE",88]
["Tajikistan ",1935,1,"ALPINE SHIPPING",1,"LL ENERGY S.A ( GREECE )",262]
["Tanzania ",1940,1,"ALPINE SHIPPING",1,"LR1 MANAGEMENT",136]
["Thailand ",1950,1,"ALPINE SHIPPING",1,"LR2 MANAGEMENT",185]
["Timor-Leste ",1955,1,"ALPINE SHIPPING",1,"M R MANAGEMENT COPENHAGEN",193]
["Togo ",1960,1,"ALPINE SHIPPING",1,"M.T.MARITIME PTE LTD",22]
["Tonga ",1970,1,"ALPINE SHIPPING",1,"MAGNUS CARRIERS CORPORATION., GREECE",173]
["Trinidad And Tobago ",1980,1,"ALPINE SHIPPING",1,"MANSEL LIMITED c/o VITOL SERVICES LTD.",275]
["Tunisia ",1990,1,"ALPINE SHIPPING",1,"MANSEL OIL LTD C/O VITOR SERVICES LONDON",111]
["Turkey ",2000,1,"ALPINE SHIPPING",1,"MAPA LOGISTICS S.A. (USA)",89]
["Turkmanistan ",2005,1,"ALPINE SHIPPING",1,"MARE INTERNATIONAL LTD. GREECE",113]
["Tuvalu ",2010,1,"ALPINE SHIPPING",1,"MARE MARITIME COMPANY LTD",179]
["U.A.E. Abudhabi ",2020,1,"ALPINE SHIPPING",1,"MARIDA TANKERS INC., c/o WOMAR LOGISTICS PTE LTD., SINGAPORE",221]
["U.A.E.Dubai ",2030,1,"ALPINE SHIPPING",1,"MARINA WORLD SHIPPING CORPORATION, JEDDAH",207]
["U.A.E.Sharjah ",2040,1,"ALPINE SHIPPING",1,"MARINE PTE SINGAPORE",177]
["U.A.E.Ras-Al-Khaimah ",2050,1,"ALPINE SHIPPING",1,"Marphocan Shipping Co. Ltd.(Morocco)",34]
["U.A.E.Ajman ",2060,1,"ALPINE SHIPPING",1,"MARPHOCEAN SHIPPING CO SA MORROCCO",105]
["U.A.E.Fujairah ",2070,1,"ALPINE SHIPPING",1,"MEGA CHEMICALS INTERNATIONAL AG ZURICH, SWITZERLAND ",414]
["U.A.E.Ummal-Quwain ",2080,1,"ALPINE SHIPPING",1,"MELTON COMMERICAL TRADING, ISTANBUL TURKEY",366]
["U.K. ",2090,1,"ALPINE SHIPPING",1,"MENA ENERGY DMCC, DUBAI, UAE",400]
["U. S. A. ",2100,1,"ALPINE SHIPPING",1,"MERCATOR INTERNATIONAL MANAGEMENT",186]
["Uganda ",2120,1,"ALPINE SHIPPING",1,"MERCATOR INTERNATIONAL PTE LTD., SINGAPORE",157]
["Ukraine ",2125,1,"ALPINE SHIPPING",1,"MERCATOR INTERNATIONAL PTE LTD., SINGAPORE",158]
["Upper Volta ",2130,1,"ALPINE SHIPPING",1,"MEWAHOLEO MARKETING SDN. BHD., MALAYSIA",312]
["Uruguay ",2140,1,"ALPINE SHIPPING",1,"MILESTONE CHEMICAL TANKERS PTE LTD., SINGAPORE",379]
["Uzbekistan ",2145,1,"ALPINE SHIPPING",1,"Minerva Marine Inc",281]
["Vanuatu ",2150,1,"ALPINE SHIPPING",1,"MISC BERHAD KUALA LUMPUR MALASIA",131]
["Venezuela ",2160,1,"ALPINE SHIPPING",1,"MITBUSHI CHEMICAL LOGIS.CORP JAPAN",49]
["Vietnam ",2170,1,"ALPINE SHIPPING",1,"MITSHUBISHI CHEMICAL LOGISTIC CORP JAPAN",132]
["Virgin Island ",2180,1,"ALPINE SHIPPING",1,"MITSUI O.S.K. LINE JAPAN",211]
["Windward Islands ",2200,1,"ALPINE SHIPPING",1,"MTM MARITIME SINGAPORE PTE LTD., SINGAPORE",243]
["Yemen Republic ",2210,1,"ALPINE SHIPPING",1,"NAFTOMAR SHIPPING & TRADING INC GREECE",106]
["Zaire ",2240,1,"ALPINE SHIPPING",1,"NAKATA MAC CORPORATION JAPAN",212]
["Zambia ",2250,1,"ALPINE SHIPPING",1,"NANJING PETROLEUM TRANSPORTATION CO.LIMITED, CHINA",252]
["Zimbabwe ",2260,1,"ALPINE SHIPPING",1,"NASTA CHARTERING LTD GREECE",13]
["Others, N.E.S. ",2270,1,"ALPINE SHIPPING",1,"NAVIG8 ASIA PTE LTD., SINGAPORE",146]
[null,null,1,"ALPINE SHIPPING",1,"NAVIG8 CHEMICALS c/o NAVIG8 PTE LTD., SINGAPORE ",284]
[null,null,1,"ALPINE SHIPPING",1,"NAVIG8 CHEMICALS POOL INC c/o NAVIG8 PTE LTD., SINGAPORE ",298]
[null,null,1,"ALPINE SHIPPING",1,"NAVIG8 CHEMICALS POOL INC c/o NAVIG8 PTE LTD., SINGAPORE ",313]
[null,null,1,"ALPINE SHIPPING",1,"NAVIG8 CHEMICALS POOL INC, MAJURO, MARSHALL ISLANDS ",376]
[null,null,1,"ALPINE SHIPPING",1,"NAVIG8 POOL INC - LR8 c/o NAVIG8 PTE LTD., SINGAPORE",372]
[null,null,1,"ALPINE SHIPPING",1,"NAVIG8 POOL INC c/o NAVIG8 PTE LTD., SINGAPORE",233]
[null,null,1,"ALPINE SHIPPING",1,"NAVIGATOR GAS LONDON UK",203]
[null,null,1,"ALPINE SHIPPING",1,"NAVIOS SHIP MANAGEMENT INC.GREC",216]
[null,null,1,"ALPINE SHIPPING",1,"NAVOIL TRADING PTE LTD., SINGAPORE",316]
[null,null,1,"ALPINE SHIPPING",1,"NCC ODFJELL Chemical Tankers",282]
[null,null,1,"ALPINE SHIPPING",1,"NEPTUN ASSOCIATED",29]
[null,null,1,"ALPINE SHIPPING",1,"NEPTUNE MARINE SHIPPING CO. (KOREA)",63]
[null,null,1,"ALPINE SHIPPING",1,"NEW MARKET SHIPPING LTD CHINA",98]
[null,null,1,"ALPINE SHIPPING",1,"NG ASIA PTE. LTD.(SINGAPORE)",60]
[null,null,1,"ALPINE SHIPPING",1,"NGM ENERGY S.A, GREECE",411]
[null,null,1,"ALPINE SHIPPING",1,"NHL DEVELOPMENT CO LTD (SEOUL KOREA)",90]
[null,null,1,"ALPINE SHIPPING",1,"NOBLE CHARTERING",272]
[null,null,1,"ALPINE SHIPPING",1,"NOMA MARITIME LTD. (EGYPT)",64]
[null,null,1,"ALPINE SHIPPING",1,"NORDIC TANKERS MANAGEMENT A/S ( DENMARK )",248]
[null,null,1,"ALPINE SHIPPING",1,"NORDIC Tankers(USA) INC",283]
[null,null,1,"ALPINE SHIPPING",1,"NORGAS CARRIERS PRIVATE LIMITED, SINGAPORE",317]
[null,null,1,"ALPINE SHIPPING",1,"NORIENT PRODUCT POOL (CYPRUS)",154]
[null,null,1,"ALPINE SHIPPING",1,"NORIENT PRODUCT POOL APS, DENMARK",370]
[null,null,1,"ALPINE SHIPPING",1,"NORTHWIND BV, NETHERLANDS ",391]
[null,null,1,"ALPINE SHIPPING",1,"NOW-ARRIVAL SHIP (HK) CO. LTD., CHINA",380]
[null,null,1,"ALPINE SHIPPING",1,"OCEAN TANKERS PTE LTD., SINGAPORE",259]
[null,null,1,"ALPINE SHIPPING",1,"OCEANGAS SERVICES AUSTRALIA",121]
[null,null,1,"ALPINE SHIPPING",1,"ODFJELL ASIA PTE LTD SINGAPORE",107]
[null,null,1,"ALPINE SHIPPING",1,"ODFJELL SEACHEM A/S (NORWAY)",61]
[null,null,1,"ALPINE SHIPPING",1,"ODFJELL TANKERS A/S (NORWAY)",258]
[null,null,1,"ALPINE SHIPPING",1,"ODYSSEY MARTIME PTE LTD SINGAPORE",79]
[null,null,1,"ALPINE SHIPPING",1,"OLDENROFF GMBH & CO",215]
[null,null,1,"ALPINE SHIPPING",1,"OLYMPIC GULF TANKERS CO.LTD.GREECE",56]
[null,null,1,"ALPINE SHIPPING",1,"ORACLE TANKERS CHARTERING LTD UK",86]
[null,null,1,"ALPINE SHIPPING",1,"ORAM MARINE CO.LTD., SEOUL KOREA",159]
[null,null,1,"ALPINE SHIPPING",1,"ORAM TANKER LTD SEOUL KOREA",118]
[null,null,1,"ALPINE SHIPPING",1,"ORIENTAL SHIPPING & INVESTMENT LTD., HONG KONG",299]
[null,null,1,"ALPINE SHIPPING",1,"OSG SHIPMANAGEMENT LTD., ATHENS GREECE",244]
[null,null,1,"ALPINE SHIPPING",1,"PA OCAN SHIPPIG",23]
[null,null,1,"ALPINE SHIPPING",1,"PACIFIC INTERLINK SDN BHD., MALAYSIA",147]
[null,null,1,"ALPINE SHIPPING",1,"PACIFIC INTERNATIONAL( LINES(pte)",5]
[null,null,1,"ALPINE SHIPPING",1,"PACIFIC SHIP-MANAGERS SDN. BHD, SELANGOR, MALAYSIA",367]
[null,null,1,"ALPINE SHIPPING",1,"PALMALI SHIPPING SA, TURKEY",368]
[null,null,1,"ALPINE SHIPPING",1,"PAN ASIA MARINE (TANKERS) PTE LTD., (SINGAPORE)",249]
[null,null,1,"ALPINE SHIPPING",1,"PAN UNION AGENCY",199]
[null,null,1,"ALPINE SHIPPING",1,"PCL SHIPPING PTE LTD., SINGAPORE",160]
[null,null,1,"ALPINE SHIPPING",1,"PCL TANKERS PTE LTD., SINGAPORE",222]
[null,null,1,"ALPINE SHIPPING",1,"PELAGIC COMPANY LTD., COOK ISLANDS",416]
[null,null,1,"ALPINE SHIPPING",1,"PEROSEA SHIPPING CO (GREECE)",114]
[null,null,1,"ALPINE SHIPPING",1,"PETROCHEMICAL COMMERCIAL CO. TEHRAN IRAN",253]
[null,null,1,"ALPINE SHIPPING",1,"PHOENIX TANKERS PTE LTD., SINGAPORE",260]
[null,null,1,"ALPINE SHIPPING",1,"PIONEER TANKERS SHIPPING CORP GREECE",87]
[null,null,1,"ALPINE SHIPPING",1,"PREMUDA S.P.A.",278]
[null,null,1,"ALPINE SHIPPING",1,"PRICO SINGAPORE PTE LTD. SINGAPORE",39]
[null,null,1,"ALPINE SHIPPING",1,"PRIME COSMOS LIMITED HONGKONG",213]
[null,null,1,"ALPINE SHIPPING",1,"PRIME MARINE MANAGEMENT INC., ATHENS ( GREECE )",303]
[null,null,1,"ALPINE SHIPPING",1,"PRIME MARINE MANAGEMENT INC., ATHENS ( GREECE )",305]
[null,null,1,"ALPINE SHIPPING",1,"PROJECT SHIPPING INC GREECE",123]
[null,null,1,"ALPINE SHIPPING",1,"PROVINCE INVESTMENTS INC (GREECE)",91]
[null,null,1,"ALPINE SHIPPING",1,"PT.BERLIN LAJU TANKER INDONEIA",38]
[null,null,1,"ALPINE SHIPPING",1,"PT.TANUNACIPTA KENCANA INDONESIA",37]
[null,null,1,"ALPINE SHIPPING",1,"QC SHIPPING SDN BHD MALAYSIA",1]
[null,null,1,"ALPINE SHIPPING",1,"QUEENSWAY NAVIGATION CO.LTD., GREECE",144]
[null,null,1,"ALPINE SHIPPING",1,"RAFFES SHIP CHARTERING PTE LTD SINGAPORE",201]
[null,null,1,"ALPINE SHIPPING",1,"RAFFLES SHIP BROKERS PTE LTD (SINGAPORE)",155]
[null,null,1,"ALPINE SHIPPING",1,"RAFFLES SHIP MANAGEMENT SERVICES PTE LTD SINGAPORE",166]
[null,null,1,"ALPINE SHIPPING",1,"RAFFLES SHIPPING & INVESTMENT SINGAPORE",14]
[null,null,1,"ALPINE SHIPPING",1,"RAFFLES SHIPPING INTERNATIONAL PTE LTD., SINGAPORE",225]
[null,null,1,"ALPINE SHIPPING",1,"RASON CHINA LTD., HONG KONG",387]
[null,null,1,"ALPINE SHIPPING",1,"S5 AGENCY WORLD LTD., LONDON U.K.",395]
[null,null,1,"ALPINE SHIPPING",1,"S5 AGENCY WORLD LTD., MUMBAI INDAI",290]
[null,null,1,"ALPINE SHIPPING",1,"SALHUS SHIPPING A/S",276]
[null,null,1,"ALPINE SHIPPING",1,"SAMHO CO. LTD., SEOUL KOREA",406]
[null,null,1,"ALPINE SHIPPING",1,"SAMHO SHIPPING CO. LTD. SEOUL(KOREA)",69]
[null,null,1,"ALPINE SHIPPING",1,"SAMHO SHIPPING CO.LTD.SEOUL KOREA",76]
[null,null,1,"ALPINE SHIPPING",1,"SCORPIO MARINE MANAGEMENT INDIA (PVT) LTD., INDIA",209]
[null,null,1,"ALPINE SHIPPING",1,"SCORPIO MR POOL LTD C/O SCORPIO COMMERICAL MANAGEMENT SAM, I",396]
[null,null,1,"ALPINE SHIPPING",1,"SCORPIO PANAMAX TANKER POOL LTD C/O SCORPIO COMMERICAL MANAG",314]
[null,null,1,"ALPINE SHIPPING",1,"SEA ADVENTURE MARITIME INC., GREECE",161]
[null,null,1,"ALPINE SHIPPING",1,"SEARIGHTS MARITIME SERVICES PTE LTD., SINGAPORE",168]
[null,null,1,"ALPINE SHIPPING",1,"SEAWELL MARINE PTD LTD SIGNAPORE",51]
[null,null,1,"ALPINE SHIPPING",1,"SEAWELL MARINE PVT LTD. SINGAPORE",71]
[null,null,1,"ALPINE SHIPPING",1,"SEAWORLD MANAGEMENT & TRADING INC., GREECE",236]
[null,null,1,"ALPINE SHIPPING",1,"SEKWANG SHIPPING CO LTD. (SEOUL KOREA)",115]
[null,null,1,"ALPINE SHIPPING",1,"SEKWANG SHIPPING CO.LTD.KOREA",77]
[null,null,1,"ALPINE SHIPPING",1,"SEMUA SHIPPING SDH BDH,",340]
[null,null,1,"ALPINE SHIPPING",1,"SENA SHIPPING CO.LTD., (SEOUL KOREA)",210]
[null,null,1,"ALPINE SHIPPING",1,"SERROMAH SHIPPING BV NETHERLAND",122]
[null,null,1,"ALPINE SHIPPING",1,"SH MARINE CO LTD.",67]
[null,null,1,"ALPINE SHIPPING",1,"SH MARINE LTD SEOUL KOREA",92]
[null,null,1,"ALPINE SHIPPING",1,"SHANGHAI DINGHENG SHIPPING CO.LTD",268]
[null,null,1,"ALPINE SHIPPING",1,"SHANGHAI HUITONG SHIPPING CO. LTD.,",356]
[null,null,1,"ALPINE SHIPPING",1,"SHANGHAI XUANRUN SHIPPING CO. LTD., CHINA",381]
[null,null,1,"ALPINE SHIPPING",1,"SHIPPING CORPORATION OF INDIA",124]
[null,null,1,"ALPINE SHIPPING",1,"SHV GAS SUPPLY & RISK MANAGEMENT,SINGAPORE",208]
[null,null,1,"ALPINE SHIPPING",1,"SIGMA TANKERS INC.",277]
[null,null,1,"ALPINE SHIPPING",1,"SIME DARBY FUTURES SDN. BHD, MALAYSIA",377]
[null,null,1,"ALPINE SHIPPING",1,"SINOCHEM SHIPPING CO LTD (CHINA)",108]
[null,null,1,"ALPINE SHIPPING",1,"SIRIUS SHIPMANAGEMENT LTD c/o ORACLE TANKER. UK",143]
[null,null,1,"ALPINE SHIPPING",1,"SIVA BOCIMAR CHEMICAL PTE LTD., ( SINGAPORE )",301]
[null,null,1,"ALPINE SHIPPING",1,"SK SHIPPING PTE LTD SINGAPORE",53]
[null,null,1,"ALPINE SHIPPING",1,"SM LITO MARINE PTE SIGAPORE",54]
[null,null,1,"ALPINE SHIPPING",1,"SOECHI LINES, ( INDONESIA )",302]
[null,null,1,"ALPINE SHIPPING",1,"SOJITZ CORPORATION",119]
[null,null,1,"ALPINE SHIPPING",1,"SPI MARINE (ASIA) PTE LTD., SINGAPORE",291]
[null,null,1,"ALPINE SHIPPING",1,"SPRING FIELD SHIPPING CO",125]
[null,null,1,"ALPINE SHIPPING",1,"ST SHIPPING",205]
[null,null,1,"ALPINE SHIPPING",1,"ST SHIPPING AND TRANSPORT PTE LTD., LONDON UK",357]
[null,null,1,"ALPINE SHIPPING",1,"ST SHIPPING AND TRANSPORT PTE LTD., SINGAPORE",330]
[null,null,1,"ALPINE SHIPPING",1,"STAR TANKERS INC",279]
[null,null,1,"ALPINE SHIPPING",1,"STO CHARTERING KOREA CORP ( STOCK CORP ), SEOUL KOREA",397]
[null,null,1,"ALPINE SHIPPING",1,"STOLT TANKERS B.V, NORWALK, USA",382]
[null,null,1,"ALPINE SHIPPING",1,"STOLT TANKERS B.V. (NETHERLANDS)",164]
[null,null,1,"ALPINE SHIPPING",1,"STRAITS TANKERS PTE LTD.",280]
[null,null,1,"ALPINE SHIPPING",1,"STX PAN OCEAN SHIPPING CO. LTD (KOREA)",72]
[null,null,1,"ALPINE SHIPPING",1,"STX PAN OCEAN SHIPPING CO.LTD.KOREA",57]
[null,null,1,"ALPINE SHIPPING",1,"STX PANOCEAN CO. LTD. ( SEOUL KOREA )",308]
[null,null,1,"ALPINE SHIPPING",1,"STX PANOCEAN SINGAPORE PTE LTD., SINGAPORE",140]
[null,null,1,"ALPINE SHIPPING",1,"SU NAVIGATION PTE LTD SINGAPORE",93]
[null,null,1,"ALPINE SHIPPING",1,"SU NAVIGATYION PTD. LTD.SINGAPORE",73]
[null,null,1,"ALPINE SHIPPING",1,"SUMMIT MARITIME",24]
[null,null,1,"ALPINE SHIPPING",1,"SUNWOO MERCVHANT MARINE CO.LTD.KOREA",80]
[null,null,1,"ALPINE SHIPPING",1,"SUNWOO TANKER CO.LTD., SEOUL KOREA",219]
[null,null,1,"ALPINE SHIPPING",1,"TAIYO OIL COMPANY",180]
[null,null,1,"ALPINE SHIPPING",1,"TAIZHOU WANZHOU SHIPPING CO. LTD., CHINA",332]
[null,null,1,"ALPINE SHIPPING",1,"TANKER PACIFIC MANAGEMENT5",181]
[null,null,1,"ALPINE SHIPPING",1,"TELTRO MARINE INC C/O FORDICO SHIPPING KAUALAMPUR",116]
[null,null,1,"ALPINE SHIPPING",1,"TELTRO MARINE INC. KAULAMPUR",117]
[null,null,1,"ALPINE SHIPPING",1,"THAI MARINE TANKER CO LTD.",126]
[null,null,1,"ALPINE SHIPPING",1,"TITA OCEAN PTE",25]
[null,null,1,"ALPINE SHIPPING",1,"TOKYO MARINE ASIA PTE LTD. SINGAPORE",323]
[null,null,1,"ALPINE SHIPPING",1,"TOKYO MARINE CO JAPAN",15]
[null,null,1,"ALPINE SHIPPING",1,"TOREACH MARINE PTE LTD",270]
[null,null,1,"ALPINE SHIPPING",1,"TORM A/S - LR1 TANKERS. COPENHAGEN DENMARK",295]
[null,null,1,"ALPINE SHIPPING",1,"TORM A/S. COPENHAGEN DENMARK",300]
[null,null,1,"ALPINE SHIPPING",1,"TPL SHIPPING TRADING JSC. VIETNAM",360]
[null,null,1,"ALPINE SHIPPING",1,"TRAFIGURA BEHEER BV",127]
[null,null,1,"ALPINE SHIPPING",1,"TRAFIGURA MARITIME LOGISTICS PTE LTD C/O TRAFIGURA MARITIME ",398]
[null,null,1,"ALPINE SHIPPING",1,"TRAFIGURA MARTIME LOGISTICS PTE LTD.,",350]
[null,null,1,"ALPINE SHIPPING",1,"TRAFIGURA PTE LTD., SINGAPORE",351]
[null,null,1,"ALPINE SHIPPING",1,"TRANS KA TANKERS MANGT",3]
[null,null,1,"ALPINE SHIPPING",1,"TRUTOIL TANKER S.A. ATHENS",192]
[null,null,1,"ALPINE SHIPPING",1,"TUNE CHEMICAL TANKERS B.V, NETHERLAND",361]
[null,null,1,"ALPINE SHIPPING",1,"UNIGAS INTERNATIONAL BV., NETHERLAND",206]
[null,null,1,"ALPINE SHIPPING",1,"UNIGAS INTERNATIONAL LIMITED, HONG KONG",285]
[null,null,1,"ALPINE SHIPPING",1,"UNITED ARAB CHEMICAL CARRIERS LTD., DUBAI UAE",245]
[null,null,1,"ALPINE SHIPPING",1,"UPT UNITED TANKERS LTD, LIMASSOL, CYPRUS",412]
[null,null,1,"ALPINE SHIPPING",1,"UYENO TRANSTECH SINGAPORE LTD., (SINGAPORE)",263]
[null,null,1,"ALPINE SHIPPING",1,"V.SHIPS MONACO SAM ., MONACO",204]
[null,null,1,"ALPINE SHIPPING",1,"VASCO SHIPMANAGEMENT S.A., GREECE",175]
[null,null,1,"ALPINE SHIPPING",1,"VBG SHIPPING & TRADING CO. ISTANBUL TURKEY",112]
[null,null,1,"ALPINE SHIPPING",1,"VICTORIA NAVIGATION (CYPRUS)",250]
[null,null,1,"ALPINE SHIPPING",1,"VIK TRADERS PTE .TD SINGAPORE",50]
[null,null,1,"ALPINE SHIPPING",1,"VIKTORIA SHIPPING CO.,LATVIA",198]
[null,null,1,"ALPINE SHIPPING",1,"VITOL S.A. SWITZERLAND",369]
[null,null,1,"ALPINE SHIPPING",1,"VITOL S.A.(SINGAPORE)",99]
[null,null,1,"ALPINE SHIPPING",1,"VITOL SERVICES LTD. ( U.K.)",100]
[null,null,1,"ALPINE SHIPPING",1,"VITTORIO BOGAZZI & FIGLI S.P.A, ITALY ",392]
[null,null,1,"ALPINE SHIPPING",1,"VSEA INTERNAIONAL SHIPPING ( HONGKONG ) LTD., HONGKONG",399]
[null,null,1,"ALPINE SHIPPING",1,"WAM SINGAPORE",187]
[null,null,1,"ALPINE SHIPPING",1,"WARM SEAS SHARJA UAE",191]
[null,null,1,"ALPINE SHIPPING",1,"WHITE PEARL HOLDING S.A. c/o DELFI S.A., GREECE",176]
[null,null,1,"ALPINE SHIPPING",1,"WO MARINE",190]
[null,null,1,"ALPINE SHIPPING",1,"W-O MARINE PTE LTD., SINGAPORE",251]
[null,null,1,"ALPINE SHIPPING",1,"WO MARITIME",189]
[null,null,1,"ALPINE SHIPPING",1,"WOMAR LOGESTIC",188]
[null,null,1,"ALPINE SHIPPING",1,"WOMAR LOGISTICS PTE LTD., SINGAPORE",226]
[null,null,1,"ALPINE SHIPPING",1,"WORLD TANKERS MANAGEMENT PTE LTD SINGAPORE",214]
[null,null,1,"ALPINE SHIPPING",1,"YOUNGCHANG ENTERPRISE CO.LTD., SEOUL KOREA",228]
[null,null,1,"ALPINE SHIPPING",1,"ZEN SHIPPING, INDIA",402]
[null,null,1,"ALPINE SHIPPING",1,"ZODIAC MARITIME AGENCIE U.K",40]
[null,null,1,"ALPINE SHIPPING",1,"ZODIAC MARITIME AGENCIES LTD., LONDON U.K",371]
[null,null,382,"Ami Pakistan (Pvt) Ltd (Reg. No. SA-528)",382,"No Principal available",0]
[null,null,183,"Ample Shipping & Logistics Services (Reg. No. SA-594)",183,"No Principal available",0]
[null,null,401,"AMZ Logistics (Reg. No. SA-553)",401,"No Principal available",0]
[null,null,173,"Anchor Logistics (Pvt.) Ltd (Reg. No. SA-676)",173,"EMIRATES SHIPPING LINE LIMITED",1]
[null,null,2,"ANCHOR SHIPPING & TRADING",2,"APL PAKISTAN LTD",2]
[null,null,2,"ANCHOR SHIPPING & TRADING",2,"CHEMICAL SEAWAYS",22]
[null,null,2,"ANCHOR SHIPPING & TRADING",2,"Credo shipping Ptd Ltd Singapore",21]
[null,null,2,"ANCHOR SHIPPING & TRADING",2,"DAITOH TRADING CO LTD.",18]
[null,null,2,"ANCHOR SHIPPING & TRADING",2,"DREAM LIMITED",14]
[null,null,2,"ANCHOR SHIPPING & TRADING",2,"EMIRATES SHIPPING LINE FZE DUBAI UAE",15]
[null,null,2,"ANCHOR SHIPPING & TRADING",2,"GABES MARINE TANKER",20]
[null,null,2,"ANCHOR SHIPPING & TRADING",2,"INCHCAPE SHIPPING SERVICES LTD",16]
[null,null,2,"ANCHOR SHIPPING & TRADING",2,"LLOYD TRIESTINO SPA TRIESTE ITALY",1]
[null,null,2,"ANCHOR SHIPPING & TRADING",2,"M/S ITALIA MARITIMA SPA TRIESTE ITALY",10]
[null,null,2,"ANCHOR SHIPPING & TRADING",2,"M/S MUR SHIPPING HOLDINGS BV.",9]
[null,null,2,"ANCHOR SHIPPING & TRADING",2,"M/S Stolk Tanker Inc.",8]
[null,null,2,"ANCHOR SHIPPING & TRADING",2,"M/S UNIMAR SUCCESS SA PANAMA",11]
[null,null,2,"ANCHOR SHIPPING & TRADING",2,"M/S. GOOD FAITH SHIPPING CO. SA",7]
[null,null,2,"ANCHOR SHIPPING & TRADING",2,"M/s.ANCHOR LINE U.K",6]
[null,null,2,"ANCHOR SHIPPING & TRADING",2,"M/S.DORVAL SHIPPING LTD U.K",4]
[null,null,2,"ANCHOR SHIPPING & TRADING",2,"M/S.TRANS TANK SHIPPING CO. SEA OIL U.S.A",5]
[null,null,2,"ANCHOR SHIPPING & TRADING",2,"MARUBA S.C.A ARGENTINA",13]
[null,null,2,"ANCHOR SHIPPING & TRADING",2,"MARUBA S.C.A. ARGENTINA",17]
[null,null,2,"ANCHOR SHIPPING & TRADING",2,"TRADHOL INTERNATIONAL ,S.A.",19]
[null,null,2,"ANCHOR SHIPPING & TRADING",2,"Trinnity Navigation Ltd.",12]
[null,null,2,"ANCHOR SHIPPING & TRADING",2,"WESTERLAND",3]
[null,null,299,"APL Agencies (Pvt) Ltd(Reg No. SA-277)",299,"No Principal available",0]
[null,null,3,"APL PAKISTAN PVT. LTD.",3,"APL PAKISTAN (PVT) LTD",1]
[null,null,3,"APL PAKISTAN PVT. LTD.",3,"WESTRERLAND",2]
[null,null,4,"AQUA MARITIME PVT LTD",4,"No Principal available",0]
[null,null,334,"Aquatic Shipping & Trading Co. (Reg. No. SA-448)",334,"No Principal available",0]
[null,null,301,"Arabian Marine Services (Pvt) Ltd(Reg. no. SA-308)",301,"No Principal available",0]
[null,null,371,"Aries Logistics (Pvt) Ltd (Reg. No. SA-505)",371,"No Principal available",0]
[null,null,211,"Arsal Shipping & Trading (Reg. No. SA-638)",211,"No Principal available",0]
[null,null,233,"Arumz Shipping (Reg. No. SA-662)",233,"No Principal available",0]
[null,null,5,"ASIA MARINE PVT LTD",5,"A.B.MARITIME INC.",45]
[null,null,5,"ASIA MARINE PVT LTD",5,"AGRICO TRADE & FINANCE ",59]
[null,null,5,"ASIA MARINE PVT LTD",5,"ALBAMAR SHIPPING , GREECE",1]
[null,null,5,"ASIA MARINE PVT LTD",5,"ALLIED MARITIME INC.",35]
[null,null,5,"ASIA MARINE PVT LTD",5,"AM NAMKOS TRANSWORLD MAR",92]
[null,null,5,"ASIA MARINE PVT LTD",5,"APOLONIA LINES",55]
[null,null,5,"ASIA MARINE PVT LTD",5,"AQUAVITA INTERNATIONAL S.A. SWETZERLAND",115]
[null,null,5,"ASIA MARINE PVT LTD",5,"Aries Shipping Co. Ltd . Seol Korea",109]
[null,null,5,"ASIA MARINE PVT LTD",5,"Atlantique Transport & Offshore Services SAS (ATOS )",118]
[null,null,5,"ASIA MARINE PVT LTD",5,"BBC CHARTERING & LOGESTIC ",54]
[null,null,5,"ASIA MARINE PVT LTD",5,"BENEFIT TRANSPORT SA",100]
[null,null,5,"ASIA MARINE PVT LTD",5,"BOTAMU BAU ,G,T SERVICE AUSTRALIA",90]
[null,null,5,"ASIA MARINE PVT LTD",5,"BOTANY BAY SHIPPING PTY LTD.",43]
[null,null,5,"ASIA MARINE PVT LTD",5,"CARGIL OCEAN TRANSPORT",102]
[null,null,5,"ASIA MARINE PVT LTD",5,"CEMRE SHIPPING & TRADING",2]
[null,null,5,"ASIA MARINE PVT LTD",5,"CHARTWORLD SHIPPING",3]
[null,null,5,"ASIA MARINE PVT LTD",5,"CLIPPER ELITE CARRIERS LTD.",58]
[null,null,5,"ASIA MARINE PVT LTD",5,"COMMON PROGRESS",4]
[null,null,5,"ASIA MARINE PVT LTD",5,"CONCORDIA AGRI TRADING PTE LTD.",41]
[null,null,5,"ASIA MARINE PVT LTD",5,"COSCO SAEED KARACHI",36]
[null,null,5,"ASIA MARINE PVT LTD",5,"COSCO SHIPPING CO. LTD. CHINA",114]
[null,null,5,"ASIA MARINE PVT LTD",5,"COWSJEE & CO",5]
[null,null,5,"ASIA MARINE PVT LTD",5,"DA DESK FZE",87]
[null,null,5,"ASIA MARINE PVT LTD",5,"DANAOS SHIPPING CO LTD",71]
[null,null,5,"ASIA MARINE PVT LTD",5,"DEXACOM LTD",106]
[null,null,5,"ASIA MARINE PVT LTD",5,"E.P.T.S(SINGAPORE)PTE LTD.",50]
[null,null,5,"ASIA MARINE PVT LTD",5,"EAST MARINE GROUP",6]
[null,null,5,"ASIA MARINE PVT LTD",5,"ERTS SINGAPORE",7]
[null,null,5,"ASIA MARINE PVT LTD",5,"Fargo Freight GmbH",81]
[null,null,5,"ASIA MARINE PVT LTD",5,"FIVE SEAS SHIPPING",68]
[null,null,5,"ASIA MARINE PVT LTD",5,"FOREVER MARITIME/SEA PIONEER LTD U.K",85]
[null,null,5,"ASIA MARINE PVT LTD",5,"GEODIS OVERASEAS FRANCE",61]
[null,null,5,"ASIA MARINE PVT LTD",5,"HARBOUR SERVICES",8]
[null,null,5,"ASIA MARINE PVT LTD",5,"HARBOUR SERVICES SHADAB PTY LTD AUSTRALIA",89]
[null,null,5,"ASIA MARINE PVT LTD",5,"HARMONY SHIPPING",9]
[null,null,5,"ASIA MARINE PVT LTD",5,"HARMONY SHIUPPING",51]
[null,null,5,"ASIA MARINE PVT LTD",5,"HEGGE & COY",10]
[null,null,5,"ASIA MARINE PVT LTD",5,"HENGXIN SHIPG CO LTD / ERIKA SHIPPING - CHINA",120]
[null,null,5,"ASIA MARINE PVT LTD",5,"HONG GLORY SHIPPING CO LTD HONG KONG",119]
[null,null,5,"ASIA MARINE PVT LTD",5,"Hong Union Shipping Ltd , China",110]
[null,null,5,"ASIA MARINE PVT LTD",5,"HONG WOO SHIP MANGT LTD.",67]
[null,null,5,"ASIA MARINE PVT LTD",5,"HUDSON SHIPPING",97]
[null,null,5,"ASIA MARINE PVT LTD",5,"I.M MARINE SERVICES",11]
[null,null,5,"ASIA MARINE PVT LTD",5,"INCHAPE SHIPPING SERVICES",38]
[null,null,5,"ASIA MARINE PVT LTD",5,"INCOR CHARTERING",82]
[null,null,5,"ASIA MARINE PVT LTD",5,"Incorporated Shipg services",79]
[null,null,5,"ASIA MARINE PVT LTD",5,"INTEROCEAN SERVICES",12]
[null,null,5,"ASIA MARINE PVT LTD",5,"ITIRO CORPOATION - SWETZERLAND",116]
[null,null,5,"ASIA MARINE PVT LTD",5,"J STAR SHIPPING CO., LTD, SEOUL KOREA",121]
[null,null,5,"ASIA MARINE PVT LTD",5,"JHON C. HADJIPATERAS & SONS LTD. U.K",49]
[null,null,5,"ASIA MARINE PVT LTD",5,"Jinsu Shipping sel - Seoul Korea.",117]
[null,null,5,"ASIA MARINE PVT LTD",5,"JORDAN PORT AGENCIES SINGAPORE",99]
[null,null,5,"ASIA MARINE PVT LTD",5,"K LINE - KAWASAKI KISEN KAISHA LTD. JAPAN",107]
[null,null,5,"ASIA MARINE PVT LTD",5,"Karan/Thoresen Shipping",80]
[null,null,5,"ASIA MARINE PVT LTD",5,"KIRTRANS DENIZCILIL",105]
[null,null,5,"ASIA MARINE PVT LTD",5,"KORIA LINE SHIPPING",13]
[null,null,5,"ASIA MARINE PVT LTD",5,"M T MANAGEMENT CORP.",63]
[null,null,5,"ASIA MARINE PVT LTD",5,"M.T. MARITIME MANAGEMENT",14]
[null,null,5,"ASIA MARINE PVT LTD",5,"MAESTRA SHIPPING",96]
[null,null,5,"ASIA MARINE PVT LTD",5,"MARIMED SHIPPING LONDON",75]
[null,null,5,"ASIA MARINE PVT LTD",5,"MARIS SHIPPING OVERSEAS",98]
[null,null,5,"ASIA MARINE PVT LTD",5,"Nanjing Ocean Shipping Co. Ltd China",112]
[null,null,5,"ASIA MARINE PVT LTD",5,"Navalmar UK Ltd. Shanghai China",111]
[null,null,5,"ASIA MARINE PVT LTD",5,"NFAR EAST MARINE GROUP CHINA",47]
[null,null,5,"ASIA MARINE PVT LTD",5,"NOBEL CHARTERING ",62]
[null,null,5,"ASIA MARINE PVT LTD",5,"NOVA SHIPPING",15]
[null,null,5,"ASIA MARINE PVT LTD",5,"OCEAN FREIGHTERS LTD.",44]
[null,null,5,"ASIA MARINE PVT LTD",5,"OCEAN SERVICES",16]
[null,null,5,"ASIA MARINE PVT LTD",5,"OLAM INTERNATIONAL LTD",103]
[null,null,5,"ASIA MARINE PVT LTD",5,"OLDENDROFF GMBH & CO. GEREMANY",93]
[null,null,5,"ASIA MARINE PVT LTD",5,"OLDENDROFF GMBH & CO. GREECE",94]
[null,null,5,"ASIA MARINE PVT LTD",5,"OLDENDROFF GMBH & CO. SINGAPORE",95]
[null,null,5,"ASIA MARINE PVT LTD",5,"PALMYRA TRISIS TIME",17]
[null,null,5,"ASIA MARINE PVT LTD",5,"PAN OCEAN SHIPPING CO. LTD",40]
[null,null,5,"ASIA MARINE PVT LTD",5,"POLARIS SHIPPING CO. LTD, SEOUL KOREA",122]
[null,null,5,"ASIA MARINE PVT LTD",5,"POLEMBROS SHIPPING",18]
[null,null,5,"ASIA MARINE PVT LTD",5,"PRODGAMA GERAIN LTD",86]
[null,null,5,"ASIA MARINE PVT LTD",5,"PROLINE LTD. 7 CO.GMBH",33]
[null,null,5,"ASIA MARINE PVT LTD",5,"RABAN ALSAFINA SEA SHIPPING DUBAI",70]
[null,null,5,"ASIA MARINE PVT LTD",5,"RAVEEN &CRAFT SHIPPING",19]
[null,null,5,"ASIA MARINE PVT LTD",5,"RBC PROJECT CARRIERS USA",83]
[null,null,5,"ASIA MARINE PVT LTD",5,"SCAN TRANS CHARTERING",53]
[null,null,5,"ASIA MARINE PVT LTD",5,"SCHIFFAHRTSGESELLSCHAFL",20]
[null,null,5,"ASIA MARINE PVT LTD",5,"Sea Soveregnty Shipmanagement Ltd, Cyprus, c/o. Amna Marine ",108]
[null,null,5,"ASIA MARINE PVT LTD",5,"SEABOARD OVERSEAS TRADING & SHIPPKING",34]
[null,null,5,"ASIA MARINE PVT LTD",5,"Sealed Overseas Trading & Shipping (Pvt) Ltd.",57]
[null,null,5,"ASIA MARINE PVT LTD",5,"SEANOW SHIPPING",21]
[null,null,5,"ASIA MARINE PVT LTD",5,"SEATRADERS S.A",104]
[null,null,5,"ASIA MARINE PVT LTD",5,"SHELL COAL",22]
[null,null,5,"ASIA MARINE PVT LTD",5,"SINOTRANS CANADA INC",73]
[null,null,5,"ASIA MARINE PVT LTD",5,"SKR SHIPPING PVT LIMITED",101]
[null,null,5,"ASIA MARINE PVT LTD",5,"Sokana Chartering Inc.",77]
[null,null,5,"ASIA MARINE PVT LTD",5,"SOUFFLET NEGOCE",65]
[null,null,5,"ASIA MARINE PVT LTD",5,"STALT NELSON INC.",23]
[null,null,5,"ASIA MARINE PVT LTD",5,"STALT NELSON SINGAPORE",24]
[null,null,5,"ASIA MARINE PVT LTD",5,"STALT NELSON TRANSPORTATION",25]
[null,null,5,"ASIA MARINE PVT LTD",5,"STX Panocean Co. Ltd. south Korea",76]
[null,null,5,"ASIA MARINE PVT LTD",5,"SUEMIR SHIPPING",26]
[null,null,5,"ASIA MARINE PVT LTD",5,"SUFFLET NEGOCE",60]
[null,null,5,"ASIA MARINE PVT LTD",5,"TATSUMI MARINE(S)PTE LTD.",52]
[null,null,5,"ASIA MARINE PVT LTD",5,"THORCO SHIPPING ",88]
[null,null,5,"ASIA MARINE PVT LTD",5,"TMT BULK CO LTD TAIWAN",72]
[null,null,5,"ASIA MARINE PVT LTD",5,"TOKO KAIUN KAISHA LTD.",37]
[null,null,5,"ASIA MARINE PVT LTD",5,"TORM ASIA",27]
[null,null,5,"ASIA MARINE PVT LTD",5,"TRANSCOM MARINE PTE LTD SINGAPOR",48]
[null,null,5,"ASIA MARINE PVT LTD",5,"TRANSCOM SHIPPING LTD",46]
[null,null,5,"ASIA MARINE PVT LTD",5,"Transgrain Shipping Pte. Ltd",78]
[null,null,5,"ASIA MARINE PVT LTD",5,"TSL SHIPPING PTE LTD",74]
[null,null,5,"ASIA MARINE PVT LTD",5,"TYLER CHARTERINGUKLTD.",39]
[null,null,5,"ASIA MARINE PVT LTD",5,"UKCHARTER",28]
[null,null,5,"ASIA MARINE PVT LTD",5,"UMC CARGO LINE",29]
[null,null,5,"ASIA MARINE PVT LTD",5,"UNIBULK CO LTD.",42]
[null,null,5,"ASIA MARINE PVT LTD",5,"UNIVERSAL NAVIGATION PVT LTD",91]
[null,null,5,"ASIA MARINE PVT LTD",5,"V SHIPS",30]
[null,null,5,"ASIA MARINE PVT LTD",5,"VERMICOS MARITIME",31]
[null,null,5,"ASIA MARINE PVT LTD",5,"VICTORIA OCEAN WAY LTD.",84]
[null,null,5,"ASIA MARINE PVT LTD",5,"VILLA DENIZCILIK SANAYI",56]
[null,null,5,"ASIA MARINE PVT LTD",5,"Vinashin Ocean Shipping Co. Ltd. Vietnam",113]
[null,null,5,"ASIA MARINE PVT LTD",5,"WILSON INTERNATIONAL TRADING PVT LTD",66]
[null,null,5,"ASIA MARINE PVT LTD",5,"WINCO MARITIME U.K",69]
[null,null,5,"ASIA MARINE PVT LTD",5,"ZODIAC MARITIME AGENCIES",64]
[null,null,5,"ASIA MARINE PVT LTD",5,"ZOLTAC MARITIME",32]
[null,null,6,"ASIA TRADE AND TRANSPORTATION",6,". ALPINA SHIPPING AGENCIESDENMARK",38]
[null,null,6,"ASIA TRADE AND TRANSPORTATION",6,"AEGEAN SHIPPING MANAGEMENT GREECE",31]
[null,null,6,"ASIA TRADE AND TRANSPORTATION",6,"AET TANKERS PTE. Ltd SINGAPORE",37]
[null,null,6,"ASIA TRADE AND TRANSPORTATION",6,"AK SHIPPING AND TRAQDING INC GREECE",32]
[null,null,6,"ASIA TRADE AND TRANSPORTATION",6,"AVIN INTERNATIONAL SA GREECE",12]
[null,null,6,"ASIA TRADE AND TRANSPORTATION",6,"BLAZE SA GREECE",16]
[null,null,6,"ASIA TRADE AND TRANSPORTATION",6,"CENTROFIN MANAGEMENT",27]
[null,null,6,"ASIA TRADE AND TRANSPORTATION",6,"CENTROFIN MANAGEMENT INC.",26]
[null,null,6,"ASIA TRADE AND TRANSPORTATION",6,"CHANDRIS HALLAS,PIREOUS GREECE",7]
[null,null,6,"ASIA TRADE AND TRANSPORTATION",6,"DONGNAMA SHIPPING CO. SEOUL KOREA",3]
[null,null,6,"ASIA TRADE AND TRANSPORTATION",6,"DYNACOM TANKERS MANAGEMENT,PIREOUS GREECE",4]
[null,null,6,"ASIA TRADE AND TRANSPORTATION",6,"EMBLE SHIPPING CO",1]
[null,null,6,"ASIA TRADE AND TRANSPORTATION",6,"ESTORIL NAVIGATION LTD GREECE",11]
[null,null,6,"ASIA TRADE AND TRANSPORTATION",6,"EURO TANKARS INCORPORATION GREECE",18]
[null,null,6,"ASIA TRADE AND TRANSPORTATION",6,"FAIRDEAL MANAGEMENT SA KABLA SHARGAH UAE",10]
[null,null,6,"ASIA TRADE AND TRANSPORTATION",6,"GENERAL MARITIME MANAG. , PIREOUS GREECE",6]
[null,null,6,"ASIA TRADE AND TRANSPORTATION",6,"HANJIN CORPORATION SOUTH KOREA",36]
[null,null,6,"ASIA TRADE AND TRANSPORTATION",6,"HANJIN TRANSPORTATION CO.LTD",25]
[null,null,6,"ASIA TRADE AND TRANSPORTATION",6,"INTERNATIONAL LABOUR & SERVICES",42]
[null,null,6,"ASIA TRADE AND TRANSPORTATION",6,"JHRE DAHL BERGESEN U.S.A",23]
[null,null,6,"ASIA TRADE AND TRANSPORTATION",6,"KEY TRADE SWITZERLAND AG",52]
[null,null,6,"ASIA TRADE AND TRANSPORTATION",6,"KOOKYANGSHIPPING CO.",28]
[null,null,6,"ASIA TRADE AND TRANSPORTATION",6,"K-WORLD LINE SOUTH KOREA",35]
[null,null,6,"ASIA TRADE AND TRANSPORTATION",6,"LMZ TRANSOIL SHIPPING ENTER SA ,ATHENS GREECE",5]
[null,null,6,"ASIA TRADE AND TRANSPORTATION",6,"LOUISDERYFUS COMMODITIES SWITZERLAND",30]
[null,null,6,"ASIA TRADE AND TRANSPORTATION",6,"M/S MISUI O.S.K. LINES",34]
[null,null,6,"ASIA TRADE AND TRANSPORTATION",6,"M/S. SENAT SHIPPING SINGAPORE. SINGAPORE",45]
[null,null,6,"ASIA TRADE AND TRANSPORTATION",6,"M/S. SHEHDAH MARINE CO, GREECE",47]
[null,null,6,"ASIA TRADE AND TRANSPORTATION",6,"M/S. SILVIA SHIPMANAGEMENT (S) PTE LTD",48]
[null,null,6,"ASIA TRADE AND TRANSPORTATION",6,"M/S. STL GLOBAL CO, LTD. KOREA",46]
[null,null,6,"ASIA TRADE AND TRANSPORTATION",6,"M/S.SONO SHIPPING LLC",51]
[null,null,6,"ASIA TRADE AND TRANSPORTATION",6,"MAREF SHIPPING LTD GREECE",17]
[null,null,6,"ASIA TRADE AND TRANSPORTATION",6,"MERCATOR LINES LIMITED, INDIA",39]
[null,null,6,"ASIA TRADE AND TRANSPORTATION",6,"PACIFIC LLOYD LTD MALTA",19]
[null,null,6,"ASIA TRADE AND TRANSPORTATION",6,"PARLOS MARITIME CORP. SA, PIREUS GREECE",8]
[null,null,6,"ASIA TRADE AND TRANSPORTATION",6,"PRINCESS K SHIPPING CO, ST. VENCENT",44]
[null,null,6,"ASIA TRADE AND TRANSPORTATION",6,"PROMINENT SHIPPING (PVT) LTD",22]
[null,null,6,"ASIA TRADE AND TRANSPORTATION",6,"QATAR SHIPPING CO DOHA QATAR",13]
[null,null,6,"ASIA TRADE AND TRANSPORTATION",6,"QUEENSWAY NAVIGATION CO. LTD, GREECE",9]
[null,null,6,"ASIA TRADE AND TRANSPORTATION",6,"SABA SHIPPING INTERNATIONAL LLC",24]
[null,null,6,"ASIA TRADE AND TRANSPORTATION",6,"SAMSUN LOGIX CORPORATION",50]
[null,null,6,"ASIA TRADE AND TRANSPORTATION",6,"SANKO STEMSHIP JAPAN",40]
[null,null,6,"ASIA TRADE AND TRANSPORTATION",6,"sega line shipping ltd ",53]
[null,null,6,"ASIA TRADE AND TRANSPORTATION",6,"SIMATECH SHIPPING & FORWARDING LLC DUBAI",15]
[null,null,6,"ASIA TRADE AND TRANSPORTATION",6,"SIVER MARITIME",49]
[null,null,6,"ASIA TRADE AND TRANSPORTATION",6,"ST SHIPPING & TRANSPORT INC.",21]
[null,null,6,"ASIA TRADE AND TRANSPORTATION",6,"STEVA SHIPPING LTD MALTA",14]
[null,null,6,"ASIA TRADE AND TRANSPORTATION",6,"THE SHIPPING CORP OF INDIA LTD.",29]
[null,null,6,"ASIA TRADE AND TRANSPORTATION",6,"TRAFIGURA BEHEER BV. ATHESS GREECE",43]
[null,null,6,"ASIA TRADE AND TRANSPORTATION",6,"V SHIP SWITZERLAND SA",33]
[null,null,6,"ASIA TRADE AND TRANSPORTATION",6,"WISDOM MARINE LINES",41]
[null,null,6,"ASIA TRADE AND TRANSPORTATION",6,"WORLD TANKAR MANG GREECE",20]
[null,null,7,"ASIATIC SHIPPING AGENCIES",7,"MITSUI O. S K LINES LTD",1]
[null,null,8,"ASSOCIATED LINER AGENCY",8,"ASIA LINK SHIPPING",1]
[null,null,8,"ASSOCIATED LINER AGENCY",8,"No Principal available",0]
[null,null,250,"Atsa Logistics (Pvt) Ltd (Reg. No. SA-689)",250,"No Principal available",0]
[null,null,419,"Austin International (Pvt) Ltd (Reg. No. SA-577)",419,"No Principal available",0]
[null,null,390,"Aventis International (Reg. No. SA-537)",390,"No Principal available",0]
[null,null,364,"Awan International (Reg. No. SA-496)",364,"No Principal available",0]
[null,null,217,"Awan Maritime Agencies (Reg. No. SA-644)",217,"No Principal available",0]
[null,null,9,"BAGHPATHI SERVICES PVT LTD",9,"DISPLAY STATUSAL UNITED SHIPPING , SINGAPOR",1]
[null,null,212,"Bahria Foundation Karachi (Reg. No. SA-639)",212,"No Principal available",0]
[null,null,424,"Baksh Investment Ltd (Reg. No. SA-589)",424,"No Principal available",0]
[null,null,359,"Baltic Shipping (Pvt) Ltd (Reg. No. SA-488)",359,"No Principal available",0]
[null,null,10,"BASHIR AHMED & CO",10,"PACIFIC INTERNATIONAL LINES(PTE)LIMITED",1]
[null,null,180,"BENACO.",180,"No Principal available",0]
[null,null,207,"Bismillh Logistics (Reg. No. SA-632)",207,"No Principal available",0]
[null,null,281,"Blue Ocean Sky Services (Reg. No. SA-727)",281,"No Principal available",0]
[null,null,171,"Blue Pak Shipping (Pvt) Ltd (Reg. No. SA-691)",171,"PERMA SHIPPING LINE PTE LTD SINGAPORE",1]
[null,null,169,"Bolan Enterprises (Pvt) Ltd (Reg. No. SA-626)",169,"M/s. New Castle Steel Works",3]
[null,null,169,"Bolan Enterprises (Pvt) Ltd (Reg. No. SA-626)",169,"M/s. Seacube Container Leasing USA",1]
[null,null,169,"Bolan Enterprises (Pvt) Ltd (Reg. No. SA-626)",169,"M/S.Waterfront Container Leasing Co.Inc",2]
[null,null,11,"BULK SHIPPING TRADING CO",11,"No Principal available",0]
[null,null,12,"BURJORJEE COWASJEE & CO",12,"BONVOYAGE CO",1]
[null,null,12,"BURJORJEE COWASJEE & CO",12,"CHINA OCEAN SHIPPING",2]
[null,null,12,"BURJORJEE COWASJEE & CO",12,"CHINA TANZANIAN JOINT VENTURE",3]
[null,null,12,"BURJORJEE COWASJEE & CO",12,"ETERNAL WAY LTD",4]
[null,null,12,"BURJORJEE COWASJEE & CO",12,"FANGHAI INTL",5]
[null,null,12,"BURJORJEE COWASJEE & CO",12,"NAVROM ROMAFUIEN",6]
[null,null,12,"BURJORJEE COWASJEE & CO",12,"NAVROM ROMANIAN STEAM SHNIP",12]
[null,null,12,"BURJORJEE COWASJEE & CO",12,"NEPTUNE ORIENT",7]
[null,null,12,"BURJORJEE COWASJEE & CO",12,"PARAKOU SHIPPING",8]
[null,null,12,"BURJORJEE COWASJEE & CO",12,"ROMLINE SHIPPING",9]
[null,null,12,"BURJORJEE COWASJEE & CO",12,"SHENZHEN XINGPING MARINE",10]
[null,null,12,"BURJORJEE COWASJEE & CO",12,"UKRANIAN DANPUBE",11]
[null,null,286,"Bushra Enterprises (Reg. No. SA-732)",286,"No Principal available",0]
[null,null,348,"Capital Shipping Agency (Reg. No. SA-470)",348,"No Principal available",0]
[null,null,218,"Cargo Aviation System (Reg. No. SA-645)",218,"No Principal available",0]
[null,null,199,"Cargo Plan International (Reg. No. SA-622)",199,"No Principal available",0]
[null,null,278,"Cargogiants International (Reg. No. SA-724)",278,"No Principal available",0]
[null,null,13,"CASCO SAEED KARACHI PVT LTD",13,"Cargo Levant Bremen",4]
[null,null,13,"CASCO SAEED KARACHI PVT LTD",13,"China Ocean Shipping Co.",1]
[null,null,13,"CASCO SAEED KARACHI PVT LTD",13,"CHINA-PEOPLES REPUBLIC OF",31]
[null,null,13,"CASCO SAEED KARACHI PVT LTD",13,"Chinese Tanzanian Joint Shipping Co.",5]
[null,null,13,"CASCO SAEED KARACHI PVT LTD",13,"COSCO BULK CARRIER CO.LTD CHINA",15]
[null,null,13,"CASCO SAEED KARACHI PVT LTD",13,"COSCO CONTAINER LINES 0340",18]
[null,null,13,"CASCO SAEED KARACHI PVT LTD",13,"COSCO HONG KONG CO.LTD.",17]
[null,null,13,"CASCO SAEED KARACHI PVT LTD",13,"COSCO LOGISTICS CHINA",22]
[null,null,13,"CASCO SAEED KARACHI PVT LTD",13,"COSCO LOGISTICS SHANGHAI - HYDRO POWER",34]
[null,null,13,"CASCO SAEED KARACHI PVT LTD",13,"COSCO LOGISTICS SHANGHAI - SOLAR POWER",33]
[null,null,13,"CASCO SAEED KARACHI PVT LTD",13,"COSCO QINGDAO OCEAN SHIPPING COMPANY LTD CHINA",25]
[null,null,13,"CASCO SAEED KARACHI PVT LTD",13,"COSCO SHANGHAI SHIP MANAGEMENT CO. LTD. ",24]
[null,null,13,"CASCO SAEED KARACHI PVT LTD",13,"COSCO SHIPPING CO.LTD.CHINA",16]
[null,null,13,"CASCO SAEED KARACHI PVT LTD",13,"Cosco Singapore",9]
[null,null,13,"CASCO SAEED KARACHI PVT LTD",13,"CZEC C3/C4 NUCLEAR POWER PLANT",32]
[null,null,13,"CASCO SAEED KARACHI PVT LTD",13,"DALIAN TIGER SHIPPING LTD CHINA",23]
[null,null,13,"CASCO SAEED KARACHI PVT LTD",13,"Freight World Singapore",6]
[null,null,13,"CASCO SAEED KARACHI PVT LTD",13,"Fujian Da Zhong Shipping Co.",2]
[null,null,13,"CASCO SAEED KARACHI PVT LTD",13,"Fujian Jie An Shipping Co Ltd.",3]
[null,null,13,"CASCO SAEED KARACHI PVT LTD",13,"FUJIAN SHIPPING COMPANY",27]
[null,null,13,"CASCO SAEED KARACHI PVT LTD",13,"FUZHOU WANFU MANAGEMENT CO LTD",30]
[null,null,13,"CASCO SAEED KARACHI PVT LTD",13,"GLOBAL SHIPPING SHANGHAI",8]
[null,null,13,"CASCO SAEED KARACHI PVT LTD",13,"HENGFA SHIPPING INCORPORATION/OCEAN FLOURISH CHINA",21]
[null,null,13,"CASCO SAEED KARACHI PVT LTD",13,"HONG KONG MING WAH SHIPPING LTD",14]
[null,null,13,"CASCO SAEED KARACHI PVT LTD",13,"HUNAN OCEAN SHIPPING COMPANY",13]
[null,null,13,"CASCO SAEED KARACHI PVT LTD",13,"IMU SHIPMANAGEMENT PTE LTD (ORBIT) ",28]
[null,null,13,"CASCO SAEED KARACHI PVT LTD",13,"NANJING OCEAN SHIPPI9NG CHINA",12]
[null,null,13,"CASCO SAEED KARACHI PVT LTD",13,"North China lines Ltd",7]
[null,null,13,"CASCO SAEED KARACHI PVT LTD",13,"QINGDAO HUIQUAN SHIPPING CO. CHINA",10]
[null,null,13,"CASCO SAEED KARACHI PVT LTD",13,"SAL SHIPPING",19]
[null,null,13,"CASCO SAEED KARACHI PVT LTD",13,"SEASUN SHIPPING (HK) LIMITED, HONGKONG ",26]
[null,null,13,"CASCO SAEED KARACHI PVT LTD",13,"SHANGHAI CP INT L SHIP CO. CHINA",11]
[null,null,13,"CASCO SAEED KARACHI PVT LTD",13,"SOLAR STAR SHIPPING ENTERPRISES",20]
[null,null,13,"CASCO SAEED KARACHI PVT LTD",13,"ZENITH SHIPPING LTD (SAMMI SUPER STAR/HYPER LINK)",29]
[null,null,229,"CEI Logistics (Pvt) Ltd (Reg. No. SA-658)",229,"No Principal available",0]
[null,null,379,"Cgate Logistic (Reg. No. SA-522)",379,"No Principal available",0]
[null,null,252,"China Container Line (Reg. No. SA-693)",252,"No Principal available",0]
[null,null,213,"Chun On Global Logistics (Pvt) Ltd (Reg. NO. SA-640)",213,"No Principal available",0]
[null,null,14,"CIM SHIPPING",14,"ARC LINE",3]
[null,null,14,"CIM SHIPPING",14,"ARCANE SHIPPING ",4]
[null,null,14,"CIM SHIPPING",14,"IAL",1]
[null,null,14,"CIM SHIPPING",14,"NCOTT",2]
[null,null,272,"Cirrus International (Pvt) Ltd (Reg. No. SA-717)",272,"No Principal available",0]
[null,null,426,"Clear Freight Internaitional (Reg. No. SA-593)",426,"No Principal available",0]
[null,null,205,"CLT-ICF Logistics (Reg. No. SA-630)",205,"No Principal available",0]
[null,null,194,"CMA CGM Pakistan (Pvt) Ltd (Reg No. SA-614)",194,"No Principal available",0]
[null,null,142,"CMA-CGM-SA",142,"CMA-CGM",1]
[null,null,15,"COASTAL SHIPPING SERVICES",15," OCEANIC SHELL SHIPPING LLC DUBAI",23]
[null,null,15,"COASTAL SHIPPING SERVICES",15,"AL HAMOODI BUILDING MATERIALS",6]
[null,null,15,"COASTAL SHIPPING SERVICES",15,"ALPINE MARINE SERVICES (PVT) LTD.",17]
[null,null,15,"COASTAL SHIPPING SERVICES",15,"BROOK OCEAN SHIPPING CO. LLC",29]
[null,null,15,"COASTAL SHIPPING SERVICES",15,"CROWN DIAMOND HOLDING LTD U.K",8]
[null,null,15,"COASTAL SHIPPING SERVICES",15,"Crystal Sea Services (Pvt) Ltd",13]
[null,null,15,"COASTAL SHIPPING SERVICES",15,"DAI DUONG SHIPPING CO. LTS VIETNAM",12]
[null,null,15,"COASTAL SHIPPING SERVICES",15,"DONG A TANKER CORPORATION",25]
[null,null,15,"COASTAL SHIPPING SERVICES",15,"FAIR SEAS INTERNATIONAL PTY LTD.",18]
[null,null,15,"COASTAL SHIPPING SERVICES",15,"FALCON TMS CORP VIETNAM",14]
[null,null,15,"COASTAL SHIPPING SERVICES",15,"GENERAL SHIPPING AGENCIES (PVT) LTD.",15]
[null,null,15,"COASTAL SHIPPING SERVICES",15,"GMBH MARITIME LINER SERVICES",20]
[null,null,15,"COASTAL SHIPPING SERVICES",15,"HYUNDAI GLOVIS CO. LTD.",28]
[null,null,15,"COASTAL SHIPPING SERVICES",15,"HYUNDAI MARCHANT MARINE CO. LTD",26]
[null,null,15,"COASTAL SHIPPING SERVICES",15,"MARCAMPANIA SCHIFFAHRTSGESELL HAMBURG",4]
[null,null,15,"COASTAL SHIPPING SERVICES",15,"MUHIUDDIN SHIPPING CO , SYRIA",1]
[null,null,15,"COASTAL SHIPPING SERVICES",15,"NOVEL DIAMONDITIES SA",9]
[null,null,15,"COASTAL SHIPPING SERVICES",15,"OCEANIC SHELL SHIPPING LLC DUBAI",10]
[null,null,15,"COASTAL SHIPPING SERVICES",15,"OCEANIC SHIP MANAGEMENT FZE. DUBAI UAE",3]
[null,null,15,"COASTAL SHIPPING SERVICES",15,"SENAT SHIPPING LIMITED SINGAPORE",7]
[null,null,15,"COASTAL SHIPPING SERVICES",15,"SENATE SHIPPING",21]
[null,null,15,"COASTAL SHIPPING SERVICES",15,"SIVA BULK LTD.",27]
[null,null,15,"COASTAL SHIPPING SERVICES",15,"stansfields Ltd Hongkong China",11]
[null,null,15,"COASTAL SHIPPING SERVICES",15,"STX Panocean Co. Ltd. south Korea",2]
[null,null,15,"COASTAL SHIPPING SERVICES",15,"SUISSE ATLANTIQUE SOCIETE",24]
[null,null,15,"COASTAL SHIPPING SERVICES",15,"TRANS GLOBAL TECH SHIPPING",5]
[null,null,15,"COASTAL SHIPPING SERVICES",15,"USL SHIPPING DMCEST",16]
[null,null,15,"COASTAL SHIPPING SERVICES",15,"VINALINES SHIPPING COMPANY",22]
[null,null,15,"COASTAL SHIPPING SERVICES",15,"WESTERN BULK PTE LTD.",19]
[null,null,153,"Coastline Business Corporation (Reg. No. SA-635)",153," STX Panocean Co. Ltd.",1]
[null,null,280,"Combined Freight International (Reg. No. SA-726)",280,"No Principal available",0]
[null,null,257,"Combined Logistics International (Pvt) Ltd (Reg. No. SA-699)",257,"No Principal available",0]
[null,null,275,"Commadnder Logistics International (Reg. No. SA-721)",275,"No Principal available",0]
[null,null,312,"Compagnie International Martimos Inc.(Reg. No. SA-367)",312,"No Principal available",0]
[null,null,414,"Connect Freight Services (Reg. No. SA-570)",414,"No Principal available",0]
[null,null,16,"CONREP INTERPRISES PVT LTD",16,"MITSUI",1]
[null,null,354,"Console Shipping Services Pakistan (Pvt) Ltd (Reg. No. SA-48",354,"No Principal available",0]
[null,null,340,"Consolidation Shipping Logistics (Pvt) Ltd (Reg. No. SA-457)",340,"No Principal available",0]
[null,null,17,"CONTINENTAL SHIPPING AGENCIES",17,"No Principal available",0]
[null,null,18,"COOPER AND CO",18,"LAUREL NAVIGATION MARITIUS LIMITED",1]
[null,null,18,"COOPER AND CO",18,"No Principal available",0]
[null,null,18,"COOPER AND CO",18,"SETH SHIPPING LTD",2]
[null,null,19,"COSMIC TRANSPORTATION & CHARTERING",19,"AL-MUKAIRISH",1]
[null,null,19,"COSMIC TRANSPORTATION & CHARTERING",19,"ES-KO KABUL",6]
[null,null,19,"COSMIC TRANSPORTATION & CHARTERING",19,"HUA DAO SHIPPING",3]
[null,null,19,"COSMIC TRANSPORTATION & CHARTERING",19,"ISLAMIC REP. OF IRAN SHIPPING LINE, IRAN",2]
[null,null,19,"COSMIC TRANSPORTATION & CHARTERING",19,"MIAD DUBAI",5]
[null,null,19,"COSMIC TRANSPORTATION & CHARTERING",19,"STAR FABRIC",4]
[null,null,248,"Cotpak International (Reg. No. SA-685)",248,"No Principal available",0]
[null,null,20,"COWASJEE AND SONS",20,"ARCHER DANIELS MIDLAND CO. INC",12]
[null,null,20,"COWASJEE AND SONS",20,"BONVOYAGE CO",1]
[null,null,20,"COWASJEE AND SONS",20,"CHINA OCEAN SHIPPING",2]
[null,null,20,"COWASJEE AND SONS",20,"CHINA TANZANIAN JOINT VENTURE",3]
[null,null,20,"COWASJEE AND SONS",20,"EAST WEST SHIPPING SERVICES LTD",14]
[null,null,20,"COWASJEE AND SONS",20,"ETERNAL WAY LTD",4]
[null,null,20,"COWASJEE AND SONS",20,"FANGHAI INTL.",5]
[null,null,20,"COWASJEE AND SONS",20,"JOHN GIAVRIDIS INC.SHIP-MANAGEMENT",13]
[null,null,20,"COWASJEE AND SONS",20,"NAMVIET MARITIME VIETNAM",17]
[null,null,20,"COWASJEE AND SONS",20,"NAVROM ROMANIAN STEAM SHIP",6]
[null,null,20,"COWASJEE AND SONS",20,"NEPTUNE ORIENT SHIPPING CO.",7]
[null,null,20,"COWASJEE AND SONS",20,"PARAKOU SHIPPING",8]
[null,null,20,"COWASJEE AND SONS",20,"ROMLINE SHIPPING",9]
[null,null,20,"COWASJEE AND SONS",20,"SHENZHEN XINGPING MARINE",10]
[null,null,20,"COWASJEE AND SONS",20,"TRANSOCEAN SERVICES SRL ROMANIA",15]
[null,null,20,"COWASJEE AND SONS",20,"UKRANIAN DANUBE",11]
[null,null,20,"COWASJEE AND SONS",20,"VINASHIN OCEAN SHIPPING CO. LTD VIETNAM",16]
[null,null,165,"Crystal Sea Services (Pvt) Ltd (Reg. No. SA-618)",165,"AADHAR SHIPPING",9]
[null,null,165,"Crystal Sea Services (Pvt) Ltd (Reg. No. SA-618)",165,"AL RYADH TRADING FZCO DUBAI",1]
[null,null,165,"Crystal Sea Services (Pvt) Ltd (Reg. No. SA-618)",165,"AL-HAMODI BUILDING MATERIALS LLD",5]
[null,null,165,"Crystal Sea Services (Pvt) Ltd (Reg. No. SA-618)",165,"AL-LAM SHIPPING DUBAI",2]
[null,null,165,"Crystal Sea Services (Pvt) Ltd (Reg. No. SA-618)",165,"CARGO BULK PTE LTD ",11]
[null,null,165,"Crystal Sea Services (Pvt) Ltd (Reg. No. SA-618)",165,"Crown Diamond Holding Ltd U.K",17]
[null,null,165,"Crystal Sea Services (Pvt) Ltd (Reg. No. SA-618)",165,"Daebo International Shipping Co. Ltd.",25]
[null,null,165,"Crystal Sea Services (Pvt) Ltd (Reg. No. SA-618)",165,"Dai Duong Shipping Co. Lts Vietnam ",20]
[null,null,165,"Crystal Sea Services (Pvt) Ltd (Reg. No. SA-618)",165,"Elamira Greece Co.",23]
[null,null,165,"Crystal Sea Services (Pvt) Ltd (Reg. No. SA-618)",165,"EMIRATES COAST SHIPPING LLC",3]
[null,null,165,"Crystal Sea Services (Pvt) Ltd (Reg. No. SA-618)",165,"Falcon Tms Corp Vietnam",21]
[null,null,165,"Crystal Sea Services (Pvt) Ltd (Reg. No. SA-618)",165,"GENERAL SHIPPING AGENCIES",4]
[null,null,165,"Crystal Sea Services (Pvt) Ltd (Reg. No. SA-618)",165,"GULF ADEN SHIPPING",10]
[null,null,165,"Crystal Sea Services (Pvt) Ltd (Reg. No. SA-618)",165,"Hong Union Shipping Ltd.",26]
[null,null,165,"Crystal Sea Services (Pvt) Ltd (Reg. No. SA-618)",165,"Marcampania Schiffahrtsgesell Hamburg",14]
[null,null,165,"Crystal Sea Services (Pvt) Ltd (Reg. No. SA-618)",165,"MARE NOSTRUM INTERNATIONAL LTD.",28]
[null,null,165,"Crystal Sea Services (Pvt) Ltd (Reg. No. SA-618)",165,"Muhiuddin Shipping Co, Syria ",13]
[null,null,165,"Crystal Sea Services (Pvt) Ltd (Reg. No. SA-618)",165,"NOVEL COMMODITIES",6]
[null,null,165,"Crystal Sea Services (Pvt) Ltd (Reg. No. SA-618)",165,"Ocean Shell Shipping Llc Dubai",18]
[null,null,165,"Crystal Sea Services (Pvt) Ltd (Reg. No. SA-618)",165,"OCEAN SHIP MANAGEMENT FZE DUBAIL",8]
[null,null,165,"Crystal Sea Services (Pvt) Ltd (Reg. No. SA-618)",165,"PHEATHON INTERNATIONAL LTD",12]
[null,null,165,"Crystal Sea Services (Pvt) Ltd (Reg. No. SA-618)",165,"Sea & Sky Shipping LLLC Abu Dhabi",22]
[null,null,165,"Crystal Sea Services (Pvt) Ltd (Reg. No. SA-618)",165,"Senat Shipping Limited Singapore",16]
[null,null,165,"Crystal Sea Services (Pvt) Ltd (Reg. No. SA-618)",165,"Stansfields Ltd Hongkong China ",19]
[null,null,165,"Crystal Sea Services (Pvt) Ltd (Reg. No. SA-618)",165,"STX PAN OCESN",7]
[null,null,165,"Crystal Sea Services (Pvt) Ltd (Reg. No. SA-618)",165,"Trans Global Tech Shipping",15]
[null,null,165,"Crystal Sea Services (Pvt) Ltd (Reg. No. SA-618)",165,"USL Shipping Dmcest",24]
[null,null,202,"Daco Marine Services (Pvt) Ltd (Reg. No. SA-625)",202,"No Principal available",0]
[null,null,224,"Dejwani Shipping Line (Reg. No. SA-652)",224,"No Principal available",0]
[null,null,21,"DELTA SHIPPING PVT LTD",21,"HAPAG LLOYD COTAINER LINIE",1]
[null,null,21,"DELTA SHIPPING PVT LTD",21,"PACIFIC INTERNATIONAL LINES SINGAPORE",5]
[null,null,21,"DELTA SHIPPING PVT LTD",21,"RICKMERS LINE GMBH",3]
[null,null,21,"DELTA SHIPPING PVT LTD",21,"UNITED ARAB SHIPPING CO.",2]
[null,null,21,"DELTA SHIPPING PVT LTD",21,"UNITED ARAB SHIPPING COMPANY (SAG)",4]
[null,null,156,"DELTA TRANSPORT",156,"HAPPAG LLOYD CONTAINER LINE GMBH GERMANY",1]
[null,null,394,"DHL Global Forwarding Pakistan (Pvt) Ltd (Reg. No. SA-544)",394,"No Principal available",0]
[null,null,160,"Diamond Shipping Services (Pvt) Ltd (Reg No. SA-602)",160,"CHENG LIE NAVIGATION CO, LTD",1]
[null,null,160,"Diamond Shipping Services (Pvt) Ltd (Reg No. SA-602)",160,"GATI COAST TO COAST INDIA",5]
[null,null,160,"Diamond Shipping Services (Pvt) Ltd (Reg No. SA-602)",160,"NAMMA CONTAINER EGYPT LINE",3]
[null,null,160,"Diamond Shipping Services (Pvt) Ltd (Reg No. SA-602)",160,"Sea Venture Marine Ent.P",6]
[null,null,160,"Diamond Shipping Services (Pvt) Ltd (Reg No. SA-602)",160,"SINKOKAR MERCHANT MARINE CO LTD.",4]
[null,null,160,"Diamond Shipping Services (Pvt) Ltd (Reg No. SA-602)",160,"SUN EXPRESS CONTAINER LINE PTE LTD",2]
[null,null,370,"Diversfied Logistics (Pvt) Ltd (Reg. No. SA-503)",370,"No Principal available",0]
[null,null,400,"Dynamic Logistic International (Pvt) Ltd (Reg. No. SA-552)",400,"No Principal available",0]
[null,null,335,"Dynamic Shipping Agencies (Pvt) Ltd (Reg. No. SA-450)",335,"No Principal available",0]
[null,null,232,"Dynamic Traders (Pvt) Ltd (Reg. No. SA-661)",232,"No Principal available",0]
[null,null,271,"E2E Supply Chain Management (Pvt) Ltd (Reg. No. SA-716)",271,"No Principal available",0]
[null,null,191,"Eal Systems (Pvt) Ltd (Reg. No. SA-607)",191,"No Principal available",0]
[null,null,22,"EASTERN SEA TRANSPORT PVT LTD",22,"IGNAZIO MESSINA & C SpA",1]
[null,null,22,"EASTERN SEA TRANSPORT PVT LTD",22,"M/S. DONGNAMA SHIPPING CO.",3]
[null,null,22,"EASTERN SEA TRANSPORT PVT LTD",22,"MESSINA & C SPA",2]
[null,null,22,"EASTERN SEA TRANSPORT PVT LTD",22,"SHANGHI SAFE-TRANSPORT CHEMICAL LOGISTICS CO. LTD",4]
[null,null,22,"EASTERN SEA TRANSPORT PVT LTD",22,"SHREYAS RELAY SYSTEM LTD",5]
[null,null,254,"Eastern Shipping ¿N¿ Logistics (Reg. No. SA-696)",254,"No Principal available",0]
[null,null,336,"Eastman Services (Reg. No. SA-451)",336,"No Principal available",0]
[null,null,157,"Eastwind Shipping Company Pak (Pvt) Ltd (Reg. No. SA-636)",157,"A.M. NOMIKOS & SONS (UK) LTD - UNITED KINGDOM",30]
[null,null,157,"Eastwind Shipping Company Pak (Pvt) Ltd (Reg. No. SA-636)",157,"AB MARITIME INC",267]
[null,null,157,"Eastwind Shipping Company Pak (Pvt) Ltd (Reg. No. SA-636)",157,"ACE TANKERS - AMSTERDAM - NETHERLANDS",11]
[null,null,157,"Eastwind Shipping Company Pak (Pvt) Ltd (Reg. No. SA-636)",157,"ADANI GLOBAL FZE",221]
[null,null,157,"Eastwind Shipping Company Pak (Pvt) Ltd (Reg. No. SA-636)",157,"AGRI COMMODITIES FIANCE",275]
[null,null,157,"Eastwind Shipping Company Pak (Pvt) Ltd (Reg. No. SA-636)",157,"AL GHURAIR RESOURCES LLC",252]
[null,null,157,"Eastwind Shipping Company Pak (Pvt) Ltd (Reg. No. SA-636)",157,"AL SINDHBAD SHPPING & MARINE - DUBAI - U.A.E",43]
[null,null,157,"Eastwind Shipping Company Pak (Pvt) Ltd (Reg. No. SA-636)",157,"ALANTIK SHIPPING",18]
[null,null,157,"Eastwind Shipping Company Pak (Pvt) Ltd (Reg. No. SA-636)",157,"ALCO SERVICES S.A. SWITZERLAND",20]
[null,null,157,"Eastwind Shipping Company Pak (Pvt) Ltd (Reg. No. SA-636)",157,"ALCOTRA SA - GENEVA - SWITZERLAND",73]
[null,null,157,"Eastwind Shipping Company Pak (Pvt) Ltd (Reg. No. SA-636)",157,"ALCOTRA SA - SWITZERLAND",50]
[null,null,157,"Eastwind Shipping Company Pak (Pvt) Ltd (Reg. No. SA-636)",157,"ALCOTRADING (AUST) PTY LTD",187]
[null,null,157,"Eastwind Shipping Company Pak (Pvt) Ltd (Reg. No. SA-636)",157,"ALLIED MARITIME INC",160]
[null,null,157,"Eastwind Shipping Company Pak (Pvt) Ltd (Reg. No. SA-636)",157,"ALPINA SHIP MANAGEMENTS APS",188]
[null,null,157,"Eastwind Shipping Company Pak (Pvt) Ltd (Reg. No. SA-636)",157,"ALTOMARE S.A - GREECE",113]
[null,null,157,"Eastwind Shipping Company Pak (Pvt) Ltd (Reg. No. SA-636)",157,"AMBREY RISK LIMITED",206]
[null,null,157,"Eastwind Shipping Company Pak (Pvt) Ltd (Reg. No. SA-636)",157,"AQUILA VOYAGER MARITIME - GERMANY",108]
[null,null,157,"Eastwind Shipping Company Pak (Pvt) Ltd (Reg. No. SA-636)",157,"AS KLAVENESS CHARTERING",268]
[null,null,157,"Eastwind Shipping Company Pak (Pvt) Ltd (Reg. No. SA-636)",157,"ATLANTIK DENIZCILIK TICARET VE SANAYI AS",205]
[null,null,157,"Eastwind Shipping Company Pak (Pvt) Ltd (Reg. No. SA-636)",157,"ATLANTIK SHPPING INC - ISTANBUL - TURKEY",35]
[null,null,157,"Eastwind Shipping Company Pak (Pvt) Ltd (Reg. No. SA-636)",157,"BALTIC AGENCIES PTE LTD",239]
[null,null,157,"Eastwind Shipping Company Pak (Pvt) Ltd (Reg. No. SA-636)",157,"BERGEN SHIPPING - ISTANBUL - TURKEY",136]
[null,null,157,"Eastwind Shipping Company Pak (Pvt) Ltd (Reg. No. SA-636)",157,"BERGSHAV MANAGEMENT AS - NORWAY",159]
[null,null,157,"Eastwind Shipping Company Pak (Pvt) Ltd (Reg. No. SA-636)",157,"BGN INTERNATIONAL DMCC",175]
[null,null,157,"Eastwind Shipping Company Pak (Pvt) Ltd (Reg. No. SA-636)",157,"BIRLESIK DENIZCILIK VE ARMATORLUK SAN.TIC AS - TURKEY",107]
[null,null,157,"Eastwind Shipping Company Pak (Pvt) Ltd (Reg. No. SA-636)",157,"BLUE OCEAN SHIP MGT",169]
[null,null,157,"Eastwind Shipping Company Pak (Pvt) Ltd (Reg. No. SA-636)",157,"Bluewater Shipmanagement PVT LTD",180]
[null,null,157,"Eastwind Shipping Company Pak (Pvt) Ltd (Reg. No. SA-636)",157,"BOGAZICI DENIZ TASIMACILIGI LTD STI",230]
[null,null,157,"Eastwind Shipping Company Pak (Pvt) Ltd (Reg. No. SA-636)",157,"BRIDGE MARINE SEOUL KOREA",1]
[null,null,157,"Eastwind Shipping Company Pak (Pvt) Ltd (Reg. No. SA-636)",157,"BRIGHT NAVIGATION INC",170]
[null,null,157,"Eastwind Shipping Company Pak (Pvt) Ltd (Reg. No. SA-636)",157,"BRYGGEN SHIIPING + TRADING A/S - BERGEN - NROWAY",27]
[null,null,157,"Eastwind Shipping Company Pak (Pvt) Ltd (Reg. No. SA-636)",157,"BULCOM LIMITED - CYPRUS",146]
[null,null,157,"Eastwind Shipping Company Pak (Pvt) Ltd (Reg. No. SA-636)",157,"BUNGE AGRIBUSINESS SINGAPORE PTE. LTD",262]
[null,null,157,"Eastwind Shipping Company Pak (Pvt) Ltd (Reg. No. SA-636)",157,"BYZANTINE MARITIME CORP",222]
[null,null,157,"Eastwind Shipping Company Pak (Pvt) Ltd (Reg. No. SA-636)",157,"C & C MARITIME PTE LTD - SINGAPORE",128]
[null,null,157,"Eastwind Shipping Company Pak (Pvt) Ltd (Reg. No. SA-636)",157,"CAPITAL SHIP MANAGEMENT CORPORATION",181]
[null,null,157,"Eastwind Shipping Company Pak (Pvt) Ltd (Reg. No. SA-636)",157,"CARIA SHIPPING INTERNATIONAL PTE LTD",257]
[null,null,157,"Eastwind Shipping Company Pak (Pvt) Ltd (Reg. No. SA-636)",157,"CASCO (HK) SHIPPING CO., LTD - HONG KONG",134]
[null,null,157,"Eastwind Shipping Company Pak (Pvt) Ltd (Reg. No. SA-636)",157,"CHAMPION SHIPPING A/S - BERGEN - NORWAY",72]
[null,null,157,"Eastwind Shipping Company Pak (Pvt) Ltd (Reg. No. SA-636)",157,"CHAMPION TANKER NORWAY",3]
[null,null,157,"Eastwind Shipping Company Pak (Pvt) Ltd (Reg. No. SA-636)",157,"CHEMBULK TRADING II",203]
[null,null,157,"Eastwind Shipping Company Pak (Pvt) Ltd (Reg. No. SA-636)",157,"CHEMFLEET - ISTANBUL - TURKEY",36]
[null,null,157,"Eastwind Shipping Company Pak (Pvt) Ltd (Reg. No. SA-636)",157,"CHEMSHIP B.V.",240]
[null,null,157,"Eastwind Shipping Company Pak (Pvt) Ltd (Reg. No. SA-636)",157,"CILI NAVIGATION CORPORATION",162]
[null,null,157,"Eastwind Shipping Company Pak (Pvt) Ltd (Reg. No. SA-636)",157,"COLUMBIA SHIPMANAGEMENT LTD",223]
[null,null,157,"Eastwind Shipping Company Pak (Pvt) Ltd (Reg. No. SA-636)",157,"COMMONWEALTH INDEPENDENT STATES NAVIGATION INC",270]
[null,null,157,"Eastwind Shipping Company Pak (Pvt) Ltd (Reg. No. SA-636)",157,"CONCORDIA AGRITRADING PTE LTD - SINGAPORE",111]
[null,null,157,"Eastwind Shipping Company Pak (Pvt) Ltd (Reg. No. SA-636)",157,"CONTENENTAL SHIPMANAGEMENT CO SARL",182]
[null,null,157,"Eastwind Shipping Company Pak (Pvt) Ltd (Reg. No. SA-636)",157,"COPENSHIP MANAGEMENT A/S",271]
[null,null,157,"Eastwind Shipping Company Pak (Pvt) Ltd (Reg. No. SA-636)",157,"COSMOTRADE EXPORTS S.A. - PIRAEUS - GREECE",110]
[null,null,157,"Eastwind Shipping Company Pak (Pvt) Ltd (Reg. No. SA-636)",157,"CSM DENIZCILIK A.S",196]
[null,null,157,"Eastwind Shipping Company Pak (Pvt) Ltd (Reg. No. SA-636)",157,"D AMICO TANKERS LTD",210]
[null,null,157,"Eastwind Shipping Company Pak (Pvt) Ltd (Reg. No. SA-636)",157,"DAI DUONG SHIPBUILDING CO LTD",209]
[null,null,157,"Eastwind Shipping Company Pak (Pvt) Ltd (Reg. No. SA-636)",157,"DAILEN CORPORATION - SEOUL - KOREA",60]
[null,null,157,"Eastwind Shipping Company Pak (Pvt) Ltd (Reg. No. SA-636)",157,"DBC SHIPPING LLC",243]
[null,null,157,"Eastwind Shipping Company Pak (Pvt) Ltd (Reg. No. SA-636)",157,"DELFI SA - PIRAEUS - GREECE",7]
[null,null,157,"Eastwind Shipping Company Pak (Pvt) Ltd (Reg. No. SA-636)",157,"DELTA SHIPPING & TRADING INC CO - TURKEY",130]
[null,null,157,"Eastwind Shipping Company Pak (Pvt) Ltd (Reg. No. SA-636)",157,"DENMAR CHARTERING & TRADING",161]
[null,null,157,"Eastwind Shipping Company Pak (Pvt) Ltd (Reg. No. SA-636)",157,"DERGHAM C CO., - TARTOUS - SYRIA",65]
[null,null,157,"Eastwind Shipping Company Pak (Pvt) Ltd (Reg. No. SA-636)",157,"DILETON MARITIME S.A. - GREECE",94]
[null,null,157,"Eastwind Shipping Company Pak (Pvt) Ltd (Reg. No. SA-636)",157,"DOOYANG LIMITED - KOREA",127]
[null,null,157,"Eastwind Shipping Company Pak (Pvt) Ltd (Reg. No. SA-636)",157,"DY MARINE CO LTD",186]
[null,null,157,"Eastwind Shipping Company Pak (Pvt) Ltd (Reg. No. SA-636)",157,"DYNAMIC TANKER",191]
[null,null,157,"Eastwind Shipping Company Pak (Pvt) Ltd (Reg. No. SA-636)",157,"EAGLE SHIP MANAGEMENT LLC",279]
[null,null,157,"Eastwind Shipping Company Pak (Pvt) Ltd (Reg. No. SA-636)",157,"EASTGATE SHIPPING LLC - DUBAI - U.A.E",142]
[null,null,157,"Eastwind Shipping Company Pak (Pvt) Ltd (Reg. No. SA-636)",157,"ED & F MAN MOLASSES",2]
[null,null,157,"Eastwind Shipping Company Pak (Pvt) Ltd (Reg. No. SA-636)",157,"ED & F MAN MOLASSES B.V. - ROTTERDAM - THE NETHERLANDS",100]
[null,null,157,"Eastwind Shipping Company Pak (Pvt) Ltd (Reg. No. SA-636)",157,"EITZEN CHEMICAL K/S - DENMARK",68]
[null,null,157,"Eastwind Shipping Company Pak (Pvt) Ltd (Reg. No. SA-636)",157,"ELAMIRA GREECE CO ",192]
[null,null,157,"Eastwind Shipping Company Pak (Pvt) Ltd (Reg. No. SA-636)",157,"ELMIRA TANKERS MANAGEMENT S.A. - GREECE",74]
[null,null,157,"Eastwind Shipping Company Pak (Pvt) Ltd (Reg. No. SA-636)",157,"EMIRATES SHIP INVESTMENT COMPANY",176]
[null,null,157,"Eastwind Shipping Company Pak (Pvt) Ltd (Reg. No. SA-636)",157,"ESSAR SHIPPING LIMITED ",185]
[null,null,157,"Eastwind Shipping Company Pak (Pvt) Ltd (Reg. No. SA-636)",157,"EUROASIAN MARITIME LTD - JORDEN",158]
[null,null,157,"Eastwind Shipping Company Pak (Pvt) Ltd (Reg. No. SA-636)",157,"EUROTANKERS INC - PIREAUS - GREECE",39]
[null,null,157,"Eastwind Shipping Company Pak (Pvt) Ltd (Reg. No. SA-636)",157,"FAIRSEAS INTERNATIONAL PTY LTD",258]
[null,null,157,"Eastwind Shipping Company Pak (Pvt) Ltd (Reg. No. SA-636)",157,"FAL SHIPPING CO LTD - SHARJAH - U.A.E",95]
[null,null,157,"Eastwind Shipping Company Pak (Pvt) Ltd (Reg. No. SA-636)",157,"FIVE STARS BULKCARRIERS LTD ",190]
[null,null,157,"Eastwind Shipping Company Pak (Pvt) Ltd (Reg. No. SA-636)",157,"FORTUNE MARINE CO LTD - KOREA",75]
[null,null,157,"Eastwind Shipping Company Pak (Pvt) Ltd (Reg. No. SA-636)",157,"FRIO VENTURE S.A. ATHENS",17]
[null,null,157,"Eastwind Shipping Company Pak (Pvt) Ltd (Reg. No. SA-636)",157,"FULYA TANKER ISLETMECILIGI SANAYI VE TICARET LTD",217]
[null,null,157,"Eastwind Shipping Company Pak (Pvt) Ltd (Reg. No. SA-636)",157,"G BULG CORP",278]
[null,null,157,"Eastwind Shipping Company Pak (Pvt) Ltd (Reg. No. SA-636)",157,"GABES MARINE TANKERS - TUNISIA",31]
[null,null,157,"Eastwind Shipping Company Pak (Pvt) Ltd (Reg. No. SA-636)",157,"GAC HUB AGNECY SERVICES",197]
[null,null,157,"Eastwind Shipping Company Pak (Pvt) Ltd (Reg. No. SA-636)",157,"GENERAL MARITIME MANAGEMENT LLC",219]
[null,null,157,"Eastwind Shipping Company Pak (Pvt) Ltd (Reg. No. SA-636)",157,"GENOA MARITIME S.A. - PIREAUS - GREECE",55]
[null,null,157,"Eastwind Shipping Company Pak (Pvt) Ltd (Reg. No. SA-636)",157,"GLOBAL MARITIME TRUST (S) PTE LTD",264]
[null,null,157,"Eastwind Shipping Company Pak (Pvt) Ltd (Reg. No. SA-636)",157,"GMT SHIPPING LINE LIMITED - HONG KONG",126]
[null,null,157,"Eastwind Shipping Company Pak (Pvt) Ltd (Reg. No. SA-636)",157,"GOLDEN UNION SHIPPING CO SA",277]
[null,null,157,"Eastwind Shipping Company Pak (Pvt) Ltd (Reg. No. SA-636)",157,"GOODEARTH MARITIME LIMITED - CHENNAI - INDIA",156]
[null,null,157,"Eastwind Shipping Company Pak (Pvt) Ltd (Reg. No. SA-636)",157,"GREAT ELEPHANT CORPORATION - TAIPEI - TAIWAN",121]
[null,null,157,"Eastwind Shipping Company Pak (Pvt) Ltd (Reg. No. SA-636)",157,"GRIEG STAR BULK AS",198]
[null,null,157,"Eastwind Shipping Company Pak (Pvt) Ltd (Reg. No. SA-636)",157,"GSS MARINE SHIPPING SERVICES LLC - DUBAI",119]
[null,null,157,"Eastwind Shipping Company Pak (Pvt) Ltd (Reg. No. SA-636)",157,"GULF PETROCHEM",163]
[null,null,157,"Eastwind Shipping Company Pak (Pvt) Ltd (Reg. No. SA-636)",157,"GULF STOLT SHIP MANAGEMENT",58]
[null,null,157,"Eastwind Shipping Company Pak (Pvt) Ltd (Reg. No. SA-636)",157,"HAMADAH SHIPPING CO LTD - SYRIA",49]
[null,null,157,"Eastwind Shipping Company Pak (Pvt) Ltd (Reg. No. SA-636)",157,"HAN GANG TANKERS INC., c/o WOMAR LOGISTICS PTE LTD., SINGAPO",82]
[null,null,157,"Eastwind Shipping Company Pak (Pvt) Ltd (Reg. No. SA-636)",157,"HANARO SHIPPING CO LTD - SEOUL - KOREA",101]
[null,null,157,"Eastwind Shipping Company Pak (Pvt) Ltd (Reg. No. SA-636)",157,"HANARO SHIPPING CO LTD - SEOUL - KOREA",148]
[null,null,157,"Eastwind Shipping Company Pak (Pvt) Ltd (Reg. No. SA-636)",157,"HANJIN OVERSEAS TANKERS PTE LTD - SINGAPORE",56]
[null,null,157,"Eastwind Shipping Company Pak (Pvt) Ltd (Reg. No. SA-636)",157,"HANJIN SHIPPING CO LTD",247]
[null,null,157,"Eastwind Shipping Company Pak (Pvt) Ltd (Reg. No. SA-636)",157,"Hansa Tankers AS",173]
[null,null,157,"Eastwind Shipping Company Pak (Pvt) Ltd (Reg. No. SA-636)",157,"HARBOR SHIPPING & TRADING SA",171]
[null,null,157,"Eastwind Shipping Company Pak (Pvt) Ltd (Reg. No. SA-636)",157,"HICRI ERCILI DENIZ NAKLIYAT SAN. VE TIC. LTD. STI.",235]
[null,null,157,"Eastwind Shipping Company Pak (Pvt) Ltd (Reg. No. SA-636)",157,"HORISE SHIPPING CO - CHINA",135]
[null,null,157,"Eastwind Shipping Company Pak (Pvt) Ltd (Reg. No. SA-636)",157,"HORIZON GEMI ISLETMECILIGI SAN. VE TIC. A.S.",215]
[null,null,157,"Eastwind Shipping Company Pak (Pvt) Ltd (Reg. No. SA-636)",157,"HSD SHIPPING CO LTD - CHINA",152]
[null,null,157,"Eastwind Shipping Company Pak (Pvt) Ltd (Reg. No. SA-636)",157,"HYUNDAI GLOVES",269]
[null,null,157,"Eastwind Shipping Company Pak (Pvt) Ltd (Reg. No. SA-636)",157,"HYUNDI MERCHAND LONDON",19]
[null,null,157,"Eastwind Shipping Company Pak (Pvt) Ltd (Reg. No. SA-636)",157,"IBEX MARITIME LTD - ISTANBUL - TURKEY",57]
[null,null,157,"Eastwind Shipping Company Pak (Pvt) Ltd (Reg. No. SA-636)",157,"IINO SHIPPING PTE LTD - SINGAPORE",48]
[null,null,157,"Eastwind Shipping Company Pak (Pvt) Ltd (Reg. No. SA-636)",157,"IMT SHIPPING & CHARTERING GMBH - DUESSELDORF - GERMANY",46]
[null,null,157,"Eastwind Shipping Company Pak (Pvt) Ltd (Reg. No. SA-636)",157,"INCE DENIZCILIK TICARET A.S.",263]
[null,null,157,"Eastwind Shipping Company Pak (Pvt) Ltd (Reg. No. SA-636)",157,"INCHAPE SHIPPING",22]
[null,null,157,"Eastwind Shipping Company Pak (Pvt) Ltd (Reg. No. SA-636)",157,"INDEPENDENCE MARITIME AGENCY INC",193]
[null,null,157,"Eastwind Shipping Company Pak (Pvt) Ltd (Reg. No. SA-636)",157,"INTER GLOBE TRADING FZC",255]
[null,null,157,"Eastwind Shipping Company Pak (Pvt) Ltd (Reg. No. SA-636)",157,"INTERMARE TRANSPORT GMBH - HAMBURG - GERMANY",66]
[null,null,157,"Eastwind Shipping Company Pak (Pvt) Ltd (Reg. No. SA-636)",157,"INTERMARE TRANSPORT GMBH - HAMBURG - GERMANY",140]
[null,null,157,"Eastwind Shipping Company Pak (Pvt) Ltd (Reg. No. SA-636)",157,"INTERNATIONAL TANKER MANAGEMENT GMBH",178]
[null,null,157,"Eastwind Shipping Company Pak (Pvt) Ltd (Reg. No. SA-636)",157,"ISHIMA PTE LTD",164]
[null,null,157,"Eastwind Shipping Company Pak (Pvt) Ltd (Reg. No. SA-636)",157,"ISTOS MARITIME INC - KIFISIA - GREECE",151]
[null,null,157,"Eastwind Shipping Company Pak (Pvt) Ltd (Reg. No. SA-636)",157,"ITIRO CORPORATION ",272]
[null,null,157,"Eastwind Shipping Company Pak (Pvt) Ltd (Reg. No. SA-636)",157,"JIN YANG SHIPPING CO LTD - SEOUL - KOREA",98]
[null,null,157,"Eastwind Shipping Company Pak (Pvt) Ltd (Reg. No. SA-636)",157,"JINSU SHIPPING",212]
[null,null,157,"Eastwind Shipping Company Pak (Pvt) Ltd (Reg. No. SA-636)",157,"JITF WATERWAYS LIMITED - INDIA",141]
[null,null,157,"Eastwind Shipping Company Pak (Pvt) Ltd (Reg. No. SA-636)",157,"JOHANN M.K. BLUMENTHAL - HAMBURG - GERMANY",123]
[null,null,157,"Eastwind Shipping Company Pak (Pvt) Ltd (Reg. No. SA-636)",157,"KHUNNATHEE CO LTD - BANGKOK - THAILAND",79]
[null,null,157,"Eastwind Shipping Company Pak (Pvt) Ltd (Reg. No. SA-636)",157,"KL MARITIME (M) SDN BHD - KUALA LUMPUR - MALAYSIA",61]
[null,null,157,"Eastwind Shipping Company Pak (Pvt) Ltd (Reg. No. SA-636)",157,"KOLMAR GROUP AG - SWITZERLAND",103]
[null,null,157,"Eastwind Shipping Company Pak (Pvt) Ltd (Reg. No. SA-636)",157,"KOREA LINE - SEOUL - KOREA",9]
[null,null,157,"Eastwind Shipping Company Pak (Pvt) Ltd (Reg. No. SA-636)",157,"KSM CO LTD",218]
[null,null,157,"Eastwind Shipping Company Pak (Pvt) Ltd (Reg. No. SA-636)",157,"LARUS S.A. - GREECE",112]
[null,null,157,"Eastwind Shipping Company Pak (Pvt) Ltd (Reg. No. SA-636)",157,"LAURIZEN BULK A/S",21]
[null,null,157,"Eastwind Shipping Company Pak (Pvt) Ltd (Reg. No. SA-636)",157,"LIBRA SHIPPING DUBAI - U.A.E.",4]
[null,null,157,"Eastwind Shipping Company Pak (Pvt) Ltd (Reg. No. SA-636)",157,"LINK MARINE PTE LTD",202]
[null,null,157,"Eastwind Shipping Company Pak (Pvt) Ltd (Reg. No. SA-636)",157,"MACHRIMAR MANAGEMENT S.A",213]
[null,null,157,"Eastwind Shipping Company Pak (Pvt) Ltd (Reg. No. SA-636)",157,"MAERSK SINGAPORE PTE LTD - SINGAPORE",67]
[null,null,157,"Eastwind Shipping Company Pak (Pvt) Ltd (Reg. No. SA-636)",157,"MARDAS MARMARA DENIZ ISLETMECILIGI A.S.",274]
[null,null,157,"Eastwind Shipping Company Pak (Pvt) Ltd (Reg. No. SA-636)",157,"MARE MARITIME CO - GREECE",131]
[null,null,157,"Eastwind Shipping Company Pak (Pvt) Ltd (Reg. No. SA-636)",157,"MARIDA TANKERS INC., c/o WOMAR LOGISTICS PTE LTD., SINGAPORE",83]
[null,null,157,"Eastwind Shipping Company Pak (Pvt) Ltd (Reg. No. SA-636)",157,"MARIMED SHIPPING LONDON - LONDON - UK",32]
[null,null,157,"Eastwind Shipping Company Pak (Pvt) Ltd (Reg. No. SA-636)",157,"MARINE CHEMIST SHIPPING LTD",281]
[null,null,157,"Eastwind Shipping Company Pak (Pvt) Ltd (Reg. No. SA-636)",157,"MARINE INSPECTION AND LOGISTICS INTERNATIONAL (MIL) FAR EAST",40]
[null,null,157,"Eastwind Shipping Company Pak (Pvt) Ltd (Reg. No. SA-636)",157,"MARMARAS NAVIGATION - PIRAEUS - GREECE",10]
[null,null,157,"Eastwind Shipping Company Pak (Pvt) Ltd (Reg. No. SA-636)",157,"MARNAVI SPA - ITALY",106]
[null,null,157,"Eastwind Shipping Company Pak (Pvt) Ltd (Reg. No. SA-636)",157,"MARPHOCEAN CASABLANCA - MORROCO",5]
[null,null,157,"Eastwind Shipping Company Pak (Pvt) Ltd (Reg. No. SA-636)",157,"MARPHOCEAN CASABLANCA - MORROCO",45]
[null,null,157,"Eastwind Shipping Company Pak (Pvt) Ltd (Reg. No. SA-636)",157,"MARTRADE GULD LOGISTICS FZCO - DUBAI - U.A.E",37]
[null,null,157,"Eastwind Shipping Company Pak (Pvt) Ltd (Reg. No. SA-636)",157,"MARTRADE SHIPPING +TRANSPORT GMBH - GERMANY",12]
[null,null,157,"Eastwind Shipping Company Pak (Pvt) Ltd (Reg. No. SA-636)",157,"MED TANKER LTD",172]
[null,null,157,"Eastwind Shipping Company Pak (Pvt) Ltd (Reg. No. SA-636)",157,"MESKEY & FEMTEE - KARACHI",118]
[null,null,157,"Eastwind Shipping Company Pak (Pvt) Ltd (Reg. No. SA-636)",157,"MITSUBISHI CORPORATION",280]
[null,null,157,"Eastwind Shipping Company Pak (Pvt) Ltd (Reg. No. SA-636)",157,"MRI TADING PTE LTD",214]
[null,null,157,"Eastwind Shipping Company Pak (Pvt) Ltd (Reg. No. SA-636)",157,"MTB DENIZCILIK VE TICARET A.S. - ISTANBUL - TURKEY",77]
[null,null,157,"Eastwind Shipping Company Pak (Pvt) Ltd (Reg. No. SA-636)",157,"MUR SHIPPING B.V.",242]
[null,null,157,"Eastwind Shipping Company Pak (Pvt) Ltd (Reg. No. SA-636)",157,"NABEEL SHIPMANAGENT LTD FZE - SHARJAH - U.A.E",42]
[null,null,157,"Eastwind Shipping Company Pak (Pvt) Ltd (Reg. No. SA-636)",157,"NANJING PETROLEUM TRANSPORTATION LTD",253]
[null,null,157,"Eastwind Shipping Company Pak (Pvt) Ltd (Reg. No. SA-636)",157,"NAVALMAR (UK) LIMITED",179]
[null,null,157,"Eastwind Shipping Company Pak (Pvt) Ltd (Reg. No. SA-636)",157,"NAVIG8 CHEMICALS AS - NORWAY",154]
[null,null,157,"Eastwind Shipping Company Pak (Pvt) Ltd (Reg. No. SA-636)",157,"NAVIG8 PTE LTD - SINGAPOER",28]
[null,null,157,"Eastwind Shipping Company Pak (Pvt) Ltd (Reg. No. SA-636)",157,"NAVIGATION MARITIME - BULGARIA",116]
[null,null,157,"Eastwind Shipping Company Pak (Pvt) Ltd (Reg. No. SA-636)",157,"NEGMAR DENIZCILIK YATIRIM A.S. - TURKEY",125]
[null,null,157,"Eastwind Shipping Company Pak (Pvt) Ltd (Reg. No. SA-636)",157,"NETWORK CHARTERING AMERICAS INC - U.S.A",59]
[null,null,157,"Eastwind Shipping Company Pak (Pvt) Ltd (Reg. No. SA-636)",157,"NHL-D CO LTD - SEOUL ",91]
[null,null,157,"Eastwind Shipping Company Pak (Pvt) Ltd (Reg. No. SA-636)",157,"NOBLE CAHRTERING LTD",265]
[null,null,157,"Eastwind Shipping Company Pak (Pvt) Ltd (Reg. No. SA-636)",157,"NOORIENT PRODUCT POOL APS - LIMASSOL - CYPRUS",64]
[null,null,157,"Eastwind Shipping Company Pak (Pvt) Ltd (Reg. No. SA-636)",157,"NORDEN SHIPPING (SINGAPORE) PTE LTD - SINGAPORE",24]
[null,null,157,"Eastwind Shipping Company Pak (Pvt) Ltd (Reg. No. SA-636)",157,"NORNA SHIPPING CORPORATION - EGYPT",54]
[null,null,157,"Eastwind Shipping Company Pak (Pvt) Ltd (Reg. No. SA-636)",157,"NORSTAR SHIP MANAGEMENT PTE LTD",183]
[null,null,157,"Eastwind Shipping Company Pak (Pvt) Ltd (Reg. No. SA-636)",157,"NORVIC SHIPPING NORTH AMERIC",232]
[null,null,157,"Eastwind Shipping Company Pak (Pvt) Ltd (Reg. No. SA-636)",157,"NOS SHIPMANAGEMENT PTE LTD - SINGAPORE",139]
[null,null,157,"Eastwind Shipping Company Pak (Pvt) Ltd (Reg. No. SA-636)",157,"OCEAN AGENCIES LIMITED",227]
[null,null,157,"Eastwind Shipping Company Pak (Pvt) Ltd (Reg. No. SA-636)",157,"OCEAN TANKERS PTE LTD",241]
[null,null,157,"Eastwind Shipping Company Pak (Pvt) Ltd (Reg. No. SA-636)",157,"OCEAN TREND CARRIERS LTD",226]
[null,null,157,"Eastwind Shipping Company Pak (Pvt) Ltd (Reg. No. SA-636)",157,"OCEANWIDE SERVICES GMBH - HAMBUG - GERMANY",149]
[null,null,157,"Eastwind Shipping Company Pak (Pvt) Ltd (Reg. No. SA-636)",157,"ODFJELL TANKERS A.S. - BERGEN - NORWAY",109]
[null,null,157,"Eastwind Shipping Company Pak (Pvt) Ltd (Reg. No. SA-636)",157,"OLDENDORFF CARRIERS GMBH & CO., KG",266]
[null,null,157,"Eastwind Shipping Company Pak (Pvt) Ltd (Reg. No. SA-636)",157,"OLIMPEX NIGERIA LTD - NIGERIA",93]
[null,null,157,"Eastwind Shipping Company Pak (Pvt) Ltd (Reg. No. SA-636)",157,"ORIENTAL SHIPPING & INVESTMENT LIMITED - CHINA",124]
[null,null,157,"Eastwind Shipping Company Pak (Pvt) Ltd (Reg. No. SA-636)",157,"PACMAR DENIZCILIK LIMITED SIRKETI",207]
[null,null,157,"Eastwind Shipping Company Pak (Pvt) Ltd (Reg. No. SA-636)",157,"PCL SHIPPING PTE LTD",224]
[null,null,157,"Eastwind Shipping Company Pak (Pvt) Ltd (Reg. No. SA-636)",157,"PCL TANKERS PTE LTD., SINGAPORE",84]
[null,null,157,"Eastwind Shipping Company Pak (Pvt) Ltd (Reg. No. SA-636)",157,"PENDULUM SHIPMANAGEMENT INC",256]
[null,null,157,"Eastwind Shipping Company Pak (Pvt) Ltd (Reg. No. SA-636)",157,"PENTA OCEAN SHIP MANAGEMENT & OPERATION LLC",276]
[null,null,157,"Eastwind Shipping Company Pak (Pvt) Ltd (Reg. No. SA-636)",157,"PERNAS LTD - CYPRUS",70]
[null,null,157,"Eastwind Shipping Company Pak (Pvt) Ltd (Reg. No. SA-636)",157,"PETER CREMER - GERMANY",8]
[null,null,157,"Eastwind Shipping Company Pak (Pvt) Ltd (Reg. No. SA-636)",157,"PETROCHEM MIDDLE EAST FZE - DUBAI - U.A.E",145]
[null,null,157,"Eastwind Shipping Company Pak (Pvt) Ltd (Reg. No. SA-636)",157,"PETSARO CHEMICALS AG WITZERLAND",90]
[null,null,157,"Eastwind Shipping Company Pak (Pvt) Ltd (Reg. No. SA-636)",157,"PHAETHON INTERNATIONAL LTD",229]
[null,null,157,"Eastwind Shipping Company Pak (Pvt) Ltd (Reg. No. SA-636)",157,"PL SHIPPING CO - GREECE",129]
[null,null,157,"Eastwind Shipping Company Pak (Pvt) Ltd (Reg. No. SA-636)",157,"POLE SHIPPING SA - GENEVA - SWITZERLAND",69]
[null,null,157,"Eastwind Shipping Company Pak (Pvt) Ltd (Reg. No. SA-636)",157,"POSEIDON SCHIFFAHRT GMBH",250]
[null,null,157,"Eastwind Shipping Company Pak (Pvt) Ltd (Reg. No. SA-636)",157,"PRIME COSMOS LIMITED, HONG KONG",85]
[null,null,157,"Eastwind Shipping Company Pak (Pvt) Ltd (Reg. No. SA-636)",157,"PRIME MARINE MANAGEMENT INC",165]
[null,null,157,"Eastwind Shipping Company Pak (Pvt) Ltd (Reg. No. SA-636)",157,"PRIMETRANSPORT LTD - ODESSA - UKRAINE",29]
[null,null,157,"Eastwind Shipping Company Pak (Pvt) Ltd (Reg. No. SA-636)",157,"PRISTINE SHIPPING INC",233]
[null,null,157,"Eastwind Shipping Company Pak (Pvt) Ltd (Reg. No. SA-636)",157,"PROCHART SARL BEIRUT - LEMANON",47]
[null,null,157,"Eastwind Shipping Company Pak (Pvt) Ltd (Reg. No. SA-636)",157,"PT BERLIAN LAJU TANKER LTD, TBK - JAKARTA - INDONESIA",62]
[null,null,157,"Eastwind Shipping Company Pak (Pvt) Ltd (Reg. No. SA-636)",157,"PT KARYA BAKTI ADIL - JAKARTA",99]
[null,null,157,"Eastwind Shipping Company Pak (Pvt) Ltd (Reg. No. SA-636)",157,"Q SHIPPING B.V.",208]
[null,null,157,"Eastwind Shipping Company Pak (Pvt) Ltd (Reg. No. SA-636)",157,"R SHIPPING INC - PIRAEUS - GREECE",14]
[null,null,157,"Eastwind Shipping Company Pak (Pvt) Ltd (Reg. No. SA-636)",157,"RAFFLES SHIPPING INTERNATIONAL PTE LTD., SINGAPORE",86]
[null,null,157,"Eastwind Shipping Company Pak (Pvt) Ltd (Reg. No. SA-636)",157,"ROYALMAR SHIPPING & SHIP MANAGEMENT LTD",177]
[null,null,157,"Eastwind Shipping Company Pak (Pvt) Ltd (Reg. No. SA-636)",157,"S5 AGENCY WORLD LTD ",248]
[null,null,157,"Eastwind Shipping Company Pak (Pvt) Ltd (Reg. No. SA-636)",157,"SALHUS SHIPPING AS",166]
[null,null,157,"Eastwind Shipping Company Pak (Pvt) Ltd (Reg. No. SA-636)",157,"SAMHO SHIPPING CO,. LTD - BUSAN - KOREA",33]
[null,null,157,"Eastwind Shipping Company Pak (Pvt) Ltd (Reg. No. SA-636)",157,"SEA PIONEER LTD - TURKEY",150]
[null,null,157,"Eastwind Shipping Company Pak (Pvt) Ltd (Reg. No. SA-636)",157,"SEA TANKERS 1 LTD",199]
[null,null,157,"Eastwind Shipping Company Pak (Pvt) Ltd (Reg. No. SA-636)",157,"SEATRANS MANAGEMENT ENTERPRISES INC",228]
[null,null,157,"Eastwind Shipping Company Pak (Pvt) Ltd (Reg. No. SA-636)",157,"SELANDIA SHIPMANAGEMENT (SINGAPORE) PTE LTD - SINGAPORE",122]
[null,null,157,"Eastwind Shipping Company Pak (Pvt) Ltd (Reg. No. SA-636)",157,"SENET PERTOL DENIZCILIK VE TIC AS",261]
[null,null,157,"Eastwind Shipping Company Pak (Pvt) Ltd (Reg. No. SA-636)",157,"SERROMAH SHIPPING B.V.- THE NETHERLANDS",26]
[null,null,157,"Eastwind Shipping Company Pak (Pvt) Ltd (Reg. No. SA-636)",157,"SETAF SAGET SAS",251]
[null,null,157,"Eastwind Shipping Company Pak (Pvt) Ltd (Reg. No. SA-636)",157,"SHIPPING ASSET MANAGEMENT",249]
[null,null,157,"Eastwind Shipping Company Pak (Pvt) Ltd (Reg. No. SA-636)",157,"SHISERCO A.L. - LUGANO - SWITZERLAND",88]
[null,null,157,"Eastwind Shipping Company Pak (Pvt) Ltd (Reg. No. SA-636)",157,"SHUTTLE CHEMICAL CARRIERS LLP",254]
[null,null,157,"Eastwind Shipping Company Pak (Pvt) Ltd (Reg. No. SA-636)",157,"SHV GAS SUPPLY & RISK MANAGEMENT,SINGAPORE",87]
[null,null,157,"Eastwind Shipping Company Pak (Pvt) Ltd (Reg. No. SA-636)",157,"SIA LSC SHIPMANAGEMENT - RIGA - LATVIA",15]
[null,null,157,"Eastwind Shipping Company Pak (Pvt) Ltd (Reg. No. SA-636)",157,"SILCOMPA S.P.A. - ITALY",53]
[null,null,157,"Eastwind Shipping Company Pak (Pvt) Ltd (Reg. No. SA-636)",157,"SILO MANAGEMENT S.A.- ATHENS - GREECE",114]
[null,null,157,"Eastwind Shipping Company Pak (Pvt) Ltd (Reg. No. SA-636)",157,"SILO MANAGEMENT S.A.- ATHENS - GREECE",115]
[null,null,157,"Eastwind Shipping Company Pak (Pvt) Ltd (Reg. No. SA-636)",157,"SIMATECH SHIPPING & FORWARDING LLC - DUBAI",81]
[null,null,157,"Eastwind Shipping Company Pak (Pvt) Ltd (Reg. No. SA-636)",157,"SIMATECH SHIPPING PTE LTD - SINGAPORE",80]
[null,null,157,"Eastwind Shipping Company Pak (Pvt) Ltd (Reg. No. SA-636)",157,"SIMS METAL MANAGEMENT LTD",225]
[null,null,157,"Eastwind Shipping Company Pak (Pvt) Ltd (Reg. No. SA-636)",157,"SINOCHEM SHIPPING CO LTD",238]
[null,null,157,"Eastwind Shipping Company Pak (Pvt) Ltd (Reg. No. SA-636)",157,"SIRIUS SHIP MANAGEMENT SRL",167]
[null,null,157,"Eastwind Shipping Company Pak (Pvt) Ltd (Reg. No. SA-636)",157,"SL SHIPPING PTE LTD - SINGAPORE",102]
[null,null,157,"Eastwind Shipping Company Pak (Pvt) Ltd (Reg. No. SA-636)",157,"SOJITZ CORPORATION - TOYKO - JAPAN",105]
[null,null,157,"Eastwind Shipping Company Pak (Pvt) Ltd (Reg. No. SA-636)",157,"SOSAY SHIPPING INC. ISTANBUL",16]
[null,null,157,"Eastwind Shipping Company Pak (Pvt) Ltd (Reg. No. SA-636)",157,"SOURCE KING HOLDING LTD",174]
[null,null,157,"Eastwind Shipping Company Pak (Pvt) Ltd (Reg. No. SA-636)",157,"SOUTHERNPEC (SINGAPORE)SHIPPING PTE. LTD",216]
[null,null,157,"Eastwind Shipping Company Pak (Pvt) Ltd (Reg. No. SA-636)",157,"ST SHIPPING AND TRANSPORT PTE LTD",259]
[null,null,157,"Eastwind Shipping Company Pak (Pvt) Ltd (Reg. No. SA-636)",157,"STARSHIP FREIGHT PVT LTD - MUMBAI - INDIA",137]
[null,null,157,"Eastwind Shipping Company Pak (Pvt) Ltd (Reg. No. SA-636)",157,"STE. POZZI OFF - SHORE SAL - BEIRUT - LEBANON",63]
[null,null,157,"Eastwind Shipping Company Pak (Pvt) Ltd (Reg. No. SA-636)",157,"STOLT TANKERS B.V. - THE NETHERLANDS",104]
[null,null,157,"Eastwind Shipping Company Pak (Pvt) Ltd (Reg. No. SA-636)",157,"ST-SHIPPING PTE LTD - KOREA",71]
[null,null,157,"Eastwind Shipping Company Pak (Pvt) Ltd (Reg. No. SA-636)",157,"STX PAN OCEAN - SEOUL - KOREA",155]
[null,null,157,"Eastwind Shipping Company Pak (Pvt) Ltd (Reg. No. SA-636)",157,"STX PAN OCEAN SINGAPORE PTE LTD - SINGAPORE",51]
[null,null,157,"Eastwind Shipping Company Pak (Pvt) Ltd (Reg. No. SA-636)",157,"SUNRISE MARITIME PTE LTD",194]
[null,null,157,"Eastwind Shipping Company Pak (Pvt) Ltd (Reg. No. SA-636)",157,"SUNWOO TANKER CO LTD - SEOUL",92]
[null,null,157,"Eastwind Shipping Company Pak (Pvt) Ltd (Reg. No. SA-636)",157,"SUPREME BULK CARRIERS LTD",236]
[null,null,157,"Eastwind Shipping Company Pak (Pvt) Ltd (Reg. No. SA-636)",157,"SWISS SINGAPORE OVERSEAS ENTERPRISES PTE LTD - UAE",147]
[null,null,157,"Eastwind Shipping Company Pak (Pvt) Ltd (Reg. No. SA-636)",157,"SYNCRO SHIPPING CO LTD - SEOUL - KOREA",132]
[null,null,157,"Eastwind Shipping Company Pak (Pvt) Ltd (Reg. No. SA-636)",157,"TBS SHIPPING SERVICES, INC.,",273]
[null,null,157,"Eastwind Shipping Company Pak (Pvt) Ltd (Reg. No. SA-636)",157,"T-BULK SRL - ITALY",76]
[null,null,157,"Eastwind Shipping Company Pak (Pvt) Ltd (Reg. No. SA-636)",157,"THAI OGA TRADING CO LTD - THAILAND",89]
[null,null,157,"Eastwind Shipping Company Pak (Pvt) Ltd (Reg. No. SA-636)",157,"THE ARABIAN PETROLIUM SUPPLY CO LTD - SAUDI ARABIA",96]
[null,null,157,"Eastwind Shipping Company Pak (Pvt) Ltd (Reg. No. SA-636)",157,"THOME SHIP MANAGEMENT PTE LTD",201]
[null,null,157,"Eastwind Shipping Company Pak (Pvt) Ltd (Reg. No. SA-636)",157,"THORESEN SHIPPING (SINGAPORE) PTE LTD",234]
[null,null,157,"Eastwind Shipping Company Pak (Pvt) Ltd (Reg. No. SA-636)",157,"TOKYO MARINE ASIA PTE LTD",231]
[null,null,157,"Eastwind Shipping Company Pak (Pvt) Ltd (Reg. No. SA-636)",157,"TOKYO MARINE CO LTD - TOKYO - JAPAN ",78]
[null,null,157,"Eastwind Shipping Company Pak (Pvt) Ltd (Reg. No. SA-636)",157,"TORM TANKERS",200]
[null,null,157,"Eastwind Shipping Company Pak (Pvt) Ltd (Reg. No. SA-636)",157,"TRADHOL INTERNATIONAL SA - MADRID - ESPANA",52]
[null,null,157,"Eastwind Shipping Company Pak (Pvt) Ltd (Reg. No. SA-636)",157,"TRANSAL SHIPPING - ISTANBUL - TURKEY",25]
[null,null,157,"Eastwind Shipping Company Pak (Pvt) Ltd (Reg. No. SA-636)",157,"TRANSAYMAR SHIPPING LTD",245]
[null,null,157,"Eastwind Shipping Company Pak (Pvt) Ltd (Reg. No. SA-636)",157,"TRANSGRAIN SINGAPORE PTE LTD - SINGAPORE",133]
[null,null,157,"Eastwind Shipping Company Pak (Pvt) Ltd (Reg. No. SA-636)",157,"TRUST OIL TANKERS S.A. - ATHENS - GREECE",13]
[null,null,157,"Eastwind Shipping Company Pak (Pvt) Ltd (Reg. No. SA-636)",157,"TUNE CHEMICAL TANKERS ",204]
[null,null,157,"Eastwind Shipping Company Pak (Pvt) Ltd (Reg. No. SA-636)",157,"TURKER DENIZ TASIMACILIGI VE TICARET A.S.",246]
[null,null,157,"Eastwind Shipping Company Pak (Pvt) Ltd (Reg. No. SA-636)",157,"ULTRABULK AS",260]
[null,null,157,"Eastwind Shipping Company Pak (Pvt) Ltd (Reg. No. SA-636)",157,"UNITEAM MARINE - HAMBURG - GERMANY",41]
[null,null,157,"Eastwind Shipping Company Pak (Pvt) Ltd (Reg. No. SA-636)",157,"UNIVAN MARITIME (H.K.) LIMITED",220]
[null,null,157,"Eastwind Shipping Company Pak (Pvt) Ltd (Reg. No. SA-636)",157,"UNIVERSAL LUBRICANT FACTORY - U.A.E",143]
[null,null,157,"Eastwind Shipping Company Pak (Pvt) Ltd (Reg. No. SA-636)",157,"V SHIP UKRAINE",282]
[null,null,157,"Eastwind Shipping Company Pak (Pvt) Ltd (Reg. No. SA-636)",157,"V. SHIP (ASIA) PTE PVT LTD - SINGAPORE",97]
[null,null,157,"Eastwind Shipping Company Pak (Pvt) Ltd (Reg. No. SA-636)",157,"V. SHIPS UK LIMITED - UNITED KINGDOM",157]
[null,null,157,"Eastwind Shipping Company Pak (Pvt) Ltd (Reg. No. SA-636)",157,"VBA VENTURE BULK ASIA PTE LTD - SINGAPORE",38]
[null,null,157,"Eastwind Shipping Company Pak (Pvt) Ltd (Reg. No. SA-636)",157,"VILMEKS IC VE DIS TIC. VE METAL SAN A.S. - ISTANBUL - TURKEY",117]
[null,null,157,"Eastwind Shipping Company Pak (Pvt) Ltd (Reg. No. SA-636)",157,"VITOL ASIA PTE LTD",244]
[null,null,157,"Eastwind Shipping Company Pak (Pvt) Ltd (Reg. No. SA-636)",157,"VOGE EVA GMBH CO",237]
[null,null,157,"Eastwind Shipping Company Pak (Pvt) Ltd (Reg. No. SA-636)",157,"w",211]
[null,null,157,"Eastwind Shipping Company Pak (Pvt) Ltd (Reg. No. SA-636)",157,"WAM SINGAPORE (PTE) LTD - SINGAPORE",23]
[null,null,157,"Eastwind Shipping Company Pak (Pvt) Ltd (Reg. No. SA-636)",157,"WESTERN BULK CARRIER K/S - OSLO - NORWAY",44]
[null,null,157,"Eastwind Shipping Company Pak (Pvt) Ltd (Reg. No. SA-636)",157,"WINNING SHIPPING",189]
[null,null,157,"Eastwind Shipping Company Pak (Pvt) Ltd (Reg. No. SA-636)",157,"WIRANA PRIVATE LTD - SINGAPORE",34]
[null,null,157,"Eastwind Shipping Company Pak (Pvt) Ltd (Reg. No. SA-636)",157,"WISDOM MARINE LINE",168]
[null,null,157,"Eastwind Shipping Company Pak (Pvt) Ltd (Reg. No. SA-636)",157,"WORLD CARRIER CORPORATION",184]
[null,null,157,"Eastwind Shipping Company Pak (Pvt) Ltd (Reg. No. SA-636)",157,"WORLD WIDE SHIPPING LTD",153]
[null,null,157,"Eastwind Shipping Company Pak (Pvt) Ltd (Reg. No. SA-636)",157,"YELLOW FUNNEL SHIPPING LTD - MALTA",120]
[null,null,157,"Eastwind Shipping Company Pak (Pvt) Ltd (Reg. No. SA-636)",157,"YM URANUS TANKERS LIMITED - MALTA",144]
[null,null,157,"Eastwind Shipping Company Pak (Pvt) Ltd (Reg. No. SA-636)",157,"ZELMAR DENIZCILIK TICARET LIMITED",195]
[null,null,157,"Eastwind Shipping Company Pak (Pvt) Ltd (Reg. No. SA-636)",157,"ZEN SHIPPING - INDIA",138]
[null,null,157,"Eastwind Shipping Company Pak (Pvt) Ltd (Reg. No. SA-636)",157,"ZODIAC MARITIME AGENCIES LONDON U.K.",6]
[null,null,150,"EMIRATES SHIPPING AGENCY PAKISTAN(PVT) LTD",150,"EMIRATES SHIPPING LINE FZE DUBAI UAE",1]
[null,null,387,"Emkay Shipping Agencies (Reg. No. SA-534)",387,"No Principal available",0]
[null,null,323,"Entice Shipping Services (Pvt) Ltd(Reg. No. SA-414)",323,"No Principal available",0]
[null,null,221,"Era Marine Agencies (Reg. No. SA-648)",221,"No Principal available",0]
[null,null,268,"ESL Pakistan (Pvt) Ltd (Reg. No. SA- 713)",268,"No Principal available",0]
[null,null,198,"Evergreen Shipping & Logistics (Pvt) Ltd (Reg. No. SA-621)",198,"No Principal available",0]
[null,null,159,"EXCEL FREIGHT SYSTEMS (PVT) LTD",159,"No Principal available",0]
[null,null,358,"Experince Express Services (Pvt) Ltd (Reg. No. SA-485)",358,"No Principal available",0]
[null,null,24,"FACILITIES SERVICES PVT LTD",24,"IRISH",2]
[null,null,24,"FACILITIES SERVICES PVT LTD",24,"UKARISH",1]
[null,null,378,"Facilities Shipping Agency (Reg. No. SA-520)",378,"No Principal available",0]
[null,null,346,"Faiz Cargo (Pvt) Ltd (Reg. No. SA-467)",346,"No Principal available",0]
[null,null,25,"FANN MARITIME PVT LTD",25,"No Principal available",0]
[null,null,406,"Farasia Maritime Agencies (Reg. No. SA-559)",406,"No Principal available",0]
[null,null,308,"Fins Shipping Company (Pvt) Ltd(Reg. No. SA-347)",308,"No Principal available",0]
[null,null,407,"Fiza Logistics (Pvt) Ltd (Reg. No. SA-560)",407,"No Principal available",0]
[null,null,26,"FORBES FORBES CAMPBELL",26,"ACOMONT UK GLASCOW, UK",1]
[null,null,26,"FORBES FORBES CAMPBELL",26,"AKAK MARINE CO BEIRUT",2]
[null,null,26,"FORBES FORBES CAMPBELL",26,"UNITED ARAB SHIPPING CO",3]
[null,null,167,"FORBES SHIPPING COMPANY PVT LTD.(Reg. No.SA-363)",167,"LNL MARITIUS",1]
[null,null,167,"FORBES SHIPPING COMPANY PVT LTD.(Reg. No.SA-363)",167,"SETH MAURITIUS",2]
[null,null,362,"Freight Connection Pakistan (Pvt) Ltd (Reg. No. SA-492)",362,"No Principal available",0]
[null,null,344,"Freight Services (Reg. No. SA-464)",344,"No Principal available",0]
[null,null,28,"FREIGHT SYSTEM PVT LTD",28,"No Principal available",0]
[null,null,29,"FRIENDS PVT LTD",29,"GLOBLE CONTAINER LINE",1]
[null,null,29,"FRIENDS PVT LTD",29,"MALDIVES NATIONAL SHIPPING LTD.",2]
[null,null,355,"G.M Logistics (Pvt) Ltd (Reg. No. SA-481)",355,"No Principal available",0]
[null,null,30,"GAC SHIPPING PVT LTD",30," M/S. ZHEHAI SHIPPING CO. LTD., CHINA ",650]
[null,null,30,"GAC SHIPPING PVT LTD",30,". ANSAC WESTPORT ¿ USA",617]
[null,null,30,"GAC SHIPPING PVT LTD",30,". FIRST LINES COMPANY S.A. GREECE ",644]
[null,null,30,"GAC SHIPPING PVT LTD",30,". PLEIADES SHIPPING AGENTS-SA - GREECE",641]
[null,null,30,"GAC SHIPPING PVT LTD",30,". V. SHIP UK. LTD. - UK",612]
[null,null,30,"GAC SHIPPING PVT LTD",30,"A.B MARITIME INC.",558]
[null,null,30,"GAC SHIPPING PVT LTD",30,"A.C.S. AUSTRIAN.",521]
[null,null,30,"GAC SHIPPING PVT LTD",30,"A.P. MOLLER",237]
[null,null,30,"GAC SHIPPING PVT LTD",30,"ABC",345]
[null,null,30,"GAC SHIPPING PVT LTD",30,"Abu Dhabi National Tanker Co.",571]
[null,null,30,"GAC SHIPPING PVT LTD",30,"ABUDHAZM NATIONAL TANKERS",1]
[null,null,30,"GAC SHIPPING PVT LTD",30,"ACS Marine & Shipping Pte Ltd.",572]
[null,null,30,"GAC SHIPPING PVT LTD",30,"ACS MARINE & SHIPPING PTE. LTD.",567]
[null,null,30,"GAC SHIPPING PVT LTD",30,"AEGEAN SHIPPING",2]
[null,null,30,"GAC SHIPPING PVT LTD",30,"AERIO SHIPMANAGMENT LTD",705]
[null,null,30,"GAC SHIPPING PVT LTD",30,"AFNE HOLT SHIPPING",4]
[null,null,30,"GAC SHIPPING PVT LTD",30,"AKAR GRUP DENIZ TASIMACHILLGI LTD",378]
[null,null,30,"GAC SHIPPING PVT LTD",30,"AKAR GRUP DENIZ TASIMACILLGI LTD",433]
[null,null,30,"GAC SHIPPING PVT LTD",30,"AKSAY SHIPPING",5]
[null,null,30,"GAC SHIPPING PVT LTD",30,"AL BARRAK CARGO SYSTEM",273]
[null,null,30,"GAC SHIPPING PVT LTD",30,"AL BARRAK SHIPPING LTD",281]
[null,null,30,"GAC SHIPPING PVT LTD",30,"AL GHADEER MARINE SHIPPING",304]
[null,null,30,"GAC SHIPPING PVT LTD",30,"AL JABER SHIPPING AGENCY & MARINE",533]
[null,null,30,"GAC SHIPPING PVT LTD",30,"ALCO SERVICES SOURTH AFRICA",243]
[null,null,30,"GAC SHIPPING PVT LTD",30,"ALCOTRA SA",300]
[null,null,30,"GAC SHIPPING PVT LTD",30,"ALENDAL TANKERS",210]
[null,null,30,"GAC SHIPPING PVT LTD",30,"ALLIED MARITIME",6]
[null,null,30,"GAC SHIPPING PVT LTD",30,"ALMIRA SHIPPING & TRADING GREECE",322]
[null,null,30,"GAC SHIPPING PVT LTD",30,"ALPHA TANKERS ATHENS",101]
[null,null,30,"GAC SHIPPING PVT LTD",30,"ALSABATAIN SHIPPING & MARINE SERVICES. DUBAI-UAE",704]
[null,null,30,"GAC SHIPPING PVT LTD",30,"altomar maritime montreal",109]
[null,null,30,"GAC SHIPPING PVT LTD",30,"ALUNITED MARITIME",211]
[null,null,30,"GAC SHIPPING PVT LTD",30,"AMARANTE SHIPPING PTE LTD SINGAPORE",275]
[null,null,30,"GAC SHIPPING PVT LTD",30,"AMERICAN RO/RO CARRIER",276]
[null,null,30,"GAC SHIPPING PVT LTD",30,"ANBROS MARITIME S.A",296]
[null,null,30,"GAC SHIPPING PVT LTD",30,"ANCORA SHIPPING",7]
[null,null,30,"GAC SHIPPING PVT LTD",30,"ANGLO EASTERN SHIP MANAGEMENT",499]
[null,null,30,"GAC SHIPPING PVT LTD",30,"ARAB SHIPMANAGEMENT",250]
[null,null,30,"GAC SHIPPING PVT LTD",30,"ARC USA",171]
[null,null,30,"GAC SHIPPING PVT LTD",30,"ARCHIPELAGO SHIPS MANAGEMENT S.A.",477]
[null,null,30,"GAC SHIPPING PVT LTD",30,"ARGO SYSTEMS FZE. DUBAI-UAE",703]
[null,null,30,"GAC SHIPPING PVT LTD",30,"ARION SHIPPING LTD.",301]
[null,null,30,"GAC SHIPPING PVT LTD",30,"Asan Merchant Marine Co. Ltd.",573]
[null,null,30,"GAC SHIPPING PVT LTD",30,"AST INC TOKYO",216]
[null,null,30,"GAC SHIPPING PVT LTD",30,"AST INC TOKYO",224]
[null,null,30,"GAC SHIPPING PVT LTD",30,"AST INC.",519]
[null,null,30,"GAC SHIPPING PVT LTD",30,"ATA SHIPPING CORP.",379]
[null,null,30,"GAC SHIPPING PVT LTD",30,"ATAOFFSHORE & AGENCY - TURKEY",712]
[null,null,30,"GAC SHIPPING PVT LTD",30,"ATL Shipping Ltd., China",554]
[null,null,30,"GAC SHIPPING PVT LTD",30,"ATLAS CHEMICAL TANKER",525]
[null,null,30,"GAC SHIPPING PVT LTD",30,"Aug Bolten WM Miller Nachfolger",574]
[null,null,30,"GAC SHIPPING PVT LTD",30,"AUG BOLTEN WM MILLERS NACHFOLGER",568]
[null,null,30,"GAC SHIPPING PVT LTD",30,"AUSTRIAN CHARTERING SERVICES",212]
[null,null,30,"GAC SHIPPING PVT LTD",30,"AVIN INTERNATIONAL S.A.",507]
[null,null,30,"GAC SHIPPING PVT LTD",30,"B + H EQUIMAR SINGAPORE",354]
[null,null,30,"GAC SHIPPING PVT LTD",30,"B NAVI SHIP MANAGEMENT",313]
[null,null,30,"GAC SHIPPING PVT LTD",30,"BAAKAZA",251]
[null,null,30,"GAC SHIPPING PVT LTD",30,"BALTIC GROUP INTERNATIONAL",380]
[null,null,30,"GAC SHIPPING PVT LTD",30,"BARU KANA",8]
[null,null,30,"GAC SHIPPING PVT LTD",30,"BARWIL AGENCIES",9]
[null,null,30,"GAC SHIPPING PVT LTD",30,"BATI SHIPPING",10]
[null,null,30,"GAC SHIPPING PVT LTD",30,"BBC CHARTERING & LOGISTICS",431]
[null,null,30,"GAC SHIPPING PVT LTD",30,"Benelux East Med Trading SA, Greece",555]
[null,null,30,"GAC SHIPPING PVT LTD",30,"BERNHARD SCHULTE SHIPMANAGE",467]
[null,null,30,"GAC SHIPPING PVT LTD",30,"BEST OASIS LIMITED",569]
[null,null,30,"GAC SHIPPING PVT LTD",30,"Best Oasis Limited",575]
[null,null,30,"GAC SHIPPING PVT LTD",30,"BLESHIPS MANAGEMENT",451]
[null,null,30,"GAC SHIPPING PVT LTD",30,"BLUE SEA TANKERS GMBH & CO.",695]
[null,null,30,"GAC SHIPPING PVT LTD",30,"BOBLE RESOURCES",299]
[null,null,30,"GAC SHIPPING PVT LTD",30,"BP SHIPPING LTD U.K",218]
[null,null,30,"GAC SHIPPING PVT LTD",30,"BRAYSTAD SHIPPING",11]
[null,null,30,"GAC SHIPPING PVT LTD",30,"BRIDGE MARINE CO. LTD.",452]
[null,null,30,"GAC SHIPPING PVT LTD",30,"BRIGHT SHIPPING LTD.,",145]
[null,null,30,"GAC SHIPPING PVT LTD",30,"BRILLIANT MARINE S.A.",522]
[null,null,30,"GAC SHIPPING PVT LTD",30,"BROBULK UK LTD",261]
[null,null,30,"GAC SHIPPING PVT LTD",30,"BRYGGEN SHIPPING & TRADING",295]
[null,null,30,"GAC SHIPPING PVT LTD",30,"BSLE MALTA LDA",473]
[null,null,30,"GAC SHIPPING PVT LTD",30,"BULK MARINE LTD",256]
[null,null,30,"GAC SHIPPING PVT LTD",30,"BULK SERVICE LINES ERL GENOA",247]
[null,null,30,"GAC SHIPPING PVT LTD",30,"BULK SERVICE LINES ERL GENOA",439]
[null,null,30,"GAC SHIPPING PVT LTD",30,"BW Maritime Ltd.",576]
[null,null,30,"GAC SHIPPING PVT LTD",30,"BW MARITIME LTD. - SINGAPORE",692]
[null,null,30,"GAC SHIPPING PVT LTD",30,"C + C MARITIME PTE. LTD.",498]
[null,null,30,"GAC SHIPPING PVT LTD",30,"CANBAZ SHIPPING GROUP",501]
[null,null,30,"GAC SHIPPING PVT LTD",30,"CANFORNAV INC",293]
[null,null,30,"GAC SHIPPING PVT LTD",30,"CANPOTEX INTERNATIONAL PTE LTD",225]
[null,null,30,"GAC SHIPPING PVT LTD",30,"CAPITAL SHIP MANAGEMENT",283]
[null,null,30,"GAC SHIPPING PVT LTD",30,"CAPITAL SHIP MANAGEMENT GREECE",274]
[null,null,30,"GAC SHIPPING PVT LTD",30,"CARDIFF MARINE INC., GREECE",173]
[null,null,30,"GAC SHIPPING PVT LTD",30,"CARE TANKERS INC",406]
[null,null,30,"GAC SHIPPING PVT LTD",30,"CARGILL INTERNATIONAL S.A.",112]
[null,null,30,"GAC SHIPPING PVT LTD",30,"CARGILL OCEAN TRANSPORATION PTE. LTD.",509]
[null,null,30,"GAC SHIPPING PVT LTD",30,"CARGO GULF",272]
[null,null,30,"GAC SHIPPING PVT LTD",30,"CARGO GULF",280]
[null,null,30,"GAC SHIPPING PVT LTD",30,"CAVODORO SHIPPING",12]
[null,null,30,"GAC SHIPPING PVT LTD",30,"CCG MARINE",84]
[null,null,30,"GAC SHIPPING PVT LTD",30,"CEC OPERATION",131]
[null,null,30,"GAC SHIPPING PVT LTD",30,"CEMOIL ADANI PTE. ",464]
[null,null,30,"GAC SHIPPING PVT LTD",30,"CERES HELLENIC",13]
[null,null,30,"GAC SHIPPING PVT LTD",30,"CFD Shipping LLC",596]
[null,null,30,"GAC SHIPPING PVT LTD",30,"CHAMION TANKERS",389]
[null,null,30,"GAC SHIPPING PVT LTD",30,"CHAMPION TANKER A/C SVG",199]
[null,null,30,"GAC SHIPPING PVT LTD",30,"CHARTWORLD SHIP CORPORATION GREECE",206]
[null,null,30,"GAC SHIPPING PVT LTD",30,"CHEM MARINE SHIPPING",267]
[null,null,30,"GAC SHIPPING PVT LTD",30,"CHEMEY LTD",14]
[null,null,30,"GAC SHIPPING PVT LTD",30,"CHEMIKALIENALINE TRANSPORT GMBH",534]
[null,null,30,"GAC SHIPPING PVT LTD",30,"CHEMITRANS INTERNATIONAL",306]
[null,null,30,"GAC SHIPPING PVT LTD",30,"CHEMOIL ADANI PTE. LTD.",453]
[null,null,30,"GAC SHIPPING PVT LTD",30,"CHEVRON TEXACO SHIPPING-UK",504]
[null,null,30,"GAC SHIPPING PVT LTD",30,"CHHEVRON SHIPPING C/O GLOBAL DISBURSEMENT",262]
[null,null,30,"GAC SHIPPING PVT LTD",30,"CHINA HARBOUR ENGG.",102]
[null,null,30,"GAC SHIPPING PVT LTD",30,"CHINA NATIONAL CHARTERING CORPORATION",166]
[null,null,30,"GAC SHIPPING PVT LTD",30,"CHINA SHIPPING",15]
[null,null,30,"GAC SHIPPING PVT LTD",30,"CHINA SHIPPING DEVELOPMENT CO. LTD.",516]
[null,null,30,"GAC SHIPPING PVT LTD",30,"CHINA SHIPPING DEVELOPMENT TANKERS CO.",207]
[null,null,30,"GAC SHIPPING PVT LTD",30,"CHINA SHIPPING TANKERS CO. LTD",706]
[null,null,30,"GAC SHIPPING PVT LTD",30,"CHINESE POLISH JOINT STOCK SHIPPING CO ",440]
[null,null,30,"GAC SHIPPING PVT LTD",30,"CHINSE POLISH JOINT VENTURE",305]
[null,null,30,"GAC SHIPPING PVT LTD",30,"CIEL SHIPSMANAGEMENT",399]
[null,null,30,"GAC SHIPPING PVT LTD",30,"CLEMKO SHIPMANAGEMENT",329]
[null,null,30,"GAC SHIPPING PVT LTD",30,"Clio Navigation Corporation",577]
[null,null,30,"GAC SHIPPING PVT LTD",30,"CLIPPER BULK (USA) INC.",238]
[null,null,30,"GAC SHIPPING PVT LTD",30,"CLIPPER ELITE",17]
[null,null,30,"GAC SHIPPING PVT LTD",30,"CLIPPER PROJECT SHIPPING",460]
[null,null,30,"GAC SHIPPING PVT LTD",30,"COESS SINGAPORE PTE LTD",128]
[null,null,30,"GAC SHIPPING PVT LTD",30,"COLONIAL NAVIGATION CO .NIC.",132]
[null,null,30,"GAC SHIPPING PVT LTD",30,"COMBINE MARINE",343]
[null,null,30,"GAC SHIPPING PVT LTD",30,"COMMERICAL TRADING & DISCOUNT ATHEN GREECE",423]
[null,null,30,"GAC SHIPPING PVT LTD",30,"CONSOLIDATED POOL CARRIERS",270]
[null,null,30,"GAC SHIPPING PVT LTD",30,"CONTCHART LEBANON",400]
[null,null,30,"GAC SHIPPING PVT LTD",30,"CONTINENTAL SHIPMANAGMENT CO.",601]
[null,null,30,"GAC SHIPPING PVT LTD",30,"CONVOY MARITIME IZMIR",103]
[null,null,30,"GAC SHIPPING PVT LTD",30,"CONWILL PAKISTAN",172]
[null,null,30,"GAC SHIPPING PVT LTD",30,"COPEN SHIP",202]
[null,null,30,"GAC SHIPPING PVT LTD",30,"COPENHAGON TANKERS",18]
[null,null,30,"GAC SHIPPING PVT LTD",30,"COPENSHIP A/S.,",441]
[null,null,30,"GAC SHIPPING PVT LTD",30,"CORNER SHIPPI9NG CO LTD",127]
[null,null,30,"GAC SHIPPING PVT LTD",30,"CORPORAL",19]
[null,null,30,"GAC SHIPPING PVT LTD",30,"COSCO BULK CARRIER CO LTD",390]
[null,null,30,"GAC SHIPPING PVT LTD",30,"COURAGE NEW AMEGO SHIPPING CORP.",231]
[null,null,30,"GAC SHIPPING PVT LTD",30,"Crown Shipman UK Ltd.",578]
[null,null,30,"GAC SHIPPING PVT LTD",30,"Crown Shipman UK Ltd.",608]
[null,null,30,"GAC SHIPPING PVT LTD",30,"CROWN SHIPPING PTE LTD",257]
[null,null,30,"GAC SHIPPING PVT LTD",30,"CSHT MARINE MACHINERY SUPPLIERS LTD",518]
[null,null,30,"GAC SHIPPING PVT LTD",30,"CYPRUS MARITIME CO LTD",415]
[null,null,30,"GAC SHIPPING PVT LTD",30,"DAELIM CORPORATION - SEOUL",454]
[null,null,30,"GAC SHIPPING PVT LTD",30,"DAEWOO LOGESTIC KOREA",192]
[null,null,30,"GAC SHIPPING PVT LTD",30,"DALIAN SUNRISE INTL LOGISTICS",494]
[null,null,30,"GAC SHIPPING PVT LTD",30,"DAMICO SOCIETY",393]
[null,null,30,"GAC SHIPPING PVT LTD",30,"DAMICO TANKER DESK UAE",420]
[null,null,30,"GAC SHIPPING PVT LTD",30,"DAN BUNKERING LTD-CHINA ",637]
[null,null,30,"GAC SHIPPING PVT LTD",30,"DAVEL SHIPPING & TRAINING",232]
[null,null,30,"GAC SHIPPING PVT LTD",30,"DELFI S.A",268]
[null,null,30,"GAC SHIPPING PVT LTD",30,"DHOA MARINE SERVICES (WLL)",133]
[null,null,30,"GAC SHIPPING PVT LTD",30,"DINKHA ORAHIM LATCHI",366]
[null,null,30,"GAC SHIPPING PVT LTD",30,"DM SHIPPING CO LTD",365]
[null,null,30,"GAC SHIPPING PVT LTD",30,"DONGKUK MARINE CO LTD",404]
[null,null,30,"GAC SHIPPING PVT LTD",30,"DORVAL SHIPPING",20]
[null,null,30,"GAC SHIPPING PVT LTD",30,"DORVAL SHIPPING",21]
[null,null,30,"GAC SHIPPING PVT LTD",30,"DUBAI SHIPPING ABAY",22]
[null,null,30,"GAC SHIPPING PVT LTD",30,"DYNACOM TANKERS",23]
[null,null,30,"GAC SHIPPING PVT LTD",30,"EAST ASIA MARITIME",24]
[null,null,30,"GAC SHIPPING PVT LTD",30,"Eastern Pacific Shipping Pte. Limited - Singapore",713]
[null,null,30,"GAC SHIPPING PVT LTD",30,"EASTWIND SHIP MANAGMENT SINGAPORE",355]
[null,null,30,"GAC SHIPPING PVT LTD",30,"ED & F MAN AL COHOLS LONDON U.KL",244]
[null,null,30,"GAC SHIPPING PVT LTD",30,"ED & F SHIPPING",297]
[null,null,30,"GAC SHIPPING PVT LTD",30,"EEUROCHEM MARITIME B.V",152]
[null,null,30,"GAC SHIPPING PVT LTD",30,"EITZEN CHEMICAL AS",419]
[null,null,30,"GAC SHIPPING PVT LTD",30,"ELIMARA SHIPPING & TRADING",239]
[null,null,30,"GAC SHIPPING PVT LTD",30,"EMARAT MARITIME SERVICES",368]
[null,null,30,"GAC SHIPPING PVT LTD",30,"EMD COMMODITIES DMCC",428]
[null,null,30,"GAC SHIPPING PVT LTD",30,"EMD DMCC",330]
[null,null,30,"GAC SHIPPING PVT LTD",30,"Emirates Ship Investment Company LLC,UAE",550]
[null,null,30,"GAC SHIPPING PVT LTD",30,"EMIRATES SHIPPING LLC",541]
[null,null,30,"GAC SHIPPING PVT LTD",30,"EMIRATES TRADING AGENCY",258]
[null,null,30,"GAC SHIPPING PVT LTD",30,"EMO TRANS GMBH-GERMANY",640]
[null,null,30,"GAC SHIPPING PVT LTD",30,"EMS SHIPMANAGEMENT ",369]
[null,null,30,"GAC SHIPPING PVT LTD",30,"ENOC SUPPLY & TRADING LIC",474]
[null,null,30,"GAC SHIPPING PVT LTD",30,"ENSCO OCEANICS INT COMPANY DUBAI",154]
[null,null,30,"GAC SHIPPING PVT LTD",30,"ENTERPRISES SHIPPING TRADING SA",155]
[null,null,30,"GAC SHIPPING PVT LTD",30,"EPIC PRODUCT CARRIER",307]
[null,null,30,"GAC SHIPPING PVT LTD",30,"ERAY SHIPPING",271]
[null,null,30,"GAC SHIPPING PVT LTD",30,"ERIDANIA SWITZERLAND",203]
[null,null,30,"GAC SHIPPING PVT LTD",30,"ERIDANIS(SUISSE) SA GLAND",263]
[null,null,30,"GAC SHIPPING PVT LTD",30,"ERRIA TANKERS LTD.",308]
[null,null,30,"GAC SHIPPING PVT LTD",30,"ESHIPS OLDENDORFFL LOGISTICS LLC.",559]
[null,null,30,"GAC SHIPPING PVT LTD",30,"ESSABERGER PARCEL",25]
[null,null,30,"GAC SHIPPING PVT LTD",30,"ESTORAL NAVIGATION",26]
[null,null,30,"GAC SHIPPING PVT LTD",30,"ETI TRAVEL PROTECTION U.K",228]
[null,null,30,"GAC SHIPPING PVT LTD",30,"EURO TANKERS INC. ",599]
[null,null,30,"GAC SHIPPING PVT LTD",30,"EVALEND SHIPPING TANKERS CO. S.A.",520]
[null,null,30,"GAC SHIPPING PVT LTD",30,"EVERGREEN INTERNATIONAL S.A",122]
[null,null,30,"GAC SHIPPING PVT LTD",30,"EVERGREEN MARINE (uk)LTD",279]
[null,null,30,"GAC SHIPPING PVT LTD",30,"EVERGREEN MARINE CORPORATION (TAIWAN) LTD",339]
[null,null,30,"GAC SHIPPING PVT LTD",30,"EXECUTIVE SHIP MANAGEMENT PTE.LTD",535]
[null,null,30,"GAC SHIPPING PVT LTD",30,"EXPEDO SHIP MANAGEMENT LTD.",539]
[null,null,30,"GAC SHIPPING PVT LTD",30,"FAIRDEAL GROUP MANAGEMENT UAE",401]
[null,null,30,"GAC SHIPPING PVT LTD",30,"FAIRFIELD CHEMICAL CARRIERS(USA)",193]
[null,null,30,"GAC SHIPPING PVT LTD",30,"FAIRMONT SHIPPING CANDA LTD CANADA",245]
[null,null,30,"GAC SHIPPING PVT LTD",30,"FAIRSEAS INTERNATIONAL-SOUTH AFRICA",639]
[null,null,30,"GAC SHIPPING PVT LTD",30,"FAIRWIND INTERNATIONAL SHIPPING CO",311]
[null,null,30,"GAC SHIPPING PVT LTD",30,"Falcon Inavigation Coproration - Greece",714]
[null,null,30,"GAC SHIPPING PVT LTD",30,"FALCON SHIPPINT COMPANY",208]
[null,null,30,"GAC SHIPPING PVT LTD",30,"FAR EAST SHIPPING",27]
[null,null,30,"GAC SHIPPING PVT LTD",30,"FARGO FREIGHT GMBH",163]
[null,null,30,"GAC SHIPPING PVT LTD",30,"FASTSTAC SHIPPINH CORPORATION",597]
[null,null,30,"GAC SHIPPING PVT LTD",30,"FERMAR A/C ED & SHIPPING",287]
[null,null,30,"GAC SHIPPING PVT LTD",30,"FHEB ENGG.MANAGEMENT",104]
[null,null,30,"GAC SHIPPING PVT LTD",30,"FLAME SA CH-6900 LUGANO",515]
[null,null,30,"GAC SHIPPING PVT LTD",30,"FLEET MANAGEMENT INDIA PVT. LIMITED - INDIA",610]
[null,null,30,"GAC SHIPPING PVT LTD",30,"FLEET MANAGEMENT LTD.",506]
[null,null,30,"GAC SHIPPING PVT LTD",30,"FORT SHIPPING",28]
[null,null,30,"GAC SHIPPING PVT LTD",30,"FORTUNE MARITIME INC",241]
[null,null,30,"GAC SHIPPING PVT LTD",30,"FR8 SINGAPORE",358]
[null,null,30,"GAC SHIPPING PVT LTD",30,"FRATELL DAMICO ARMATORI",381]
[null,null,30,"GAC SHIPPING PVT LTD",30,"FRS SINGAPORE PTE LTD",229]
[null,null,30,"GAC SHIPPING PVT LTD",30,"GABES MARINE TANKER",113]
[null,null,30,"GAC SHIPPING PVT LTD",30,"GABES MARINE TANKER",156]
[null,null,30,"GAC SHIPPING PVT LTD",30,"GAC CABS",405]
[null,null,30,"GAC SHIPPING PVT LTD",30,"GAC GLOBAL HUB AND DISBURSEMENT CENTRE",563]
[null,null,30,"GAC SHIPPING PVT LTD",30,"GAC HUB & CABS FEES",544]
[null,null,30,"GAC SHIPPING PVT LTD",30,"GAC MARINE LOGISTICS INC.",530]
[null,null,30,"GAC SHIPPING PVT LTD",30,"GAC SHIPPING (UK) LTD.",511]
[null,null,30,"GAC SHIPPING PVT LTD",30,"Gac Singapore ¿ Hub Agency Center",593]
[null,null,30,"GAC SHIPPING PVT LTD",30,"GAGASAN CARRIER",288]
[null,null,30,"GAC SHIPPING PVT LTD",30,"GALAXY MARITIME CO. SEOUL",455]
[null,null,30,"GAC SHIPPING PVT LTD",30,"GANESH SHIPPING INC. - PANAMA",614]
[null,null,30,"GAC SHIPPING PVT LTD",30,"GASCHEM SERVICES GMBH & CO.",514]
[null,null,30,"GAC SHIPPING PVT LTD",30,"GBLT SHIPMAN AGEMENT",167]
[null,null,30,"GAC SHIPPING PVT LTD",30,"GENERAL MARITIME",93]
[null,null,30,"GAC SHIPPING PVT LTD",30,"GENERAL MARITIME",105]
[null,null,30,"GAC SHIPPING PVT LTD",30,"GHAZI SHIPPING & TRADING CO. PVT. LTD.",502]
[null,null,30,"GAC SHIPPING PVT LTD",30,"GLA HAI SHIPPING & CHARTERING",264]
[null,null,30,"GAC SHIPPING PVT LTD",30,"GLENDA INTERNATIONAL LTD.",496]
[null,null,30,"GAC SHIPPING PVT LTD",30,"GLOBE SHIPPING SHANGHAI",94]
[null,null,30,"GAC SHIPPING PVT LTD",30,"GLORY SHIP MANGT",29]
[null,null,30,"GAC SHIPPING PVT LTD",30,"GMT SHIPPING LINE LTD.",129]
[null,null,30,"GAC SHIPPING PVT LTD",30,"GODD FAITH SHIPPING",30]
[null,null,30,"GAC SHIPPING PVT LTD",30,"Goldbeam International Ltd.",579]
[null,null,30,"GAC SHIPPING PVT LTD",30,"GOOD FAITHSHIPPING PIRAEUS-GREECE",252]
[null,null,30,"GAC SHIPPING PVT LTD",30,"GOODWOOD SHIPPING MANAGEMENT - SINGAPORE",618]
[null,null,30,"GAC SHIPPING PVT LTD",30,"GREEN VALLEYSHIPPING",302]
[null,null,30,"GAC SHIPPING PVT LTD",30,"GUDAMIITERATIOALPTELTD.",99]
[null,null,30,"GAC SHIPPING PVT LTD",30,"GULF AGENCY CO",31]
[null,null,30,"GAC SHIPPING PVT LTD",30,"GULF AND CONTINENETAL",226]
[null,null,30,"GAC SHIPPING PVT LTD",30,"GULF ENERGY MARITIME",269]
[null,null,30,"GAC SHIPPING PVT LTD",30,"GULF MARINE FAR EAST LTD.",312]
[null,null,30,"GAC SHIPPING PVT LTD",30,"GULF PIPING COMPANY E.L.L.",524]
[null,null,30,"GAC SHIPPING PVT LTD",30,"GULF STOLT SHIP MANAGEMENT",540]
[null,null,30,"GAC SHIPPING PVT LTD",30,"HAJOO INTERNATIONAL B.V",110]
[null,null,30,"GAC SHIPPING PVT LTD",30,"HANDYTANKERS K/S AP MOLLER",547]
[null,null,30,"GAC SHIPPING PVT LTD",30,"HANJIN OVERSEAS BULK LTD",242]
[null,null,30,"GAC SHIPPING PVT LTD",30,"HANJIN SHIPPING",32]
[null,null,30,"GAC SHIPPING PVT LTD",30,"HANSEATIC SHIPPING",194]
[null,null,30,"GAC SHIPPING PVT LTD",30,"Harbor Shipping & Trading S.A",594]
[null,null,30,"GAC SHIPPING PVT LTD",30,"HARMONY INNOVATION SHIPPING PTE",697]
[null,null,30,"GAC SHIPPING PVT LTD",30,"HATSE MARINE",33]
[null,null,30,"GAC SHIPPING PVT LTD",30,"HAYAMA SHIPPING LTD",277]
[null,null,30,"GAC SHIPPING PVT LTD",30,"Heidmar (Far East) Pte Ltd.",580]
[null,null,30,"GAC SHIPPING PVT LTD",30,"HEIDMAR PETER LTD. KUWAIT",348]
[null,null,30,"GAC SHIPPING PVT LTD",30,"HELLESPONT HAMMONIA GMBL CO.",466]
[null,null,30,"GAC SHIPPING PVT LTD",30,"Hellespont Singapore Pte Ltd., Singapore",549]
[null,null,30,"GAC SHIPPING PVT LTD",30,"HERNING SHIPPING ",289]
[null,null,30,"GAC SHIPPING PVT LTD",30,"HONG KONG MING WAH SHIPPING LTD",240]
[null,null,30,"GAC SHIPPING PVT LTD",30,"HONG LAM MARINE PTE LTD",290]
[null,null,30,"GAC SHIPPING PVT LTD",30,"HOOIVELD SCHEEPVAART WESP NETHERLAND",349]
[null,null,30,"GAC SHIPPING PVT LTD",30,"HORIZONE TANKERS LTD S.A.",492]
[null,null,30,"GAC SHIPPING PVT LTD",30,"HUDSON SHIPPING LINES",265]
[null,null,30,"GAC SHIPPING PVT LTD",30,"HUNAN OCEAN SHIPPING CO.",531]
[null,null,30,"GAC SHIPPING PVT LTD",30,"HUNDAI MERCHANT MARINE CO.",123]
[null,null,30,"GAC SHIPPING PVT LTD",30,"Hyundai Glovis Company Ltd.",581]
[null,null,30,"GAC SHIPPING PVT LTD",30,"IBEX MARITIME LTD.",309]
[null,null,30,"GAC SHIPPING PVT LTD",30,"II NO GAS TRANSPORT CC TOKYO JAPAN",470]
[null,null,30,"GAC SHIPPING PVT LTD",30,"IINO KAIUN KAISHA LTD",512]
[null,null,30,"GAC SHIPPING PVT LTD",30,"IINO MARINE SERVICES",331]
[null,null,30,"GAC SHIPPING PVT LTD",30,"IINO SHIPPING ASIA PTE. LTD.",484]
[null,null,30,"GAC SHIPPING PVT LTD",30,"INCHCAPE SHIPPING",35]
[null,null,30,"GAC SHIPPING PVT LTD",30,"INTER GLOBAL SHIPPING",227]
[null,null,30,"GAC SHIPPING PVT LTD",30,"INTERMARINE",370]
[null,null,30,"GAC SHIPPING PVT LTD",30,"INTERNATIONAL BERMEN",36]
[null,null,30,"GAC SHIPPING PVT LTD",30,"INTERNATIONAL SHIPPING & LOGISTICS",456]
[null,null,30,"GAC SHIPPING PVT LTD",30,"INTERNATIONAL TANKER",85]
[null,null,30,"GAC SHIPPING PVT LTD",30,"INTERNATIONAL TANKER MANAGEMENT LTD",213]
[null,null,30,"GAC SHIPPING PVT LTD",30,"INTERNATIONAL TRADING",37]
[null,null,30,"GAC SHIPPING PVT LTD",30,"INTEROCEAN AMERICAN SHIPPING CORP.",157]
[null,null,30,"GAC SHIPPING PVT LTD",30,"INTL. OIL OVERSEASE",38]
[null,null,30,"GAC SHIPPING PVT LTD",30,"ISHIMA PTE. LTD.",529]
[null,null,30,"GAC SHIPPING PVT LTD",30,"I-SHIPCOM.",114]
[null,null,30,"GAC SHIPPING PVT LTD",30,"ITALIA MARITTIMA S.P.A",234]
[null,null,30,"GAC SHIPPING PVT LTD",30,"ITALIA MARITTIMA S.P.A.",340]
[null,null,30,"GAC SHIPPING PVT LTD",30,"ITOCHU ENX CO LTD",422]
[null,null,30,"GAC SHIPPING PVT LTD",30,"J BEKKERS CO",39]
[null,null,30,"GAC SHIPPING PVT LTD",30,"J.O.TANKER",137]
[null,null,30,"GAC SHIPPING PVT LTD",30,"JARDINE SHIPPING HUB SERVICE PTE LTD",411]
[null,null,30,"GAC SHIPPING PVT LTD",30,"JARDINE SHIPPING HUB SERVICE PTE LTD",442]
[null,null,30,"GAC SHIPPING PVT LTD",30,"JET MARINE TANKERS",40]
[null,null,30,"GAC SHIPPING PVT LTD",30,"JET MARTINE",41]
[null,null,30,"GAC SHIPPING PVT LTD",30,"JIA SHENG SHIPPING LTD.",561]
[null,null,30,"GAC SHIPPING PVT LTD",30,"JME NAVIGATION S.A",481]
[null,null,30,"GAC SHIPPING PVT LTD",30,"JOHN GIAVRIDIS INC.SHIP-MANAGEMENT",164]
[null,null,30,"GAC SHIPPING PVT LTD",30,"JUBILEE NAVIGATION LTD",382]
[null,null,30,"GAC SHIPPING PVT LTD",30,"KAHN SCHEEPVAART BV.,",144]
[null,null,30,"GAC SHIPPING PVT LTD",30,"KAHN SCHEEPVAART BV.,",463]
[null,null,30,"GAC SHIPPING PVT LTD",30,"Kaili Shipping HK Limited - China",715]
[null,null,30,"GAC SHIPPING PVT LTD",30,"KANOO SHIPPING AGENCIES",427]
[null,null,30,"GAC SHIPPING PVT LTD",30,"KARDENIZ & MARBENIZ SHIPPING",298]
[null,null,30,"GAC SHIPPING PVT LTD",30,"KEO YOUNG SHIPPING CO. LTD",371]
[null,null,30,"GAC SHIPPING PVT LTD",30,"KEY MARINE COMPANY LTD.",488]
[null,null,30,"GAC SHIPPING PVT LTD",30,"KHALID FARAJ SHIPPING",214]
[null,null,30,"GAC SHIPPING PVT LTD",30,"KHALID FARAJ SHIPPING KUWAIT",176]
[null,null,30,"GAC SHIPPING PVT LTD",30,"KING OLLAKIS & CO LTD",86]
[null,null,30,"GAC SHIPPING PVT LTD",30,"KINKI TRANSPORTATION & WARE HOUSE CO LTD",138]
[null,null,30,"GAC SHIPPING PVT LTD",30,"KONKAR SHIPPING AGENCIES S.A.",472]
[null,null,30,"GAC SHIPPING PVT LTD",30,"KOREA LINE CORPORATION",314]
[null,null,30,"GAC SHIPPING PVT LTD",30,"KOY0 KAIUN CO LTD",87]
[null,null,30,"GAC SHIPPING PVT LTD",30,"KSS LINE LTD KUWAIT",347]
[null,null,30,"GAC SHIPPING PVT LTD",30,"KT MARINE COMPANY LTD",402]
[null,null,30,"GAC SHIPPING PVT LTD",30,"KUWAIT OIL TANKERS CORPORATION",177]
[null,null,30,"GAC SHIPPING PVT LTD",30,"KUWAIT PETROLEUM CORPORATION",146]
[null,null,30,"GAC SHIPPING PVT LTD",30,"KUWAIT PETROLIUM CORP",42]
[null,null,30,"GAC SHIPPING PVT LTD",30,"LA LIGNE INDIEN",450]
[null,null,30,"GAC SHIPPING PVT LTD",30,"LARRY LUDWING",43]
[null,null,30,"GAC SHIPPING PVT LTD",30,"LATER ON",353]
[null,null,30,"GAC SHIPPING PVT LTD",30,"LATIVAN SHIPPING CO A/C PRO LINE",215]
[null,null,30,"GAC SHIPPING PVT LTD",30,"LEAMTHONG INTL LINES THILSAND",186]
[null,null,30,"GAC SHIPPING PVT LTD",30,"LEMISSOLER SHIPMANAGEMENT",187]
[null,null,30,"GAC SHIPPING PVT LTD",30,"LIBERTY MARITIME CORP NEWYORK USA",248]
[null,null,30,"GAC SHIPPING PVT LTD",30,"LIBRA SHIPPING",44]
[null,null,30,"GAC SHIPPING PVT LTD",30,"LIBRA SHIPPING",45]
[null,null,30,"GAC SHIPPING PVT LTD",30,"LIBRA SHIPPING SERVICES LLC.,",147]
[null,null,30,"GAC SHIPPING PVT LTD",30,"LIHAI INT SHIPPING",278]
[null,null,30,"GAC SHIPPING PVT LTD",30,"LILLY MARITIME (PVT.) LTD.",478]
[null,null,30,"GAC SHIPPING PVT LTD",30,"LINK MARINE PTE. LTD.",475]
[null,null,30,"GAC SHIPPING PVT LTD",30,"LODOS CHARTERING LTD",480]
[null,null,30,"GAC SHIPPING PVT LTD",30,"LOG-O-MAR DUSSELDORE",46]
[null,null,30,"GAC SHIPPING PVT LTD",30,"LOTTE PAKISTAN PTA. LTD.",536]
[null,null,30,"GAC SHIPPING PVT LTD",30,"LOTUS SHIPPING CO",47]
[null,null,30,"GAC SHIPPING PVT LTD",30,"LR 1 MANAGEMENT K/S.,",148]
[null,null,30,"GAC SHIPPING PVT LTD",30,"LRI MANAGEMENT K/S",115]
[null,null,30,"GAC SHIPPING PVT LTD",30,"LYKIARDOPULO & CO., UK",178]
[null,null,30,"GAC SHIPPING PVT LTD",30,"M/S.  RED SEA MARINE MANAGEMENT, DUBAI - UAE",684]
[null,null,30,"GAC SHIPPING PVT LTD",30,"M/S. A/S DAN-BUNKERING LTD. - CHINA",625]
[null,null,30,"GAC SHIPPING PVT LTD",30,"M/S. AMALTHIA MARINE INC. - GREECE",627]
[null,null,30,"GAC SHIPPING PVT LTD",30,"M/S. AMARANTE SHIPPING PTE. LTD-SINGAPORE",663]
[null,null,30,"GAC SHIPPING PVT LTD",30,"M/S. APEEJAY SHIPPING LIMITED.- INDIA ",651]
[null,null,30,"GAC SHIPPING PVT LTD",30,"M/S. BERNHARD SCHULTE SHIPMANAGMENT - SINGAPORE",683]
[null,null,30,"GAC SHIPPING PVT LTD",30,"M/S. BERNHARD SCHULTE SHIPMANAGMENT. CYPRUS",648]
[null,null,30,"GAC SHIPPING PVT LTD",30,"M/S. CALMSEA SHIP MANAGEMENT LIMITED. - TURKEY",652]
[null,null,30,"GAC SHIPPING PVT LTD",30,"M/S. CAPITAL MARINE SERVICES (UK) LTD. -  UK",656]
[null,null,30,"GAC SHIPPING PVT LTD",30,"M/S. CHART-IT SHIP BROKERS BV - NETHERLAND",630]
[null,null,30,"GAC SHIPPING PVT LTD",30,"M/S. CHIPOLBORK - CHINA",675]
[null,null,30,"GAC SHIPPING PVT LTD",30,"M/S. COLUMBIA SHIPMANAGMENT-GERMANY",664]
[null,null,30,"GAC SHIPPING PVT LTD",30,"M/S. COLUMBUS MARITIME CORPORATION ",621]
[null,null,30,"GAC SHIPPING PVT LTD",30,"M/S. DAN BUNKERING LTD",631]
[null,null,30,"GAC SHIPPING PVT LTD",30,"M/S. DENAK DEPOCULUL VE NAKLIYECILIK AS - TURKEY",682]
[null,null,30,"GAC SHIPPING PVT LTD",30,"M/S. EAGLE SHIP MANAGEMENT LLC.- USA",658]
[null,null,30,"GAC SHIPPING PVT LTD",30,"M/S. EMIRATES SHIPPING LLC. ¿ SHARJAH, UAE",678]
[null,null,30,"GAC SHIPPING PVT LTD",30,"M/S. EMO TRANS GMBH",634]
[null,null,30,"GAC SHIPPING PVT LTD",30,"M/s. ESSAR SHIPPING LIMITED - INDIA",604]
[null,null,30,"GAC SHIPPING PVT LTD",30,"M/S. FAIRSEAS INTERNATIONAL",633]
[null,null,30,"GAC SHIPPING PVT LTD",30,"M/S. FIRST LINES COMPANY S.A. GREECE ",646]
[null,null,30,"GAC SHIPPING PVT LTD",30,"M/S. FLEET MANAGEMENT LTD",619]
[null,null,30,"GAC SHIPPING PVT LTD",30,"M/S. FULTION SHIPPING SA",632]
[null,null,30,"GAC SHIPPING PVT LTD",30,"M/S. GOLDENPORT SHIPMANAGMENT LIMITED.- GREECE ",657]
[null,null,30,"GAC SHIPPING PVT LTD",30,"M/S. GREATWIN CARRIER (HOLINGS) CO.LTD.",671]
[null,null,30,"GAC SHIPPING PVT LTD",30,"M/S. GRECOMAR SHIPPING AGENCY LTD., - GREECE",662]
[null,null,30,"GAC SHIPPING PVT LTD",30,"M/S. GULF OF ADEN SHIPPING L.L.C. DUBAI - UAE",679]
[null,null,30,"GAC SHIPPING PVT LTD",30,"M/S. HANKANG MARCHANT MARINE-KOREA",666]
[null,null,30,"GAC SHIPPING PVT LTD",30,"M/s. HC CHARTERING GMBH - GERMANY",605]
[null,null,30,"GAC SHIPPING PVT LTD",30,"M/S. HELLESPONT SHIP MANAGEMENT. ¿ GERMANY",624]
[null,null,30,"GAC SHIPPING PVT LTD",30,"M/S. INTERMARINE SHIPPING CO. LTD.- CHINA",659]
[null,null,30,"GAC SHIPPING PVT LTD",30,"M/S. INTERNATIONAL SHIPPING INLACO. - VIETNAM",622]
[null,null,30,"GAC SHIPPING PVT LTD",30,"M/S. IONIC SHIPPING (MGT) INC. - GREECE",653]
[null,null,30,"GAC SHIPPING PVT LTD",30,"M/S. ISLAND FLAG SHIPPING LLC. -  DUBAI - UAE",654]
[null,null,30,"GAC SHIPPING PVT LTD",30,"M/S. J. LAURITZEN SINGAPORE PTE. LTD., - SINGAPORE",623]
[null,null,30,"GAC SHIPPING PVT LTD",30,"M/S. JUMBO SHIPPING NETHERLANDS",689]
[null,null,30,"GAC SHIPPING PVT LTD",30,"M/S. MAERSK TANKERS SINGAPORE PTE. LTD., TURKEY",628]
[null,null,30,"GAC SHIPPING PVT LTD",30,"M/S. MARISO CORPORATION - KOREA",629]
[null,null,30,"GAC SHIPPING PVT LTD",30,"M/S. MLS GULF LLC - BAHRAIN",681]
[null,null,30,"GAC SHIPPING PVT LTD",30,"M/S. MOL TANKERSHIP MGT EUROPE LTD. ¿ U.K",677]
[null,null,30,"GAC SHIPPING PVT LTD",30,"M/S. MUTAWA MARINE WORKS LLC. ABU DHABI - UAE ",649]
[null,null,30,"GAC SHIPPING PVT LTD",30,"M/S. NANJING PETROLUM TRANSPORATION CO. - CHINA",626]
[null,null,30,"GAC SHIPPING PVT LTD",30,"M/S. NATIONAL CHEMICAL CARRIERS JLT. ¿ DUBAI - UAE",655]
[null,null,30,"GAC SHIPPING PVT LTD",30,"M/s. NAVALMAR (UK) LIMITED ¿ SHANGHAI, CHINA",606]
[null,null,30,"GAC SHIPPING PVT LTD",30,"M/S. OCEAN TANKERS (PTE.) LTD., - SINGAPORE",686]
[null,null,30,"GAC SHIPPING PVT LTD",30,"M/S. OXL N. V. ¿ BELGIUM",670]
[null,null,30,"GAC SHIPPING PVT LTD",30,"M/S. PACIFIC SHIP MANAGERS SDN BHD-MALAYSIA",668]
[null,null,30,"GAC SHIPPING PVT LTD",30,"M/S. PHAETHON INTERNATIONAL CO. SA-PANAMA",669]
[null,null,30,"GAC SHIPPING PVT LTD",30,"M/S. PHAETHON INTERNATIONAL LTD. - UKRAIN",680]
[null,null,30,"GAC SHIPPING PVT LTD",30,"M/S. PLEIADES SHIPPING AGENTS-SA ",635]
[null,null,30,"GAC SHIPPING PVT LTD",30,"M/S. PONTS MARINE INC.",672]
[null,null,30,"GAC SHIPPING PVT LTD",30,"M/S. PORTSERV INTERNATIONAL LTD. ",674]
[null,null,30,"GAC SHIPPING PVT LTD",30,"M/S. PSU SHIPPING GROUP PTE. LTD. SINGAPORE ",645]
[null,null,30,"GAC SHIPPING PVT LTD",30,"M/S. SEACHANGE MARITIME (SINGAPORE)",691]
[null,null,30,"GAC SHIPPING PVT LTD",30,"M/S. SEEREEDEREI BACO-LINER GMBH. GERMANY",647]
[null,null,30,"GAC SHIPPING PVT LTD",30,"M/S. SHANGHAI XUANRUN SHIPPING CO. LTD - CHINA",688]
[null,null,30,"GAC SHIPPING PVT LTD",30,"M/S. SOECHI TANKERS INDONESIA (SOECHI GROUP) ¿ INDONESIA",690]
[null,null,30,"GAC SHIPPING PVT LTD",30,"M/S. SPRINGFIELD SHIPPING CO",636]
[null,null,30,"GAC SHIPPING PVT LTD",30,"M/S. STENA WECO A/S DENMARK",687]
[null,null,30,"GAC SHIPPING PVT LTD",30,"M/S. STRAITS TANKERS PTE. LTD. - SINGAPORE",676]
[null,null,30,"GAC SHIPPING PVT LTD",30,"M/S. SUN UNITED MANAGEMENT.",673]
[null,null,30,"GAC SHIPPING PVT LTD",30,"M/S. TBS SHIPPING SERVICES INC",620]
[null,null,30,"GAC SHIPPING PVT LTD",30,"M/S. THORCO A/S DENMARK ",661]
[null,null,30,"GAC SHIPPING PVT LTD",30,"M/S. THORESEN SHIPPING- SINGAPORE",660]
[null,null,30,"GAC SHIPPING PVT LTD",30,"M/S. V.SHIPS NORWAY AS ¿ NORWAY",685]
[null,null,30,"GAC SHIPPING PVT LTD",30,"M/S. VARNA SHIPPING AND TRADING EAD-BULGARIA",667]
[null,null,30,"GAC SHIPPING PVT LTD",30,"MAKRI TANKERS CO ESTONIA",352]
[null,null,30,"GAC SHIPPING PVT LTD",30,"MALLAH SHIP MANAGEMENT",707]
[null,null,30,"GAC SHIPPING PVT LTD",30,"Mallah Ship Management Co. Ltd. - Turkey",716]
[null,null,30,"GAC SHIPPING PVT LTD",30,"MANSEL OIL TANKER",332]
[null,null,30,"GAC SHIPPING PVT LTD",30,"MANSOUR SHIPPING LTD ",408]
[null,null,30,"GAC SHIPPING PVT LTD",30,"MARIMED AGENCIES (UK) LTD",139]
[null,null,30,"GAC SHIPPING PVT LTD",30,"MARIMED AGENCIES (UK) LTD",235]
[null,null,30,"GAC SHIPPING PVT LTD",30,"Marine Management Services MC",552]
[null,null,30,"GAC SHIPPING PVT LTD",30,"MARITRADE CO. LTD.",537]
[null,null,30,"GAC SHIPPING PVT LTD",30,"Marmaras Navigation Ltd.",591]
[null,null,30,"GAC SHIPPING PVT LTD",30,"MARNAVISPA NAPLES",88]
[null,null,30,"GAC SHIPPING PVT LTD",30,"MARPHOCEAN CASBALANCA",236]
[null,null,30,"GAC SHIPPING PVT LTD",30,"MARTRADE GULF LOGESTIC DUBAI",223]
[null,null,30,"GAC SHIPPING PVT LTD",30,"MARTRADE SHIPPING GMBH",106]
[null,null,30,"GAC SHIPPING PVT LTD",30,"MARVEL ISTANBUL TUREKY",183]
[null,null,30,"GAC SHIPPING PVT LTD",30,"MENA ENERGY - DUBAI UAE",711]
[null,null,30,"GAC SHIPPING PVT LTD",30,"MERACATOR INTERNATIONAL ",315]
[null,null,30,"GAC SHIPPING PVT LTD",30,"MERCHANT MARINE MANAGEMENT SA",483]
[null,null,30,"GAC SHIPPING PVT LTD",30,"MIDNIGHT SHIPPING",49]
[null,null,30,"GAC SHIPPING PVT LTD",30,"MINISTRY OF DEFENCE",200]
[null,null,30,"GAC SHIPPING PVT LTD",30,"Mitsui OSK Lines Ltd.",582]
[null,null,30,"GAC SHIPPING PVT LTD",30,"MITSUOSKLIE",100]
[null,null,30,"GAC SHIPPING PVT LTD",30,"MLS OVERSEAS LTD - United Kingdom",710]
[null,null,30,"GAC SHIPPING PVT LTD",30,"MOL TANKER MANAGEMENT",350]
[null,null,30,"GAC SHIPPING PVT LTD",30,"MRC SHIPPING TURKEY",184]
[null,null,30,"GAC SHIPPING PVT LTD",30,"MRS. Corporation.",143]
[null,null,30,"GAC SHIPPING PVT LTD",30,"MSI SHIP MANAGEMENT LTD",391]
[null,null,30,"GAC SHIPPING PVT LTD",30,"MT. MARITIME PTE",50]
[null,null,30,"GAC SHIPPING PVT LTD",30,"MUHEIDDINE SHIPPING CO",204]
[null,null,30,"GAC SHIPPING PVT LTD",30,"MUNDO SCHEEPVAARI BV",107]
[null,null,30,"GAC SHIPPING PVT LTD",30,"MUNDO SCHEEPVAARIBV",95]
[null,null,30,"GAC SHIPPING PVT LTD",30,"MUR SHIPPING",189]
[null,null,30,"GAC SHIPPING PVT LTD",30,"NAKATA MAC CORPORATION",130]
[null,null,30,"GAC SHIPPING PVT LTD",30,"NAKATA MAC CORPORATION TOKYO JAPAN",249]
[null,null,30,"GAC SHIPPING PVT LTD",30,"NANJING OCEAN SHIPPI9NG CHINA",169]
[null,null,30,"GAC SHIPPING PVT LTD",30,"NASTA CHARTERING",51]
[null,null,30,"GAC SHIPPING PVT LTD",30,"NATIONAL IRANNIAN TANKERS",52]
[null,null,30,"GAC SHIPPING PVT LTD",30,"NAUTILUS MARINE S.A.",493]
[null,null,30,"GAC SHIPPING PVT LTD",30,"NAVIG8 PTE LTD",374]
[null,null,30,"GAC SHIPPING PVT LTD",30,"NAVIG8 PTE. LIMITED",510]
[null,null,30,"GAC SHIPPING PVT LTD",30,"NEDA MARITIME AGENCY",118]
[null,null,30,"GAC SHIPPING PVT LTD",30,"NEPTUNE MARINE CORP",222]
[null,null,30,"GAC SHIPPING PVT LTD",30,"NEWWLEAD HOLDINGS LTD - GREECE",708]
[null,null,30,"GAC SHIPPING PVT LTD",30,"NHL-D COMPANY LIMITED ",383]
[null,null,30,"GAC SHIPPING PVT LTD",30,"NISHANT IMPORT EXPORT",53]
[null,null,30,"GAC SHIPPING PVT LTD",30,"NKD MARITIME LTD.",459]
[null,null,30,"GAC SHIPPING PVT LTD",30,"NOBLE RESOURCES",326]
[null,null,30,"GAC SHIPPING PVT LTD",30,"NORDANA PROJECT & CHARTERING",545]
[null,null,30,"GAC SHIPPING PVT LTD",30,"NORDIC HAMBURG SHIPMANAGMENT.",603]
[null,null,30,"GAC SHIPPING PVT LTD",30,"NORGAS (ASIA) PTE. LTD.",497]
[null,null,30,"GAC SHIPPING PVT LTD",30,"NORIENT CYPRUS LIMITED",486]
[null,null,30,"GAC SHIPPING PVT LTD",30,"NORIENT PRODUCT POOL",333]
[null,null,30,"GAC SHIPPING PVT LTD",30,"NORNA MARITIME",54]
[null,null,30,"GAC SHIPPING PVT LTD",30,"NORTH CHINA SHIPPING HOLDING",320]
[null,null,30,"GAC SHIPPING PVT LTD",30,"NORTH SEA NAVIGATION LTD.",316]
[null,null,30,"GAC SHIPPING PVT LTD",30,"NOUR SHIP MANAGEMENT CO LTD SYRIA",412]
[null,null,30,"GAC SHIPPING PVT LTD",30,"NOVAL COMMODITIES SWITZERLAND",170]
[null,null,30,"GAC SHIPPING PVT LTD",30,"NOVAMAR INTL",55]
[null,null,30,"GAC SHIPPING PVT LTD",30,"NYK Hinode Line",142]
[null,null,30,"GAC SHIPPING PVT LTD",30,"OCEAN RESQUE",325]
[null,null,30,"GAC SHIPPING PVT LTD",30,"OCEAN SHIPPING & TRADING",159]
[null,null,30,"GAC SHIPPING PVT LTD",30,"OCEAN WAVE SHIPPING",56]
[null,null,30,"GAC SHIPPING PVT LTD",30,"OCEANGOLD TANKERS INC.",528]
[null,null,30,"GAC SHIPPING PVT LTD",30,"ODFJELL SEACHEM",89]
[null,null,30,"GAC SHIPPING PVT LTD",30,"ODFJELL SINGAPORE (PTE)LTD",90]
[null,null,30,"GAC SHIPPING PVT LTD",30,"ODFJELL TANKERS",57]
[null,null,30,"GAC SHIPPING PVT LTD",30,"ODFJELL TANKERS NORWAY",434]
[null,null,30,"GAC SHIPPING PVT LTD",30,"ODSEY MARITIME PTE LTD",372]
[null,null,30,"GAC SHIPPING PVT LTD",30,"OLDEN DORFF CARRIER",58]
[null,null,30,"GAC SHIPPING PVT LTD",30,"OLDENDROFF GMBH & CO KG",430]
[null,null,30,"GAC SHIPPING PVT LTD",30,"OLYMPIC GULF TANKERS",59]
[null,null,30,"GAC SHIPPING PVT LTD",30,"OMAN SHIPPING COMPANY",598]
[null,null,30,"GAC SHIPPING PVT LTD",30,"OMI MARINE SERVICES ",221]
[null,null,30,"GAC SHIPPING PVT LTD",30,"ORACLE PETROLEUM CO PTE LTD",96]
[null,null,30,"GAC SHIPPING PVT LTD",30,"ORAM TANKER LIMITED",197]
[null,null,30,"GAC SHIPPING PVT LTD",30,"ORIENT STAR LOGISTICS CO. LTD.",600]
[null,null,30,"GAC SHIPPING PVT LTD",30,"OSG SHIPMANAGEMENT",359]
[null,null,30,"GAC SHIPPING PVT LTD",30,"OSM SHIPMSNSGEMENT",334]
[null,null,30,"GAC SHIPPING PVT LTD",30,"OVERSEAS MARITIME CARRIER",205]
[null,null,30,"GAC SHIPPING PVT LTD",30,"P&P SHIPPING COMPANY GREECE",413]
[null,null,30,"GAC SHIPPING PVT LTD",30,"Pacific Basin Shipping (UK) Ltd.",583]
[null,null,30,"GAC SHIPPING PVT LTD",30,"PACIFIC WORLD SHIPPING.",538]
[null,null,30,"GAC SHIPPING PVT LTD",30,"Pakistan National Shipping Corp.",557]
[null,null,30,"GAC SHIPPING PVT LTD",30,"PARAS PETROCHEMICAL SHIPPING CO.",485]
[null,null,30,"GAC SHIPPING PVT LTD",30,"PARIS PETROCHEMICAL SHIPPING CO.",259]
[null,null,30,"GAC SHIPPING PVT LTD",30,"PARLOS MARITIME CORP.",560]
[null,null,30,"GAC SHIPPING PVT LTD",30,"PARSAM SHIPPING & SHIPMANAGMENT CO.",508]
[null,null,30,"GAC SHIPPING PVT LTD",30,"PEARL MARINE LOGISTIC FZE",694]
[null,null,30,"GAC SHIPPING PVT LTD",30,"PELMAR SHIPPING",409]
[null,null,30,"GAC SHIPPING PVT LTD",30,"PELMAR SHIPPING SERRILEON",461]
[null,null,30,"GAC SHIPPING PVT LTD",30,"PELNI SHIPPING CO.",386]
[null,null,30,"GAC SHIPPING PVT LTD",30,"PENDULUM SHIPMANAGMENT INC",696]
[null,null,30,"GAC SHIPPING PVT LTD",30,"PENU AGAR SHIPPING PTE LTD",119]
[null,null,30,"GAC SHIPPING PVT LTD",30,"PEROSEAS SHIPPING CO S.A",398]
[null,null,30,"GAC SHIPPING PVT LTD",30,"PEROSEAS SHIPPING CO S.A",458]
[null,null,30,"GAC SHIPPING PVT LTD",30,"PEROSEAS SHIPPING CO S.A",465]
[null,null,30,"GAC SHIPPING PVT LTD",30,"PERSEVERANAZ SPA",490]
[null,null,30,"GAC SHIPPING PVT LTD",30,"Perseveranza SPA",584]
[null,null,30,"GAC SHIPPING PVT LTD",30,"PETER CREMER",327]
[null,null,30,"GAC SHIPPING PVT LTD",30,"PETREDEC SERVICES (ASIA) PTE LTD.,",435]
[null,null,30,"GAC SHIPPING PVT LTD",30,"PHAETHON INTERNATIONAL LTD",570]
[null,null,30,"GAC SHIPPING PVT LTD",30,"Phaethon International Ltd.",585]
[null,null,30,"GAC SHIPPING PVT LTD",30,"Pisces Vessel Consultants LLC-Dubai UAE",717]
[null,null,30,"GAC SHIPPING PVT LTD",30,"PNO SHIPMANAGEMENT LTD",375]
[null,null,30,"GAC SHIPPING PVT LTD",30,"POBAR MARINE SERVICES",335]
[null,null,30,"GAC SHIPPING PVT LTD",30,"PORTSERV INTERNATIONAL LTD.",495]
[null,null,30,"GAC SHIPPING PVT LTD",30,"POSEIDDN SCHIFEAHRT",60]
[null,null,30,"GAC SHIPPING PVT LTD",30,"PRAYATI SHIPPING PVT LTD.,",445]
[null,null,30,"GAC SHIPPING PVT LTD",30,"PRIMAL SHIPMANAGEMENT",360]
[null,null,30,"GAC SHIPPING PVT LTD",30,"PRIME MARINE MANAGEMENT",377]
[null,null,30,"GAC SHIPPING PVT LTD",30,"PROLINE LTD & CO",61]
[null,null,30,"GAC SHIPPING PVT LTD",30,"PSU SHIPPING GROUP PTE. LTD. SINGAPORE ",643]
[null,null,30,"GAC SHIPPING PVT LTD",30,"PT APERNI PRATMA JAKARTA INDONESIA",414]
[null,null,30,"GAC SHIPPING PVT LTD",30,"PT BERLIAN LAJU TANKER",91]
[null,null,30,"GAC SHIPPING PVT LTD",30,"PT KARYA BAKTI ",336]
[null,null,30,"GAC SHIPPING PVT LTD",30,"PT. BANYU LAJU SHIPPING",566]
[null,null,30,"GAC SHIPPING PVT LTD",30,"QAWAREB SHIP MANAGEMENT",233]
[null,null,30,"GAC SHIPPING PVT LTD",30,"Qingdao Longhe Ship Management, China",556]
[null,null,30,"GAC SHIPPING PVT LTD",30,"RANGER MARINE",62]
[null,null,30,"GAC SHIPPING PVT LTD",30,"REALIANCE INDUSTRIES LTD",116]
[null,null,30,"GAC SHIPPING PVT LTD",30,"RELIENCE BULK CARRIER USA",351]
[null,null,30,"GAC SHIPPING PVT LTD",30,"RELIENCE INDUSTRIES LTD",282]
[null,null,30,"GAC SHIPPING PVT LTD",30,"RICH STAR SHIPPING",341]
[null,null,30,"GAC SHIPPING PVT LTD",30,"Rolldock Shipping B.V.",586]
[null,null,30,"GAC SHIPPING PVT LTD",30,"RORO LINE LTD TAIWAN",185]
[null,null,30,"GAC SHIPPING PVT LTD",30,"ROSS CHEMICAL III",469]
[null,null,30,"GAC SHIPPING PVT LTD",30,"RUSSIAN INDEPENDENT GREECE",217]
[null,null,30,"GAC SHIPPING PVT LTD",30,"S.A.L STEINKIRCHEN",111]
[null,null,30,"GAC SHIPPING PVT LTD",30,"SAMHO SHIPING CO. LTD.",491]
[null,null,30,"GAC SHIPPING PVT LTD",30,"SAMIN SHIPPING COMPANY",337]
[null,null,30,"GAC SHIPPING PVT LTD",30,"SAMOS STEAMSHIP",63]
[null,null,30,"GAC SHIPPING PVT LTD",30,"SAMOS STEAMSHIP",446]
[null,null,30,"GAC SHIPPING PVT LTD",30,"SAMSUN LOGIX CORP.",384]
[null,null,30,"GAC SHIPPING PVT LTD",30,"SAMSUN LOGIX CORP.",607]
[null,null,30,"GAC SHIPPING PVT LTD",30,"SAMTA SHIPMANAGEMENT PTE LTD",254]
[null,null,30,"GAC SHIPPING PVT LTD",30,"SARTIJA NAUTIKA DOO",253]
[null,null,30,"GAC SHIPPING PVT LTD",30,"SCAN TRANS CHARTERING APS DA DESK SHARJAH",418]
[null,null,30,"GAC SHIPPING PVT LTD",30,"SCHUURMANS & VAN GENNEKEN BV",92]
[null,null,30,"GAC SHIPPING PVT LTD",30,"SEA BOOK MARITIME",396]
[null,null,30,"GAC SHIPPING PVT LTD",30,"SEALIFT INC",338]
[null,null,30,"GAC SHIPPING PVT LTD",30,"SEAMAR SHIP MANAGEMENT",323]
[null,null,30,"GAC SHIPPING PVT LTD",30,"SEAWORLD MANGT",65]
[null,null,30,"GAC SHIPPING PVT LTD",30,"Selandia Ship Management (Singapore) Ltd",548]
[null,null,30,"GAC SHIPPING PVT LTD",30,"SERROMAN SHIPPING",67]
[null,null,30,"GAC SHIPPING PVT LTD",30,"SH MARINE CO LTD.",124]
[null,null,30,"GAC SHIPPING PVT LTD",30,"SHADAB PTY LTD., PERTH",436]
[null,null,30,"GAC SHIPPING PVT LTD",30,"SHANGHAI ZHENHUA SHIPPING",195]
[null,null,30,"GAC SHIPPING PVT LTD",30,"SHELL DEVELOPMENT",291]
[null,null,30,"GAC SHIPPING PVT LTD",30,"SHELL INTERNATIONAL TRADING",117]
[null,null,30,"GAC SHIPPING PVT LTD",30,"SHIPPING ALLIED CORP.",527]
[null,null,30,"GAC SHIPPING PVT LTD",30,"SHK INTERNATIONAL",505]
[null,null,30,"GAC SHIPPING PVT LTD",30,"SHUN SHING SHIPPING",447]
[null,null,30,"GAC SHIPPING PVT LTD",30,"SHUNG SHING SHIPPING LTD.",344]
[null,null,30,"GAC SHIPPING PVT LTD",30,"SILCOMPA SPA",403]
[null,null,30,"GAC SHIPPING PVT LTD",30,"SILCOMPA SPA",437]
[null,null,30,"GAC SHIPPING PVT LTD",30,"SILVER MARITIME.",489]
[null,null,30,"GAC SHIPPING PVT LTD",30,"SIMATCH SHIPPING",68]
[null,null,30,"GAC SHIPPING PVT LTD",30,"SIME DARBY FURTURES TRADING SDN BHO - MALAYSIA",709]
[null,null,30,"GAC SHIPPING PVT LTD",30,"SIMS HUGO NEU",266]
[null,null,30,"GAC SHIPPING PVT LTD",30,"Sims Metal Management Limited - Australia",595]
[null,null,30,"GAC SHIPPING PVT LTD",30,"SINDBAD CHARTERANS",69]
[null,null,30,"GAC SHIPPING PVT LTD",30,"SINOCHEM SHIPPING CO LTD",161]
[null,null,30,"GAC SHIPPING PVT LTD",30,"SIRIUS SHIP MANAGEMENT SRL",517]
[null,null,30,"GAC SHIPPING PVT LTD",30,"SK SHIPPING PTE LTD",394]
[null,null,30,"GAC SHIPPING PVT LTD",30,"SK SHIPPNG CO LTD",421]
[null,null,30,"GAC SHIPPING PVT LTD",30,"SMT SHIPMANAGEMENT LIMASSOL",426]
[null,null,30,"GAC SHIPPING PVT LTD",30,"SMT SHIPMANAGEMENT LIMASSOL",448]
[null,null,30,"GAC SHIPPING PVT LTD",30,"SMT SHIPMANAGEMENT LIMASSOL",449]
[null,null,30,"GAC SHIPPING PVT LTD",30,"SONO SHIPPING LLC C/O MERIDIAN BULK CARIE",260]
[null,null,30,"GAC SHIPPING PVT LTD",30,"SORTRNS SHIPPING TURKEY",179]
[null,null,30,"GAC SHIPPING PVT LTD",30,"SOSA SHIPPING",342]
[null,null,30,"GAC SHIPPING PVT LTD",30,"SPLETHOFFS BEVRACHTINGS ANTOOR ",135]
[null,null,30,"GAC SHIPPING PVT LTD",30,"SPLIT SHIP MANAGEMENT",324]
[null,null,30,"GAC SHIPPING PVT LTD",30,"SPRINGFIELD SHIPPING CO. - GREECE",642]
[null,null,30,"GAC SHIPPING PVT LTD",30,"ST SHIPPING & TRANSPORTATION",303]
[null,null,30,"GAC SHIPPING PVT LTD",30,"ST. SHIPPING & TRANSPORT INC.",140]
[null,null,30,"GAC SHIPPING PVT LTD",30,"STAMFORD NAVIGATION GREECE",220]
[null,null,30,"GAC SHIPPING PVT LTD",30,"STAR BULK MANAGEMENT",432]
[null,null,30,"GAC SHIPPING PVT LTD",30,"Star Tankers Inc",587]
[null,null,30,"GAC SHIPPING PVT LTD",30,"STARSHIP FREIGHT PVT. LTD.",543]
[null,null,30,"GAC SHIPPING PVT LTD",30,"Stena Bulk LLC.",588]
[null,null,30,"GAC SHIPPING PVT LTD",30,"STENA SONAGOL PANAMAXPOOL LLC,",471]
[null,null,30,"GAC SHIPPING PVT LTD",30,"STENTEX L.L.C. HOUSTON",457]
[null,null,30,"GAC SHIPPING PVT LTD",30,"STEVEN ROCK LLC.",134]
[null,null,30,"GAC SHIPPING PVT LTD",30,"STOFT NIELSEN TRANSPORT",70]
[null,null,30,"GAC SHIPPING PVT LTD",30,"STOKER SHIPPING LTD",71]
[null,null,30,"GAC SHIPPING PVT LTD",30,"STX PAN OCEAN CO LTD. KOREA",219]
[null,null,30,"GAC SHIPPING PVT LTD",30,"STX PAN OCEAN CO LTD. SINGAPORE",321]
[null,null,30,"GAC SHIPPING PVT LTD",30,"SU NAVIGATION PTE LTD",362]
[null,null,30,"GAC SHIPPING PVT LTD",30,"SUNBEAN LTD VALLERA",72]
[null,null,30,"GAC SHIPPING PVT LTD",30,"SUNWOO MERCHANT MARINE CO LTD",363]
[null,null,30,"GAC SHIPPING PVT LTD",30,"SUNWOOD MERCHANT MARINE",292]
[null,null,30,"GAC SHIPPING PVT LTD",30,"SWAN SHIPPING CORPORATION",482]
[null,null,30,"GAC SHIPPING PVT LTD",30,"SWEDISH ORIENT LINE",190]
[null,null,30,"GAC SHIPPING PVT LTD",30,"SYMCO SHIPPING LTD",121]
[null,null,30,"GAC SHIPPING PVT LTD",30,"TABUCHI MARINE PTE. LTD., SINGAPORE",616]
[null,null,30,"GAC SHIPPING PVT LTD",30,"TANDO SHIPPING ISTANBUL",410]
[null,null,30,"GAC SHIPPING PVT LTD",30,"TANKER PACIFIC MANAGEMENT",125]
[null,null,30,"GAC SHIPPING PVT LTD",30,"TARGET ENGINEING INDIA",356]
[null,null,30,"GAC SHIPPING PVT LTD",30,"TBS NY OPERATIONS",385]
[null,null,30,"GAC SHIPPING PVT LTD",30,"TDADHOL INTERNATIONAL S.A MADRID",429]
[null,null,30,"GAC SHIPPING PVT LTD",30,"TEAM TANKER AS KOREA",230]
[null,null,30,"GAC SHIPPING PVT LTD",30,"TESMA",255]
[null,null,30,"GAC SHIPPING PVT LTD",30,"THALASIC TEAMSHIP",73]
[null,null,30,"GAC SHIPPING PVT LTD",30,"THAMES SHIPBROKERS",98]
[null,null,30,"GAC SHIPPING PVT LTD",30,"THE RICE COMPANY USA",346]
[null,null,30,"GAC SHIPPING PVT LTD",30,"THENAMARS SHIPS",74]
[null,null,30,"GAC SHIPPING PVT LTD",30,"THOME SHIP MANAGEMENT",285]
[null,null,30,"GAC SHIPPING PVT LTD",30,"THOME SHIPMANAGMENT PTE. LTD",693]
[null,null,30,"GAC SHIPPING PVT LTD",30,"Thorco Shipping Pte. Ltd - Singapore",718]
[null,null,30,"GAC SHIPPING PVT LTD",30,"THORSEN & CO LTD THILAND",180]
[null,null,30,"GAC SHIPPING PVT LTD",30,"TIDE WATER",317]
[null,null,30,"GAC SHIPPING PVT LTD",30,"TIRRENA SRI",136]
[null,null,30,"GAC SHIPPING PVT LTD",30,"TITAN OCEAN PTE",75]
[null,null,30,"GAC SHIPPING PVT LTD",30,"TMS BULKERS LTD. - GREECE",611]
[null,null,30,"GAC SHIPPING PVT LTD",30,"TNO SHIPPING SHANGHAI",120]
[null,null,30,"GAC SHIPPING PVT LTD",30,"TOEI SUISAN CO.LTD",191]
[null,null,30,"GAC SHIPPING PVT LTD",30,"TOEPFER INTERNATIONAL PTE. LTD.",546]
[null,null,30,"GAC SHIPPING PVT LTD",30,"TOKO KIUN KISHA",76]
[null,null,30,"GAC SHIPPING PVT LTD",30,"TOKYO MARINE",77]
[null,null,30,"GAC SHIPPING PVT LTD",30,"TOKYO MARINE ASIA PTE. LTD.",602]
[null,null,30,"GAC SHIPPING PVT LTD",30,"TOMASAS BROTHERS",78]
[null,null,30,"GAC SHIPPING PVT LTD",30,"TOS TRANSPORT & OFFSHORE SERVICES",487]
[null,null,30,"GAC SHIPPING PVT LTD",30,"TOTAL HUBAGENCY C/O. HUMANN & TACONET",500]
[null,null,30,"GAC SHIPPING PVT LTD",30,"TRADEHOLE INTERNATIONAL LTD.",318]
[null,null,30,"GAC SHIPPING PVT LTD",30,"TRANS ATLANTIC PROJECT",209]
[null,null,30,"GAC SHIPPING PVT LTD",30,"TRANS OCEAN EASTERN LTD",328]
[null,null,30,"GAC SHIPPING PVT LTD",30,"TRANS OCEAN SERVICE",108]
[null,null,30,"GAC SHIPPING PVT LTD",30,"TRANSAL SHIPPING TRADING CO.",376]
[null,null,30,"GAC SHIPPING PVT LTD",30,"TRANSAL SHIPPING TRADING CO.",462]
[null,null,30,"GAC SHIPPING PVT LTD",30,"TRANSBULK INTERNATIONAL SHIPPING LLC",526]
[null,null,30,"GAC SHIPPING PVT LTD",30,"TRANSFIELDER RESOURSEX LTD",196]
[null,null,30,"GAC SHIPPING PVT LTD",30,"TRANSPOERTEC SDN BHD",387]
[null,null,30,"GAC SHIPPING PVT LTD",30,"TRANSPROCON GOTEB ORG SWEDEN",246]
[null,null,30,"GAC SHIPPING PVT LTD",30,"TRENCON LTD.",294]
[null,null,30,"GAC SHIPPING PVT LTD",30,"Trinity Bulk Inc, Athens, Greece",553]
[null,null,30,"GAC SHIPPING PVT LTD",30,"TROPIS SHIPPING COMPANY LTD.",532]
[null,null,30,"GAC SHIPPING PVT LTD",30,"TRRANS BULK SHIPPING LLC DUBAI",182]
[null,null,30,"GAC SHIPPING PVT LTD",30,"TRUST OIL TANKERS",364]
[null,null,30,"GAC SHIPPING PVT LTD",30,"TUAH TANKERS",373]
[null,null,30,"GAC SHIPPING PVT LTD",30,"UGARIT SHIPPING AGENCY TARTOUS SYIRA",407]
[null,null,30,"GAC SHIPPING PVT LTD",30,"UNI PETROL",319]
[null,null,30,"GAC SHIPPING PVT LTD",30,"UNICORN PETROLEUM",392]
[null,null,30,"GAC SHIPPING PVT LTD",30,"UNIOCEAN MARITIME CO LTD.",162]
[null,null,30,"GAC SHIPPING PVT LTD",30,"Unione Trading Company Ltd.",589]
[null,null,30,"GAC SHIPPING PVT LTD",30,"UNITED ARAB CHEMICAL CARRIERS, DUBAI ¿ UAE",615]
[null,null,30,"GAC SHIPPING PVT LTD",30,"United Product Tankers",590]
[null,null,30,"GAC SHIPPING PVT LTD",30,"UNITRA MARITIME CO. LTD",523]
[null,null,30,"GAC SHIPPING PVT LTD",30,"UNITRUST SHIPPING & TRADING",476]
[null,null,30,"GAC SHIPPING PVT LTD",30,"US SHIPPING CORP",479]
[null,null,30,"GAC SHIPPING PVT LTD",30,"V SHIP UK LTD RIGA LATIVA",424]
[null,null,30,"GAC SHIPPING PVT LTD",30,"VAL ENTERPRISES",417]
[null,null,30,"GAC SHIPPING PVT LTD",30,"VBG SHIPPING & TRADING",284]
[null,null,30,"GAC SHIPPING PVT LTD",30,"VEBRA OIL SUPPLY",79]
[null,null,30,"GAC SHIPPING PVT LTD",30,"VEGA SHIPS MANAGEMENT ",425]
[null,null,30,"GAC SHIPPING PVT LTD",30,"VENDOOS SHIPPING B.V.",126]
[null,null,30,"GAC SHIPPING PVT LTD",30,"VERTICAL U.K",201]
[null,null,30,"GAC SHIPPING PVT LTD",30,"VESTLAND MARINE",286]
[null,null,30,"GAC SHIPPING PVT LTD",30,"Victoria Steamship Co. Ltd.",592]
[null,null,30,"GAC SHIPPING PVT LTD",30,"VINALNES HOCHIMINH CITY",388]
[null,null,30,"GAC SHIPPING PVT LTD",30,"VISA COMTRADE(ASIA) LTD",395]
[null,null,30,"GAC SHIPPING PVT LTD",30,"VISA COMTRADE(ASIA) LTD",609]
[null,null,30,"GAC SHIPPING PVT LTD",30,"VULCANUS TECHNICAL MARITIME",397]
[null,null,30,"GAC SHIPPING PVT LTD",30,"WAM SINGSPORE PTE LTD C/O WEST ASIA MARITIME",198]
[null,null,30,"GAC SHIPPING PVT LTD",30,"WARM SEAS DEVLPT",80]
[null,null,30,"GAC SHIPPING PVT LTD",30,"WEST ASIA MARINE LTD INDIA",141]
[null,null,30,"GAC SHIPPING PVT LTD",30,"Western Bulk Pte Ltd., Singapore",551]
[null,null,30,"GAC SHIPPING PVT LTD",30,"WESTERN BULK PTE.",468]
[null,null,30,"GAC SHIPPING PVT LTD",30,"WINNING SHIPPING - CHINA",613]
[null,null,30,"GAC SHIPPING PVT LTD",30,"WIRANA ",367]
[null,null,30,"GAC SHIPPING PVT LTD",30,"WIRANA A/C DINKHA ORAHIM LATCHI",438]
[null,null,30,"GAC SHIPPING PVT LTD",30,"WOMAR LOGISTICS PTE. LTD.",542]
[null,null,30,"GAC SHIPPING PVT LTD",30,"WORLD TANKERS",81]
[null,null,30,"GAC SHIPPING PVT LTD",30,"WORLD WIDE SHIPPING",82]
[null,null,30,"GAC SHIPPING PVT LTD",30,"WORLDWIDE GREEN TANKERS",361]
[null,null,30,"GAC SHIPPING PVT LTD",30,"YANG ZHE HAI SHIPPING (HK) LTD",503]
[null,null,30,"GAC SHIPPING PVT LTD",30,"YAYASAN SABAH SHIPPING SINGAPORE",357]
[null,null,30,"GAC SHIPPING PVT LTD",30,"YOUN GCHANG ENTERPRISE CO. LTD.",565]
[null,null,30,"GAC SHIPPING PVT LTD",30,"YU SHIAN INTERNATION PTY. LTD",513]
[null,null,30,"GAC SHIPPING PVT LTD",30,"Z&G HALCOUSSIS CO LTD",188]
[null,null,30,"GAC SHIPPING PVT LTD",30,"ZODIAC MARITIME",310]
[null,null,259,"Gate Way Express Shipping (Pvt) Ltd (Reg. No. SA-701)",259,"No Principal available",0]
[null,null,225,"Gateway Shipping Services & Trading International (SA-653)",225,"No Principal available",0]
[null,null,31,"GENERAL MARITIME PVT LTD",31,"EAST WEST MARINE",1]
[null,null,31,"GENERAL MARITIME PVT LTD",31,"H AND H LINE U.K",3]
[null,null,31,"GENERAL MARITIME PVT LTD",31,"JIN YING NAVIGATION",2]
[null,null,31,"GENERAL MARITIME PVT LTD",31,"M\\S ALMIR NAVIGATIONS LIMITED, VALLETTA-MALTA",4]
[null,null,31,"GENERAL MARITIME PVT LTD",31,"POSEIDONIO MARINE LTD MALTA",5]
[null,null,31,"GENERAL MARITIME PVT LTD",31,"SHIPCO TRANSPORT INC USA",8]
[null,null,31,"GENERAL MARITIME PVT LTD",31,"SHIPCO TRANSPORT SHANGHAI LTD.",7]
[null,null,31,"GENERAL MARITIME PVT LTD",31,"The shipping corporation of India lijited",6]
[null,null,32,"GENERAL SHIPPING AGENCIES PVT LTD",32,"AL KHAIR META TRADING",7]
[null,null,32,"GENERAL SHIPPING AGENCIES PVT LTD",32,"ALI AKBER KARMIAN UAE",5]
[null,null,32,"GENERAL SHIPPING AGENCIES PVT LTD",32,"ASIA METAL TRADING",6]
[null,null,32,"GENERAL SHIPPING AGENCIES PVT LTD",32,"CONTI LINE",1]
[null,null,32,"GENERAL SHIPPING AGENCIES PVT LTD",32,"COUNT LINE ANTRWERP , BELGIUM",2]
[null,null,32,"GENERAL SHIPPING AGENCIES PVT LTD",32,"EITZEN CHEMICALS DENMARK",11]
[null,null,32,"GENERAL SHIPPING AGENCIES PVT LTD",32,"HOLBUD SHIP MANGTT",3]
[null,null,32,"GENERAL SHIPPING AGENCIES PVT LTD",32,"HUALAS OSLO , NORWAY",4]
[null,null,32,"GENERAL SHIPPING AGENCIES PVT LTD",32,"NASCO CHINA",8]
[null,null,32,"GENERAL SHIPPING AGENCIES PVT LTD",32,"ORIENTAL LAKE CHINA",10]
[null,null,32,"GENERAL SHIPPING AGENCIES PVT LTD",32,"PARKROAD KOREA",9]
[null,null,276,"Global Cargo System (Pvt) Ltd (Reg. No. SA-722)",276,"No Principal available",0]
[null,null,33,"GLOBAL MARITIME PVT LTD",33,"ASIAN CONTAINER UK",1]
[null,null,33,"GLOBAL MARITIME PVT LTD",33,"GLOBAL CONTAINER LINE LTD USA",2]
[null,null,33,"GLOBAL MARITIME PVT LTD",33,"M/s. Seaways Shipping line, India",3]
[null,null,33,"GLOBAL MARITIME PVT LTD",33,"NILEDUTCH",4]
[null,null,184,"Global Shipping & Logistics (Reg. No. SA-595)",184,"No Principal available",0]
[null,null,240,"Global Shipping Agencies (Reg. No. SA-673)",240,"No Principal available",0]
[null,null,237,"Global Shipping Xperts (Reg. No. SA-670)",237,"No Principal available",0]
[null,null,203,"Globalink Smart Logistics (Pvt) Ltd (Reg. No. SA-628)",203,"No Principal available",0]
[null,null,311,"Globelink Pakistan (Pvt) Ltd(Reg. No. SA-365)",311,"No Principal available",0]
[null,null,34,"GOLDEN SHIPPING LINE (PVT) LTD",34,"BANGLADESH SHIPPING CORP, BANGLADESH",1]
[null,null,34,"GOLDEN SHIPPING LINE (PVT) LTD",34,"CARGO-LEVANT GERMANY",15]
[null,null,34,"GOLDEN SHIPPING LINE (PVT) LTD",34,"CLOVER CARGO INTERNATIONAL",17]
[null,null,34,"GOLDEN SHIPPING LINE (PVT) LTD",34,"DADESK FZE (UAE)",23]
[null,null,34,"GOLDEN SHIPPING LINE (PVT) LTD",34,"DAMNI SHIPPING MUMBAI INDIA",19]
[null,null,34,"GOLDEN SHIPPING LINE (PVT) LTD",34,"EMR LTD",5]
[null,null,34,"GOLDEN SHIPPING LINE (PVT) LTD",34,"EUROPEAN METAL RECYCLING LIMITED",12]
[null,null,34,"GOLDEN SHIPPING LINE (PVT) LTD",34,"FAYETTE INTERNATIONAL KOREA ",10]
[null,null,34,"GOLDEN SHIPPING LINE (PVT) LTD",34,"GMB MARITIME LINER SERVICES",27]
[null,null,34,"GOLDEN SHIPPING LINE (PVT) LTD",34,"IMT SHIPPING CHARTERING GMBH",21]
[null,null,34,"GOLDEN SHIPPING LINE (PVT) LTD",34,"MARTRADE SHIPING & TRANSPORT GMBH",13]
[null,null,34,"GOLDEN SHIPPING LINE (PVT) LTD",34,"MERCATILE SHIPPING CO. LTD.",3]
[null,null,34,"GOLDEN SHIPPING LINE (PVT) LTD",34,"METALL AND ROHSTUFF, SOUTH AFRICA",2]
[null,null,34,"GOLDEN SHIPPING LINE (PVT) LTD",34,"NYK BULKSHIP(EUROPE)ENGLAND LIMITED",9]
[null,null,34,"GOLDEN SHIPPING LINE (PVT) LTD",34,"NYK-HINODE LINE LTD. JAPAN",16]
[null,null,34,"GOLDEN SHIPPING LINE (PVT) LTD",34,"OCEANWIDE SERVICES GERMANY",24]
[null,null,34,"GOLDEN SHIPPING LINE (PVT) LTD",34,"OCENWIDE EXPRESS GmbH",25]
[null,null,34,"GOLDEN SHIPPING LINE (PVT) LTD",34,"PAN MARINE SHIPPING CORPORATION",22]
[null,null,34,"GOLDEN SHIPPING LINE (PVT) LTD",34,"PROMETHEUS MARITIME GREECE",7]
[null,null,34,"GOLDEN SHIPPING LINE (PVT) LTD",34,"SASCO GMBH",8]
[null,null,34,"GOLDEN SHIPPING LINE (PVT) LTD",34,"SEAFRESH SHIPPING LIMITED",18]
[null,null,34,"GOLDEN SHIPPING LINE (PVT) LTD",34,"SINANO SHIPMANAGEMENT LIMITED (RUSSIA)",14]
[null,null,34,"GOLDEN SHIPPING LINE (PVT) LTD",34,"SKR SHIPPING",26]
[null,null,34,"GOLDEN SHIPPING LINE (PVT) LTD",34,"SPRIGFIN",4]
[null,null,34,"GOLDEN SHIPPING LINE (PVT) LTD",34,"TABY SCHIFFARTS-UND SPEDITION GMB",11]
[null,null,34,"GOLDEN SHIPPING LINE (PVT) LTD",34,"UNITED AFRICA FEEDER LINE ",20]
[null,null,34,"GOLDEN SHIPPING LINE (PVT) LTD",34,"VALLIBEL LANKA(PVT)LTD",6]
[null,null,35,"GORAL SHIPPING & TRADING PVT LTD",35,"BANGLADESH SHIPPING CORPORATION",1]
[null,null,35,"GORAL SHIPPING & TRADING PVT LTD",35,"EMR LIMITED",5]
[null,null,35,"GORAL SHIPPING & TRADING PVT LTD",35,"MERCHANTILE SHIPPING COMPANY LTD",3]
[null,null,35,"GORAL SHIPPING & TRADING PVT LTD",35,"METALLUND ROHSTOFF SHIPPING RSA PTV LTD.",2]
[null,null,35,"GORAL SHIPPING & TRADING PVT LTD",35,"Not Available",0]
[null,null,35,"GORAL SHIPPING & TRADING PVT LTD",35,"SPRINGFIN",4]
[null,null,36,"GREAT EASTERN SHIPPING PVT LTD",36,"INDHIRA LINES PTE , SINGAPORE",1]
[null,null,162,"Green Pak Shipping (Pvt) Ltd (Reg. No. SA-613)",162,"EverGreen International S.A Taiwan",1]
[null,null,162,"Green Pak Shipping (Pvt) Ltd (Reg. No. SA-613)",162,"EverGreen Marine Singapore",7]
[null,null,162,"Green Pak Shipping (Pvt) Ltd (Reg. No. SA-613)",162,"EverGreen Marine(U.K) Ltd UK",2]
[null,null,162,"Green Pak Shipping (Pvt) Ltd (Reg. No. SA-613)",162,"ITALIA MARITIMMA S, P.A ITALY",3]
[null,null,162,"Green Pak Shipping (Pvt) Ltd (Reg. No. SA-613)",162,"NYK LINE JAPAN",4]
[null,null,162,"Green Pak Shipping (Pvt) Ltd (Reg. No. SA-613)",162,"T. S LINES LTD TAIWAN",5]
[null,null,37,"GULF MARITIME SERVICES PVT LTD",37,"BBC Chartering & Logistics GMBH & Co.",3]
[null,null,37,"GULF MARITIME SERVICES PVT LTD",37,"GMBH",4]
[null,null,37,"GULF MARITIME SERVICES PVT LTD",37,"Manfred Lauterjung Befrachtung Aps",2]
[null,null,37,"GULF MARITIME SERVICES PVT LTD",37,"No Principal available",0]
[null,null,37,"GULF MARITIME SERVICES PVT LTD",37,"SHIFFARHT SKONTOR ALTES LAND GMBH & CO.",1]
[null,null,189,"H.M Agencies (Reg. No. SA-604)",189,"No Principal available",0]
[null,null,38,"HEGGE AND COY PAK PVT LTD",38,"AL-JABAR EJ, ABU DHABI",1]
[null,null,38,"HEGGE AND COY PAK PVT LTD",38,"BHP BILITION , AUSTRALIA",2]
[null,null,38,"HEGGE AND COY PAK PVT LTD",38,"BHP TRANSPORT , AUSTRALIA",3]
[null,null,38,"HEGGE AND COY PAK PVT LTD",38,"BROKEN HILL PROPRIETARY MELBORN",5]
[null,null,38,"HEGGE AND COY PAK PVT LTD",38,"BROKEN HILL PROPRIETARY, AUSTRALIA",4]
[null,null,38,"HEGGE AND COY PAK PVT LTD",38,"CARGIL INTERNATIONAL SERVICES GENEVA SWITZERLAND",19]
[null,null,38,"HEGGE AND COY PAK PVT LTD",38,"ELDERS RURAL SERVICES MELBOURNE",21]
[null,null,38,"HEGGE AND COY PAK PVT LTD",38,"FALCON SHIPPING EGERSUND DENMARK",20]
[null,null,38,"HEGGE AND COY PAK PVT LTD",38,"FED NAV INT MONTREAL, CANADA",6]
[null,null,38,"HEGGE AND COY PAK PVT LTD",38,"FEDERAL COMMERCE & NAVIGATION CO MONTREAL",7]
[null,null,38,"HEGGE AND COY PAK PVT LTD",38,"INCHAPE SHIPPING",15]
[null,null,38,"HEGGE AND COY PAK PVT LTD",38,"JO TANKERS B/V, NETHERLAND",8]
[null,null,38,"HEGGE AND COY PAK PVT LTD",38,"JO TANKERS B/VV",13]
[null,null,38,"HEGGE AND COY PAK PVT LTD",38,"KOYO KAUIN , JAPAN",9]
[null,null,38,"HEGGE AND COY PAK PVT LTD",38,"MUMI LAUT SHIPPING INDONESIA",18]
[null,null,38,"HEGGE AND COY PAK PVT LTD",38,"NATIONAL NAVIGATION CO LTD, EGYPT",10]
[null,null,38,"HEGGE AND COY PAK PVT LTD",38,"PHOKSEN TRAI AGENCIES THAILAND",17]
[null,null,38,"HEGGE AND COY PAK PVT LTD",38,"RIO TINTO SHIPPING",14]
[null,null,38,"HEGGE AND COY PAK PVT LTD",38,"SHIPCRAFT, DENMARK",11]
[null,null,38,"HEGGE AND COY PAK PVT LTD",38,"THORESE & CO, THAILAND",12]
[null,null,38,"HEGGE AND COY PAK PVT LTD",38,"VENTURE SHIPPING LTD. HONGKONG",22]
[null,null,38,"HEGGE AND COY PAK PVT LTD",38,"WAH KOWNG SHIPPING HONGKONG",16]
[null,null,38,"HEGGE AND COY PAK PVT LTD",38,"WESTERN BULK ",23]
[null,null,197,"Hi Tech Shipping (Pvt) Ltd (Reg. No. SA-620)",197,"No Principal available",0]
[null,null,166,"Highseas Shipping Pvt Ltd. (Reg. No. SA-598)",166,"Fal shipping co >td. Sharjah UAE",1]
[null,null,166,"Highseas Shipping Pvt Ltd. (Reg. No. SA-598)",166,"GLENDA INTERNATIONAL MANAGEMENT DUBLIN IRELAND",2]
[null,null,166,"Highseas Shipping Pvt Ltd. (Reg. No. SA-598)",166,"Litasco Middle East DMCC",7]
[null,null,166,"Highseas Shipping Pvt Ltd. (Reg. No. SA-598)",166,"Lukoil Sweden AB",6]
[null,null,166,"Highseas Shipping Pvt Ltd. (Reg. No. SA-598)",166,"Marida Tankers C/O Womar Logistics PTE Ltd, Singapore",8]
[null,null,166,"Highseas Shipping Pvt Ltd. (Reg. No. SA-598)",166,"MENA ENERGY DMCC, DUBAI",3]
[null,null,166,"Highseas Shipping Pvt Ltd. (Reg. No. SA-598)",166,"ST SHIPPING&TRANSPORT PTE LTD LONDON",4]
[null,null,166,"Highseas Shipping Pvt Ltd. (Reg. No. SA-598)",166,"VB POOL INC NAVIG SINGOPORE",5]
[null,null,166,"Highseas Shipping Pvt Ltd. (Reg. No. SA-598)",166,"Womar Logistics PTE, Singapore",9]
[null,null,39,"HUSSAIN TRADING AGENCIES PVT LTD",39,"No Principal available",0]
[null,null,179,"IAL Pakistan (Pvt) Ltd.",179,"AS CARELIA ",12]
[null,null,179,"IAL Pakistan (Pvt) Ltd.",179,"CS TINA",9]
[null,null,179,"IAL Pakistan (Pvt) Ltd.",179,"ER HELGOLAND",10]
[null,null,179,"IAL Pakistan (Pvt) Ltd.",179,"HANJIN SCARLET",13]
[null,null,179,"IAL Pakistan (Pvt) Ltd.",179,"HS HARVEST",6]
[null,null,179,"IAL Pakistan (Pvt) Ltd.",179,"HS MARCO POLO",7]
[null,null,179,"IAL Pakistan (Pvt) Ltd.",179,"HYUNDAI PARAMOUNT",17]
[null,null,179,"IAL Pakistan (Pvt) Ltd.",179,"KOTA KAYA",11]
[null,null,179,"IAL Pakistan (Pvt) Ltd.",179,"MOL",2]
[null,null,179,"IAL Pakistan (Pvt) Ltd.",179,"NIARA",4]
[null,null,179,"IAL Pakistan (Pvt) Ltd.",179,"POSEN ",8]
[null,null,179,"IAL Pakistan (Pvt) Ltd.",179,"RHL AQUA",5]
[null,null,179,"IAL Pakistan (Pvt) Ltd.",179,"Samundra",3]
[null,null,179,"IAL Pakistan (Pvt) Ltd.",179,"SIMA PRESTIGE",16]
[null,null,179,"IAL Pakistan (Pvt) Ltd.",179,"Simatech",1]
[null,null,179,"IAL Pakistan (Pvt) Ltd.",179,"WAN HAI",15]
[null,null,179,"IAL Pakistan (Pvt) Ltd.",179,"X-PRESS EUPHRATES",14]
[null,null,258,"Ideal Clearing & Forwarding Agency (Reg. No. SA-700)",258,"No Principal available",0]
[null,null,40,"ILYAS INVESTMENT PVT LTD",40,"No Principal available",0]
[null,null,386,"Inchcape Shipping Services (Pvt) Ltd (Reg. No. SA-533)",386,"No Principal available",0]
[null,null,41,"INDIAN OCEAN",41,"No Principal available",0]
[null,null,243,"Indus Shipping (Pvt) Ltd (Reg. No. SA-677)",243,"No Principal available",0]
[null,null,42,"INSERVEY PAKISTAN PVT LTD",42,"HANJIN SHIPPING CO.",1]
[null,null,43,"INSHIPPING PAKISTAN PVT LTD",43,"IN SHIPPING MANAGEMENT",1]
[null,null,43,"INSHIPPING PAKISTAN PVT LTD",43,"YAMING MARINE TRANSPORT CORP.CHINA",3]
[null,null,43,"INSHIPPING PAKISTAN PVT LTD",43,"YML",2]
[null,null,195,"Inter Ocean Cargo Services (Pvt) Ltd (Reg. No. SA-615)",195,"No Principal available",0]
[null,null,376,"Interline Shipping (Pvt) Ltd (Reg. No. SA-517)",376,"No Principal available",0]
[null,null,369,"International Cargo Management (Reg. No. SA-501)",369,"No Principal available",0]
[null,null,44,"INTERNATIONAL FOREIGN AGENCIES PVT LTD",44,"No Principal available",0]
[null,null,381,"International Logistic Master (Reg. No. SA-525)",381,"No Principal available",0]
[null,null,246,"International Maritime Services (Pvt) Ltd (Reg. No.SA-683)",246,"No Principal available",0]
[null,null,283,"International Shipping Reliance Shipping Agency (SA-729)",283,"No Principal available",0]
[null,null,45,"INTIME SHIPPING PVT LTD",45,"No Principal available",0]
[null,null,46,"ISLAND TRADING CO",46,"No Principal available",0]
[null,null,47,"ISPI CORPORATION",47,"BUNGA DIDARA",1]
[null,null,47,"ISPI CORPORATION",47,"CAPE SCOTT",2]
[null,null,47,"ISPI CORPORATION",47,"IHSA' A",3]
[null,null,47,"ISPI CORPORATION",47,"MALAYSIA INTL SHIP COP.",4]
[null,null,47,"ISPI CORPORATION",47,"MISC BERHAD MALAYSIA",8]
[null,null,47,"ISPI CORPORATION",47,"WAN HA",5]
[null,null,47,"ISPI CORPORATION",47,"X-PRESS INNAPURANA",6]
[null,null,47,"ISPI CORPORATION",47,"X-PRESS KHARASH",7]
[null,null,48,"ISRA INTERNATIONAL PVT LTD",48,"No Principal available",0]
[null,null,48,"ISRA INTERNATIONAL PVT LTD",48,"STIC SHIPPING & TRADING",2]
[null,null,48,"ISRA INTERNATIONAL PVT LTD",48,"WISDON LINE TAIWAN",1]
[null,null,255,"Jaguar Shipping Line (Pvt) Ltd (Reg. No. SA-697)",255,"No Principal available",0]
[null,null,209,"Jamal Logistics (Reg. No. SA-634)",209,"No Principal available",0]
[null,null,49,"JAMES FINLAY",49,"MIDEAST SHIPPING AND TRADING CO.",1]
[null,null,49,"JAMES FINLAY",49,"NYK LINES ASIA PVT. LTD.",2]
[null,null,49,"JAMES FINLAY",49,"Swire Shipping Lines",3]
[null,null,50,"KARACHI LINER AGENCY",50,"Aden Scrap Trading LLc Sharjah ",4]
[null,null,50,"KARACHI LINER AGENCY",50,"BOUNTY SHIPPING LTD",1]
[null,null,50,"KARACHI LINER AGENCY",50,"COMPASS SHIPPING AND TRADING LTD. UAE",3]
[null,null,50,"KARACHI LINER AGENCY",50,"M/S. MIDEAST SHIPPING AND TRADING LTD NAVISW.",2]
[null,null,187,"Labbiak Shipping Services (Reg. No. SA-600)",187,"No Principal available",0]
[null,null,265,"Laguardia Logistics (Pvt) Ltd (Reg. No. SA-709)",265,"No Principal available",0]
[null,null,51,"LAND OCEAN SHIPPING",51,"No Principal available",0]
[null,null,52,"LATIF TRADING PVT LTD",52,"No Principal available",0]
[null,null,220,"Logistics Services Pakistan (Reg. No. SA-647)",220,"No Principal available",0]
[null,null,279,"Logistics Solution (Pvt) Ltd (Reg. No. SA-725)",279,"No Principal available",0]
[null,null,300,"M International Services (Pvt) Ltd.(Reg. No. SA-296)",300,"No Principal available",0]
[null,null,337,"M.R Traders (Pvt) Ltd (Reg. No. SA-452)",337,"No Principal available",0]
[null,null,151,"M/S MITSUI O.S.K. LINES PAKISTAN PVT LTD.(SA-285)",151,"MITSUI OSK LINES LIMITED JAPAN",1]
[null,null,296,"M/S. A.F. Container Systems(Reg. No. SA-257)",296,"No Principal available",0]
[null,null,295,"M/S. Argonaftis (Pvt) Ltd (Reg. No. SA-243)",295,"No Principal available",0]
[null,null,144,"M/S. DIAMOND MUBARAK (PVT)LTD.(Reg.No. SA-197)",144,"AVIN INTERNATIONAL L.R.GREECE",5]
[null,null,144,"M/S. DIAMOND MUBARAK (PVT)LTD.(Reg.No. SA-197)",144,"CANADIAN MARITIME",1]
[null,null,144,"M/S. DIAMOND MUBARAK (PVT)LTD.(Reg.No. SA-197)",144,"CONSOLIDATED POOL CARRIER",8]
[null,null,144,"M/S. DIAMOND MUBARAK (PVT)LTD.(Reg.No. SA-197)",144,"EXPRESS DE NAVIGATION CUBA",4]
[null,null,144,"M/S. DIAMOND MUBARAK (PVT)LTD.(Reg.No. SA-197)",144,"KUWAIT OIL TANKER SAK",3]
[null,null,144,"M/S. DIAMOND MUBARAK (PVT)LTD.(Reg.No. SA-197)",144,"MAY FAIR HELLASO CO.LTD",6]
[null,null,144,"M/S. DIAMOND MUBARAK (PVT)LTD.(Reg.No. SA-197)",144,"SEA VENTURE MARINE ENT,P. CORP",9]
[null,null,144,"M/S. DIAMOND MUBARAK (PVT)LTD.(Reg.No. SA-197)",144,"VENTURE MARINE ENT. P.",7]
[null,null,144,"M/S. DIAMOND MUBARAK (PVT)LTD.(Reg.No. SA-197)",144,"WEAVENEY MARITIME SERVICE",2]
[null,null,289,"M/S. Eastern Shipping Co. Ltd(Reg No. SA-30)",289,"No Principal available",0]
[null,null,293,"M/S. Marainer Agencies (Pvt) Limited.(Reg. No. SA-174)",293,"No Principal available",0]
[null,null,290,"M/S. Muhammad Trading Corporation(reg No. SA-76)",290,"No Principal available",0]
[null,null,294,"M/S. Noor Sons (Reg. No. SA-222)",294,"No Principal available",0]
[null,null,298,"M/S. Posidon Shipping Agencies (Pvt) Ltd(Reg. No.SA-265)",298,"No Principal available",0]
[null,null,292,"M/S. Seagold (Pvt) Limited(Reg. No. SA-151)",292,"No Principal available",0]
[null,null,287,"M/S. Shell Pakistan (Pvt) Ltd (Reg.No. 13)",287,"No Principal available",0]
[null,null,291,"M/S. South West Asis Shipping Agency(Reg.No. SA-104)",291,"No Principal available",0]
[null,null,297,"M/S. Worldmarine Shipping & Trading (Pvt) Ltd(Reg. No.SA-263",297,"No Principal available",0]
[null,null,53,"MACKINNONS PAKISTAN",53,"ABU DHABI NATIONAL TANKER COMPANY LTD.",29]
[null,null,53,"MACKINNONS PAKISTAN",53,"ANGLO SHIP",17]
[null,null,53,"MACKINNONS PAKISTAN",53,"ARAB MARITIME PETROLIUM CO, EGYPT",1]
[null,null,53,"MACKINNONS PAKISTAN",53,"ARAB SHIP MANAGEMENT JORDAN",28]
[null,null,53,"MACKINNONS PAKISTAN",53,"ARAB WANDERER",24]
[null,null,53,"MACKINNONS PAKISTAN",53,"DENKLIN MARINE SERVICE, BOMBAY",2]
[null,null,53,"MACKINNONS PAKISTAN",53,"GEMDANANK SHIP MANGT, SINGAPORE",3]
[null,null,53,"MACKINNONS PAKISTAN",53,"GLOBE TANKERS LTD, USA",4]
[null,null,53,"MACKINNONS PAKISTAN",53,"HIJAZI AND CHOSHEH, JORDAN",5]
[null,null,53,"MACKINNONS PAKISTAN",53,"KLTT",18]
[null,null,53,"MACKINNONS PAKISTAN",53,"KUWAIT OIL TANKERS, KUWAIT",6]
[null,null,53,"MACKINNONS PAKISTAN",53,"LIVE STOCK TRANSPORT, KUWAIT",7]
[null,null,53,"MACKINNONS PAKISTAN",53,"M.V.CONCEPT",26]
[null,null,53,"MACKINNONS PAKISTAN",53,"MIDEAST",30]
[null,null,53,"MACKINNONS PAKISTAN",53,"MV DEUTSCHE",8]
[null,null,53,"MACKINNONS PAKISTAN",53,"P& O CRUSES LTD",9]
[null,null,53,"MACKINNONS PAKISTAN",53,"PHENESEA MANAGEMENT, FRANCE",10]
[null,null,53,"MACKINNONS PAKISTAN",53,"PRINCES CRUISER, LOSANGLES",11]
[null,null,53,"MACKINNONS PAKISTAN",53,"RABUNION MAREITIME AGENCY LEBANONA",27]
[null,null,53,"MACKINNONS PAKISTAN",53,"RACHID FORES ENTERPRISES FRAMANTEC",12]
[null,null,53,"MACKINNONS PAKISTAN",53,"RITZ MARUNE",23]
[null,null,53,"MACKINNONS PAKISTAN",53,"SEKUR HOLDING",19]
[null,null,53,"MACKINNONS PAKISTAN",53,"SEMDAWANG SHIP MANGT, SINGAPORE",13]
[null,null,53,"MACKINNONS PAKISTAN",53,"TEXACO MARINE SERVICE TEXAS",14]
[null,null,53,"MACKINNONS PAKISTAN",53,"TGCHUO & ETIZE , SINGAPORE",15]
[null,null,53,"MACKINNONS PAKISTAN",53,"TONAND MARINE",25]
[null,null,53,"MACKINNONS PAKISTAN",53,"TONAND MARUNE",22]
[null,null,53,"MACKINNONS PAKISTAN",53,"UNIVERSAL",21]
[null,null,53,"MACKINNONS PAKISTAN",53,"VELLA INTERNATIONAL MARINE, S. ARABIA",16]
[null,null,53,"MACKINNONS PAKISTAN",53,"WANDERER",20]
[null,null,332,"Mac-Nels Agencies Pakistan (Reg. No. SA-443)",332,"No Principal available",0]
[null,null,54,"MAERSK SEALAND PAKISTAN (PVT) LTD",54,"AP MOLLER",1]
[null,null,54,"MAERSK SEALAND PAKISTAN (PVT) LTD",54,"P & O Nedlloyds Limited UK",2]
[null,null,316,"Mahi Trading & Shipping (Pvt) Ltd(Reg. No. SA-389)",316,"No Principal available",0]
[null,null,313,"Map Enterprises (Pvt) Ltd(Reg. No.SA-378)",313,"No Principal available",0]
[null,null,231,"Marco Logistics (Reg. No. SA-660)",231,"No Principal available",0]
[null,null,55,"MARINE MANAGEMENT PVT LTD",55,"No Principal available",0]
[null,null,273,"Marine Matters (Pvt) Ltd (Reg. No. SA-718)",273,"No Principal available",0]
[null,null,56,"MARINE PRIDE",56,"A.K. SHIPPING & TRADING INC",9]
[null,null,56,"MARINE PRIDE",56,"CENTROFIN INC GREEC",16]
[null,null,56,"MARINE PRIDE",56,"CENTROFIN MANAGEMENT INC. GREECE",19]
[null,null,56,"MARINE PRIDE",56,"CONCORD CONTAINER LINE LTD",2]
[null,null,56,"MARINE PRIDE",56,"DAEYANG SHIPPING CO LTD",5]
[null,null,56,"MARINE PRIDE",56,"DONGNAME SHIPPING CO LTD",6]
[null,null,56,"MARINE PRIDE",56,"HANJIN SHIPPING SEUL KOREA",17]
[null,null,56,"MARINE PRIDE",56,"INTERPRET VENTURE LTD",4]
[null,null,56,"MARINE PRIDE",56,"KYKLADE MARINE CORPORATION",11]
[null,null,56,"MARINE PRIDE",56,"M/s SENAT SHIPPING SINGAPORE",22]
[null,null,56,"MARINE PRIDE",56,"MARINE PRIDE SHIPPING CORP",1]
[null,null,56,"MARINE PRIDE",56,"Marine Trust Ltd, Greece",15]
[null,null,56,"MARINE PRIDE",56,"NHL DEVELOPMENT CO. LTD",14]
[null,null,56,"MARINE PRIDE",56,"PACIFIC LLOYDS LTD",7]
[null,null,56,"MARINE PRIDE",56,"PRINCESS K SHIPPING CO, ST. VENCENT",21]
[null,null,56,"MARINE PRIDE",56,"SAMSUN LOGIX CORPORATION",10]
[null,null,56,"MARINE PRIDE",56,"SAMSUN LOGIX CORPORATION",18]
[null,null,56,"MARINE PRIDE",56,"STX PAN OCEAN",23]
[null,null,56,"MARINE PRIDE",56,"THE SHIPPING CORPORATION OF INDIA",12]
[null,null,56,"MARINE PRIDE",56,"UNITHAI MARITIME LTD",3]
[null,null,56,"MARINE PRIDE",56,"V. SHIPS SWITZERLAND",8]
[null,null,56,"MARINE PRIDE",56,"WISDOM MARINE LINES S.A TAIWAN",20]
[null,null,57,"MARINE SERVICES PVT LTD",57,"COMPANIA SUD AMERICANA DE .SA.",5]
[null,null,57,"MARINE SERVICES PVT LTD",57,"CSAV CNTR",2]
[null,null,57,"MARINE SERVICES PVT LTD",57,"IGNAZIO MESSINA & C SpA",4]
[null,null,57,"MARINE SERVICES PVT LTD",57,"NORASIA CTR LINES LTD",1]
[null,null,57,"MARINE SERVICES PVT LTD",57,"TRANS ASIAN SHIPPING SERVICS (PRIVATE) LIMITED",3]
[null,null,58,"MARINE TRANSPORT AGENCIES PVT LTD",58,"ANGLO ADEIATIC",1]
[null,null,58,"MARINE TRANSPORT AGENCIES PVT LTD",58,"ANP SHIPPING CO , GREECE",2]
[null,null,58,"MARINE TRANSPORT AGENCIES PVT LTD",58,"AQURIUS SHIP BROKING LONDON, UK",3]
[null,null,58,"MARINE TRANSPORT AGENCIES PVT LTD",58,"BALT ORIENT, SINGAPORE",4]
[null,null,58,"MARINE TRANSPORT AGENCIES PVT LTD",58,"BANGAL SHIPPING KARACHI, KARACHI",5]
[null,null,58,"MARINE TRANSPORT AGENCIES PVT LTD",58,"BARU DELTA MARITIME, GREECE",6]
[null,null,58,"MARINE TRANSPORT AGENCIES PVT LTD",58,"BONYAD MARINE SERVICES, ATHENS",7]
[null,null,58,"MARINE TRANSPORT AGENCIES PVT LTD",58,"CASCO SHANGHAI THROUGH MARITIME KARACHI",8]
[null,null,58,"MARINE TRANSPORT AGENCIES PVT LTD",58,"CITI SHIPPING, INDIA",9]
[null,null,58,"MARINE TRANSPORT AGENCIES PVT LTD",58,"COEMOS SHIPPING CO, GREECE",10]
[null,null,58,"MARINE TRANSPORT AGENCIES PVT LTD",58,"COPENSHIP (COPENHAGEN)",11]
[null,null,58,"MARINE TRANSPORT AGENCIES PVT LTD",58,"COSCO SAEED KAR., MV NAN JIANG, KARACHI",13]
[null,null,58,"MARINE TRANSPORT AGENCIES PVT LTD",58,"COSCO SAEED KAR., YIN CHAUN, KARACHI",14]
[null,null,58,"MARINE TRANSPORT AGENCIES PVT LTD",58,"COSCO SAEED KAR.,MV LONG CHHAN JIANG, KARACHI",12]
[null,null,58,"MARINE TRANSPORT AGENCIES PVT LTD",58,"DIAMOND MUBARAK, KARACHI, KARACHI",15]
[null,null,58,"MARINE TRANSPORT AGENCIES PVT LTD",58,"FRIENDS PVT KARACHI, PAKISTAN",16]
[null,null,58,"MARINE TRANSPORT AGENCIES PVT LTD",58,"GEMSTAR SHIPPING AND TRADING",18]
[null,null,58,"MARINE TRANSPORT AGENCIES PVT LTD",58,"GEMSTAR SHIPPING, SINGAPORE",17]
[null,null,58,"MARINE TRANSPORT AGENCIES PVT LTD",58,"GESTRAL MARINE, GREECE",19]
[null,null,58,"MARINE TRANSPORT AGENCIES PVT LTD",58,"GOLDEN SHIPPING, MALTA",20]
[null,null,58,"MARINE TRANSPORT AGENCIES PVT LTD",58,"GOOD FAITH SHIPPING , GREECE",21]
[null,null,58,"MARINE TRANSPORT AGENCIES PVT LTD",58,"HAWKNET, LONDON",22]
[null,null,58,"MARINE TRANSPORT AGENCIES PVT LTD",58,"KINGSTON MARI MART, MANACO",23]
[null,null,58,"MARINE TRANSPORT AGENCIES PVT LTD",58,"LINK CHART LONDON, UK",24]
[null,null,58,"MARINE TRANSPORT AGENCIES PVT LTD",58,"LOSINJSK PLOVIOBA",25]
[null,null,58,"MARINE TRANSPORT AGENCIES PVT LTD",58,"MCRINK AND CO, HONG KONG",26]
[null,null,58,"MARINE TRANSPORT AGENCIES PVT LTD",58,"NISHAN SHIPPING, BANGLADESH",27]
[null,null,58,"MARINE TRANSPORT AGENCIES PVT LTD",58,"NOPVO SHIP NOROSSIYSK SHIPPING",28]
[null,null,58,"MARINE TRANSPORT AGENCIES PVT LTD",58,"OCEAN MARIS, ATHENS",29]
[null,null,58,"MARINE TRANSPORT AGENCIES PVT LTD",58,"PERGAMOS SHIPPING , GREECE",30]
[null,null,58,"MARINE TRANSPORT AGENCIES PVT LTD",58,"PNSC KARACHI, PAKISTAN",31]
[null,null,58,"MARINE TRANSPORT AGENCIES PVT LTD",58,"SAINT PETERSBURG, RUSSIA",32]
[null,null,58,"MARINE TRANSPORT AGENCIES PVT LTD",58,"SEA TRADE , KARACHI, PAKISTAN",33]
[null,null,58,"MARINE TRANSPORT AGENCIES PVT LTD",58,"SOUTH ASIA HOLDING, UK",34]
[null,null,58,"MARINE TRANSPORT AGENCIES PVT LTD",58,"TEMPO SHIPPING, ISTAMBOL",35]
[null,null,58,"MARINE TRANSPORT AGENCIES PVT LTD",58,"TENG WOON SHIPPING , SINGAPORE",36]
[null,null,58,"MARINE TRANSPORT AGENCIES PVT LTD",58,"WEST CARRIER, GREECE",37]
[null,null,58,"MARINE TRANSPORT AGENCIES PVT LTD",58,"YPSILON MARITIME, GREECE",38]
[null,null,59,"MARITIME AGENCIES PVT LTD",59,"KAWASAKI KAISEN KAISHA LTD JAPAN",1]
[null,null,59,"MARITIME AGENCIES PVT LTD",59,"No Principal available",0]
[null,null,256,"Marlin Marine Logistics (Reg. No. SA-698)",256,"No Principal available",0]
[null,null,342,"Marshall Shipping Company Pakistan (Reg. No. SA-461)",342,"No Principal available",0]
[null,null,331,"Mas Logistics (Pvt) Ltd (Reg. No. SA-436)",331,"No Principal available",0]
[null,null,374,"Masf Shipping Services (Reg. No. SA-513)",374,"No Principal available",0]
[null,null,282,"MAZ Shipping & Consolidation Services (Pvt) Ltd (SA-728)",282,"No Principal available",0]
[null,null,418,"Mega Container Line Pakistan (Pvt) Ltd (Reg. No. SA-576)",418,"No Principal available",0]
[null,null,417,"Megafeeder (Pvt) Ltd (Reg. No. SA-575)",417,"No Principal available",0]
[null,null,60,"MEGAIMPEX PAK PVT",60,"HANJIN SHIPPING CO.SEOUL KORIA",2]
[null,null,60,"MEGAIMPEX PAK PVT",60,"SENATOR LINES GmbH",1]
[null,null,322,"Megatech (Pvt) Ltd (Reg. No. SA-409)",322,"No Principal available",0]
[null,null,61,"MEGATRANS PAKISTAN PVT LTD",61,"SAMUDERA SHIPPIG LINE (PVT0 LTD",1]
[null,null,393,"Merchant Shipping (Pvt) Ltd (Reg. No. SA-543)",393,"No Principal available",0]
[null,null,185,"Merchant Shipping Agencies (Pvt) Ltd (Reg. No. SA-596)",185,"No Principal available",0]
[null,null,404,"MGH Logistics Pakistan (Pvt) Ltd (Reg. No. SA-556)",404,"No Principal available",0]
[null,null,264,"MIT Logistics (Reg. No. SA-708)",264,"No Principal available",0]
[null,null,62,"MM CO PVT LTD",62,"No Principal available",0]
[null,null,63,"MM ISPAHANI PVT LTD",63,"LLOYDS MARI TIME & TRADING LTD. U.K.",1]
[null,null,63,"MM ISPAHANI PVT LTD",63,"No Principal available",0]
[null,null,64,"MM MARINE SERVICES (PVT) LTD",64,"02 AKKL THBMISIO KEOUS",1]
[null,null,64,"MM MARINE SERVICES (PVT) LTD",64,"ACCOMART SERVICES, GENEVA",2]
[null,null,64,"MM MARINE SERVICES (PVT) LTD",64,"AL MARING SHIPPING AND TRANDING",3]
[null,null,64,"MM MARINE SERVICES (PVT) LTD",64,"ALBARELLA SHIPPING CO LTD,ST VINCENT AND THE GRENADINES,",65]
[null,null,64,"MM MARINE SERVICES (PVT) LTD",64,"AMIRA FOODS INDIA LIMITED. INDA",57]
[null,null,64,"MM MARINE SERVICES (PVT) LTD",64,"AQUARIUS NAVIGATION U.A.E",36]
[null,null,64,"MM MARINE SERVICES (PVT) LTD",64,"BARNIL AGENCIES",5]
[null,null,64,"MM MARINE SERVICES (PVT) LTD",64,"BARNIL AGENCIES , NORWAY",4]
[null,null,64,"MM MARINE SERVICES (PVT) LTD",64,"BLUE FLEET MANAGEMENT CO",45]
[null,null,64,"MM MARINE SERVICES (PVT) LTD",64,"BRILLIANT MARINE S.A. SYRIA",58]
[null,null,64,"MM MARINE SERVICES (PVT) LTD",64,"CONCORDE CONTAINERS, MALTA",6]
[null,null,64,"MM MARINE SERVICES (PVT) LTD",64,"CONTINENTAL LINES NV. BELGIUM",54]
[null,null,64,"MM MARINE SERVICES (PVT) LTD",64,"DAEYANG SHIPPING CO.",39]
[null,null,64,"MM MARINE SERVICES (PVT) LTD",64,"DALLIAN FIVE RESOURCES SHIPPING CO.LTD ",68]
[null,null,64,"MM MARINE SERVICES (PVT) LTD",64,"DONGNAMA SHIPPING CO.KOREA",40]
[null,null,64,"MM MARINE SERVICES (PVT) LTD",64,"DYNACOM TANKERS , GREECE",7]
[null,null,64,"MM MARINE SERVICES (PVT) LTD",64,"EASTERN MEDITERANIAN, ATHENS",8]
[null,null,64,"MM MARINE SERVICES (PVT) LTD",64,"ECO SHIPPING CO, IRAN",9]
[null,null,64,"MM MARINE SERVICES (PVT) LTD",64,"ENDEAVOR SHIPPING CO.",43]
[null,null,64,"MM MARINE SERVICES (PVT) LTD",64,"EUROPEAN NAVIGATION, ATHENS",10]
[null,null,64,"MM MARINE SERVICES (PVT) LTD",64,"FAIRDEAL MARINE SERVICES U.A.E",37]
[null,null,64,"MM MARINE SERVICES (PVT) LTD",64,"FOREVR MARITIME LTD, MONACO",50]
[null,null,64,"MM MARINE SERVICES (PVT) LTD",64,"G BULK CORP. ATHENS, GREECE",53]
[null,null,64,"MM MARINE SERVICES (PVT) LTD",64,"GALITERA SHIPPING CORPORATION",76]
[null,null,64,"MM MARINE SERVICES (PVT) LTD",64,"GAR SHIPPING",11]
[null,null,64,"MM MARINE SERVICES (PVT) LTD",64,"GENERAL SHIPPING AGENCY , PAKISTAN",12]
[null,null,64,"MM MARINE SERVICES (PVT) LTD",64,"HANJIN TRANSPORTATION CO.LTD",47]
[null,null,64,"MM MARINE SERVICES (PVT) LTD",64,"HEDGE & CO , PAKISTAN",13]
[null,null,64,"MM MARINE SERVICES (PVT) LTD",64,"HOLLAND OCEAN CONTRATORS B.V NETHERLAND",46]
[null,null,64,"MM MARINE SERVICES (PVT) LTD",64,"HYUNDAI MARITIME, KOREA",14]
[null,null,64,"MM MARINE SERVICES (PVT) LTD",64,"IGEN SEA TRANSPORT, UAE",15]
[null,null,64,"MM MARINE SERVICES (PVT) LTD",64,"INTERBATIONAL LABOUR AND SERVICES STOCK CO. VIETNAM",69]
[null,null,64,"MM MARINE SERVICES (PVT) LTD",64,"INTL-OIL OVERSEASE INCORP, S. ARABIA",16]
[null,null,64,"MM MARINE SERVICES (PVT) LTD",64,"IRANIAN TANKER",17]
[null,null,64,"MM MARINE SERVICES (PVT) LTD",64,"King Star Shipping Limited",67]
[null,null,64,"MM MARINE SERVICES (PVT) LTD",64,"KINGSTON MARITIME, UK",18]
[null,null,64,"MM MARINE SERVICES (PVT) LTD",64,"LAURITIZEN BULKERS A/S-DENMARK",74]
[null,null,64,"MM MARINE SERVICES (PVT) LTD",64,"M/S GLEN SHIPPING LTD",71]
[null,null,64,"MM MARINE SERVICES (PVT) LTD",64,"M/S Hammonia Margaretha Schifarts Gmbh & Co-Germany",72]
[null,null,64,"MM MARINE SERVICES (PVT) LTD",64,"M/S PETER DOEHLE SCHIFFAHRTS-KG ",70]
[null,null,64,"MM MARINE SERVICES (PVT) LTD",64,"M/S. ALBAMAR SHIPPING COMPANY SA GREECE",60]
[null,null,64,"MM MARINE SERVICES (PVT) LTD",64,"M/S. KOREA SINHUNG SHIPPING COMPANY. KOREA (NORTH)",63]
[null,null,64,"MM MARINE SERVICES (PVT) LTD",64,"M/S. MUKHIEDDINE SHIPPING CO. SYRIA",62]
[null,null,64,"MM MARINE SERVICES (PVT) LTD",64,"M/S. PHOENIX SHIPHOLDING CORP. GREECE",59]
[null,null,64,"MM MARINE SERVICES (PVT) LTD",64,"M/S. SEA PIONEER LTD- ENGLAND",73]
[null,null,64,"MM MARINE SERVICES (PVT) LTD",64,"M/S. SENAT SHIPPING SINGAPORE. SINGAPORE",61]
[null,null,64,"MM MARINE SERVICES (PVT) LTD",64,"M/S.SONO SHIPPING LLC",66]
[null,null,64,"MM MARINE SERVICES (PVT) LTD",64,"MALAYSIA INTL SHIP COP., MALAYSIA",19]
[null,null,64,"MM MARINE SERVICES (PVT) LTD",64,"MANSOUR SHIPPING LTD. SYRIA.",56]
[null,null,64,"MM MARINE SERVICES (PVT) LTD",64,"MARINE MANAGEMENT SERVICES , GREECE",20]
[null,null,64,"MM MARINE SERVICES (PVT) LTD",64,"MARRINE PRIDE SHIPPING , KARACHI",21]
[null,null,64,"MM MARINE SERVICES (PVT) LTD",64,"MARRY VILE MARITIME",22]
[null,null,64,"MM MARINE SERVICES (PVT) LTD",64,"NATIONAL IRANIAN TANKERS CO. , IRAN",23]
[null,null,64,"MM MARINE SERVICES (PVT) LTD",64,"NHL DEVELOPMENT CO LTD.",49]
[null,null,64,"MM MARINE SERVICES (PVT) LTD",64,"OCEANWIDE SHIPPING SERVICES-CHINA",75]
[null,null,64,"MM MARINE SERVICES (PVT) LTD",64,"PACIFIC LLOYED LTD, MALTA",24]
[null,null,64,"MM MARINE SERVICES (PVT) LTD",64,"POLEMBRDS SHIPPING",25]
[null,null,64,"MM MARINE SERVICES (PVT) LTD",64,"POLIMER HORDING",26]
[null,null,64,"MM MARINE SERVICES (PVT) LTD",64,"PROTECT SHIPPING INCORP, GREECE",27]
[null,null,64,"MM MARINE SERVICES (PVT) LTD",64,"PUYVAST CHARTERING, NETHERLAND",28]
[null,null,64,"MM MARINE SERVICES (PVT) LTD",64,"SAMSUN SHIPPING CO, SEOUL KOREA",29]
[null,null,64,"MM MARINE SERVICES (PVT) LTD",64,"SILVER MARITIME GREECE",64]
[null,null,64,"MM MARINE SERVICES (PVT) LTD",64,"SMITHEACH SHIPPING, UAE",30]
[null,null,64,"MM MARINE SERVICES (PVT) LTD",64,"STL MARINEPVT.LTD",41]
[null,null,64,"MM MARINE SERVICES (PVT) LTD",64,"TANBINH CO, LTD. VIETNAM",52]
[null,null,64,"MM MARINE SERVICES (PVT) LTD",64,"TRADING AND SHIPPING, PAKISTAN",31]
[null,null,64,"MM MARINE SERVICES (PVT) LTD",64,"TSAVLIRIS RUSS( WORLDWIDE SALVAGE & TWAGE )LTD.",38]
[null,null,64,"MM MARINE SERVICES (PVT) LTD",64,"UNISHIP AGENCY , PAKISTAN",32]
[null,null,64,"MM MARINE SERVICES (PVT) LTD",64,"UNITHAI SHIPPING LTD",48]
[null,null,64,"MM MARINE SERVICES (PVT) LTD",64,"UNITHAI SHIPPING PVT LTD, SINGAPORE",33]
[null,null,64,"MM MARINE SERVICES (PVT) LTD",64,"UNIVERSAL NAVIGATION PTDLTD.",44]
[null,null,64,"MM MARINE SERVICES (PVT) LTD",64,"VAMA SHIPPING & TRADING",42]
[null,null,64,"MM MARINE SERVICES (PVT) LTD",64,"VITOL , LONDON",34]
[null,null,64,"MM MARINE SERVICES (PVT) LTD",64,"VOORSTRAAT 55A HM NOORKWIJK",35]
[null,null,64,"MM MARINE SERVICES (PVT) LTD",64,"WISDOM MARINE LINES S.A. TAIWAN",55]
[null,null,214,"Modern Shipping Agencies (Pvt) Ltd (reg. No. SA-641)",214,"No Principal available",0]
[null,null,319,"Modern Shipping Agencies(Reg. No. SA-401)",319,"No Principal available",0]
[null,null,65,"MS SHIPPING PVT LTD",65,"No Principal available",0]
[null,null,66,"MSC PAKISTAN",66,"Mediterraea Shippig Co S.A",1]
[null,null,267,"Multitrans Logistics (Pvt) Ltd (Reg. No. SA-712)",267,"No Principal available",0]
[null,null,67,"MYM MARITIME",67,"No Principal available",0]
[null,null,67,"MYM MARITIME",67,"NYK LINES ASIA LTD. TOKYO",1]
[null,null,333,"N.S Shipping Line (Reg. No. SA-446)",333,"No Principal available",0]
[null,null,68,"NAAFY ASSOCIATED PVT LTD",68,"No Principal available",0]
[null,null,247,"Naheed & Sons (Reg. No. SA-684)",247,"No Principal available",0]
[null,null,380,"Nashrah Shipping & Logistics (Pvt) Ltd (Reg. No. SA-523)",380,"No Principal available",0]
[null,null,285,"News Logistics (Reg. No. SA-731)",285,"No Principal available",0]
[null,null,178,"Noble Shipping Services (Pvt..) Ltd. (Reg. No. SA-610)",178,"Pentagon Freight Services LLC",1]
[null,null,270,"Noor Pak Logistics International (Reg. No. SA-715)",270,"No Principal available",0]
[null,null,69,"NORTH STAR INTERNATIONAL PVT LTD",69,"A.B Maritime Inc.",36]
[null,null,69,"NORTH STAR INTERNATIONAL PVT LTD",69,"ANAEAK GEMI , RUSSIA",1]
[null,null,69,"NORTH STAR INTERNATIONAL PVT LTD",69,"ANJIEXIM SHIPPING",2]
[null,null,69,"NORTH STAR INTERNATIONAL PVT LTD",69,"ASP SHIP MANAGTT, AUSTRALIA",3]
[null,null,69,"NORTH STAR INTERNATIONAL PVT LTD",69,"AWB LTD",4]
[null,null,69,"NORTH STAR INTERNATIONAL PVT LTD",69,"BARU DELTA MARITIME, GREECE",5]
[null,null,69,"NORTH STAR INTERNATIONAL PVT LTD",69,"DALEX SHIPPING CO, SOUTH AFRICA",6]
[null,null,69,"NORTH STAR INTERNATIONAL PVT LTD",69,"FHANSFER SHIPPING , GREECE",7]
[null,null,69,"NORTH STAR INTERNATIONAL PVT LTD",69,"GENERAL SHIPPING AGENCY",8]
[null,null,69,"NORTH STAR INTERNATIONAL PVT LTD",69,"HILAL DENIZ, TURKEY",9]
[null,null,69,"NORTH STAR INTERNATIONAL PVT LTD",69,"INTERMORE TRANSPORT",10]
[null,null,69,"NORTH STAR INTERNATIONAL PVT LTD",69,"KSH MARINE AGENCIES",12]
[null,null,69,"NORTH STAR INTERNATIONAL PVT LTD",69,"KSH MARINE, SINGAPORE",11]
[null,null,69,"NORTH STAR INTERNATIONAL PVT LTD",69,"MEEZAN SHIPPING & TRADING",13]
[null,null,69,"NORTH STAR INTERNATIONAL PVT LTD",69,"MELINA SHIP TRANSPORT",14]
[null,null,69,"NORTH STAR INTERNATIONAL PVT LTD",69,"NOBLE RESOURCES , HONG KONG",15]
[null,null,69,"NORTH STAR INTERNATIONAL PVT LTD",69,"Ocean Agencies Ltd.",37]
[null,null,69,"NORTH STAR INTERNATIONAL PVT LTD",69,"OCEANIL SERVICE KARACHI, PAKISTAN",16]
[null,null,69,"NORTH STAR INTERNATIONAL PVT LTD",69,"ORASYA SHIPPING , TURKEY",17]
[null,null,69,"NORTH STAR INTERNATIONAL PVT LTD",69,"PACIFIC ATLANTIC",18]
[null,null,69,"NORTH STAR INTERNATIONAL PVT LTD",69,"Phaethon International Ltd.",35]
[null,null,69,"NORTH STAR INTERNATIONAL PVT LTD",69,"PNSC KARACHI",19]
[null,null,69,"NORTH STAR INTERNATIONAL PVT LTD",69,"ROTA SHIPPING , GREECE",20]
[null,null,69,"NORTH STAR INTERNATIONAL PVT LTD",69,"SAMSUN SHIPPING CO, KOREA",21]
[null,null,69,"NORTH STAR INTERNATIONAL PVT LTD",69,"SANCAH GEMI , TURKEY",22]
[null,null,69,"NORTH STAR INTERNATIONAL PVT LTD",69,"SEATRADE KARACHI, PAKISTAN",23]
[null,null,69,"NORTH STAR INTERNATIONAL PVT LTD",69,"SMAMMOK SHIPPING , RUSSIA",24]
[null,null,69,"NORTH STAR INTERNATIONAL PVT LTD",69,"SNACK GEMI , TURKEY",25]
[null,null,69,"NORTH STAR INTERNATIONAL PVT LTD",69,"SNP SHIPPING , INDIA",26]
[null,null,69,"NORTH STAR INTERNATIONAL PVT LTD",69,"SOUTH WAY SHIPPING CO",27]
[null,null,69,"NORTH STAR INTERNATIONAL PVT LTD",69,"SPEARHEAD MARINE, SINGAPORE",28]
[null,null,69,"NORTH STAR INTERNATIONAL PVT LTD",69,"SUNBEAN SHIPPING, GREECE",29]
[null,null,69,"NORTH STAR INTERNATIONAL PVT LTD",69,"TRANA COMMUNICATION, RUSSIA",30]
[null,null,69,"NORTH STAR INTERNATIONAL PVT LTD",69,"TRANSATLANTICA COMMODITIES S.A ATHENS, GREECE",38]
[null,null,69,"NORTH STAR INTERNATIONAL PVT LTD",69,"UNIVERSAL NAVIGATION",31]
[null,null,69,"NORTH STAR INTERNATIONAL PVT LTD",69,"VAMVA MARITIME, GREECE",32]
[null,null,69,"NORTH STAR INTERNATIONAL PVT LTD",69,"VEITNAM SEA TRANSPORT",33]
[null,null,69,"NORTH STAR INTERNATIONAL PVT LTD",69,"ZODIAC MARITIME",34]
[null,null,152,"NYK LINE PAKISTAN9PVT) LTD",152,"NYK LINE ASIA PTE LTD TOKYO JAPAN",1]
[null,null,176,"Ocean Express Agencies (Pvt.) Ltd.",176," HDS Lines",1]
[null,null,70,"OCEAN EXPRESS SERVICES",70,"I.R.I SHIPPING LINE",1]
[null,null,168,"OCEAN MASTER MARINE SERVICES (PVT) LTD",168,"Abdreen Container Line",1]
[null,null,219,"Ocean Pride Shipping (Pvt) Ltd (Reg. No. SA-646)",219,"No Principal available",0]
[null,null,71,"OCEAN SERVICES PVT LTD",71,"- I.T.S.INTERNATIONAL BELGIUM",227]
[null,null,71,"OCEAN SERVICES PVT LTD",71," J POULSEN SHIPPING",107]
[null,null,71,"OCEAN SERVICES PVT LTD",71,"A.M. Nomikos & Son (UK) Ltd",304]
[null,null,71,"OCEAN SERVICES PVT LTD",71,"Abu Dhabi National Tanker Co. ",315]
[null,null,71,"OCEAN SERVICES PVT LTD",71,"AGROSHIP (UK) LTD.LONDON",128]
[null,null,71,"OCEAN SERVICES PVT LTD",71,"AGROSHIP U.K.",143]
[null,null,71,"OCEAN SERVICES PVT LTD",71,"AL ASKA TRADING & MARKETING 1730",188]
[null,null,71,"OCEAN SERVICES PVT LTD",71,"Al Balha Trading Marketing Saudi Arabia",196]
[null,null,71,"OCEAN SERVICES PVT LTD",71,"ALBATHA TRADING & MARKETING SAUDIA ARABIA",184]
[null,null,71,"OCEAN SERVICES PVT LTD",71,"ALLIED MARITIME GREECE",167]
[null,null,71,"OCEAN SERVICES PVT LTD",71,"AL-RASHID SHIPPING LLC, DUBAI, U.A.E.",240]
[null,null,71,"OCEAN SERVICES PVT LTD",71,"AMARANTE SHIPPING SINGAPORE",193]
[null,null,71,"OCEAN SERVICES PVT LTD",71,"ARAM MARINE TRADE LIMITED . DUBAI (U.A.E)",310]
[null,null,71,"OCEAN SERVICES PVT LTD",71,"ARMADA DENIZCILIK, TURKEY.",253]
[null,null,71,"OCEAN SERVICES PVT LTD",71,"ARMADA SHIPPING SWITZERLAND ",133]
[null,null,71,"OCEAN SERVICES PVT LTD",71,"Armada Shipping. Turkey",306]
[null,null,71,"OCEAN SERVICES PVT LTD",71,"ASIA MARINE",2]
[null,null,71,"OCEAN SERVICES PVT LTD",71,"ASIAN LUCK SHIPPING, GERMANY",3]
[null,null,71,"OCEAN SERVICES PVT LTD",71,"AUSTRALIAN WHEAT BOARD MELBORNE",121]
[null,null,71,"OCEAN SERVICES PVT LTD",71,"BARU KAHA INC. HEALLAS GREECE",123]
[null,null,71,"OCEAN SERVICES PVT LTD",71,"BARWEL AGENCY NORWAY ",132]
[null,null,71,"OCEAN SERVICES PVT LTD",71,"BARWIL SHIPPING COMPANY KARACHI",182]
[null,null,71,"OCEAN SERVICES PVT LTD",71,"BBT TRADESHIP LIC DUBAI, UAE",4]
[null,null,71,"OCEAN SERVICES PVT LTD",71,"BELGIAN INTERNATIONAL",5]
[null,null,71,"OCEAN SERVICES PVT LTD",71,"BELUGA CHARTERING GMBH, GERMANY",245]
[null,null,71,"OCEAN SERVICES PVT LTD",71,"Blue Fleet Management Co Limited. Greece",309]
[null,null,71,"OCEAN SERVICES PVT LTD",71,"BONYAD SHIPPING CO. TEHRAN",127]
[null,null,71,"OCEAN SERVICES PVT LTD",71,"BRAVE ROYAL SHIPPING CO,SINGAPORE.",238]
[null,null,71,"OCEAN SERVICES PVT LTD",71,"BRILLIANT MARINE, S.A., SYRIA.",247]
[null,null,71,"OCEAN SERVICES PVT LTD",71,"Brook General Trading Co LLC Sharjah",314]
[null,null,71,"OCEAN SERVICES PVT LTD",71,"BROOKLAND PLANNING, SINGAPORE",6]
[null,null,71,"OCEAN SERVICES PVT LTD",71,"BRYGGEN SHIPPING & TRADING S.A.UAE",122]
[null,null,71,"OCEAN SERVICES PVT LTD",71,"BULK SHIPPING AND TRADING PVT KARACHI, PAK.",8]
[null,null,71,"OCEAN SERVICES PVT LTD",71,"BULK SHIPPING PTE LTD",280]
[null,null,71,"OCEAN SERVICES PVT LTD",71,"BULK TRADE INTERNATIONAL, DUBAI",9]
[null,null,71,"OCEAN SERVICES PVT LTD",71,"Byzantine Maritime Corp.",281]
[null,null,71,"OCEAN SERVICES PVT LTD",71,"CanChart Pte Ltd. Singapore",213]
[null,null,71,"OCEAN SERVICES PVT LTD",71,"CARGIL INTL. SA GENEVA SWETZERLAND",138]
[null,null,71,"OCEAN SERVICES PVT LTD",71,"CARGILL OCEAN TRASPORTATION, SINGAPORE",271]
[null,null,71,"OCEAN SERVICES PVT LTD",71,"CARGILL OCEAN TRASPORTATION, SINGAPORE.",261]
[null,null,71,"OCEAN SERVICES PVT LTD",71,"CASCO SAEED KARACHI, PAKISTAN",10]
[null,null,71,"OCEAN SERVICES PVT LTD",71,"CENREAL INVIT, UK",11]
[null,null,71,"OCEAN SERVICES PVT LTD",71,"CEREAL INTERNATIONAL",12]
[null,null,71,"OCEAN SERVICES PVT LTD",71,"CHELLARAM SHJIPPING HONGKONG",219]
[null,null,71,"OCEAN SERVICES PVT LTD",71,"CHINA NATIONAL CHARTERING CORP CHINA",153]
[null,null,71,"OCEAN SERVICES PVT LTD",71,"CHINESE TANZANIEN, CHINA",13]
[null,null,71,"OCEAN SERVICES PVT LTD",71,"CITRAGPA GE PARIS, FRANCE",14]
[null,null,71,"OCEAN SERVICES PVT LTD",71,"CLIPPER ELITE, DENMARK",15]
[null,null,71,"OCEAN SERVICES PVT LTD",71,"CNC TRADING CMCC,DUBAI.",251]
[null,null,71,"OCEAN SERVICES PVT LTD",71,"COAL & OIL CO LIC",16]
[null,null,71,"OCEAN SERVICES PVT LTD",71,"COLONIAL NAVIGATION AVE,NY, U.S.A.",273]
[null,null,71,"OCEAN SERVICES PVT LTD",71,"CPM CORPORATION CHINA",145]
[null,null,71,"OCEAN SERVICES PVT LTD",71,"Daewoo Logestics Korea",130]
[null,null,71,"OCEAN SERVICES PVT LTD",71,"DAEYANG AMERICA INC USA",137]
[null,null,71,"OCEAN SERVICES PVT LTD",71,"DAI DUONG SHIPBUILDING,",268]
[null,null,71,"OCEAN SERVICES PVT LTD",71,"DALEX SHIPPING CO, GREECE",17]
[null,null,71,"OCEAN SERVICES PVT LTD",71,"DAMICO DRY LTD, DUBLIN, IRELAND",290]
[null,null,71,"OCEAN SERVICES PVT LTD",71,"DAMICO SHIPPING LTD LONDON",108]
[null,null,71,"OCEAN SERVICES PVT LTD",71,"DARYA SHIPPING GENEVA",120]
[null,null,71,"OCEAN SERVICES PVT LTD",71,"DENSAY SHIPPING & TRADING, DUBAI.",285]
[null,null,71,"OCEAN SERVICES PVT LTD",71,"DEYANG SHIPPING",93]
[null,null,71,"OCEAN SERVICES PVT LTD",71,"DEYANG SHIPPING LTD.",98]
[null,null,71,"OCEAN SERVICES PVT LTD",71,"DIAMANT CO LTD, UKRAIN",18]
[null,null,71,"OCEAN SERVICES PVT LTD",71,"DIAMENT & CO. UKRAIN",180]
[null,null,71,"OCEAN SERVICES PVT LTD",71,"DOOYANG LTD SEOUL, KOREA",288]
[null,null,71,"OCEAN SERVICES PVT LTD",71,"Dubai Coast Shipping LLC - Dubai",217]
[null,null,71,"OCEAN SERVICES PVT LTD",71,"EAST INTERNATIONAL",20]
[null,null,71,"OCEAN SERVICES PVT LTD",71,"EAST WIND TRANSPORT, USA",21]
[null,null,71,"OCEAN SERVICES PVT LTD",71,"EGON OLDENDORFF, GERMANY",22]
[null,null,71,"OCEAN SERVICES PVT LTD",71,"ELECTRA MARITIME, GREECE",23]
[null,null,71,"OCEAN SERVICES PVT LTD",71,"EMIRATES GRAIN PRODUCTS LTD DUBAI,UAE",270]
[null,null,71,"OCEAN SERVICES PVT LTD",71,"EMIRATES GRAIN PRODUCTS LTD DUBAI,UAE.",260]
[null,null,71,"OCEAN SERVICES PVT LTD",71,"EMIRATES TRADING AGENCY, DUBAI",25]
[null,null,71,"OCEAN SERVICES PVT LTD",71,"ENDVOUR SHIPPING, GREECE",26]
[null,null,71,"OCEAN SERVICES PVT LTD",71,"ESSAR SHIPPING, INDIA",27]
[null,null,71,"OCEAN SERVICES PVT LTD",71,"EURO STAR MARITIME LTD, LONDON, U.K.",254]
[null,null,71,"OCEAN SERVICES PVT LTD",71,"EXPRESS SEA TRANSPORT, GERMANY",28]
[null,null,71,"OCEAN SERVICES PVT LTD",71,"EXPRESS SEA TRANSPORT, GREECE",29]
[null,null,71,"OCEAN SERVICES PVT LTD",71,"F Z TIAN HENG SHIPPING CHINA ",135]
[null,null,71,"OCEAN SERVICES PVT LTD",71,"FRIENDS PVT KARACHI, PAKISTAN",30]
[null,null,71,"OCEAN SERVICES PVT LTD",71,"FRONTIES INTERNATIONAL SHIPPING, USA",31]
[null,null,71,"OCEAN SERVICES PVT LTD",71,"GAC PAKISTAN (PVT) LTD, KARACHI. PAKISTAN",252]
[null,null,71,"OCEAN SERVICES PVT LTD",71,"GAC SHIPPING KARACHI, PAKISTAN",32]
[null,null,71,"OCEAN SERVICES PVT LTD",71,"GENERAL SHIPPING AGENCIES (PVT) LTD, KARACHI.",237]
[null,null,71,"OCEAN SERVICES PVT LTD",71,"GENERAL SHIPPING SERVICES USA LTD, USA",287]
[null,null,71,"OCEAN SERVICES PVT LTD",71,"GEYRET SHIPPING, TURKEY",33]
[null,null,71,"OCEAN SERVICES PVT LTD",71,"GLENCORE INTERNATIONAL HOLAND",201]
[null,null,71,"OCEAN SERVICES PVT LTD",71,"GLINCORE GRAIN CO , HOLLAND",34]
[null,null,71,"OCEAN SERVICES PVT LTD",71,"GLOBAL LOGISTIC SOLUTION",197]
[null,null,71,"OCEAN SERVICES PVT LTD",71,"GLOBAL MARITIME (PVT) LTD. KARACHI PAKISTAN",295]
[null,null,71,"OCEAN SERVICES PVT LTD",71,"GOOD EARTH MARITIME LTD, INDIA.",272]
[null,null,71,"OCEAN SERVICES PVT LTD",71,"GREAT LUCK ENTERPRISES",284]
[null,null,71,"OCEAN SERVICES PVT LTD",71,"Grup Denizcilk Sanayi Ve Ticaret - Istambul Turkey",216]
[null,null,71,"OCEAN SERVICES PVT LTD",71,"GSS MARINE CYPRUS",208]
[null,null,71,"OCEAN SERVICES PVT LTD",71,"GSS MARINE SHIPPING SERVICES, DUBAI",250]
[null,null,71,"OCEAN SERVICES PVT LTD",71,"GULF BULK TRADE & LOGISTICS LTD,",266]
[null,null,71,"OCEAN SERVICES PVT LTD",71,"GULF DEVELOPMENT DUBAI UAE",179]
[null,null,71,"OCEAN SERVICES PVT LTD",71,"GULF IMPORT & EXPORT UAE",190]
[null,null,71,"OCEAN SERVICES PVT LTD",71,"H. DANTAS COM NAVIAGATION BRAZIL",175]
[null,null,71,"OCEAN SERVICES PVT LTD",71,"HANFUNG SHIPPING",36]
[null,null,71,"OCEAN SERVICES PVT LTD",71,"HANJIN SHIPPING",94]
[null,null,71,"OCEAN SERVICES PVT LTD",71,"HANJIN SHIPPING CO.",99]
[null,null,71,"OCEAN SERVICES PVT LTD",71,"HANJING SHIPPING KOREA",161]
[null,null,71,"OCEAN SERVICES PVT LTD",71,"HARBOUR SERVICES LTD LONDON, UK",37]
[null,null,71,"OCEAN SERVICES PVT LTD",71,"HBC HAMBERG BULK CARRIER GERMANY",312]
[null,null,71,"OCEAN SERVICES PVT LTD",71,"HC TRADING MALTA LTD, MALTA",233]
[null,null,71,"OCEAN SERVICES PVT LTD",71,"HEDGE & CO",38]
[null,null,71,"OCEAN SERVICES PVT LTD",71,"HIGH SEAS NAVIGATION MALAYSIA",147]
[null,null,71,"OCEAN SERVICES PVT LTD",71,"HOANGANH TRADING SERVICES",277]
[null,null,71,"OCEAN SERVICES PVT LTD",71,"HOUSTONTANKER SERVICES INC USA",105]
[null,null,71,"OCEAN SERVICES PVT LTD",71,"HQ MARINE",40]
[null,null,71,"OCEAN SERVICES PVT LTD",71,"HYUNDAI GLOVIS CO.LTD",267]
[null,null,71,"OCEAN SERVICES PVT LTD",71,"HYUNDAI MERCHANT MARINE CO. LTD.",283]
[null,null,71,"OCEAN SERVICES PVT LTD",71,"ILIOS SHIPPING CO, GREECE",41]
[null,null,71,"OCEAN SERVICES PVT LTD",71,"INCAPE SHIPPING SERVICE, U.K.",293]
[null,null,71,"OCEAN SERVICES PVT LTD",71,"INCHCEAP SHIPPING SERVICE UAE",202]
[null,null,71,"OCEAN SERVICES PVT LTD",71,"INDIAN OCEAN TIME MAURITIUS",42]
[null,null,71,"OCEAN SERVICES PVT LTD",71,"INDUSTRIAL CARRIER GREECE",134]
[null,null,71,"OCEAN SERVICES PVT LTD",71,"INTERMAR HOLDING TRUST GREECE",199]
[null,null,71,"OCEAN SERVICES PVT LTD",71,"INTERMARE TRANSPORT GMBH HAMBURG GERMANY",222]
[null,null,71,"OCEAN SERVICES PVT LTD",71,"INTERNATIONAL MARINE",43]
[null,null,71,"OCEAN SERVICES PVT LTD",71,"ISMAIL SHIPPING CO SYRIA",211]
[null,null,71,"OCEAN SERVICES PVT LTD",71,"J K INTL, AUSTRALIA",44]
[null,null,71,"OCEAN SERVICES PVT LTD",71,"J.LAURITZEN SINGPORE PTE ,SINGAPORE ",212]
[null,null,71,"OCEAN SERVICES PVT LTD",71,"JAMES FINLAY PVT, PAKISTAN",106]
[null,null,71,"OCEAN SERVICES PVT LTD",71,"Jiangsu Fareast Shipping Co Ltd. China",307]
[null,null,71,"OCEAN SERVICES PVT LTD",71,"JIN YANG SHIPPING CO. LTD. KOREA",157]
[null,null,71,"OCEAN SERVICES PVT LTD",71,"JINO LINES, JAPAN",45]
[null,null,71,"OCEAN SERVICES PVT LTD",71,"K. SEA TRANSPORTATION",46]
[null,null,71,"OCEAN SERVICES PVT LTD",71,"KINSHIP SERVICE COCHIN INDIA",191]
[null,null,71,"OCEAN SERVICES PVT LTD",71,"KOPAK SHIPPING",206]
[null,null,71,"OCEAN SERVICES PVT LTD",71,"KOREA LINE CORP, KOREA",47]
[null,null,71,"OCEAN SERVICES PVT LTD",71,"KORFEZ SHIPPING, TURKEY",48]
[null,null,71,"OCEAN SERVICES PVT LTD",71,"KOROF SHIPPING TURKEY",155]
[null,null,71,"OCEAN SERVICES PVT LTD",71,"KROON SHIPPING CORP, USA",49]
[null,null,71,"OCEAN SERVICES PVT LTD",71,"LARUS PIAENS GREECE",165]
[null,null,71,"OCEAN SERVICES PVT LTD",71,"LAURITZEN AUSTRALIA",50]
[null,null,71,"OCEAN SERVICES PVT LTD",71,"LIBERTY MARITIME",51]
[null,null,71,"OCEAN SERVICES PVT LTD",71,"LOUIS DREYFUS CO. LONDON",124]
[null,null,71,"OCEAN SERVICES PVT LTD",71,"LOUIS DRYFUS LONDON",142]
[null,null,71,"OCEAN SERVICES PVT LTD",71,"M V GLOBAL BULK CORP TOKYO",109]
[null,null,71,"OCEAN SERVICES PVT LTD",71,"M/S WESTREN BULK PTE LTD, SINGAPORE",228]
[null,null,71,"OCEAN SERVICES PVT LTD",71,"M/S.BULK SHIP ASIA PTE LTD",103]
[null,null,71,"OCEAN SERVICES PVT LTD",71,"MAERSK BULK, DENMARK",53]
[null,null,71,"OCEAN SERVICES PVT LTD",71,"MARE NOSTRUM INTERNATIONAL LTD",296]
[null,null,71,"OCEAN SERVICES PVT LTD",71,"MARINA WORLD SHIPPING",54]
[null,null,71,"OCEAN SERVICES PVT LTD",71,"MARINE CEMENT LTD SWITZERLAND",177]
[null,null,71,"OCEAN SERVICES PVT LTD",71,"MARITIME BROKERS & CONSULTANTS, U.S.A.",234]
[null,null,71,"OCEAN SERVICES PVT LTD",71,"MARTRADE SHIPPING, GERMANY",56]
[null,null,71,"OCEAN SERVICES PVT LTD",71,"MARVEL ITERNATIONAL MANAGEMENT TURKEY",204]
[null,null,71,"OCEAN SERVICES PVT LTD",71,"MAVEL INT.MANAGEMENT TUREKY",176]
[null,null,71,"OCEAN SERVICES PVT LTD",71,"MEADWAY SHIPPING & TRADING",279]
[null,null,71,"OCEAN SERVICES PVT LTD",71,"MED BROKRAGE & MANAGEMENT CORP. USA",299]
[null,null,71,"OCEAN SERVICES PVT LTD",71,"MEDITERRANEAN TRADERS LTD CYPRUIS",291]
[null,null,71,"OCEAN SERVICES PVT LTD",71,"MERCATOR LINES (SINGAPORE)LTD SINGAPORE",286]
[null,null,71,"OCEAN SERVICES PVT LTD",71,"MERIT INT LLC DUBAI U.A.E.",146]
[null,null,71,"OCEAN SERVICES PVT LTD",71,"MERIT MARITIME U.K.",144]
[null,null,71,"OCEAN SERVICES PVT LTD",71,"MERSK LINE NY",102]
[null,null,71,"OCEAN SERVICES PVT LTD",71,"METALINK MARINE",200]
[null,null,71,"OCEAN SERVICES PVT LTD",71,"MITALINK MARINE CORP, USA",57]
[null,null,71,"OCEAN SERVICES PVT LTD",71,"MLC MARINE PTE LTD SINGAPORE",168]
[null,null,71,"OCEAN SERVICES PVT LTD",71,"MLE LOGISTIC & CHARTERING, NEW YORK, U.S.A.",244]
[null,null,71,"OCEAN SERVICES PVT LTD",71,"MOSOVER SEAS SHIPPING GERMANY",223]
[null,null,71,"OCEAN SERVICES PVT LTD",71,"MRIT MARITIME U.K",113]
[null,null,71,"OCEAN SERVICES PVT LTD",71,"MT MARITIME MANAGEMENT CORP ( U.S.A)",207]
[null,null,71,"OCEAN SERVICES PVT LTD",71,"Mur Shipping B.V , Netherland",298]
[null,null,71,"OCEAN SERVICES PVT LTD",71,"Murshipping - London",214]
[null,null,71,"OCEAN SERVICES PVT LTD",71,"MYOHYANG PTE LTD, SINGAPORE",241]
[null,null,71,"OCEAN SERVICES PVT LTD",71,"NAVI TREK INC HOUSTON USA",148]
[null,null,71,"OCEAN SERVICES PVT LTD",71,"NAVIG8 PTE LTD",278]
[null,null,71,"OCEAN SERVICES PVT LTD",71,"NAVIGATION MARITIME VARNA, BULGARIA.",232]
[null,null,71,"OCEAN SERVICES PVT LTD",71,"NINJING OCEAN SHIPPING CO., LTD,CHINA.",289]
[null,null,71,"OCEAN SERVICES PVT LTD",71,"NOBEL CHARTERING LTD. HONGKONG",152]
[null,null,71,"OCEAN SERVICES PVT LTD",71,"NORDEN AS, DENMARK",58]
[null,null,71,"OCEAN SERVICES PVT LTD",71,"NORDIC BULK CARRIER A/S DENMARK",317]
[null,null,71,"OCEAN SERVICES PVT LTD",71,"NORDSTRAND MARITIME, GREECE",59]
[null,null,71,"OCEAN SERVICES PVT LTD",71,"NORTH CHINA LINE HONGKONG",150]
[null,null,71,"OCEAN SERVICES PVT LTD",71,"NORTH CHINA LINE LTD HONGKONG",96]
[null,null,71,"OCEAN SERVICES PVT LTD",71,"NORTHERN SHIPPING JSC, VIETNAM.",265]
[null,null,71,"OCEAN SERVICES PVT LTD",71,"NYK GLOBAL BULK CORP TOKYO JAPAN",110]
[null,null,71,"OCEAN SERVICES PVT LTD",71,"OCEAN BULK SHIPPING",95]
[null,null,71,"OCEAN SERVICES PVT LTD",71,"OCEAN MARITIME SHIPPING DUBAI",101]
[null,null,71,"OCEAN SERVICES PVT LTD",71,"OCEAN SHIP MANAGEMENTS AJMAN UAE",203]
[null,null,71,"OCEAN SERVICES PVT LTD",71,"OCEAN SHIPPING CHARTERING, UK",61]
[null,null,71,"OCEAN SERVICES PVT LTD",71,"OCEAN STAR",62]
[null,null,71,"OCEAN SERVICES PVT LTD",71,"OCEAN STAR MANGT, GREECE",63]
[null,null,71,"OCEAN SERVICES PVT LTD",71,"OCEANIC SHIPPING",64]
[null,null,71,"OCEAN SERVICES PVT LTD",71,"OCEANWORLD PVT LTD. KARACHI",158]
[null,null,71,"OCEAN SERVICES PVT LTD",71,"OLDENDORFF MUMBAI INDIA",141]
[null,null,71,"OCEAN SERVICES PVT LTD",71,"ONEGO SHIPPING & CHARTERING-NETHERLAND",215]
[null,null,71,"OCEAN SERVICES PVT LTD",71,"ORCA TRANSP AGENCY,Gmbh,GERMANY",294]
[null,null,71,"OCEAN SERVICES PVT LTD",71,"ORGANITRANSE PARIS, FRANCE",65]
[null,null,71,"OCEAN SERVICES PVT LTD",71,"PACCSHIP (UK) LIMITED LONDON UK",318]
[null,null,71,"OCEAN SERVICES PVT LTD",71,"PACIFIC CARRIER",67]
[null,null,71,"OCEAN SERVICES PVT LTD",71,"PACMAR DENIZCILIK, ISTANBUL, TURKEYACMAR",224]
[null,null,71,"OCEAN SERVICES PVT LTD",71,"PANOCEAN SHIPPING, KOREA",69]
[null,null,71,"OCEAN SERVICES PVT LTD",71,"PHAETHON INTERNATIONAL LTD, UKRAINE.",256]
[null,null,71,"OCEAN SERVICES PVT LTD",71,"Phu Tai Commerical And Shipping Co. Vietnam",308]
[null,null,71,"OCEAN SERVICES PVT LTD",71,"PITIOUSA SHIPPING S.A. GREECE,",243]
[null,null,71,"OCEAN SERVICES PVT LTD",71,"PNP SHIPPING, GREECE",70]
[null,null,71,"OCEAN SERVICES PVT LTD",71,"PORT SERVICES LTD",71]
[null,null,71,"OCEAN SERVICES PVT LTD",71,"PRECIOUS SHIPPING CO LTD BANGKOK THAILAND",159]
[null,null,71,"OCEAN SERVICES PVT LTD",71,"PRECIOUS SHIPPING LTD BANGKOK THAILAND",186]
[null,null,71,"OCEAN SERVICES PVT LTD",71,"PRIME MARINE MANAGEMENT INC., ATHENS ( GREECE )",300]
[null,null,71,"OCEAN SERVICES PVT LTD",71,"PT BUMI LAI SHIPPING",156]
[null,null,71,"OCEAN SERVICES PVT LTD",71,"QATAR NATIONAL NAVIGATION",72]
[null,null,71,"OCEAN SERVICES PVT LTD",71,"RAYSUT CEMENT COMPANY OMAN",195]
[null,null,71,"OCEAN SERVICES PVT LTD",71,"RED SEA NAVIGATION EGYPT",173]
[null,null,71,"OCEAN SERVICES PVT LTD",71,"REEM MARITIME LTD.",282]
[null,null,71,"OCEAN SERVICES PVT LTD",71,"RUDHRA ENERGY PTE LTD, SINGAPORE.",231]
[null,null,71,"OCEAN SERVICES PVT LTD",71,"RUSSIA SHIPPIN",116]
[null,null,71,"OCEAN SERVICES PVT LTD",71,"SABA SHIPPING IMTERNATIOAL UAE",187]
[null,null,71,"OCEAN SERVICES PVT LTD",71,"SAIGON QUEEN, VIETNAM",242]
[null,null,71,"OCEAN SERVICES PVT LTD",71,"SAMHO SHIPPING CO. LTD, SEOUL, KOREA.",235]
[null,null,71,"OCEAN SERVICES PVT LTD",71,"SAMSUM LOGIX KOREA",136]
[null,null,71,"OCEAN SERVICES PVT LTD",71,"SANKO STEAMSHIP, JAPAN",73]
[null,null,71,"OCEAN SERVICES PVT LTD",71,"SC REZKOZAN IMPEX SRL CONSTANTZA, ROMANIA.",275]
[null,null,71,"OCEAN SERVICES PVT LTD",71,"SEA SAAD SHIPPING DUBAI",163]
[null,null,71,"OCEAN SERVICES PVT LTD",71,"SEA VISION MARINE SERVICES UAE",174]
[null,null,71,"OCEAN SERVICES PVT LTD",71,"SEA WORLD MANGT",74]
[null,null,71,"OCEAN SERVICES PVT LTD",71,"SEALINK SHIPPING LLC, DUBAI, U.A.E.",257]
[null,null,71,"OCEAN SERVICES PVT LTD",71,"SEAMENT INTL DUBAI UAE",178]
[null,null,71,"OCEAN SERVICES PVT LTD",71,"SEATRADE",209]
[null,null,71,"OCEAN SERVICES PVT LTD",71,"SEATREK TRANS PTE LTD, SINGAPORE",225]
[null,null,71,"OCEAN SERVICES PVT LTD",71,"SEAWAY KOREA CO.LTD, KOREA",230]
[null,null,71,"OCEAN SERVICES PVT LTD",71,"SEAWIND SHIPPING",75]
[null,null,71,"OCEAN SERVICES PVT LTD",71,"SEKAR HOLDING GREECE",185]
[null,null,71,"OCEAN SERVICES PVT LTD",71,"SERVICES LONDON U.K",166]
[null,null,71,"OCEAN SERVICES PVT LTD",71,"SETAF SAGET FRANCE",151]
[null,null,71,"OCEAN SERVICES PVT LTD",71,"SETAF SAGET PARIS FRANCE",171]
[null,null,71,"OCEAN SERVICES PVT LTD",71,"SEVEN SEAS MARITIME, GREECE",77]
[null,null,71,"OCEAN SERVICES PVT LTD",71,"SHADAB PVT LTD. AUSTRALIA",149]
[null,null,71,"OCEAN SERVICES PVT LTD",71,"SHAHDAB PTY LTD",111]
[null,null,71,"OCEAN SERVICES PVT LTD",71,"SHINWA KAIUN KAMSHO, JAPAN",78]
[null,null,71,"OCEAN SERVICES PVT LTD",71,"SINOTRANS CANADA INC.VANCOUVER ",221]
[null,null,71,"OCEAN SERVICES PVT LTD",71,"SIVA BOCIMAR CHEMICAL PTE LTD., ( SINGAPORE )",301]
[null,null,71,"OCEAN SERVICES PVT LTD",71,"SK SHIPPING SINGAPORE",139]
[null,null,71,"OCEAN SERVICES PVT LTD",71,"SOECHI LINES, ( INDONESIA )",302]
[null,null,71,"OCEAN SERVICES PVT LTD",71,"SOGEM MANACO",79]
[null,null,71,"OCEAN SERVICES PVT LTD",71,"STAR ARABIAN AGGREGATES CO, QATAR.",255]
[null,null,71,"OCEAN SERVICES PVT LTD",71,"STAR ARABIAN AGGREGATIES COS QATAR",259]
[null,null,71,"OCEAN SERVICES PVT LTD",71,"STAR ARABIAN AGGREGATIES COS QATAR. ",269]
[null,null,71,"OCEAN SERVICES PVT LTD",71,"STERN OF LONDON U.K",218]
[null,null,71,"OCEAN SERVICES PVT LTD",71,"STX PAN OCEAN CO.LTD SEOUL KOREA",129]
[null,null,71,"OCEAN SERVICES PVT LTD",71,"STX PAN OCEAN UK",172]
[null,null,71,"OCEAN SERVICES PVT LTD",71,"SUCCESSOR SHIPPING GREECE",194]
[null,null,71,"OCEAN SERVICES PVT LTD",71,"SUMMIT AGENCIES MALAYSIA",220]
[null,null,71,"OCEAN SERVICES PVT LTD",71,"SUN RISE MARITIME PTE LTD, SINGAPORE.",276]
[null,null,71,"OCEAN SERVICES PVT LTD",71,"Sunray Shipping Korea",131]
[null,null,71,"OCEAN SERVICES PVT LTD",71,"Sunrise Maritime Pte Ltd. Singapore",297]
[null,null,71,"OCEAN SERVICES PVT LTD",71,"SUNSHINE CEMENT CALIFORINIA USA",181]
[null,null,71,"OCEAN SERVICES PVT LTD",71,"SUNWOO MERCVHANT MARINE CO.LTD.KOREA",126]
[null,null,71,"OCEAN SERVICES PVT LTD",71,"T&E BULKER SHIPPING",97]
[null,null,71,"OCEAN SERVICES PVT LTD",71,"TABORA NAVIGATION, GREECE",80]
[null,null,71,"OCEAN SERVICES PVT LTD",71,"TAN BINH COMPANY LTD, VIET NAM",249]
[null,null,71,"OCEAN SERVICES PVT LTD",71,"TEAM TANKERS",82]
[null,null,71,"OCEAN SERVICES PVT LTD",71,"THAI MARITIME, THAILAND",83]
[null,null,71,"OCEAN SERVICES PVT LTD",71,"THE SHIPPING CORPORATION SAJUDI ARABIA",226]
[null,null,71,"OCEAN SERVICES PVT LTD",71,"Thoresen shipping. Germany",305]
[null,null,71,"OCEAN SERVICES PVT LTD",71,"THORSEN THAI AGENCIES, BANGKOK",85]
[null,null,71,"OCEAN SERVICES PVT LTD",71,"TMT BULK CO LTD TAIWAN",170]
[null,null,71,"OCEAN SERVICES PVT LTD",71,"Top Sheen Shipping Group Co. Ltd.",316]
[null,null,71,"OCEAN SERVICES PVT LTD",71,"TORM A/S. COPENHAGEN DENMARK",303]
[null,null,71,"OCEAN SERVICES PVT LTD",71,"TORVALD KLAVENESS & CO NORWAY",114]
[null,null,71,"OCEAN SERVICES PVT LTD",71,"TRADE LINE LLC DUBAI UAE",160]
[null,null,71,"OCEAN SERVICES PVT LTD",71,"TRAINS COMMUNICATION, RUSSIA",86]
[null,null,71,"OCEAN SERVICES PVT LTD",71,"TRANSAL ANTICA COMMODITIES",205]
[null,null,71,"OCEAN SERVICES PVT LTD",71,"TRANSCOM SHIPPING",115]
[null,null,71,"OCEAN SERVICES PVT LTD",71,"TRANSGRAIN SHIPPING HOLLAND",183]
[null,null,71,"OCEAN SERVICES PVT LTD",71,"TRANSPORT SERVICES INTL KARACHI, PAKISTAN",87]
[null,null,71,"OCEAN SERVICES PVT LTD",71,"TRRANS BULK SHIPPING LLC DUBAI",169]
[null,null,71,"OCEAN SERVICES PVT LTD",71,"TRUST CARRIER , GREECE",88]
[null,null,71,"OCEAN SERVICES PVT LTD",71,"TRUST OIL TANKERS",90]
[null,null,71,"OCEAN SERVICES PVT LTD",71,"TSC MARINE SINGAPORE",112]
[null,null,71,"OCEAN SERVICES PVT LTD",71,"TSCO SHIP MANAGEMENT, SYRIA",248]
[null,null,71,"OCEAN SERVICES PVT LTD",71,"UNICORN PETROL KINYA - TURKEY",210]
[null,null,71,"OCEAN SERVICES PVT LTD",71,"UNIMAR U.K",198]
[null,null,71,"OCEAN SERVICES PVT LTD",71,"UNIOCEAN MARITIME CO. LTD , CHINA.",246]
[null,null,71,"OCEAN SERVICES PVT LTD",71,"UNITED REFERS BV NETHER LAND",100]
[null,null,71,"OCEAN SERVICES PVT LTD",71,"UNITED STATES SHIPPING USA",104]
[null,null,71,"OCEAN SERVICES PVT LTD",71,"UNIVERSAL NAVIGATION, SINGAPORE",91]
[null,null,71,"OCEAN SERVICES PVT LTD",71,"USL SHIPPING DMC,EST,DUBAI",292]
[null,null,71,"OCEAN SERVICES PVT LTD",71,"VIETNAM SEA TRANSPORT",154]
[null,null,71,"OCEAN SERVICES PVT LTD",71,"VINASHIN OCEAN SHIPPING CO LIMITED. VIETNAM",311]
[null,null,71,"OCEAN SERVICES PVT LTD",71,"WATER LINK SHIPPING SUBAI",192]
[null,null,71,"OCEAN SERVICES PVT LTD",71,"WEST ASIA MARINE LTD INDIA",125]
[null,null,71,"OCEAN SERVICES PVT LTD",71,"Wilhelmsen Ships (Pvt.) Ltd.",313]
[null,null,71,"OCEAN SERVICES PVT LTD",71,"WIN LAND SHIPPING HONGKONG",164]
[null,null,71,"OCEAN SERVICES PVT LTD",71,"WISDOM LINES (ASIA) PTE LTD, SINGAPORE",229]
[null,null,405,"Ocean Shipping & Logistics (Reg. No. SA-557)",405,"No Principal available",0]
[null,null,226,"Ocean Tiger Container Line (Reg. No. SA-654)",226,"No Principal available",0]
[null,null,222,"Oceanic Shipping Co. (Reg. No. SA-649)",222,"No Principal available",0]
[null,null,149,"Oceanworld (Pvt) Ltd.",149,"ALLIED MARITIME GREECE",7]
[null,null,149,"Oceanworld (Pvt) Ltd.",149,"CARBOFER SHIPPING SERVICES SWITZERLAND",11]
[null,null,149,"Oceanworld (Pvt) Ltd.",149,"CARGIL OCEAN TRANSPORATION SINGAPORE",19]
[null,null,149,"Oceanworld (Pvt) Ltd.",149,"CEREAL INVESTMENT COMPANY LTD LONDON UK",2]
[null,null,149,"Oceanworld (Pvt) Ltd.",149,"COSMO TRANS NAVIGATION INC PIREUS GREECE",12]
[null,null,149,"Oceanworld (Pvt) Ltd.",149,"CROSWORLD FAREAST MALAYSIA",5]
[null,null,149,"Oceanworld (Pvt) Ltd.",149,"DARYA SHIPPING SA SWITZERLAND",9]
[null,null,149,"Oceanworld (Pvt) Ltd.",149,"DENMAR CHARTERING AND TRADING GMBH",1]
[null,null,149,"Oceanworld (Pvt) Ltd.",149,"ERIDANIA SWITZERLAND",4]
[null,null,149,"Oceanworld (Pvt) Ltd.",149,"FAR EASTREN SHIPPING CO RUSSIA",8]
[null,null,149,"Oceanworld (Pvt) Ltd.",149,"FEARNLEYS THILAND LTD",15]
[null,null,149,"Oceanworld (Pvt) Ltd.",149,"GENERAL SHIPPING AGENCIES (PVT.) LTD",25]
[null,null,149,"Oceanworld (Pvt) Ltd.",149,"GOOD EARTH MARITIME LTD INDIA",10]
[null,null,149,"Oceanworld (Pvt) Ltd.",149,"HASSAN ALI RIC EXPORT COMPANY KARACHI",3]
[null,null,149,"Oceanworld (Pvt) Ltd.",149,"IMT SHIPPING AND CHARTERING GMB",16]
[null,null,149,"Oceanworld (Pvt) Ltd.",149,"M/S FREE BUNKERS GREECE",13]
[null,null,149,"Oceanworld (Pvt) Ltd.",149,"M/S Grieg Star Shipping",22]
[null,null,149,"Oceanworld (Pvt) Ltd.",149,"M/S IMT SHIPPING AND CHARTERING GMBH",14]
[null,null,149,"Oceanworld (Pvt) Ltd.",149,"M/s.ARK Shipping Co.Ltd,Seoul, Korea",24]
[null,null,149,"Oceanworld (Pvt) Ltd.",149,"M/s.FAIRSEAS INTERNATIONAL - SOUTH AFRICA",29]
[null,null,149,"Oceanworld (Pvt) Ltd.",149,"M/s.Nobpac Shipping Pte.Ltd.Singapore",23]
[null,null,149,"Oceanworld (Pvt) Ltd.",149,"PCL (SHIPPING) PTE LTD",27]
[null,null,149,"Oceanworld (Pvt) Ltd.",149,"PLATINA BULKERS PTE LTD",26]
[null,null,149,"Oceanworld (Pvt) Ltd.",149,"SAAHAB SHIP CHARTERING (PVT) INDIA",6]
[null,null,149,"Oceanworld (Pvt) Ltd.",149,"SWISS SINGAPORE OVERSEAS ENTERPRIESE PTE LTD",20]
[null,null,149,"Oceanworld (Pvt) Ltd.",149,"THORESEN SHIPPING GMBH",17]
[null,null,149,"Oceanworld (Pvt) Ltd.",149,"WESTERN BULK PTE LTD SINGAPORE",18]
[null,null,149,"Oceanworld (Pvt) Ltd.",149,"wrong",28]
[null,null,266,"Olympic Freight Pak (Pvt) Ltd (Reg. No. SA-710)",266,"No Principal available",0]
[null,null,385,"Online Shipping & Logistics (Reg. No. SA-532)",385,"No Principal available",0]
[null,null,161,"OOCL PAKISTAN (PVT) LTD",161,"ORIENT OVERSEAS CONTAINER LINES LTD, HONGKONG",1]
[null,null,72,"ORBITER PRIVATE LTD",72,"ALLIED MARITIME GREECE",1]
[null,null,72,"ORBITER PRIVATE LTD",72,"CAPE SORLE",2]
[null,null,72,"ORBITER PRIVATE LTD",72,"CONDOR",3]
[null,null,72,"ORBITER PRIVATE LTD",72,"COUNTSHIP CONTAINER LINES, UK",4]
[null,null,72,"ORBITER PRIVATE LTD",72,"GAC XHIPPING PAKISTAN PVT LTD.",13]
[null,null,72,"ORBITER PRIVATE LTD",72,"IPEX IMPRESS",5]
[null,null,72,"ORBITER PRIVATE LTD",72,"LANKAMAHAPOLA",6]
[null,null,72,"ORBITER PRIVATE LTD",72,"ORIENT AISHWAY",7]
[null,null,72,"ORBITER PRIVATE LTD",72,"P&ONL UNITY",8]
[null,null,72,"ORBITER PRIVATE LTD",72,"SAFEMARINE EREBUS",9]
[null,null,72,"ORBITER PRIVATE LTD",72,"SAFEMARINE EVEREST",10]
[null,null,72,"ORBITER PRIVATE LTD",72,"SINAR BALI",11]
[null,null,72,"ORBITER PRIVATE LTD",72,"SWAT",12]
[null,null,192,"Oreint Worldwide Shipping Pak (Pvt) Ltd (Reg. No. SA-609)",192,"No Principal available",0]
[null,null,73,"ORIENTAL SHIPPING PVT LTD",73,"No Principal available",0]
[null,null,74,"ORS SCORPORATION PVT LTD",74,"GREATERN ENTERPRISES LTD , SINGAPORE",1]
[null,null,74,"ORS SCORPORATION PVT LTD",74,"GVD SHIPPING CO MON ROVIA",2]
[null,null,74,"ORS SCORPORATION PVT LTD",74,"MASTRAR SHIPPING CO, CHINA",3]
[null,null,74,"ORS SCORPORATION PVT LTD",74,"NAVEGADORA (SA), DUBAI",4]
[null,null,74,"ORS SCORPORATION PVT LTD",74,"Not Availaible",0]
[null,null,74,"ORS SCORPORATION PVT LTD",74,"OCION SHIPPING & TRADING CO , TURKEY",5]
[null,null,74,"ORS SCORPORATION PVT LTD",74,"SHEN DONZ PROVINCE",6]
[null,null,74,"ORS SCORPORATION PVT LTD",74,"SOCIETE ENTERPRISE LIAS SONS MARITIME, FRANCE",7]
[null,null,74,"ORS SCORPORATION PVT LTD",74,"SUN ASIA SHIPPING CO, SOUTH KOREA",8]
[null,null,74,"ORS SCORPORATION PVT LTD",74,"TRANSOVERSEAS CO PTE LTD, SINGAPORE",9]
[null,null,74,"ORS SCORPORATION PVT LTD",74,"TRUSTRADE ENTERPRISES",10]
[null,null,74,"ORS SCORPORATION PVT LTD",74,"TURKISH CARGO LINE, TURKEY",11]
[null,null,74,"ORS SCORPORATION PVT LTD",74,"ZENSO MARINE PTE LTD , SINGAPORE",12]
[null,null,201,"Osaka Shipping International (Reg. No. SA-624)",201,"No Principal available",0]
[null,null,284,"Overseas Container & Logistics (Reg. No. SA-730)",284,"No Principal available",0]
[null,null,75,"P&O CONTAINERS",75,"ARAB MARITIME",1]
[null,null,75,"P&O CONTAINERS",75,"BOMBAY STAR",2]
[null,null,75,"P&O CONTAINERS",75,"DENKLAN MARINE",3]
[null,null,75,"P&O CONTAINERS",75,"EMIRATES STAR",4]
[null,null,75,"P&O CONTAINERS",75,"E-PRESS DHAULAGIRI",5]
[null,null,75,"P&O CONTAINERS",75,"HIJAJI AND CHOSHEH",6]
[null,null,75,"P&O CONTAINERS",75,"HYUNDAI BRIDGE",7]
[null,null,75,"P&O CONTAINERS",75,"HYUNDAI HIGHWAY",8]
[null,null,75,"P&O CONTAINERS",75,"HYUNDAI PROGRESS",9]
[null,null,75,"P&O CONTAINERS",75,"IPEX INPRESS",10]
[null,null,75,"P&O CONTAINERS",75,"KUWAIT OIL TANKERS",11]
[null,null,75,"P&O CONTAINERS",75,"LIVE STOCK TRANSPORT",12]
[null,null,75,"P&O CONTAINERS",75,"MV. DEUTSCHLAND",13]
[null,null,75,"P&O CONTAINERS",75,"P&O CRUIKS LTD",14]
[null,null,75,"P&O CONTAINERS",75,"P&O NEDLLOYD LTD UK",15]
[null,null,75,"P&O CONTAINERS",75,"PONL PEMPA",16]
[null,null,75,"P&O CONTAINERS",75,"PREMISSE CRUISES",17]
[null,null,75,"P&O CONTAINERS",75,"RADIA FARES ENTERPRIZE",18]
[null,null,75,"P&O CONTAINERS",75,"SAFEMARINE EMREST",19]
[null,null,75,"P&O CONTAINERS",75,"SAFEMARINE EREBUS",20]
[null,null,75,"P&O CONTAINERS",75,"SAGAR",21]
[null,null,75,"P&O CONTAINERS",75,"SEMBAMING SHIP MANGT",22]
[null,null,75,"P&O CONTAINERS",75,"TEXACO MARINE",23]
[null,null,75,"P&O CONTAINERS",75,"TRADE FAST",24]
[null,null,75,"P&O CONTAINERS",75,"VELA INTEL TRANSPORT",25]
[null,null,75,"P&O CONTAINERS",75,"XPRESS DHAULAGRI",26]
[null,null,403,"Pacifc Shipping Logistics (Reg. No. SA-555)",403,"No Principal available",0]
[null,null,76,"PACIFIC DELTA SHIPPING",76,"P & O Nedlloyds Kingdom",2]
[null,null,76,"PACIFIC DELTA SHIPPING",76,"PACIFIC INTERNATIONAL LINE",1]
[null,null,76,"PACIFIC DELTA SHIPPING",76,"RICKMERS LINE GMBH GERMANY",4]
[null,null,76,"PACIFIC DELTA SHIPPING",76,"SOLAR STAR SHIPPING ENTERPRISES",5]
[null,null,76,"PACIFIC DELTA SHIPPING",76,"UNITED ARAB SHIPPING COMPANY",3]
[null,null,357,"Pacific Logistics (Pvt) Ltd (Reg. No. SA-484)",357,"No Principal available",0]
[null,null,77,"PACIFIC MARITIME PVT LTD",77,"ACOMARIT SERVICES MARITIME , S.A.SWITZERLAND",1]
[null,null,77,"PACIFIC MARITIME PVT LTD",77,"AUGUST TRADING",2]
[null,null,77,"PACIFIC MARITIME PVT LTD",77,"AURORA TANKERS SDN. BHO., MALAYSIA",3]
[null,null,77,"PACIFIC MARITIME PVT LTD",77,"BROOK WATER LTD",4]
[null,null,77,"PACIFIC MARITIME PVT LTD",77,"BRYGGEN SHIPPING AND TRADING, A/S NORWAY",5]
[null,null,77,"PACIFIC MARITIME PVT LTD",77,"DYNACOM TANKERS MANAGEMENT LTD, GREECE",6]
[null,null,77,"PACIFIC MARITIME PVT LTD",77,"EASTPORT MARITIME PTE LTD",7]
[null,null,77,"PACIFIC MARITIME PVT LTD",77,"FAL OIL CO. LTD, SHARJAH, UAE",8]
[null,null,77,"PACIFIC MARITIME PVT LTD",77,"GMS LINE CO. LTD , JAPAN",9]
[null,null,77,"PACIFIC MARITIME PVT LTD",77,"JO TANKERS",10]
[null,null,77,"PACIFIC MARITIME PVT LTD",77,"K. SEA TRANSPORTATION",11]
[null,null,77,"PACIFIC MARITIME PVT LTD",77,"LINO KAION KAISHSA LTD, JAPAN",12]
[null,null,77,"PACIFIC MARITIME PVT LTD",77,"LOTUS SHIPPING CO",13]
[null,null,77,"PACIFIC MARITIME PVT LTD",77,"PETROJAYA MARINE SOLN BHD",14]
[null,null,77,"PACIFIC MARITIME PVT LTD",77,"SAPPHIRE SUCCESS SA GLAFED",15]
[null,null,77,"PACIFIC MARITIME PVT LTD",77,"SCANDINAVION CARRIER",16]
[null,null,77,"PACIFIC MARITIME PVT LTD",77,"SINDBAD CHARTERING CO",17]
[null,null,77,"PACIFIC MARITIME PVT LTD",77,"SINGAPORE (PTE) LTD",18]
[null,null,77,"PACIFIC MARITIME PVT LTD",77,"STOLT NELSON TRANS. GROUP PTE LTD, SIGAPORE",19]
[null,null,77,"PACIFIC MARITIME PVT LTD",77,"STYG & COMPANIA NAVERDA",20]
[null,null,314,"Pak Liner Agencies (Pvt) Ltd(Reg.No.SA-381)",314,"No Principal available",0]
[null,null,351,"Pak Shaheen Freighter (Pvt) Ltd (Reg. No. SA-477)",351,"No Principal available",0]
[null,null,78,"PAK SHAHEEN PVT LTD",78,"No Principal available",0]
[null,null,415,"Pakistan Cargo Services (Pvt) Ltd (Reg. No. SA-573)",415,"No Principal available",0]
[null,null,79,"PAKISTAN STEEL CORPORATION",79,"No Principal available",0]
[null,null,148,"PAKISTAN TRANSCONTINENTAL SHIPPING PVT.LTD.",148,"AL BARRAK SHIPPING LTD",5]
[null,null,148,"PAKISTAN TRANSCONTINENTAL SHIPPING PVT.LTD.",148,"CARGO GULF",4]
[null,null,148,"PAKISTAN TRANSCONTINENTAL SHIPPING PVT.LTD.",148,"OVERSEAS VENTURE CONTINER LINES SINGAPORE",2]
[null,null,148,"PAKISTAN TRANSCONTINENTAL SHIPPING PVT.LTD.",148,"QC SHIPPING SDN BHD MALAYSIA",1]
[null,null,148,"PAKISTAN TRANSCONTINENTAL SHIPPING PVT.LTD.",148,"Vanguard Container Lines PTE Ltd.",3]
[null,null,398,"Paklink Shipping Services (Reg. No. SA-549)",398,"No Principal available",0]
[null,null,80,"PAN ISLAMIC STEAM SHIP",80,"No Principal available",0]
[null,null,304,"Paramount Shipping Agency (Reg. No. SA-334)",304,"No Principal available",0]
[null,null,82,"PEARL SHIPPING AGENCIES",82,"No Principal available",0]
[null,null,372,"Perma Container Lines Pakistan (Pvt) Ltd (Reg. No. SA-510)",372,"No Principal available",0]
[null,null,245,"PGT Logistics Inc (Reg. No. SA-682)",245,"No Principal available",0]
[null,null,277,"Platinum Logistics (Pvt) Ltd (Reg. No. SA-723)",277,"No Principal available",0]
[null,null,83,"PNSC CORPORATION PVT LTD",83,"No Principal available",0]
[null,null,143,"PORTLINK INTERNATIONL SERVICE(PVT)",143,"ANL SINGAPORE",3]
[null,null,143,"PORTLINK INTERNATIONL SERVICE(PVT)",143,"MAC ANEREW & COMPANY`",2]
[null,null,143,"PORTLINK INTERNATIONL SERVICE(PVT)",143,"PORT LINK INTERNATIONAL SERVICES(PVT)LTD.",1]
[null,null,84,"PREMIER SHIPPING SERVICES",84,"No Principal available",0]
[null,null,146,"PRIDE SHIPPING CO. (PVT) LTD.",146,"COLLYER LOGISTICS",5]
[null,null,146,"PRIDE SHIPPING CO. (PVT) LTD.",146,"COMAGE INTERNATIONAL CANADA",6]
[null,null,146,"PRIDE SHIPPING CO. (PVT) LTD.",146,"CURE INTERNATIONAL",4]
[null,null,146,"PRIDE SHIPPING CO. (PVT) LTD.",146,"GLOBE MARINE SERVICES DAMMAM S. ARABIA",7]
[null,null,146,"PRIDE SHIPPING CO. (PVT) LTD.",146,"GULF SHIPPING S.ARABIA",1]
[null,null,146,"PRIDE SHIPPING CO. (PVT) LTD.",146,"NAVIGATION NET WORK NEW ORLEANS LA USA",2]
[null,null,146,"PRIDE SHIPPING CO. (PVT) LTD.",146,"Sky Union International FRT CO. Ltd",3]
[null,null,85,"PROFTIC MARINE",85,"No Principal available",0]
[null,null,181,"Project Shipping (Reg. No. SA-694)",181,"BMB Maritime Liner Services GmbH & Co, KG",7]
[null,null,181,"Project Shipping (Reg. No. SA-694)",181,"Boskstiegel Gmbh & Co.",6]
[null,null,181,"Project Shipping (Reg. No. SA-694)",181,"Dutch Verena Shipping Gmbh & Co. K.G",1]
[null,null,181,"Project Shipping (Reg. No. SA-694)",181,"Marie Shipping GmbH & C., KG ",8]
[null,null,181,"Project Shipping (Reg. No. SA-694)",181,"Marship Gmbh & Co. K.G. ",2]
[null,null,181,"Project Shipping (Reg. No. SA-694)",181,"Navalmar (Uk) Ltd.",3]
[null,null,181,"Project Shipping (Reg. No. SA-694)",181,"Neele Shipping GmbH & Co. KG. Germany",5]
[null,null,181,"Project Shipping (Reg. No. SA-694)",181,"NPC I (Singapore) Pte. Ltd.",4]
[null,null,328,"Qamar Trading & Shipping Company(Reg. No. SA-425)",328,"No Principal available",0]
[null,null,193,"Quality Freight System (Reg. No. SA-611)",193,"No Principal available",0]
[null,null,216,"R Ways Logistics (Reg. No. SA-643)",216,"No Principal available",0]
[null,null,170,"RAHMAT SHIPPING (PVT) LTD(Reg. No. SA-328)",170,"ACE GLOBAL LINES",5]
[null,null,170,"RAHMAT SHIPPING (PVT) LTD(Reg. No. SA-328)",170,"BLPL SINGAPORE (P) LTD",3]
[null,null,170,"RAHMAT SHIPPING (PVT) LTD(Reg. No. SA-328)",170,"HEXAGONE SHIPPING SDN MALAYSIA",2]
[null,null,170,"RAHMAT SHIPPING (PVT) LTD(Reg. No. SA-328)",170,"QATAR NAVGATION DUBAI UAE",1]
[null,null,170,"RAHMAT SHIPPING (PVT) LTD(Reg. No. SA-328)",170,"ZENITH MARINE SHIPPING (P) LTD",4]
[null,null,86,"RAIZDA (PVT) LTD",86,"AC Globe",9]
[null,null,86,"RAIZDA (PVT) LTD",86,"BALAJI SHIPPING LTD",8]
[null,null,86,"RAIZDA (PVT) LTD",86,"BOMBAY STAR",1]
[null,null,86,"RAIZDA (PVT) LTD",86,"EXPRESS DHAULAGIRI",2]
[null,null,86,"RAIZDA (PVT) LTD",86,"I PEX IMPEROR",3]
[null,null,86,"RAIZDA (PVT) LTD",86,"OS CHAMPIAN",4]
[null,null,86,"RAIZDA (PVT) LTD",86,"SAFE MARINE TANA",5]
[null,null,86,"RAIZDA (PVT) LTD",86,"SAFE MARINE WAMI",6]
[null,null,86,"RAIZDA (PVT) LTD",86,"WAN HAI LINES",7]
[null,null,396,"Ravain International Agencies (Reg. No. SA-547)",396,"No Principal available",0]
[null,null,327,"Ravian Maritime (Pvt) Ltd(Reg. No. SA-421)",327,"No Principal available",0]
[null,null,87,"RAZIQ INTERNATIONAL",87,"No Principal available",0]
[null,null,413,"Royal Shipping & Logistics (Reg. No. SA-569)",413,"No Principal available",0]
[null,null,242,"Royal Shipping Agency (Reg. No. SA-675)",242,"No Principal available",0]
[null,null,365,"S.G Logistics (Reg. No. SA-497)",365,"No Principal available",0]
[null,null,88,"SAEED MARITIME PVT LTD",88,"No Principal available",0]
[null,null,89,"SAFE MARINE PAKISTAN PVT LTD",89,"SAFE MARINE CONTAINER LINES",1]
[null,null,236,"Sas Cargo (Pvt) Ltd (Reg. No. SA-668)",236,"No Principal available",0]
[null,null,90,"SCAN COM TRADING",90,"BRIGHTEN SHIPPING",1]
[null,null,90,"SCAN COM TRADING",90,"IGENSHIP TRADING",2]
[null,null,90,"SCAN COM TRADING",90,"LOLLINTZAS MARITIME",3]
[null,null,90,"SCAN COM TRADING",90,"MAAOET SHIPPING",4]
[null,null,90,"SCAN COM TRADING",90,"NEPON YUSEN KOSHA",5]
[null,null,90,"SCAN COM TRADING",90,"OCEAN SERVICES",6]
[null,null,90,"SCAN COM TRADING",90,"SHABEEN SHIPPI9NG",7]
[null,null,90,"SCAN COM TRADING",90,"SS ENTERPRISES",8]
[null,null,90,"SCAN COM TRADING",90,"THAI MARIN CO",9]
[null,null,90,"SCAN COM TRADING",90,"THAI MARITIME CO",10]
[null,null,90,"SCAN COM TRADING",90,"TRANSPORT SERVICES",11]
[null,null,90,"SCAN COM TRADING",90,"TRANSPORT SERVICES INTL",12]
[null,null,90,"SCAN COM TRADING",90,"VAMVA SHIP",13]
[null,null,90,"SCAN COM TRADING",90,"WESTERN BULK CARRIER",14]
[null,null,145,"SCANTECH INTERNATIONAL (PVT) LTD.(Reg.No. SA-419)",145,"BOP",4]
[null,null,145,"SCANTECH INTERNATIONAL (PVT) LTD.(Reg.No. SA-419)",145,"CONSOLIDATED POOL GERMANY",3]
[null,null,145,"SCANTECH INTERNATIONAL (PVT) LTD.(Reg.No. SA-419)",145,"HRC SHIPPING LTD.",1]
[null,null,145,"SCANTECH INTERNATIONAL (PVT) LTD.(Reg.No. SA-419)",145,"MERTECH MARINE (PVT) LTD.",5]
[null,null,145,"SCANTECH INTERNATIONAL (PVT) LTD.(Reg.No. SA-419)",145,"SEA VENTURE MARINE",2]
[null,null,361,"Sea & Sky Logistics Pakistan (Pvt) Ltd (Reg. No. SA-491)",361,"No Principal available",0]
[null,null,341,"Sea Air Transport Link (Reg. No. SA-459)",341,"No Principal available",0]
[null,null,91,"SEA BIZ INTERNATIONAL",91,"Dolphin Shipping",3]
[null,null,91,"SEA BIZ INTERNATIONAL",91,"Doris Container Lines",4]
[null,null,91,"SEA BIZ INTERNATIONAL",91,"LLOYDA MARITIME & TRADING",2]
[null,null,91,"SEA BIZ INTERNATIONAL",91,"SEALINE INTL , MAURETIUS",1]
[null,null,92,"SEA BRIDGE SHIPPING",92,"No Principal available",0]
[null,null,182,"Sea Care Pakistan (Pvt) Ltd(Reg. No. SA-427)",182," M/s. Salamander Shipping & Trd. Ltd.",2]
[null,null,182,"Sea Care Pakistan (Pvt) Ltd(Reg. No. SA-427)",182,"M/S Oldendroff GMBH",1]
[null,null,93,"SEA CREST SHIPPING",93,"No Principal available",0]
[null,null,339,"Sea Master Shipping & Logistics (Reg. No. SA-456)",339,"No Principal available",0]
[null,null,389,"Sea Net Shipping & Logistics (Reg. No. SA-536)",389,"No Principal available",0]
[null,null,94,"SEA PAK SHIP AGENCIES",94,"No Principal available",0]
[null,null,261,"Sea Shore Logistics (Reg. No. SA-703)",261,"No Principal available",0]
[null,null,315,"Sea Star Shipping Agency(Reg. No. SA-382)",315,"No Principal available",0]
[null,null,338,"Sea Swift Shipping Agency (Reg. No. SA-453)",338,"No Principal available",0]
[null,null,317,"Sea Trade International(Reg. No. SA-390)",317,"No Principal available",0]
[null,null,95,"SEA TRADE PVT LTD",95,"AINAT INCORPORATION",46]
[null,null,95,"SEA TRADE PVT LTD",95,"AL BELHA TRADING SAUDI ARABIA ",28]
[null,null,95,"SEA TRADE PVT LTD",95,"alunited shipping singapore",1]
[null,null,95,"SEA TRADE PVT LTD",95,"Alwan Shipping LLC Texas - USA",61]
[null,null,95,"SEA TRADE PVT LTD",95,"ANTHONY RODELIFFEE, USA",2]
[null,null,95,"SEA TRADE PVT LTD",95,"ASIA MARINE ",41]
[null,null,95,"SEA TRADE PVT LTD",95,"ASSOCIATE SHIPPING, CYPRUS",3]
[null,null,95,"SEA TRADE PVT LTD",95,"BARWIL SHIPPING PVT KARACHI",32]
[null,null,95,"SEA TRADE PVT LTD",95,"BELUGA CHARTERING,GMBH, GERMANY",65]
[null,null,95,"SEA TRADE PVT LTD",95,"BEN OCEAN SHIPPING AND TRADING LTD",45]
[null,null,95,"SEA TRADE PVT LTD",95,"BRIDGE MARINE LTD. SEOUL KOREA",21]
[null,null,95,"SEA TRADE PVT LTD",95,"BRILLIANT MARINE. S.A., SYRIA",69]
[null,null,95,"SEA TRADE PVT LTD",95,"BULK AFRICA LINE (MAURITIOUS) LTD. MAURITIOUS",74]
[null,null,95,"SEA TRADE PVT LTD",95,"COAL AND OIL L.L.C DUBAI ",31]
[null,null,95,"SEA TRADE PVT LTD",95,"Cornavin shipping - UK",56]
[null,null,95,"SEA TRADE PVT LTD",95,"DAEYANG SHIPPING CO.",16]
[null,null,95,"SEA TRADE PVT LTD",95,"EAST WIND CARRIER LTD U.K ",29]
[null,null,95,"SEA TRADE PVT LTD",95,"EMERATES TRADING, UAE",4]
[null,null,95,"SEA TRADE PVT LTD",95,"FLAME SA SWITZERLAND",25]
[null,null,95,"SEA TRADE PVT LTD",95,"FM OCEAN SERVICES PRIVATE LIMITED",36]
[null,null,95,"SEA TRADE PVT LTD",95,"GLINCORE GRAIN, HOLLAND",5]
[null,null,95,"SEA TRADE PVT LTD",95,"GSS MARINE CYPRUS",24]
[null,null,95,"SEA TRADE PVT LTD",95,"GULF DEVELOPMENT UAE",20]
[null,null,95,"SEA TRADE PVT LTD",95,"HARBOR SERVICE GENEVA",23]
[null,null,95,"SEA TRADE PVT LTD",95,"HARBOUR SERVICES LONDON, UK",6]
[null,null,95,"SEA TRADE PVT LTD",95,"INDIANC OCEAN TIME MAHRITIUS",7]
[null,null,95,"SEA TRADE PVT LTD",95,"INTER MAREE TRANSPORT, GERMANY",8]
[null,null,95,"SEA TRADE PVT LTD",95,"INTER MARINE LTD, GREECE",9]
[null,null,95,"SEA TRADE PVT LTD",95,"INTL TRADE SERVICE BEGGIUM",38]
[null,null,95,"SEA TRADE PVT LTD",95,"KON QUEST S.A. PIREAUS, GREECE",60]
[null,null,95,"SEA TRADE PVT LTD",95,"Korea Line Corp - Korea",53]
[null,null,95,"SEA TRADE PVT LTD",95,"LAURITZAN SINGAPRE ",48]
[null,null,95,"SEA TRADE PVT LTD",95,"LIBERTY MARITIME N.Y",22]
[null,null,95,"SEA TRADE PVT LTD",95,"LIGHT HOUSE NAVIGATION PTE LTD, BANGKOK, THAILAND",72]
[null,null,95,"SEA TRADE PVT LTD",95,"M/S MARINE CEMENT SWITZERLAND",17]
[null,null,95,"SEA TRADE PVT LTD",95,"MED BROKARAGE & MANAGEMENT CORP, NEW YORK, USA",71]
[null,null,95,"SEA TRADE PVT LTD",95,"MERIT INTL ,DUBAI",51]
[null,null,95,"SEA TRADE PVT LTD",95,"MERIT MARITIME UK",19]
[null,null,95,"SEA TRADE PVT LTD",95,"MUR SHIPPING - LONDON UK ",40]
[null,null,95,"SEA TRADE PVT LTD",95,"MUTUAC TASK MARITIME, MALTA",10]
[null,null,95,"SEA TRADE PVT LTD",95,"Naftotrade Shipping & Commercial - Greece",58]
[null,null,95,"SEA TRADE PVT LTD",95,"NATIONAL NAVIGATION, EGYPT",11]
[null,null,95,"SEA TRADE PVT LTD",95,"NHL DEVELOPMENT CO LTD.",39]
[null,null,95,"SEA TRADE PVT LTD",95,"Ocean Span Sipping - China ",52]
[null,null,95,"SEA TRADE PVT LTD",95,"OLDENDOREFF CARRIER GMBH & Co.KG  GERMANY",70]
[null,null,95,"SEA TRADE PVT LTD",95,"Onego Shipping & Chartering - Netherland",57]
[null,null,95,"SEA TRADE PVT LTD",95,"PAMAR DINIZCILIK LTD TURKEY",43]
[null,null,95,"SEA TRADE PVT LTD",95,"PCL (SHIPPING) PTE LTD. SINGAPORE",73]
[null,null,95,"SEA TRADE PVT LTD",95,"PESCADOROS SHIPPING , SINGAPORE",12]
[null,null,95,"SEA TRADE PVT LTD",95,"PGSC MARINE UK",47]
[null,null,95,"SEA TRADE PVT LTD",95,"RAYSUT CEMENT OMAN",26]
[null,null,95,"SEA TRADE PVT LTD",95,"RED SEA NAVIGATION EGYPT",30]
[null,null,95,"SEA TRADE PVT LTD",95,"SEA BULK SHIPPING",59]
[null,null,95,"SEA TRADE PVT LTD",95,"SEA BULK SHIPPING GREECE ",27]
[null,null,95,"SEA TRADE PVT LTD",95,"SEA SPEED MARINE MANAGEMENT - U.A.E",37]
[null,null,95,"SEA TRADE PVT LTD",95,"Sealuck Shipping,UAE ",50]
[null,null,95,"SEA TRADE PVT LTD",95,"SETAF SAGET - FRANCE",34]
[null,null,95,"SEA TRADE PVT LTD",95,"SHINWA KAIUN KAMSHO, JAPAN",13]
[null,null,95,"SEA TRADE PVT LTD",95,"Shipping Corp - Saudi Arabia",54]
[null,null,95,"SEA TRADE PVT LTD",95,"Standard Bulk Transport Corporation - Greece",62]
[null,null,95,"SEA TRADE PVT LTD",95,"STERN OF LONDON U.K",33]
[null,null,95,"SEA TRADE PVT LTD",95,"STXPANOCEAN - KOREA",35]
[null,null,95,"SEA TRADE PVT LTD",95,"SUMMIT AGENCIES MALAYSIA",42]
[null,null,95,"SEA TRADE PVT LTD",95,"SUNSHINE CEMENT INC USA",18]
[null,null,95,"SEA TRADE PVT LTD",95,"T.K. BOESON , NORWAY",14]
[null,null,95,"SEA TRADE PVT LTD",95,"TANBINK CO LTD HAI PHONG",44]
[null,null,95,"SEA TRADE PVT LTD",95,"THOESEN SHIPPING, SINGAPORE",66]
[null,null,95,"SEA TRADE PVT LTD",95,"TSCOSHIP MANAGEMENT, SYRIA.",68]
[null,null,95,"SEA TRADE PVT LTD",95,"Unimar UK Ltd - UK",55]
[null,null,95,"SEA TRADE PVT LTD",95,"UNIOCEAN MARITIME CO.LTD, CHINA",67]
[null,null,95,"SEA TRADE PVT LTD",95,"Vietnam Ocean Shipping Co , Vietnam",49]
[null,null,95,"SEA TRADE PVT LTD",95,"WORD FOOD PROGRAME, ITALY",15]
[null,null,425,"Sea Trade Shipping (Reg. No. SA-591)",425,"No Principal available",0]
[null,null,96,"SEA WAY PVT LTD",96,"No Principal available",0]
[null,null,97,"SEACON PVT LTD",97,"AUSTRAILIAN NATIONAL LINE, AUSTRALIA",1]
[null,null,97,"SEACON PVT LTD",97,"BALTIC SHIPPING CO , RUSSIA",2]
[null,null,97,"SEACON PVT LTD",97,"BOLT DRIENT LINE LONDON",3]
[null,null,97,"SEACON PVT LTD",97,"COMPAGNIE MERIDINDE, FRANCE",4]
[null,null,97,"SEACON PVT LTD",97,"HAMBURG SUD",8]
[null,null,97,"SEACON PVT LTD",97,"KIEN HUNG SHIPPING, THAILAND",5]
[null,null,97,"SEACON PVT LTD",97,"LAUREL NAVIGATION MAURITIUS LIMITED HONGKONG ",9]
[null,null,97,"SEACON PVT LTD",97,"NATIONAL SHIPPING CO, SAUDI ARABIA",6]
[null,null,97,"SEACON PVT LTD",97,"SPLASNA PLOUBA PORTOSOZ , SLOVENIA",7]
[null,null,352,"Seagate Logistics Pakistan (Pvt) Ltd (Reg. No. SA-478)",352,"No Principal available",0]
[null,null,263,"Seaglory Shipping Services (Pvt) Ltd (Reg. No. SA-706)",263,"No Principal available",0]
[null,null,238,"Seagul Shipping & Logistics, (Pvt) Ltd (Reg. No.SA-671)",238,"No Principal available",0]
[null,null,98,"SEAHAWKS PVT LTD",98,"ASAKER MARINE & SHIPPING AGENCY AJMAN UAE",3]
[null,null,98,"SEAHAWKS PVT LTD",98,"LIH SHING FISHERY CO TAIWAN",7]
[null,null,98,"SEAHAWKS PVT LTD",98,"M/S. YUIHSIANG MARINE S.A. TAIWAN",4]
[null,null,98,"SEAHAWKS PVT LTD",98,"PARTNERS SHIPPING CO. LTD.",6]
[null,null,98,"SEAHAWKS PVT LTD",98,"PERSIAN GULD FISHING CO. IRAN",8]
[null,null,98,"SEAHAWKS PVT LTD",98,"SEAHAWKS PVT LTD",1]
[null,null,98,"SEAHAWKS PVT LTD",98,"TAISEIMARU KAIUN KAISHA TOKYO JAPAN",2]
[null,null,98,"SEAHAWKS PVT LTD",98,"UBIN SHIPPING PVT.LTD.SINGAPORE",5]
[null,null,99,"SEALAND SHIPPING AGENCIES",99,"No Principal available",0]
[null,null,249,"Sealink Shipping Pakistan (Pvt) Ltd (Reg. No. SA-688)",249,"No Principal available",0]
[null,null,100,"SEALOG",100,"CHINA SHIPPING CONTAINER",1]
[null,null,409,"Seamax Shipping Company (Reg. No. SA-563)",409,"No Principal available",0]
[null,null,347,"Seaquest International (Reg. No. SA-469)",347,"No Principal available",0]
[null,null,163,"Seatrade Shipping",163,"Ainat Incorporated - NY USA",46]
[null,null,163,"Seatrade Shipping",163,"AL BELHA TRADING SAUDI ARABIA ",28]
[null,null,163,"Seatrade Shipping",163,"alunited shipping singapore",1]
[null,null,163,"Seatrade Shipping",163,"ALWAN SHIPPING TEXAS U.S.A",60]
[null,null,163,"Seatrade Shipping",163,"ANTHONY RODELIFFEE, USA",2]
[null,null,163,"Seatrade Shipping",163,"ASIA MARINE - KARACHI ",42]
[null,null,163,"Seatrade Shipping",163,"ASSOCIATE SHIPPING, CYPRUS",3]
[null,null,163,"Seatrade Shipping",163,"BARWIL SHIPPING PVT KARACHI",32]
[null,null,163,"Seatrade Shipping",163,"BAYRAKTAR SHIP MNGMNT, TURKEY",78]
[null,null,163,"Seatrade Shipping",163,"Ben Ocean Shipping & Trading ltd - Singapore",45]
[null,null,163,"Seatrade Shipping",163,"BIG SKY TRADING, SOUTH AFRICA",89]
[null,null,163,"Seatrade Shipping",163,"BILLE SHIPING GMBH & CO,HAMBURG, GERMANY",64]
[null,null,163,"Seatrade Shipping",163,"BRAVE ROYAL SHIPPING CO,SINGAPORE",83]
[null,null,163,"Seatrade Shipping",163,"BRAVE ROYAL SHIPPING LTD, CHITTAGONG, BANGLADESH.",70]
[null,null,163,"Seatrade Shipping",163,"BRIDGE MARINE LTD. SEOUL KOREA",21]
[null,null,163,"Seatrade Shipping",163,"CARGIL OCEAN TRANSPORTATIONP PTE, SWITZERLAND.",72]
[null,null,163,"Seatrade Shipping",163,"CNC TRADING , DUBAI.",87]
[null,null,163,"Seatrade Shipping",163,"COAL AND OIL L.L.C DUBAI ",31]
[null,null,163,"Seatrade Shipping",163,"Cornavin shipping - UK",56]
[null,null,163,"Seatrade Shipping",163,"DAEYANG SHIPPING CO.",16]
[null,null,163,"Seatrade Shipping",163,"E.M.T.MARINE TRADE FZE",92]
[null,null,163,"Seatrade Shipping",163,"EAST WIND CARRIER LTD U.K",29]
[null,null,163,"Seatrade Shipping",163,"ELKASHAWY BROS SHIPPING CO, EGYPT.",73]
[null,null,163,"Seatrade Shipping",163,"EMERATES TRADING, UAE",4]
[null,null,163,"Seatrade Shipping",163,"EZAMVELO TRADING, SOUTH AFRICA",88]
[null,null,163,"Seatrade Shipping",163,"FLAME SA SWITZERLAND",25]
[null,null,163,"Seatrade Shipping",163,"GLENCORE GRAIN, HOLLAND",5]
[null,null,163,"Seatrade Shipping",163,"GSS MARINE (CYPRUS) LTD",24]
[null,null,163,"Seatrade Shipping",163,"GULF DEVELOPMENT UAE",20]
[null,null,163,"Seatrade Shipping",163,"GULF OF ADEN SHIPPING, DUBAI.",79]
[null,null,163,"Seatrade Shipping",163,"HARBOUR SERVICES GENEVA, SWITZERLAND",23]
[null,null,163,"Seatrade Shipping",163,"HARBOUR SERVICES LONDON, UK",6]
[null,null,163,"Seatrade Shipping",163,"HOLCIM TRADING FZCO- DUBAI, U.A.E.",77]
[null,null,163,"Seatrade Shipping",163,"INDIANC OCEAN TIME MAHRITIUS",7]
[null,null,163,"Seatrade Shipping",163,"INTER MAREE TRANSPORT, GERMANY",8]
[null,null,163,"Seatrade Shipping",163,"INTER MARINE LTD, GREECE",9]
[null,null,163,"Seatrade Shipping",163,"INTERNATIONAL LABOUR & SERVICES STOCK,CO. VIETNAM",82]
[null,null,163,"Seatrade Shipping",163,"INTERNATIONAL MARITIME. GREECE",94]
[null,null,163,"Seatrade Shipping",163,"INTL TRADE SERVICES - BELGIUM",38]
[null,null,163,"Seatrade Shipping",163,"KON QUEST S-A GREECE",63]
[null,null,163,"Seatrade Shipping",163,"Korea Line Corp - Korea",53]
[null,null,163,"Seatrade Shipping",163,"LIBERTY MARITIME , NEWYORK ,USA",22]
[null,null,163,"Seatrade Shipping",163,"M/S MARINE CEMENT SWITZERLAND",17]
[null,null,163,"Seatrade Shipping",163,"M/S MUR SHIPPING B.V., NETHERLAND.",76]
[null,null,163,"Seatrade Shipping",163,"M/S. MOHAR SHIPPING CORP.PTE, LTD, SINGAPORE",75]
[null,null,163,"Seatrade Shipping",163,"M/S.KGJS CEMENT AS, NORWAY.",74]
[null,null,163,"Seatrade Shipping",163,"MERIT INTL - DUBAI",36]
[null,null,163,"Seatrade Shipping",163,"MERIT MARITIME UK",19]
[null,null,163,"Seatrade Shipping",163,"MLE LONGISTIC & CHARTERING NEW YORK, U.S.A.",85]
[null,null,163,"Seatrade Shipping",163,"MONATIC INTERNATIONAL FZC, DUBAI.",91]
[null,null,163,"Seatrade Shipping",163,"MONTEREY CAPITAL LTD, HONG KONG",90]
[null,null,163,"Seatrade Shipping",163,"MOS- OVERSEAS SHIPPING GMBH, GERMANY.",69]
[null,null,163,"Seatrade Shipping",163,"MUR SHIPPING - LONDON UK",40]
[null,null,163,"Seatrade Shipping",163,"MUTUAC TASK MARITIME, MALTA",10]
[null,null,163,"Seatrade Shipping",163,"Naftotrade Shipping & Commercial - Greece",58]
[null,null,163,"Seatrade Shipping",163,"NATIONAL NAVIGATION, EGYPT",11]
[null,null,163,"Seatrade Shipping",163,"NORDEN SHIPPING PTE LTD, SINGAPORE",67]
[null,null,163,"Seatrade Shipping",163,"Ocean Span Sipping - China ",52]
[null,null,163,"Seatrade Shipping",163,"OLDENDORFF GMBH, & CO. GERMANY",65]
[null,null,163,"Seatrade Shipping",163,"Onego Shipping & Chartering - Netherland",57]
[null,null,163,"Seatrade Shipping",163,"Pacmar Dinizcilik ltd - Turkey",43]
[null,null,163,"Seatrade Shipping",163,"PESCADOROS SHIPPING , SINGAPORE",12]
[null,null,163,"Seatrade Shipping",163,"PGSC Marine- UK",47]
[null,null,163,"Seatrade Shipping",163,"RANGER MARINE S.A.PIREAUS, GREECE.",66]
[null,null,163,"Seatrade Shipping",163,"RAYSUT CEMENT (OMAN)",26]
[null,null,163,"Seatrade Shipping",163,"RED SEA NAVIGATION EGYPT",30]
[null,null,163,"Seatrade Shipping",163,"SEA BULK SHIPPING GREECE",27]
[null,null,163,"Seatrade Shipping",163,"SEA SPEED MARINE MANAGEMENT - U.A.E",37]
[null,null,163,"Seatrade Shipping",163,"Sealuck Shipping - UAE",50]
[null,null,163,"Seatrade Shipping",163,"SETAF SAGET - FRANCE",34]
[null,null,163,"Seatrade Shipping",163,"SHINWA KAIUN KAMSHO, JAPAN",13]
[null,null,163,"Seatrade Shipping",163,"Shipping Corp - Saudi Arabia",54]
[null,null,163,"Seatrade Shipping",163,"SINGUNION SHIPPING PTE LTD, SINGAPORE",81]
[null,null,163,"Seatrade Shipping",163,"STANDARD BULK TRANSPORATION COPORATION",61]
[null,null,163,"Seatrade Shipping",163,"STXPAN OCEAN - KOREA",35]
[null,null,163,"Seatrade Shipping",163,"SUNSHINE CEMENT INC USA",18]
[null,null,163,"Seatrade Shipping",163,"T.K. BOESON , NORWAY",14]
[null,null,163,"Seatrade Shipping",163,"TanBink Co Ltd Hai Phong - Vietnam",44]
[null,null,163,"Seatrade Shipping",163,"THAI MANGOLIA SHIPPING & TRADING CO. THAILAND",59]
[null,null,163,"Seatrade Shipping",163,"TOEPFER INTERNATIONAL ASIA PTE LTD, SINGAPORE",71]
[null,null,163,"Seatrade Shipping",163,"ULTRATECH CEMENT, MUMBIA, INDIA.",80]
[null,null,163,"Seatrade Shipping",163,"Unimar Shipping Management Egypt",93]
[null,null,163,"Seatrade Shipping",163,"Unimar UK Ltd - UK",55]
[null,null,163,"Seatrade Shipping",163,"UNIVERSAL NAVIGATION PTE LTD, SINGAPORE.",86]
[null,null,163,"Seatrade Shipping",163,"Vietnam Ocean Shipping Co - Vietnam",49]
[null,null,163,"Seatrade Shipping",163,"WESTERN BULK PTE LTD, SINGAPORE.",68]
[null,null,163,"Seatrade Shipping",163,"WISDOM LINES (ASIA) PTE LTD, SINGAPORE",84]
[null,null,163,"Seatrade Shipping",163,"WORD FOOD PROGRAME, ITALY",15]
[null,null,411,"Seaworld Maritime Agencies (Reg. No. SA-567)",411,"No Principal available",0]
[null,null,412,"Seaworld Shipping Agencies (Reg. No. SA-568)",412,"No Principal available",0]
[null,null,101,"SEI PAK PVT LTD",101,"No Principal available",0]
[null,null,102,"SERVICES PAKISTAN PVT LTD",102,"No Principal available",0]
[null,null,397,"Servico Freight Services (Reg. No. SA-548)",397,"No Principal available",0]
[null,null,103,"SEVEN OCEAN SERVICES PVT LTD",103,"No Principal available",0]
[null,null,104,"SEVEN SEA SERVICES PVT LTD",104,"No Principal available",0]
[null,null,105,"SHAH SHIPPING AGENCIES (PVT) LTD",105,"No Principal available",0]
[null,null,303,"Shahbaz Trading & Shipping Agency (Reg. No. SA-319)",303,"No Principal available",0]
[null,null,106,"SHAHPUR MARITIME PVT LTD",106,"No Principal available",0]
[null,null,155,"Sharaf Shipping Agencies (Pvt) Ltd (Reg. No. SA-612)",155,"FEL LINE",6]
[null,null,155,"Sharaf Shipping Agencies (Pvt) Ltd (Reg. No. SA-612)",155,"HEUNG A SHIPPING CO UK",2]
[null,null,155,"Sharaf Shipping Agencies (Pvt) Ltd (Reg. No. SA-612)",155,"Hew ",7]
[null,null,155,"Sharaf Shipping Agencies (Pvt) Ltd (Reg. No. SA-612)",155,"MEDITRANIAN SHIPPING CO S.A. SWITZERLAND",1]
[null,null,155,"Sharaf Shipping Agencies (Pvt) Ltd (Reg. No. SA-612)",155,"SINOKOR MERCHANT MARINE CO UK",3]
[null,null,155,"Sharaf Shipping Agencies (Pvt) Ltd (Reg. No. SA-612)",155,"T.S Lines Ltd",4]
[null,null,155,"Sharaf Shipping Agencies (Pvt) Ltd (Reg. No. SA-612)",155,"WEC LINES HOLLAND",5]
[null,null,107,"SHIPSHAPE PVT LTD",107,"B.K Shipping",23]
[null,null,107,"SHIPSHAPE PVT LTD",107,"BRYGGEN SHIPPING NORWAY",14]
[null,null,107,"SHIPSHAPE PVT LTD",107,"CAVALIER",15]
[null,null,107,"SHIPSHAPE PVT LTD",107,"CPM SHIPPIN G",13]
[null,null,107,"SHIPSHAPE PVT LTD",107,"DELTA SHIPPING",10]
[null,null,107,"SHIPSHAPE PVT LTD",107,"DILMUN SHIPPIG CO. LTD",3]
[null,null,107,"SHIPSHAPE PVT LTD",107,"DK Holding",22]
[null,null,107,"SHIPSHAPE PVT LTD",107,"DOLPHIN",16]
[null,null,107,"SHIPSHAPE PVT LTD",107,"DUBAI COST SHIPPING",20]
[null,null,107,"SHIPSHAPE PVT LTD",107,"EAST TIGER",19]
[null,null,107,"SHIPSHAPE PVT LTD",107,"EMIRATE SHIPPIG CO LLC",5]
[null,null,107,"SHIPSHAPE PVT LTD",107,"GIDEON SHIPPING GREECE",21]
[null,null,107,"SHIPSHAPE PVT LTD",107,"GLLANI ELECT",12]
[null,null,107,"SHIPSHAPE PVT LTD",107,"HUADAO SHIPPING FAR EAST",4]
[null,null,107,"SHIPSHAPE PVT LTD",107,"INTERLIK GmBH",1]
[null,null,107,"SHIPSHAPE PVT LTD",107,"J.BERKKERS CO.BV",6]
[null,null,107,"SHIPSHAPE PVT LTD",107,"KRISHN A INTERNATIONAL",9]
[null,null,107,"SHIPSHAPE PVT LTD",107,"MARINE MANAGER",7]
[null,null,107,"SHIPSHAPE PVT LTD",107,"MONTE",17]
[null,null,107,"SHIPSHAPE PVT LTD",107,"PRIME TANKER",8]
[null,null,107,"SHIPSHAPE PVT LTD",107,"RISING SHIPING",11]
[null,null,107,"SHIPSHAPE PVT LTD",107,"SHIPCRAFT A/S",2]
[null,null,107,"SHIPSHAPE PVT LTD",107,"SWISS SINGAPORE",18]
[null,null,108,"SHIPWELL PVT LTD",108,"ARABIAN EXPRESS LINE, UK",1]
[null,null,108,"SHIPWELL PVT LTD",108,"ATLAS CONTAINERS LINE, UK",2]
[null,null,108,"SHIPWELL PVT LTD",108,"SEABRIDE FREIGHT INTL, SINGAPORE",3]
[null,null,108,"SHIPWELL PVT LTD",108,"STAR EXPRESS LINE , UK",4]
[null,null,109,"SHOAIB SHIPPING AGENCIES",109,"ADAM TTRADING",31]
[null,null,109,"SHOAIB SHIPPING AGENCIES",109,"ADEN SCRAP TRADING UAE",3]
[null,null,109,"SHOAIB SHIPPING AGENCIES",109,"AL RAHMA TRADING ",39]
[null,null,109,"SHOAIB SHIPPING AGENCIES",109,"AL ZAROONI AL KHAWATA",36]
[null,null,109,"SHOAIB SHIPPING AGENCIES",109,"AL-BANY SHIPPING INC.",6]
[null,null,109,"SHOAIB SHIPPING AGENCIES",109,"ALFA SHIP TRADING CO.",49]
[null,null,109,"SHOAIB SHIPPING AGENCIES",109,"ALI AKBER KARMIAN UAE",7]
[null,null,109,"SHOAIB SHIPPING AGENCIES",109,"AL-KHAIR METAL, SHARJA DUBAI",4]
[null,null,109,"SHOAIB SHIPPING AGENCIES",109,"Aram Marine Trade Ltd.",47]
[null,null,109,"SHOAIB SHIPPING AGENCIES",109,"ARTRAU LTD C/O DYNACOM",1]
[null,null,109,"SHOAIB SHIPPING AGENCIES",109,"ASIA METAL TRADING UAE",8]
[null,null,109,"SHOAIB SHIPPING AGENCIES",109,"Blue Seas Inc Mon Rovia",16]
[null,null,109,"SHOAIB SHIPPING AGENCIES",109,"CAPESHORE MARITIME PARTNERS FZC",48]
[null,null,109,"SHOAIB SHIPPING AGENCIES",109,"CHASHMAN MARITIME S.A.",13]
[null,null,109,"SHOAIB SHIPPING AGENCIES",109,"DEEP SEA FISHING CO. SHAHANGAI CHINA",11]
[null,null,109,"SHOAIB SHIPPING AGENCIES",109,"Delta Shipping Pakistan",15]
[null,null,109,"SHOAIB SHIPPING AGENCIES",109,"EVERST SHIPPIBNG LTD",38]
[null,null,109,"SHOAIB SHIPPING AGENCIES",109,"Exim Inc USA",25]
[null,null,109,"SHOAIB SHIPPING AGENCIES",109,"Fairville Holding Corporation",46]
[null,null,109,"SHOAIB SHIPPING AGENCIES",109,"FRIENDS (PVT) LTD PAKISTAN",19]
[null,null,109,"SHOAIB SHIPPING AGENCIES",109,"GRAVITY SHIPPING LIMITED",30]
[null,null,109,"SHOAIB SHIPPING AGENCIES",109,"GULF ALLOYS UAE",14]
[null,null,109,"SHOAIB SHIPPING AGENCIES",109,"Inter Global Marine Agency Greece",17]
[null,null,109,"SHOAIB SHIPPING AGENCIES",109,"JAMALUDDIN & CO.",28]
[null,null,109,"SHOAIB SHIPPING AGENCIES",109,"KARAM SHIPPING LTD",34]
[null,null,109,"SHOAIB SHIPPING AGENCIES",109,"Maheshwari Shipping Co. Inc",41]
[null,null,109,"SHOAIB SHIPPING AGENCIES",109,"MARFAT MARITIME",29]
[null,null,109,"SHOAIB SHIPPING AGENCIES",109,"MARWAN SHIPPING & TRADING CO.",26]
[null,null,109,"SHOAIB SHIPPING AGENCIES",109,"MICKHY SHIPPING LIBERIA",24]
[null,null,109,"SHOAIB SHIPPING AGENCIES",109,"Micky Shipping Ltd.",44]
[null,null,109,"SHOAIB SHIPPING AGENCIES",109,"MIDEAST SHIPPING & TRADING LTD",35]
[null,null,109,"SHOAIB SHIPPING AGENCIES",109,"MOONGATE SHIIPPING INC",27]
[null,null,109,"SHOAIB SHIPPING AGENCIES",109,"NATLIA SHIPPING LTD.",33]
[null,null,109,"SHOAIB SHIPPING AGENCIES",109,"NOBEL MARITIME",37]
[null,null,109,"SHOAIB SHIPPING AGENCIES",109,"Ocean Services(PVT) Ltd, Karachi",42]
[null,null,109,"SHOAIB SHIPPING AGENCIES",109,"PNSC (PAKISTAN)",18]
[null,null,109,"SHOAIB SHIPPING AGENCIES",109,"PTROL URUNLERI ISTANBUL TURKEY",2]
[null,null,109,"SHOAIB SHIPPING AGENCIES",109,"Riya Shipping Corporation",45]
[null,null,109,"SHOAIB SHIPPING AGENCIES",109,"SAFA SHIPPI9NG AND TRADING CORPORATION OSLO NORWAY",10]
[null,null,109,"SHOAIB SHIPPING AGENCIES",109,"SEVENSEAS MARINE INC UK",21]
[null,null,109,"SHOAIB SHIPPING AGENCIES",109,"SHASTA SHIPPING LTD",9]
[null,null,109,"SHOAIB SHIPPING AGENCIES",109,"SHIPPING WORLD LLC DUBAI",12]
[null,null,109,"SHOAIB SHIPPING AGENCIES",109,"Silyia Shiptrade(s) LTD",40]
[null,null,109,"SHOAIB SHIPPING AGENCIES",109,"Star Matrix Ltd",43]
[null,null,109,"SHOAIB SHIPPING AGENCIES",109,"THUR GOOD OVERSEAS INC. PANAMA",23]
[null,null,109,"SHOAIB SHIPPING AGENCIES",109,"TRANS BRIDGE LOGISTIC PVT LTD",20]
[null,null,109,"SHOAIB SHIPPING AGENCIES",109,"UNION FALCON SHIPPING",32]
[null,null,109,"SHOAIB SHIPPING AGENCIES",109,"UNIVERSAL NAVIGATION PVT LTD",22]
[null,null,208,"Sial Enterprises (Reg. No. SA-633)",208,"No Principal available",0]
[null,null,110,"SINO PAK SHIPPING",110,"No Principal available",0]
[null,null,360,"Sirius Logistics Pakistan (Reg. No. SA-489)",360,"No Principal available",0]
[null,null,274,"SNS Shipping Agency (Reg. No. SA-719)",274,"No Principal available",0]
[null,null,309,"South Asia Ship Management (Pvt) Ltd(Reg. No. SA-351)",309,"No Principal available",0]
[null,null,111,"SOUTHERN AGENCIES (PVT) LTD",111,"AISHAWARYA",1]
[null,null,111,"SOUTHERN AGENCIES (PVT) LTD",111,"CANBIBIER FRANCE",2]
[null,null,111,"SOUTHERN AGENCIES (PVT) LTD",111,"CMA CGM (FRANCE)",3]
[null,null,111,"SOUTHERN AGENCIES (PVT) LTD",111,"CONDOR",4]
[null,null,111,"SOUTHERN AGENCIES (PVT) LTD",111,"EREBUS",5]
[null,null,111,"SOUTHERN AGENCIES (PVT) LTD",111,"EVEREST",6]
[null,null,111,"SOUTHERN AGENCIES (PVT) LTD",111,"MV. IPEX IMPRESS",7]
[null,null,111,"SOUTHERN AGENCIES (PVT) LTD",111,"SINAR BALI",8]
[null,null,111,"SOUTHERN AGENCIES (PVT) LTD",111,"SOCIETE GENERAL",9]
[null,null,111,"SOUTHERN AGENCIES (PVT) LTD",111,"UNITY",10]
[null,null,112,"SR SHIPPING AGENCIES",112,"AL- AJDAD",1]
[null,null,112,"SR SHIPPING AGENCIES",112,"GLOBAL SHIPPING SPA",2]
[null,null,112,"SR SHIPPING AGENCIES",112,"MUHIUDDIN SHIPPING CO , SYRIA",3]
[null,null,112,"SR SHIPPING AGENCIES",112,"PENINSUL ENTRPRISES",4]
[null,null,174,"Standered Shipping Pakistan (Pvt) Ltd (Reg. No. SA-597)",174,"Alberti Marine Inc.",1]
[null,null,174,"Standered Shipping Pakistan (Pvt) Ltd (Reg. No. SA-597)",174,"Libyan Ocean Carrier Ltd.",3]
[null,null,174,"Standered Shipping Pakistan (Pvt) Ltd (Reg. No. SA-597)",174,"LIBYAN VOYAGER LIMITED",6]
[null,null,174,"Standered Shipping Pakistan (Pvt) Ltd (Reg. No. SA-597)",174,"Lorelle Shipping Inc  ",2]
[null,null,174,"Standered Shipping Pakistan (Pvt) Ltd (Reg. No. SA-597)",174,"MJL BANGLADESH LIMITED",7]
[null,null,174,"Standered Shipping Pakistan (Pvt) Ltd (Reg. No. SA-597)",174,"Sea Power Management Jlt",9]
[null,null,174,"Standered Shipping Pakistan (Pvt) Ltd (Reg. No. SA-597)",174,"Thome Ship Management Pte Ltd",8]
[null,null,174,"Standered Shipping Pakistan (Pvt) Ltd (Reg. No. SA-597)",174,"TRADE SKY INC.",4]
[null,null,206,"Star Integrated Shipping Agency Pak (Pvt) Ltd (Reg. SA-631)",206,"No Principal available",0]
[null,null,392,"Star Shipping (Pvt) Ltd (Reg. No. SA-542)",392,"No Principal available",0]
[null,null,345,"Star Shipping Lines (Reg. No. SA-465)",345,"No Principal available",0]
[null,null,306,"Super Shipping Services (Pvt) Ltd(Reg. No.SA-340)",306,"No Principal available",0]
[null,null,204,"Swift Impex (Reg. No. SA-629)",204,"No Principal available",0]
[null,null,326,"Swift Movers (Pvt) Ltd(Reg. No. SA-420)",326,"No Principal available",0]
[null,null,239,"Swift Shipping Container Line (Reg. No. SA-672)",239,"No Principal available",0]
[null,null,113,"SWIFT SHIPPING PVT LTD",113,"Hudson Shipping",1]
[null,null,113,"SWIFT SHIPPING PVT LTD",113,"Ocean Shell Shipping LLC.",2]
[null,null,241,"Synergy Trade International (Reg. No. SA-674)",241,"No Principal available",0]
[null,null,186,"T.K Corporation (Pvt) Ltd (Reg. No. SA-599)",186,"No Principal available",0]
[null,null,114,"TAJARUL BAHAR (PVT) LTD",114,"ESHER SURREY , UK",1]
[null,null,114,"TAJARUL BAHAR (PVT) LTD",114,"FRONAPE INTL CO",3]
[null,null,114,"TAJARUL BAHAR (PVT) LTD",114,"FRONAPE INTL CO, BRAZIL",2]
[null,null,114,"TAJARUL BAHAR (PVT) LTD",114,"GEAR BULK , UK",4]
[null,null,114,"TAJARUL BAHAR (PVT) LTD",114,"GLOBAL MARITIME",5]
[null,null,114,"TAJARUL BAHAR (PVT) LTD",114,"GROBAL MARITIME BREMABULIC, GERMANY",6]
[null,null,114,"TAJARUL BAHAR (PVT) LTD",114,"HYOPSUNG , KOREA",7]
[null,null,114,"TAJARUL BAHAR (PVT) LTD",114,"HYOPSUNG MARITIME",8]
[null,null,114,"TAJARUL BAHAR (PVT) LTD",114,"PELICAN SHIPPING",9]
[null,null,114,"TAJARUL BAHAR (PVT) LTD",114,"PHELICAN SHIPPING, UK",10]
[null,null,114,"TAJARUL BAHAR (PVT) LTD",114,"TRUSHA IMPEX PTE, SINGAPORE",12]
[null,null,253,"Target C/C Enterprises (Reg. No. SA-695)",253,"No Principal available",0]
[null,null,262,"Target Logistics International (Pvt) Ltd (Reg. No. SA-705)",262,"No Principal available",0]
[null,null,388,"Tasamarine & Logistics (Reg. No. SA-535)",388,"No Principal available",0]
[null,null,115,"TCS PVT LTD",115,"No Principal available",0]
[null,null,310,"Terra Marine Agencies (Pvt) Ltd(Reg. No. SA-359)",310,"No Principal available",0]
[null,null,305,"The Eastern Express Freight Services(Reg. No. SA-339)",305,"No Principal available",0]
[null,null,373,"The Friends International (Reg. No. SA-512)",373,"No Principal available",0]
[null,null,402,"The Sea Farer Freight Forwarders (Reg. No. SA-554)",402,"No Principal available",0]
[null,null,356,"The World Freight Systems (Pvt) Ltd (Reg. No. SA-482)",356,"No Principal available",0]
[null,null,324,"Tmi The Mariners Intitute(Reg. No.SA-416)",324,"No Principal available",0]
[null,null,223,"Tradelink International (Reg. No. SA-650)",223,"No Principal available",0]
[null,null,116,"TRADESIA PVT LTD",116,"COUNTSHIP CONTAINER LINES",1]
[null,null,116,"TRADESIA PVT LTD",116,"CP SHIPS UK",4]
[null,null,116,"TRADESIA PVT LTD",116,"CP SHIPS USA",5]
[null,null,116,"TRADESIA PVT LTD",116,"LYKES LINE LTD LLC",2]
[null,null,116,"TRADESIA PVT LTD",116,"TMM LINES LTD",3]
[null,null,375,"Trafco Logistics (Pvt) Ltd (Reg. No. SA-514)",375,"No Principal available",0]
[null,null,117,"TRANS MARINE AGENCIES",117,"INTERNATIONAL OIL OVERSEAS",4]
[null,null,117,"TRANS MARINE AGENCIES",117,"PROTRANS , SINGAPORE",1]
[null,null,117,"TRANS MARINE AGENCIES",117,"TSAKOS SHIPPING",2]
[null,null,117,"TRANS MARINE AGENCIES",117,"VITOL S.A.U.K",3]
[null,null,118,"TRANS OCEAN SHIPPINBG",118,"No Principal available",0]
[null,null,329,"Transasia Shipping Agency Karachi(Reg. No. SA-428)",329,"No Principal available",0]
[null,null,383,"Transbrige Logistics Pakistan (Pvt) Ltd (Reg. No. SA-529)",383,"No Principal available",0]
[null,null,307,"Transfreight Corporation (Pvt) Ltd(Reg. No. SA-343)",307,"No Principal available",0]
[null,null,302,"Transglobe Shipping Agency (Pvt) Ltd(Reg. No SA-309)",302,"No Principal available",0]
[null,null,164,"TRANSMARITIME (PRIVATE) LIMITED ",164,"BILNAM ISLEMECLIK VE TICARET LT",6]
[null,null,164,"TRANSMARITIME (PRIVATE) LIMITED ",164,"EHIHAD ENGG AND MARINE SERVICES FZE",7]
[null,null,164,"TRANSMARITIME (PRIVATE) LIMITED ",164,"INTERNATIONAL OIL OVERSEAS S.ARABIA",3]
[null,null,164,"TRANSMARITIME (PRIVATE) LIMITED ",164,"MALAYSIA INTERNATIONAL SHIPPING CORPORATION",4]
[null,null,164,"TRANSMARITIME (PRIVATE) LIMITED ",164,"SEA TANKERS 1 LTD",5]
[null,null,164,"TRANSMARITIME (PRIVATE) LIMITED ",164,"TSAKO SHIPPING UK ",1]
[null,null,164,"TRANSMARITIME (PRIVATE) LIMITED ",164,"VITOL S.A",2]
[null,null,367,"Trans-Net Shipping (Pvt) Ltd (Reg. No. SA-499)",367,"No Principal available",0]
[null,null,119,"TRANSPORT SERVICES INTL",119,"ANPO SHIPPING",1]
[null,null,119,"TRANSPORT SERVICES INTL",119,"ED F ,AR SHIPPING",2]
[null,null,119,"TRANSPORT SERVICES INTL",119,"EUROCARRIES SA",3]
[null,null,119,"TRANSPORT SERVICES INTL",119,"FANJAN AN SHIPPING",4]
[null,null,119,"TRANSPORT SERVICES INTL",119,"GEEPEE SHIPPING & TRADING",5]
[null,null,119,"TRANSPORT SERVICES INTL",119,"GEMSTAR SHIPPING",6]
[null,null,119,"TRANSPORT SERVICES INTL",119,"INEETRANS DENIJ LTD",7]
[null,null,119,"TRANSPORT SERVICES INTL",119,"ISLAND VIEW SHIPPING",8]
[null,null,119,"TRANSPORT SERVICES INTL",119,"JET LINK SHIPPING",9]
[null,null,119,"TRANSPORT SERVICES INTL",119,"KAALHYE SHIPPING",10]
[null,null,119,"TRANSPORT SERVICES INTL",119,"KORASIA SHIPPING",11]
[null,null,119,"TRANSPORT SERVICES INTL",119,"KOREA LINE CORP",12]
[null,null,119,"TRANSPORT SERVICES INTL",119,"LARUS SA",13]
[null,null,119,"TRANSPORT SERVICES INTL",119,"LIEF AGRUCHEM",14]
[null,null,119,"TRANSPORT SERVICES INTL",119,"NARVEL SHIPPING",15]
[null,null,119,"TRANSPORT SERVICES INTL",119,"NEACO SHIPPING & TRANSPORT",16]
[null,null,119,"TRANSPORT SERVICES INTL",119,"NEPAN YREESEN KASSHA",17]
[null,null,119,"TRANSPORT SERVICES INTL",119,"NOBLE CHARTERING LTD",18]
[null,null,119,"TRANSPORT SERVICES INTL",119,"PAN OCEAN SHIPPING",19]
[null,null,119,"TRANSPORT SERVICES INTL",119,"POSEIDDN SCHIFEAHRT",20]
[null,null,119,"TRANSPORT SERVICES INTL",119,"PRECIOUS SHIPPING",21]
[null,null,119,"TRANSPORT SERVICES INTL",119,"SINOTASHIP",22]
[null,null,119,"TRANSPORT SERVICES INTL",119,"SOLAR STAR SHIPPING",23]
[null,null,119,"TRANSPORT SERVICES INTL",119,"SUMIR SHIPPING GMBLA",24]
[null,null,119,"TRANSPORT SERVICES INTL",119,"SZEPHYROS SHIP AGENTS",25]
[null,null,119,"TRANSPORT SERVICES INTL",119,"TROPIC SHIPPING",26]
[null,null,119,"TRANSPORT SERVICES INTL",119,"UNION COMMERCIAL",27]
[null,null,119,"TRANSPORT SERVICES INTL",119,"WESTERN BULK CARRIER",28]
[null,null,120,"TRANSTRADE (PVT) LTD",120,"Gac Pakistan",7]
[null,null,120,"TRANSTRADE (PVT) LTD",120,"IINO KAIUN",8]
[null,null,120,"TRANSTRADE (PVT) LTD",120,"INTERNATIONAL OIL OVERSEAS",4]
[null,null,120,"TRANSTRADE (PVT) LTD",120,"KUWAIT PETROLIUM CORP, KUWAIT",1]
[null,null,120,"TRANSTRADE (PVT) LTD",120,"MALAYSIA INTERNATIONAL SHIPPING CORPORATION",6]
[null,null,120,"TRANSTRADE (PVT) LTD",120,"PAKISTAN NATIONAL SHIPPING CORPORATION",5]
[null,null,120,"TRANSTRADE (PVT) LTD",120,"TSAKOS SHIPPING LONDON, UK",2]
[null,null,120,"TRANSTRADE (PVT) LTD",120,"VITOL SA, UK",3]
[null,null,121,"TRI CONTINENTAL SHIPPING PVT LTD",121,"No Principal available",0]
[null,null,122,"TRI STAR SHIPPING",122,"No Principal available",0]
[null,null,408,"Tri-Sea Cargo Systems (Reg. No. SA-562)",408,"No Principal available",0]
[null,null,123,"UNI SHIP AGENCIES PVT LTD(Reg.No. SA-171)",123,"ADELEFOA SHIPPING INDS PRESE GREECE",1]
[null,null,123,"UNI SHIP AGENCIES PVT LTD(Reg.No. SA-171)",123,"GEARGION SHIPPING CO JEOREA",2]
[null,null,123,"UNI SHIP AGENCIES PVT LTD(Reg.No. SA-171)",123,"GOD FAITH SHIPPING GREECE",3]
[null,null,123,"UNI SHIP AGENCIES PVT LTD(Reg.No. SA-171)",123,"GREEXT MANGT , SINGAPORE",4]
[null,null,123,"UNI SHIP AGENCIES PVT LTD(Reg.No. SA-171)",123,"GULF CORP WORLD WIDE MANGENT GENEA",5]
[null,null,123,"UNI SHIP AGENCIES PVT LTD(Reg.No. SA-171)",123,"ISLAMIC REPUBLIC , IRAN",6]
[null,null,123,"UNI SHIP AGENCIES PVT LTD(Reg.No. SA-171)",123,"MIDWAY SHIPPING AND TRADING GREECE",7]
[null,null,123,"UNI SHIP AGENCIES PVT LTD(Reg.No. SA-171)",123,"SEATRADE GREECE",8]
[null,null,123,"UNI SHIP AGENCIES PVT LTD(Reg.No. SA-171)",123,"UNIVERSAL COMMANDDT, SINGAPORE",9]
[null,null,416,"Union Cargo (Pvt) Ltd (Reg. No. SA-574)",416,"No Principal available",0]
[null,null,377,"Unique Maritime Agencies (Reg. No. SA-519)",377,"No Principal available",0]
[null,null,172,"United Arab Shipping Agency Pak Company (Reg. No. SA-692)",172,"UNITED ARABE SHIPPING COMPANY (SAG)",1]
[null,null,124,"UNITED LINER AGENCY PVT LTD",124,"BAY LINE",1]
[null,null,124,"UNITED LINER AGENCY PVT LTD",124,"BLUE STAR LINE LTD",2]
[null,null,124,"UNITED LINER AGENCY PVT LTD",124,"DELMAS LINE SA, FRANCE",3]
[null,null,124,"UNITED LINER AGENCY PVT LTD",124,"IAC CONTAINER LINE",4]
[null,null,124,"UNITED LINER AGENCY PVT LTD",124,"OCTOMER LINE LTD",5]
[null,null,124,"UNITED LINER AGENCY PVT LTD",124,"R LINE MAURETIUS",6]
[null,null,124,"UNITED LINER AGENCY PVT LTD",124,"SEACANSORTUIM PTL LTD",7]
[null,null,124,"UNITED LINER AGENCY PVT LTD",124,"WATERMAN STEAMSHIP",8]
[null,null,124,"UNITED LINER AGENCY PVT LTD",124,"WILK WILHELMSEN LINE, NORWAY",9]
[null,null,125,"UNITED MARINE AGENCIES(Reg. No. SA-275)",125,"ANDREW WEIR SHIPPIN LTD.U.K",6]
[null,null,125,"UNITED MARINE AGENCIES(Reg. No. SA-275)",125,"AVIN INTERNATIONAL GRECE",7]
[null,null,125,"UNITED MARINE AGENCIES(Reg. No. SA-275)",125,"C-2 LOGISTIC",25]
[null,null,125,"UNITED MARINE AGENCIES(Reg. No. SA-275)",125,"CCNI CHILE",36]
[null,null,125,"UNITED MARINE AGENCIES(Reg. No. SA-275)",125,"CEE KAY SHIPING & MARINE SERVICE LTD. UK",31]
[null,null,125,"UNITED MARINE AGENCIES(Reg. No. SA-275)",125,"CEEKAY SHIPPING SVC LLC, U.K.",42]
[null,null,125,"UNITED MARINE AGENCIES(Reg. No. SA-275)",125,"CK SHIPPINGH",27]
[null,null,125,"UNITED MARINE AGENCIES(Reg. No. SA-275)",125,"COMPNIA CHILENA DE NAVEGACION S.A.CHILE",3]
[null,null,125,"UNITED MARINE AGENCIES(Reg. No. SA-275)",125,"CORDWELL CORP",26]
[null,null,125,"UNITED MARINE AGENCIES(Reg. No. SA-275)",125,"DELMAS ASAF",54]
[null,null,125,"UNITED MARINE AGENCIES(Reg. No. SA-275)",125,"DELMAS ASEA",53]
[null,null,125,"UNITED MARINE AGENCIES(Reg. No. SA-275)",125,"DELMAS ATLANTIQUE Services",64]
[null,null,125,"UNITED MARINE AGENCIES(Reg. No. SA-275)",125,"Delmas Le Havre , France",33]
[null,null,125,"UNITED MARINE AGENCIES(Reg. No. SA-275)",125,"DELMAS MAX ",48]
[null,null,125,"UNITED MARINE AGENCIES(Reg. No. SA-275)",125,"DELMAS MIDAS",49]
[null,null,125,"UNITED MARINE AGENCIES(Reg. No. SA-275)",125,"DELMAS MOZEX",47]
[null,null,125,"UNITED MARINE AGENCIES(Reg. No. SA-275)",125,"DELMAS OCEANINDIAN Services",58]
[null,null,125,"UNITED MARINE AGENCIES(Reg. No. SA-275)",125,"DELMAS SHIPPING",28]
[null,null,125,"UNITED MARINE AGENCIES(Reg. No. SA-275)",125,"DELMAS SHIPPING ,SINGAPORE",43]
[null,null,125,"UNITED MARINE AGENCIES(Reg. No. SA-275)",125,"DELMAS SWAX ",44]
[null,null,125,"UNITED MARINE AGENCIES(Reg. No. SA-275)",125,"DELMAS X-TRADE FRANCE",38]
[null,null,125,"UNITED MARINE AGENCIES(Reg. No. SA-275)",125,"DEMAS DIORS SINGAPORE",39]
[null,null,125,"UNITED MARINE AGENCIES(Reg. No. SA-275)",125,"DYNACOM TANKERS MAAGEMENT LTD",10]
[null,null,125,"UNITED MARINE AGENCIES(Reg. No. SA-275)",125,"GABES MARINE TUNISIA",40]
[null,null,125,"UNITED MARINE AGENCIES(Reg. No. SA-275)",125,"HAMBURG DAMPFISCHIFAT COLUMBUS A/C",4]
[null,null,125,"UNITED MARINE AGENCIES(Reg. No. SA-275)",125,"HAMBURG SUDAMERIKANISCHE",29]
[null,null,125,"UNITED MARINE AGENCIES(Reg. No. SA-275)",125,"HMM SOUTH KOREA",35]
[null,null,125,"UNITED MARINE AGENCIES(Reg. No. SA-275)",125,"HSDG-COLUMBUS GERMANY",37]
[null,null,125,"UNITED MARINE AGENCIES(Reg. No. SA-275)",125,"HSDG-ELL GERMANY",34]
[null,null,125,"UNITED MARINE AGENCIES(Reg. No. SA-275)",125,"HUUNDAI MERCHAT CO.",2]
[null,null,125,"UNITED MARINE AGENCIES(Reg. No. SA-275)",125,"HYUNDAI MERCHANT MARINE LTD.KOREA",15]
[null,null,125,"UNITED MARINE AGENCIES(Reg. No. SA-275)",125,"INDEPENDENT PETROLEUM GROUP KUWAIT",12]
[null,null,125,"UNITED MARINE AGENCIES(Reg. No. SA-275)",125,"INTERNAT BROKING AGENCY",9]
[null,null,125,"UNITED MARINE AGENCIES(Reg. No. SA-275)",125,"KOREA MARINE TRANSPORT Co, LTD.",45]
[null,null,125,"UNITED MARINE AGENCIES(Reg. No. SA-275)",125,"M/S IAL CONTAINER",30]
[null,null,125,"UNITED MARINE AGENCIES(Reg. No. SA-275)",125,"M/S.ALLIED MARITIME, ATHENES.",22]
[null,null,125,"UNITED MARINE AGENCIES(Reg. No. SA-275)",125,"M/S.BRGGEN SHIPPING 7 TRADIG NORWAY",16]
[null,null,125,"UNITED MARINE AGENCIES(Reg. No. SA-275)",125,"M/S.FAL SHIPPIN SHARJAHA",13]
[null,null,125,"UNITED MARINE AGENCIES(Reg. No. SA-275)",125,"M/S.HAMBURG SUSLAMERIKAISCHAFT GERMANY",1]
[null,null,125,"UNITED MARINE AGENCIES(Reg. No. SA-275)",125,"M/S.IMS SHIPPING CO.LTD.GREECE",24]
[null,null,125,"UNITED MARINE AGENCIES(Reg. No. SA-275)",125,"M/S.INDIA MANAGEMENT",17]
[null,null,125,"UNITED MARINE AGENCIES(Reg. No. SA-275)",125,"M/S.O.T.AFRICA LINE",11]
[null,null,125,"UNITED MARINE AGENCIES(Reg. No. SA-275)",125,"M/S.PRO LIE CO.LTD.",21]
[null,null,125,"UNITED MARINE AGENCIES(Reg. No. SA-275)",125,"M/S.S.T.SHIPPING AND TRANSPORT U.K",20]
[null,null,125,"UNITED MARINE AGENCIES(Reg. No. SA-275)",125,"M/S.TEHUDI DTIZEN",19]
[null,null,125,"UNITED MARINE AGENCIES(Reg. No. SA-275)",125,"M/S.VAN OMMERA TAKERS FRANCE",18]
[null,null,125,"UNITED MARINE AGENCIES(Reg. No. SA-275)",125,"M/S.VARIMA CORPORATION ITERNATIOAL LTD.USA",23]
[null,null,125,"UNITED MARINE AGENCIES(Reg. No. SA-275)",125,"MARTRADE SHIPPIG GERMAY",8]
[null,null,125,"UNITED MARINE AGENCIES(Reg. No. SA-275)",125,"NEWMAN SHIPPING & AGENCY Co, N.V.",51]
[null,null,125,"UNITED MARINE AGENCIES(Reg. No. SA-275)",125,"RCL FEDERE PTE LTD",32]
[null,null,125,"UNITED MARINE AGENCIES(Reg. No. SA-275)",125,"RCL SINGAPORE",41]
[null,null,125,"UNITED MARINE AGENCIES(Reg. No. SA-275)",125,"SEABULK MAAGEMENT, NORWAY",14]
[null,null,125,"UNITED MARINE AGENCIES(Reg. No. SA-275)",125,"SEAMASTER MARITIME LLC, DUBAI, UAE.",50]
[null,null,125,"UNITED MARINE AGENCIES(Reg. No. SA-275)",125,"SHADABAD PTV LTD, AUSTRALIA",52]
[null,null,125,"UNITED MARINE AGENCIES(Reg. No. SA-275)",125,"WALLENIUS WILHELMSEN LOGISTICS",46]
[null,null,125,"UNITED MARINE AGENCIES(Reg. No. SA-275)",125,"WILNIUS SILLELISE AGENCY",5]
[null,null,349,"Universal Container Line (Reg. No. SA-471)",349,"No Principal available",0]
[null,null,126,"UNIVERSAL SHIPPING PVT LTD(Reg. No. SA-280)",126,"No Principal available",0]
[null,null,318,"Uniworld Shipping (Pvt) Ltd(Reg. No. SA-400)",318,"No Principal available",0]
[null,null,260,"Vital Trade Interanational (Pvt) Ltd (Reg. No. SA-702)",260,"No Principal available",0]
[null,null,127,"VOLCOT PAKISTAN PVT LTD",127,"QC SHIPPING SDN, MALAYSIA",1]
[null,null,128,"VOLKORT BROTHERS (PVT) LTD",128,"No Principal available",0]
[null,null,363,"Water Link Pakistan (Pvt) Ltd (Reg. No. SA-493)",363,"No Principal available",0]
[null,null,230,"Ways Global Logistic (Pvt) Ltd (Reg. No. SA-659)",230,"No Principal available",0]
[null,null,188,"Western Shipping Agencies (Reg. No. SA-603)",188,"No Principal available",0]
[null,null,210,"Wilhelmsen Ships Services (Pvt) Ltd (Reg. No. SA-637)",210,"No Principal available",0]
[null,null,147,"WMA SHIPCARE SERVICES (PVT) LTD.",147,"ALBAMAR SHIPPING CO S.A. GREECE",47]
[null,null,147,"WMA SHIPCARE SERVICES (PVT) LTD.",147,"Ammarante Shipping (pvt) ltd",80]
[null,null,147,"WMA SHIPCARE SERVICES (PVT) LTD.",147,"ANGLOMAR SHIPPING LTD, LONDON U.K",19]
[null,null,147,"WMA SHIPCARE SERVICES (PVT) LTD.",147,"ARMADA SHIPPING SA SWITZERLAND",49]
[null,null,147,"WMA SHIPCARE SERVICES (PVT) LTD.",147,"BULK ROAD SHIPPING RADING CO LTD AMMAN JORDAN",31]
[null,null,147,"WMA SHIPCARE SERVICES (PVT) LTD.",147,"Bulk Trade International DUBAI",9]
[null,null,147,"WMA SHIPCARE SERVICES (PVT) LTD.",147,"BUROOJ MARINE SERVICES, DUBAI U.A.E.",16]
[null,null,147,"WMA SHIPCARE SERVICES (PVT) LTD.",147,"C.CZARNIKOW SUGAR LTD. LONDON",29]
[null,null,147,"WMA SHIPCARE SERVICES (PVT) LTD.",147,"CHOKANG SHIPPING CO.LTD.KOREA",37]
[null,null,147,"WMA SHIPCARE SERVICES (PVT) LTD.",147,"COPEN SHIP SINGAPORE",59]
[null,null,147,"WMA SHIPCARE SERVICES (PVT) LTD.",147,"COSCO SAEED KARACHI",56]
[null,null,147,"WMA SHIPCARE SERVICES (PVT) LTD.",147,"DAEYANG SHIPPING EOUL KOREA",4]
[null,null,147,"WMA SHIPCARE SERVICES (PVT) LTD.",147,"DALIAN SANYI INGT FREIGHT AGENCY CO.",60]
[null,null,147,"WMA SHIPCARE SERVICES (PVT) LTD.",147,"DELTA INTERNATIONAL SHIPPING CO",67]
[null,null,147,"WMA SHIPCARE SERVICES (PVT) LTD.",147,"DOOYANG LIMITED - KOREA",78]
[null,null,147,"WMA SHIPCARE SERVICES (PVT) LTD.",147,"ELKEM CHARTERMING NORWAY",20]
[null,null,147,"WMA SHIPCARE SERVICES (PVT) LTD.",147,"EVALEND SHIPPING CP S.A. ATHENS , GREECE",15]
[null,null,147,"WMA SHIPCARE SERVICES (PVT) LTD.",147,"FALCON SHIPPING COMPANY VIETNAM",36]
[null,null,147,"WMA SHIPCARE SERVICES (PVT) LTD.",147,"FEDCOM INVEST SAM MONOCO",62]
[null,null,147,"WMA SHIPCARE SERVICES (PVT) LTD.",147,"FLEET MANAGEMENT HONGKONG",48]
[null,null,147,"WMA SHIPCARE SERVICES (PVT) LTD.",147,"GAC SHIPPING",42]
[null,null,147,"WMA SHIPCARE SERVICES (PVT) LTD.",147,"GENERAL SHIPPING AGENCIES",54]
[null,null,147,"WMA SHIPCARE SERVICES (PVT) LTD.",147,"HANDITANKERS KS SINGAPORE",27]
[null,null,147,"WMA SHIPCARE SERVICES (PVT) LTD.",147,"HANRO SHIPPING CO.",71]
[null,null,147,"WMA SHIPCARE SERVICES (PVT) LTD.",147,"JIANGSU FAR EAST SHIPPING CO. LTD., NANJIANG CHINA",17]
[null,null,147,"WMA SHIPCARE SERVICES (PVT) LTD.",147,"LAKE SHORE SHIPPING PVT LTD.",65]
[null,null,147,"WMA SHIPCARE SERVICES (PVT) LTD.",147,"M/S DIAMOND CO LTD. UDESSA",55]
[null,null,147,"WMA SHIPCARE SERVICES (PVT) LTD.",147,"M/S EURO MARINE CO. LTD.",72]
[null,null,147,"WMA SHIPCARE SERVICES (PVT) LTD.",147,"M/S GREEN VALLEY SHIPPING CO DUBAI",52]
[null,null,147,"WMA SHIPCARE SERVICES (PVT) LTD.",147,"M/S HANARO SHIPPING CO. LTD",74]
[null,null,147,"WMA SHIPCARE SERVICES (PVT) LTD.",147,"M/S HYUNDAI MERCHANT MARINE CO LTD",77]
[null,null,147,"WMA SHIPCARE SERVICES (PVT) LTD.",147,"M/S INTERNATIONAL HANDYMAX CARRIERS LTD.",57]
[null,null,147,"WMA SHIPCARE SERVICES (PVT) LTD.",147,"M/S Jaldhi Overseas Pte Ltd. Singapore ",86]
[null,null,147,"WMA SHIPCARE SERVICES (PVT) LTD.",147,"M/S KOPAK SHIPPING COMPANY KARACHI",58]
[null,null,147,"WMA SHIPCARE SERVICES (PVT) LTD.",147,"M/S MISUI O.S.K. LINES",53]
[null,null,147,"WMA SHIPCARE SERVICES (PVT) LTD.",147,"M/S OCEANIC SHIP MANAGEMENT FZC AJMAN",51]
[null,null,147,"WMA SHIPCARE SERVICES (PVT) LTD.",147,"M/S RICKMERS LINE (ANERICA) INC",79]
[null,null,147,"WMA SHIPCARE SERVICES (PVT) LTD.",147,"M/S SAMMOK SHIPPING CO. LTD",73]
[null,null,147,"WMA SHIPCARE SERVICES (PVT) LTD.",147,"M/S STX PAN OCEAN CO.LTD.SEOUL KOREA",7]
[null,null,147,"WMA SHIPCARE SERVICES (PVT) LTD.",147,"M/S SUNSHINE CEMENT INC",75]
[null,null,147,"WMA SHIPCARE SERVICES (PVT) LTD.",147,"M/s Supreme Bulk Carriers",82]
[null,null,147,"WMA SHIPCARE SERVICES (PVT) LTD.",147,"M/S Trans-ammonia Hongkong Ltd. Hongkong ",81]
[null,null,147,"WMA SHIPCARE SERVICES (PVT) LTD.",147,"M/S vitenam Ocean Shipping",83]
[null,null,147,"WMA SHIPCARE SERVICES (PVT) LTD.",147,"M/S. ALUNITED MARITIME PTE LTD.SIGNAPORE",8]
[null,null,147,"WMA SHIPCARE SERVICES (PVT) LTD.",147,"M/S. AQUAVITA INTERNATIONAL S.A., ATHENSE-GREECE",84]
[null,null,147,"WMA SHIPCARE SERVICES (PVT) LTD.",147,"M/S. B.K. SHIPPING CO, LTD. SEOUL-KOREA",87]
[null,null,147,"WMA SHIPCARE SERVICES (PVT) LTD.",147,"M/S. DA-DESK FZE-DUBAI",85]
[null,null,147,"WMA SHIPCARE SERVICES (PVT) LTD.",147,"M/S. NOBLE CHARTERING LTD HONG KONG",3]
[null,null,147,"WMA SHIPCARE SERVICES (PVT) LTD.",147,"M/S. UNIWISE COMPANY INC. MONORVUA KUBERUA",1]
[null,null,147,"WMA SHIPCARE SERVICES (PVT) LTD.",147,"M/S.BLUECOAST NAVIGATION GREECE",21]
[null,null,147,"WMA SHIPCARE SERVICES (PVT) LTD.",147,"M/S.CYPRUS MAaritime Co.",76]
[null,null,147,"WMA SHIPCARE SERVICES (PVT) LTD.",147,"M/S.D.S.BULK PTE LTD.SINGAPORE",22]
[null,null,147,"WMA SHIPCARE SERVICES (PVT) LTD.",147,"M/S.ENDEAVOR SHIPPING CO. SA MOSCHATO, GREECE",6]
[null,null,147,"WMA SHIPCARE SERVICES (PVT) LTD.",147,"M/S.KARDENIZ & MARDENIZ SHIPPING NANAGEMENTS CO.INC.INSTANBU",10]
[null,null,147,"WMA SHIPCARE SERVICES (PVT) LTD.",147,"M/S.LOUIS DREYFUS CORP. SILTON. USA",2]
[null,null,147,"WMA SHIPCARE SERVICES (PVT) LTD.",147,"M/S.SILK ROAD SHIPPING TRADING CO . LTD AMMAN JORDAN",34]
[null,null,147,"WMA SHIPCARE SERVICES (PVT) LTD.",147,"M/S.TRANSAMMONIA HONGKONG",11]
[null,null,147,"WMA SHIPCARE SERVICES (PVT) LTD.",147,"M\\S DUET MARITIME CO. LTD.,SEOUL , KOREA",12]
[null,null,147,"WMA SHIPCARE SERVICES (PVT) LTD.",147,"M\\S KINGSTAR SHIPPING LTD. WANCHAI , HONG KONG",13]
[null,null,147,"WMA SHIPCARE SERVICES (PVT) LTD.",147,"M\\S KYSCO CO. LTD. BUSAN, KOREA ",14]
[null,null,147,"WMA SHIPCARE SERVICES (PVT) LTD.",147,"MARITIMA ALLIED PTE LTD, SINGAPORE",33]
[null,null,147,"WMA SHIPCARE SERVICES (PVT) LTD.",147,"MUR SHIPPING NETHERLAND",68]
[null,null,147,"WMA SHIPCARE SERVICES (PVT) LTD.",147,"NIMBERO SHIPPING CO SYPRUS",46]
[null,null,147,"WMA SHIPCARE SERVICES (PVT) LTD.",147,"OCEANIC SHIP MANAGEMENT",61]
[null,null,147,"WMA SHIPCARE SERVICES (PVT) LTD.",147,"OCEANWORLD PVT LTD. KARACHI",24]
[null,null,147,"WMA SHIPCARE SERVICES (PVT) LTD.",147,"PACMAR SHIPPING PTE LTD",41]
[null,null,147,"WMA SHIPCARE SERVICES (PVT) LTD.",147,"PACMAR SHIPPING PTE LTD SINGAPORE",44]
[null,null,147,"WMA SHIPCARE SERVICES (PVT) LTD.",147,"PAN COSMOS SHIPPING HONGKONBG",26]
[null,null,147,"WMA SHIPCARE SERVICES (PVT) LTD.",147,"PANWEST SHIPPING & TRADING CO ",38]
[null,null,147,"WMA SHIPCARE SERVICES (PVT) LTD.",147,"PRECIOUS SHIPPING CO LTD BANGKOK THAILAND",30]
[null,null,147,"WMA SHIPCARE SERVICES (PVT) LTD.",147,"PUNTO MARINE LTD TURKEY",39]
[null,null,147,"WMA SHIPCARE SERVICES (PVT) LTD.",147,"RAYBEN SHIPPING & TRADING CO. LTD. CO. , ISTANBUL , TURKEY",18]
[null,null,147,"WMA SHIPCARE SERVICES (PVT) LTD.",147,"SAAHA SHIP CHARTERING (PVT) INDIA",23]
[null,null,147,"WMA SHIPCARE SERVICES (PVT) LTD.",147,"SAIGON MARITIME VIETNAM",45]
[null,null,147,"WMA SHIPCARE SERVICES (PVT) LTD.",147,"SAMIN SHIPPING CO LTD CYPRUS",69]
[null,null,147,"WMA SHIPCARE SERVICES (PVT) LTD.",147,"SHADAB PTY LTD",43]
[null,null,147,"WMA SHIPCARE SERVICES (PVT) LTD.",147,"SHEHADAH MARITIME CO.(SMC)",66]
[null,null,147,"WMA SHIPCARE SERVICES (PVT) LTD.",147,"SUNWOO MERCVHANT MARINE CO.LTD.KOREA",25]
[null,null,147,"WMA SHIPCARE SERVICES (PVT) LTD.",147,"TRAMMO SHIPPING DIVISION HONGKONG",32]
[null,null,147,"WMA SHIPCARE SERVICES (PVT) LTD.",147,"TRANSAMMONIA AG TENDORFF SWITZERLAND",35]
[null,null,147,"WMA SHIPCARE SERVICES (PVT) LTD.",147,"TRANSCOM SHIPPING LTD NELSENKI FINLAND",5]
[null,null,147,"WMA SHIPCARE SERVICES (PVT) LTD.",147,"TRANSGRAIN SHIPPING HOLLAND",40]
[null,null,147,"WMA SHIPCARE SERVICES (PVT) LTD.",147,"TRANSPORT SERVICES INTERNATIONAL PVT. LTD KARACHI",50]
[null,null,147,"WMA SHIPCARE SERVICES (PVT) LTD.",147,"TRRANS BULK SHIPPING LLC DUBAI",28]
[null,null,147,"WMA SHIPCARE SERVICES (PVT) LTD.",147,"WORLD WIDE SHIPPING LTD",70]
[null,null,147,"WMA SHIPCARE SERVICES (PVT) LTD.",147,"ZENITH SHIPPING LONDON ",64]
[null,null,147,"WMA SHIPCARE SERVICES (PVT) LTD.",147,"ZENOBIA SHIPPINGF LTD MALTA",63]
[null,null,129,"WORLD MARITIME AGENCIES",129,"No Principal available",0]
[null,null,130,"WORLD WIDE SHIPPING",130,"No Principal available",0]
[null,null,190,"WSA Lines Pakistan (Reg. No. SA-605)",190,"No Principal available",0]
[null,null,177,"X-Press Feeders Pakistan ( Pvt.) Ltd.",177," X-Press Container Line (UK ) Ltd",1]
[null,null,131,"Yaaseen Shipping Lines (Pvt) Ltd (Reg. No. SA-704)",131," STX PAN OCESN",1]
[null,null,154,"YANGMING LINE",154,"No Principal available",0]
[null,null,196,"ZAS Shipping (Pvt) Ltd (Reg. No. SA-617)",196,"No Principal available",0]
[null,null,251,"Zest Shipping & Logistics (Pvt) Ltd (Reg. No. SA-690)",251,"No Principal available",0]

{"sheet":"dbf","index":6,"n_rows":47,"n_cols":12,"rows_kept":47,"cut":false,"hidden":false,"merged":[]}
["Sector ","Batch No.","S. No.","Source Group","Source","CountryCodes","Currency","Group","Description","Period (dd-Mon-yyyy)","Amount","Department"]
[2,null,1,{"$f":"Template!$D$2","v":{"$error":"#N/A"}},{"$f":"Template!$D$4","v":{"$error":"#NAME?"}},{"$f":"Template!$D$6","v":{"$error":"#N/A"}},19,201,{"$f":"Template!B11","v":20101},{"$f":"Template!$D$8","v":"2015-01-31"},{"$f":"Template!C11","v":0},0]
[2,null,2,{"$f":"Template!$D$2","v":{"$error":"#N/A"}},{"$f":"Template!$D$4","v":{"$error":"#NAME?"}},{"$f":"Template!$D$6","v":{"$error":"#N/A"}},19,201,{"$f":"Template!B12","v":20102},{"$f":"Template!$D$8","v":"2015-01-31"},{"$f":"Template!C12","v":0},0]
[2,null,3,{"$f":"Template!$D$2","v":{"$error":"#N/A"}},{"$f":"Template!$D$4","v":{"$error":"#NAME?"}},{"$f":"Template!$D$6","v":{"$error":"#N/A"}},19,201,{"$f":"Template!B13","v":20103},{"$f":"Template!$D$8","v":"2015-01-31"},{"$f":"Template!C13","v":0},0]
[2,null,4,{"$f":"Template!$D$2","v":{"$error":"#N/A"}},{"$f":"Template!$D$4","v":{"$error":"#NAME?"}},{"$f":"Template!$D$6","v":{"$error":"#N/A"}},19,201,{"$f":"Template!B15","v":20125},{"$f":"Template!$D$8","v":"2015-01-31"},{"$f":"Template!C15","v":0},0]
[2,null,5,{"$f":"Template!$D$2","v":{"$error":"#N/A"}},{"$f":"Template!$D$4","v":{"$error":"#NAME?"}},{"$f":"Template!$D$6","v":{"$error":"#N/A"}},19,201,{"$f":"Template!B16","v":20104},{"$f":"Template!$D$8","v":"2015-01-31"},{"$f":"Template!C16","v":0},0]
[2,null,6,{"$f":"Template!$D$2","v":{"$error":"#N/A"}},{"$f":"Template!$D$4","v":{"$error":"#NAME?"}},{"$f":"Template!$D$6","v":{"$error":"#N/A"}},19,201,{"$f":"Template!B17","v":20105},{"$f":"Template!$D$8","v":"2015-01-31"},{"$f":"Template!C17","v":0},0]
[2,null,7,{"$f":"Template!$D$2","v":{"$error":"#N/A"}},{"$f":"Template!$D$4","v":{"$error":"#NAME?"}},{"$f":"Template!$D$6","v":{"$error":"#N/A"}},19,201,{"$f":"Template!B18","v":20124},{"$f":"Template!$D$8","v":"2015-01-31"},{"$f":"Template!C18","v":0},0]
[2,null,8,{"$f":"Template!$D$2","v":{"$error":"#N/A"}},{"$f":"Template!$D$4","v":{"$error":"#NAME?"}},{"$f":"Template!$D$6","v":{"$error":"#N/A"}},19,201,{"$f":"Template!B19","v":20126},{"$f":"Template!$D$8","v":"2015-01-31"},{"$f":"Template!C19","v":0},0]
[2,null,9,{"$f":"Template!$D$2","v":{"$error":"#N/A"}},{"$f":"Template!$D$4","v":{"$error":"#NAME?"}},{"$f":"Template!$D$6","v":{"$error":"#N/A"}},19,201,{"$f":"Template!B20","v":20127},{"$f":"Template!$D$8","v":"2015-01-31"},{"$f":"Template!C20","v":0},0]
[2,null,10,{"$f":"Template!$D$2","v":{"$error":"#N/A"}},{"$f":"Template!$D$4","v":{"$error":"#NAME?"}},{"$f":"Template!$D$6","v":{"$error":"#N/A"}},19,201,{"$f":"Template!B21","v":20106},{"$f":"Template!$D$8","v":"2015-01-31"},{"$f":"Template!C21","v":0},0]
[2,null,11,{"$f":"Template!$D$2","v":{"$error":"#N/A"}},{"$f":"Template!$D$4","v":{"$error":"#NAME?"}},{"$f":"Template!$D$6","v":{"$error":"#N/A"}},19,201,{"$f":"Template!B22","v":20107},{"$f":"Template!$D$8","v":"2015-01-31"},{"$f":"Template!C22","v":0},0]
[2,null,12,{"$f":"Template!$D$2","v":{"$error":"#N/A"}},{"$f":"Template!$D$4","v":{"$error":"#NAME?"}},{"$f":"Template!$D$6","v":{"$error":"#N/A"}},19,201,{"$f":"Template!B23","v":20108},{"$f":"Template!$D$8","v":"2015-01-31"},{"$f":"Template!C23","v":0},0]
[2,null,13,{"$f":"Template!$D$2","v":{"$error":"#N/A"}},{"$f":"Template!$D$4","v":{"$error":"#NAME?"}},{"$f":"Template!$D$6","v":{"$error":"#N/A"}},19,201,{"$f":"Template!B25","v":20110},{"$f":"Template!$D$8","v":"2015-01-31"},{"$f":"Template!C25","v":0},0]
[2,null,14,{"$f":"Template!$D$2","v":{"$error":"#N/A"}},{"$f":"Template!$D$4","v":{"$error":"#NAME?"}},{"$f":"Template!$D$6","v":{"$error":"#N/A"}},19,201,{"$f":"Template!B26","v":20128},{"$f":"Template!$D$8","v":"2015-01-31"},{"$f":"Template!C26","v":0},0]
[2,null,15,{"$f":"Template!$D$2","v":{"$error":"#N/A"}},{"$f":"Template!$D$4","v":{"$error":"#NAME?"}},{"$f":"Template!$D$6","v":{"$error":"#N/A"}},19,201,{"$f":"Template!B27","v":20111},{"$f":"Template!$D$8","v":"2015-01-31"},{"$f":"Template!C27","v":0},0]
[2,null,16,{"$f":"Template!$D$2","v":{"$error":"#N/A"}},{"$f":"Template!$D$4","v":{"$error":"#NAME?"}},{"$f":"Template!$D$6","v":{"$error":"#N/A"}},19,201,{"$f":"Template!B28","v":20113},{"$f":"Template!$D$8","v":"2015-01-31"},{"$f":"Template!C28","v":0},0]
[2,null,17,{"$f":"Template!$D$2","v":{"$error":"#N/A"}},{"$f":"Template!$D$4","v":{"$error":"#NAME?"}},{"$f":"Template!$D$6","v":{"$error":"#N/A"}},19,201,{"$f":"Template!B29","v":20112},{"$f":"Template!$D$8","v":"2015-01-31"},{"$f":"Template!C29","v":0},0]
[2,null,18,{"$f":"Template!$D$2","v":{"$error":"#N/A"}},{"$f":"Template!$D$4","v":{"$error":"#NAME?"}},{"$f":"Template!$D$6","v":{"$error":"#N/A"}},19,201,{"$f":"Template!B30","v":20129},{"$f":"Template!$D$8","v":"2015-01-31"},{"$f":"Template!C30","v":0},0]
[2,null,19,{"$f":"Template!$D$2","v":{"$error":"#N/A"}},{"$f":"Template!$D$4","v":{"$error":"#NAME?"}},{"$f":"Template!$D$6","v":{"$error":"#N/A"}},19,201,{"$f":"Template!B31","v":20130},{"$f":"Template!$D$8","v":"2015-01-31"},{"$f":"Template!C31","v":0},0]
[2,null,20,{"$f":"Template!$D$2","v":{"$error":"#N/A"}},{"$f":"Template!$D$4","v":{"$error":"#NAME?"}},{"$f":"Template!$D$6","v":{"$error":"#N/A"}},19,201,{"$f":"Template!B32","v":20131},{"$f":"Template!$D$8","v":"2015-01-31"},{"$f":"Template!C32","v":0},0]
[2,null,21,{"$f":"Template!$D$2","v":{"$error":"#N/A"}},{"$f":"Template!$D$4","v":{"$error":"#NAME?"}},{"$f":"Template!$D$6","v":{"$error":"#N/A"}},19,201,{"$f":"Template!B33","v":20132},{"$f":"Template!$D$8","v":"2015-01-31"},{"$f":"Template!C33","v":0},0]
[2,null,22,{"$f":"Template!$D$2","v":{"$error":"#N/A"}},{"$f":"Template!$D$4","v":{"$error":"#NAME?"}},{"$f":"Template!$D$6","v":{"$error":"#N/A"}},19,201,{"$f":"Template!B34","v":20133},{"$f":"Template!$D$8","v":"2015-01-31"},{"$f":"Template!C34","v":0},0]
[2,null,23,{"$f":"Template!$D$2","v":{"$error":"#N/A"}},{"$f":"Template!$D$4","v":{"$error":"#NAME?"}},{"$f":"Template!$D$6","v":{"$error":"#N/A"}},19,201,{"$f":"Template!B35","v":20134},{"$f":"Template!$D$8","v":"2015-01-31"},{"$f":"Template!C35","v":0},0]
[2,null,24,{"$f":"Template!$D$2","v":{"$error":"#N/A"}},{"$f":"Template!$D$4","v":{"$error":"#NAME?"}},{"$f":"Template!$D$6","v":{"$error":"#N/A"}},19,201,{"$f":"Template!B36","v":20135},{"$f":"Template!$D$8","v":"2015-01-31"},{"$f":"Template!C36","v":0},0]
[2,null,25,{"$f":"Template!$D$2","v":{"$error":"#N/A"}},{"$f":"Template!$D$4","v":{"$error":"#NAME?"}},{"$f":"Template!$D$6","v":{"$error":"#N/A"}},19,201,{"$f":"Template!B37","v":20136},{"$f":"Template!$D$8","v":"2015-01-31"},{"$f":"Template!C37","v":0},0]
[2,null,26,{"$f":"Template!$D$2","v":{"$error":"#N/A"}},{"$f":"Template!$D$4","v":{"$error":"#NAME?"}},{"$f":"Template!$D$6","v":{"$error":"#N/A"}},19,201,{"$f":"Template!B38","v":20137},{"$f":"Template!$D$8","v":"2015-01-31"},{"$f":"Template!C38","v":0},0]
[2,null,27,{"$f":"Template!$D$2","v":{"$error":"#N/A"}},{"$f":"Template!$D$4","v":{"$error":"#NAME?"}},{"$f":"Template!$D$6","v":{"$error":"#N/A"}},19,201,{"$f":"Template!B39","v":20138},{"$f":"Template!$D$8","v":"2015-01-31"},{"$f":"Template!C39","v":0},0]
[2,null,28,{"$f":"Template!$D$2","v":{"$error":"#N/A"}},{"$f":"Template!$D$4","v":{"$error":"#NAME?"}},{"$f":"Template!$D$6","v":{"$error":"#N/A"}},19,201,{"$f":"Template!B40","v":20114},{"$f":"Template!$D$8","v":"2015-01-31"},{"$f":"Template!C40","v":0},0]
[2,null,29,{"$f":"Template!$D$2","v":{"$error":"#N/A"}},{"$f":"Template!$D$4","v":{"$error":"#NAME?"}},{"$f":"Template!$D$6","v":{"$error":"#N/A"}},19,201,{"$f":"Template!B41","v":20139},{"$f":"Template!$D$8","v":"2015-01-31"},{"$f":"Template!C41","v":0},0]
[2,null,30,{"$f":"Template!$D$2","v":{"$error":"#N/A"}},{"$f":"Template!$D$4","v":{"$error":"#NAME?"}},{"$f":"Template!$D$6","v":{"$error":"#N/A"}},19,201,{"$f":"Template!B42","v":20115},{"$f":"Template!$D$8","v":"2015-01-31"},{"$f":"Template!C42","v":0},0]
[2,null,31,{"$f":"Template!$D$2","v":{"$error":"#N/A"}},{"$f":"Template!$D$4","v":{"$error":"#NAME?"}},{"$f":"Template!$D$6","v":{"$error":"#N/A"}},19,201,{"$f":"Template!B43","v":20117},{"$f":"Template!$D$8","v":"2015-01-31"},{"$f":"Template!C43","v":0},0]
[2,null,32,{"$f":"Template!$D$2","v":{"$error":"#N/A"}},{"$f":"Template!$D$4","v":{"$error":"#NAME?"}},{"$f":"Template!$D$6","v":{"$error":"#N/A"}},19,201,{"$f":"Template!B44","v":20118},{"$f":"Template!$D$8","v":"2015-01-31"},{"$f":"Template!C44","v":0},0]
[2,null,33,{"$f":"Template!$D$2","v":{"$error":"#N/A"}},{"$f":"Template!$D$4","v":{"$error":"#NAME?"}},{"$f":"Template!$D$6","v":{"$error":"#N/A"}},19,201,{"$f":"Template!B45","v":20119},{"$f":"Template!$D$8","v":"2015-01-31"},{"$f":"Template!C45","v":0},0]
[2,null,34,{"$f":"Template!$D$2","v":{"$error":"#N/A"}},{"$f":"Template!$D$4","v":{"$error":"#NAME?"}},{"$f":"Template!$D$6","v":{"$error":"#N/A"}},19,201,{"$f":"Template!B47","v":20140},{"$f":"Template!$D$8","v":"2015-01-31"},{"$f":"Template!C47","v":0},0]
[2,null,35,{"$f":"Template!$D$2","v":{"$error":"#N/A"}},{"$f":"Template!$D$4","v":{"$error":"#NAME?"}},{"$f":"Template!$D$6","v":{"$error":"#N/A"}},19,201,{"$f":"Template!B48","v":20141},{"$f":"Template!$D$8","v":"2015-01-31"},{"$f":"Template!C48","v":0},0]
[2,null,36,{"$f":"Template!$D$2","v":{"$error":"#N/A"}},{"$f":"Template!$D$4","v":{"$error":"#NAME?"}},{"$f":"Template!$D$6","v":{"$error":"#N/A"}},19,201,{"$f":"Template!B49","v":20142},{"$f":"Template!$D$8","v":"2015-01-31"},{"$f":"Template!C49","v":0},0]
[2,null,37,{"$f":"Template!$D$2","v":{"$error":"#N/A"}},{"$f":"Template!$D$4","v":{"$error":"#NAME?"}},{"$f":"Template!$D$6","v":{"$error":"#N/A"}},19,201,{"$f":"Template!B50","v":20143},{"$f":"Template!$D$8","v":"2015-01-31"},{"$f":"Template!C50","v":0},0]
[2,null,38,{"$f":"Template!$D$2","v":{"$error":"#N/A"}},{"$f":"Template!$D$4","v":{"$error":"#NAME?"}},{"$f":"Template!$D$6","v":{"$error":"#N/A"}},19,201,{"$f":"Template!B51","v":20144},{"$f":"Template!$D$8","v":"2015-01-31"},{"$f":"Template!C51","v":0},0]
[2,null,39,{"$f":"Template!$D$2","v":{"$error":"#N/A"}},{"$f":"Template!$D$4","v":{"$error":"#NAME?"}},{"$f":"Template!$D$6","v":{"$error":"#N/A"}},19,201,{"$f":"Template!B52","v":20145},{"$f":"Template!$D$8","v":"2015-01-31"},{"$f":"Template!C52","v":0},0]
[2,null,40,{"$f":"Template!$D$2","v":{"$error":"#N/A"}},{"$f":"Template!$D$4","v":{"$error":"#NAME?"}},{"$f":"Template!$D$6","v":{"$error":"#N/A"}},19,201,{"$f":"Template!B53","v":20146},{"$f":"Template!$D$8","v":"2015-01-31"},{"$f":"Template!C53","v":0},0]
[2,null,41,{"$f":"Template!$D$2","v":{"$error":"#N/A"}},{"$f":"Template!$D$4","v":{"$error":"#NAME?"}},{"$f":"Template!$D$6","v":{"$error":"#N/A"}},19,201,{"$f":"Template!B54","v":20147},{"$f":"Template!$D$8","v":"2015-01-31"},{"$f":"Template!C54","v":0},0]
[2,null,42,{"$f":"Template!$D$2","v":{"$error":"#N/A"}},{"$f":"Template!$D$4","v":{"$error":"#NAME?"}},{"$f":"Template!$D$6","v":{"$error":"#N/A"}},19,201,{"$f":"Template!B55","v":20148},{"$f":"Template!$D$8","v":"2015-01-31"},{"$f":"Template!C55","v":0},0]
[2,null,43,{"$f":"Template!$D$2","v":{"$error":"#N/A"}},{"$f":"Template!$D$4","v":{"$error":"#NAME?"}},{"$f":"Template!$D$6","v":{"$error":"#N/A"}},19,201,{"$f":"Template!B56","v":20149},{"$f":"Template!$D$8","v":"2015-01-31"},{"$f":"Template!C56","v":0},0]
[2,null,44,{"$f":"Template!$D$2","v":{"$error":"#N/A"}},{"$f":"Template!$D$4","v":{"$error":"#NAME?"}},{"$f":"Template!$D$6","v":{"$error":"#N/A"}},19,201,{"$f":"Template!B57","v":20150},{"$f":"Template!$D$8","v":"2015-01-31"},{"$f":"Template!C57","v":0},0]
[2,null,45,{"$f":"Template!$D$2","v":{"$error":"#N/A"}},{"$f":"Template!$D$4","v":{"$error":"#NAME?"}},{"$f":"Template!$D$6","v":{"$error":"#N/A"}},19,201,{"$f":"Template!B58","v":20151},{"$f":"Template!$D$8","v":"2015-01-31"},{"$f":"Template!C58","v":0},0]
[2,null,46,{"$f":"Template!$D$2","v":{"$error":"#N/A"}},{"$f":"Template!$D$4","v":{"$error":"#NAME?"}},{"$f":"Template!$D$6","v":{"$error":"#N/A"}},19,201,{"$f":"Template!B59","v":20152},{"$f":"Template!$D$8","v":"2015-01-31"},{"$f":"Template!C59","v":0},0]

{"sheet":"1304","index":7,"n_rows":1,"n_cols":12,"rows_kept":1,"cut":false,"hidden":true,"merged":[[5302,12,5323,12]]}
["Sector ","Batch No.","S. No.","Source Group","Source","CountryCodes","Currency","Group","Description","Period (dd-Mon-yyyy)","Amount","Department"]